Workbook

Sheet Simulation (hidden)
A2: =400*178+20 -> 71220 | R2: =PWM!F34 -> 0.9166666667 | T2: =Comp!D79*Comp!D77 -> 7.99798344e-06 | V2: =Comp!H79 -> 12 | AC2: =Parts!D20 -> 2.222e-05 | AF2: resistance corrected | BC2: =Parts!D20 -> 2.222e-05 | CC2: =Parts!D20 -> 2.222e-05 | CF2: =MAXA(CA19, MINA(+CA19+ ( W19 -$V$5*CC19)/(($V$6+0.000001)*$V$3+((B19-$CC$8)/$CC$10-($CC$3+$CC$9)/$CC$10^2*CH20)*$V$5/$CC$2), +CA19+($V$7*$CC$10-CC19)/((B19-$CC$8)/$CC$10-($CC$3+$CC$9)/$CC$10^2*CH20)*$CC$2,CA19+$V$4/$V$3)) -> 0 | CG2: original
D3: 1=Boost 2=Buck 3=Flyback | I3: Output Voltage 1st cycle | R3: =PWM!F35 -> 0.9166666667 | T3: =Comp!D80*Comp!D77 -> 6.4651042e-07 | V3: =Specs!D19 -> 144000 | AC3: =Parts!D19 -> 0.012 | AF3: 9009h | BC3: =Parts!D19 -> 0.012 | CC3: =Parts!E8 -> 0.027 | CF3: =MAXA(CA19, MINA(+CA19+ ( W19 -$V$5*CC19)/(($V$6+0.000001)*$V$3+((B19-$CC$8)/$CC$10)*$V$5/$CC$2), +CA19+($V$7*$CC$10-CC19)/((B19-$CC$8)/$CC$10-($CC$3+$CC$9)/$CC$10^2*CH20)*$CC$2,CA19+$V$4/$V$3)) -> 0 | CG3: no resistance
C4: =Specs!D21 -> 2 | I4: =AVERAGE(E19:E23) -> 0 | M4: Bus Squared | N4: D Square | R4: =PWM!F33 -> Closed | T4: =IF(ABS(1-Comp!D80*Comp!D76/T2)<0.1,IF(Comp!D80*Comp!D76>=T2,1.1*Comp!D80*Comp!D76,0.9*Comp!D80*Comp!D76),Comp!D80*Comp!D76) -> 2.24795e-06 | V4: =PWM!F25 -> 0.9 | AC4: =Parts!D38 -> 0.00044444 | AF4: simulation corrected wrt | BC4: =Parts!D38 -> 0.00044444 | BE4: On time | CC4: =Parts!D38 -> 0.00044444 | CF4: =MAXA(CA19, MINA(+CA19+ ( W19 -$V$5*CC19)/(($V$6)*$V$3+((B19)/$CC$10)*$V$5/$CC$2), 2 )) -> 0 | CG4: no resistance, second term
B5: Modulation Vin | C5: Modulation Vo | M5: =(Simulation!M20*Simulation!M19+(Simulation!M20-Simulation!M19)^2/3) -> 0 | N5: =(Simulation!N22*Simulation!N21+(Simulation!N22-Simulation!N21)^2/3) -> 0 | R5: =Wavedata!B22 -> 1.2 | T5: =Comp!D80*Comp!D74 -> 7.38901165e-06 | V5: =PWM!H22 -> 0 | X5: Feedforward | AC5: =Parts!D39 -> 0.018 | AF5: esr 9009j. | BC5: =Parts!D39 -> 0.018 | BE5: Diode? | CC5: =Parts!D39 -> 0.018
B6: 0 | C6: 0 | E6: =A19*1000 -> 0 | F6: Start time | M6: Bus RMS | N6: D RMS | R6: =Wavedata!B23 -> 1.2 | T6: =Comp!D78*Comp!D76 -> 0.000132515 | V6: =PWM!F27 -> 2 | X6: =PWM!F61 -> 0 | AC6: =Parts!D42 -> 0.49 | AF6: regulates, but has | BC6: =Parts!D42*Parts!E7 -> 0.49 | BE6: =IF(Specs!D18=1,0,Simulation!BC6) -> 0 | CC6: =Parts!D42 -> 0.49
B7: 1000 | C7: =B7 -> 1000 | E7: =A4019*1000 -> 5.555555556 | F7: Stop time | I7: =(Simulation!C22+Simulation!C21)/2*(Simulation!A22-Simulation!A21)/(Simulation!A24-Simulation!A19) -> 0 | M7: =SQRT(M5*M11) -> 0 | N7: =SQRT(N5*N11) -> 0 | R7: =Control!B9 -> 833333.3333 | T7: =$T$2*$T$4/($T$3*($T$4-$T$2)) -> -4.836389265 | V7: =PWM!F29 -> 12.732 | X7: =PWM!F62 -> 30 | AC7: =Parts!D43 -> 0.0024 | AF7: instability if esr is too high | BC7: =Parts!D43*Parts!E7 -> 0.0024 | BE7: =IF(Specs!D18=1,0,Simulation!BC7) -> 0 | CC7: =Parts!D43 -> 0.0024
B8: 1 | C8: =B8 -> 1 | E8: DCM? | F8: =IF(MINA(C19:C2019)<0.000000001,"Yes","No") -> Yes | M8: Frequency | R8: =Wavedata!B13/IF(Specs!P11=4,2,1) -> 36 | V8: =PWM!F30/V11 -> 2.75 | AC8: =Parts!D48 -> 0 | AF8: ripple on output of comp | BC8: =Parts!D50 -> 0 | CC8: =Parts!D50 -> 0
M9: =TRUNC(1/(A28-A24)/1000 +0.000000001,2) -> 144 | Q9: Transformer | R9: =Wavedata!B14/IF(Specs!P11=4,2,1) -> 36 | V9: =PWM!F31 -> 1 | AC9: =Parts!D49 -> 0.054 | AF9: sets up subharmonic, more | BC9: =Parts!D51 -> 0.054 | CC9: =Parts!D51 -> 0.054
A10: =TRUNC(A19+0.000000000001,12) -> 1e-12 | M10: Duty Cycle | N10: D2 | Q10: V-ms | R10: =V2/R5 -> 10 | S10: I Initial | V10: =PWM!F32 -> 1e-05 | AF10: ramp fixes this. | BC10: =IF(Specs!D18=1, 1, Parts!E6) -> 1 | CC10: =Parts!E6 -> 1
A11: 0 | B11: =$R$8 -> 36 | C11: 0 | D11: 0 | E11: 0 | F11: =-V2 -> -12 | G11: =V2 -> 12 | H11: 0 | I11: Zero | M11: =MIN(0.999,TRUNC((A20-A19)*V3,3)) -> 0 | N11: =TRUNC((A22-A21)*V3,3) -> 0 | Q11: =M11/Specs!D19*B20*1000 -> 0 | R11: =V2/R6 -> 10 | S11: I Final | V11: =Comp!E10 -> 1 | BC11: =IF(Specs!D18=1, 0, Parts!E8) -> 0 | CC11: =Parts!E9 -> 0.027
A12: 1 | B12: =$R$8 -> 36 | C12: =V2/Wavedata!B23/(1-0.5+Bode!C37) -> 14.07327485 | D12: =V2 -> 12 | E12: =V2 -> 12 | F12: =E12-V2 -> 0 | G12: =MINA(MAXA(V2-MINA($V$8,$V$9/$V$10*A12)),V2) -> 9.25 | H12: =V2-PWM!$N$35 -> 12 | I12: Steady-State | L12: Sw I with Magnetizing? | M12: =IF(OR(N14=2,N14=3,N14=4,N14=5,N14=6),1,0) -> 0 | R12: =V2^2/R5 -> 120 | S12: P Initial | V12: =Specs!D20 -> 0 | W12: QR Mode Flyback | BC12: =IF(Specs!D18=1, 0, Parts!E9) -> 0 | CC12: =CC11+CC5+CC7 -> 0.0474 | CF12: =CD19+(CA20-CA19) -> 0
A13: =A4019 -> 0.005555555556 | B13: 36 | C13: 8.714866289 | D13: 12.00071422 | E13: 11.97791312 | F13: 0.006587715012 | G13: 11.29817211 | H13: 11.31489498 | I13: Final States | J13: Constant I | M13: Transformer | N13: Topology | O13: Non alternating | R13: =V2^2/R6 -> 120 | S13: P Final | W13: Error voltage delayed | BC13: =IF(Specs!D18=1,0, 1/(Parts!D15/1000)*PWM!H21/Specs!D19) -> 0 | CC13: =Parts!N69*0.000001 -> 1e-07
J14: Constant P | M14: =CHOOSE(C4,1,BC10,CC10) -> 1 | N14: =Specs!D18 -> 1 | O14: =IF(OR(N14=4,N14=5,N14=6),0,1) -> 1 | Q14: Bridge | W14: by up to one cycle | BC14: =IF(Specs!D18=1, 1000, Parts!D15/1000) -> 1000
V15: Output | W15: Digital Delay | X15: Samples | CK15: Sepic Converter Simulation | CN15: 2nd | CS15: Coupled Sepic Converter Simulation | CV15: 2nd
V16: Command | W16: Control Voltage | X16: =IF(Bode!$AT$49=0, Bode!AS44, Bode!AT47) -> 6.944444444 | CJ16: Simulation | CK16: Inductor | CL16: Capacitor | CM16: Output | CN16: Inductor | CO16: Capacitor | CR16: Simulation | CS16: Inductor | CT16: Capacitor | CU16: Output | CV16: Inductor | CW16: Capacitor
V17: V | W17: =Bode!J54 -> FALSE | CJ17: Time | CK17: Current | CL17: Voltage | CM17: Voltage | CN17: Current | CO17: Voltage | CR17: Time | CS17: Current | CT17: Voltage | CU17: Voltage | CV17: Current | CW17: Voltage
CJ18: (s) | CK18: (A) | CL18: (V) | CM18: (V) | CN18: (V) | CO18: (V) | CR18: (s) | CS18: (A) | CT18: (V) | CU18: (V) | CV18: (A) | CW18: (V)
A19: 0 | B19: 36 | C19: 0 | D19: 0 | E19: 0 | F19: -12 | G19: 12 | H19: 0 | I19: =$V19-G19 -> 0 | J19: =IF($R$4="CLOSED",I19,$R$2)*$V$11 -> 0 | K19: =$R$6 -> 1.2 | L19: =1000*(A19-$A$19) -> 0 | M19: =C19/$M$14 -> 0 | N19: 0 | O19: 1 | P19: =C19 -> 0 | Q19: =P19 -> 0 | S19: =C19/$M$14*$O$14 -> 0 | T19: =M19-S19 -> 0 | U19: =M19 -> 0 | V19: =$V$2+$C$6*$B$8*SIN(2*PI()*$B$7*A19) -> 12 | W19: =IF($W$17,J19,J19) -> 0 | BA19: =A19 -> 0 | BC19: =C19 -> 0 | BD19: =D19 -> 0 | BE19: =E19 -> 0 | CF19: =CA19 -> 0 | CJ19: =A19 -> 0 | CK19: =C19 -> 0 | CL19: =D19 -> 0 | CM19: =E19 -> 0 | CN19: =AO19 -> 0 | CO19: =AP19 -> 0 | CR19: =A19 -> 0 | CS19: =C19 -> 0 | CT19: =D19 -> 0 | CU19: =E19 -> 0 | CV19: =AX19 -> 0 | CW19: =AY19 -> 0
A20: =CHOOSE($C$4,AA20,BA20,CA20) -> 0 | B20: =$R$8+$B$6*$B$8*SIN(2*PI()*$B$7*A19) -> 36 | C20: =CHOOSE($C$4,AC20,BC20,CC20) -> 0 | D20: =CHOOSE($C$4,AD20,BD20,CD20) -> 0 | E20: =CHOOSE($C$4,AE20,BE20,CE20) -> 0 | F20: =EXP(-(A20-A19)/$T$2)*(F19+V20-E20)+(E20-V20) -> -12 | G20: =MINA(MAXA((EXP(-(A20-A19)/$T$2)*(-E20+V20+F19)+(EXP(-(A20-A19)/$T$4)*(E20-V20-F19+(-$T$3/$T$4+$T$3/$T$2)*G19)))*$T$7+(1-EXP(-(A20-A19)/$T$4))*(H19+$T$4/$T$5*(E20-V20)),V20-MINA($V$8,$V$9/$V$10*A20)),V20) -> 12 | H20: =EXP(-(A20-A19)/$T$6)*(H19-G20)+G20 -> 0 | I20: =V20-G20 -> 0 | J20: 0 | K20: =IF($R$5>$R$6, MINA($R$5,1/MAXA(0.000001,(1/$R$6-$R$7*(A20-$A$19)))), MAXA($R$5,1/(1/$R$6+$R$7*(A20-$A$19)))) -> 1.2 | L20: 0 | M20: =C20/$M$14 +(B20/$BC$14*(A20-A19))*$M$12 -> 0 | N20: 0 | O20: 1 | P20: =C20 -> 0 | Q20: =P20 -> 0 | R20: =CHOOSE($X$6+1,$V$6,B20/$X$7) -> 2 | S20: =C20/$M$14*$O$14 -> 0 | T20: =M20-S20 -> 0 | U20: =M20 -> 0 | V20: =$V$2+$C$6*$B$8*SIN(2*PI()*$B$7*A19) -> 12 | W20: =IF($W$17,J20,J20) -> 0 | BA20: =MAXA(BA19, MINA(+BA19+( W19 -$V$5*BC19)/((R20+$BC$13*B20+0.000001)*$V$3+((B19-$BC$8)/$BC$10-BD19-$BE$6-($BC$3+$BC$5+$BC$12+$BE$7+($BC$11+$BC$9)/$BC$10^2)*BD19/K19)*$V$5/$BC$2), +BA19+($V$7*$BC$10-BC19)/((B19-$BC$8)/$BC$10- BD19*K19/(K19+$BC$5) -$BE$6-($BC$3+ ($BC$5*K19)/($BC$5+K19) +$BC$12+$BE$7+($BC$11+$BC$9)/$BC$10^2)*BC19) *$BC$2, BA19+$V$4/$V$3)) -> 0 | BC20: =BC19+(BA20-BA19)*((B19-$BC$8)/$BC$10- BD19*K19/(K19+$BC$5) -$BE$6-($BC$3+ ($BC$5*K19)/($BC$5+K19) +$BC$12+$BE$7+($BC$9+$BC$11)/$BC$10^2)* BC19 ) /$BC$2 -> 0 | BD20: =BD19+(BA20-BA19)*(((BC20+BC19)*K20/2-BD19)/($BC$5+K20))/$BC$4 -> 0 | BE20: =BD20*(K20/($BC$5+K20))+BC20*($BC$5*K20/($BC$5+K20)) -> 0 | CF20: =MAXA(CA19,MINA(+CA19+(J19-$V$5*CC19)/((R20+0.000001)*$V$3+((B19-$CC$8)/$CC$10-($CC$3+$CC$9)/$CC$10^2*0)*$V$5/$CC$2),+CA19+($V$7*$CC$10-CC19)/((B19-$CC$8)/$CC$10-($CC$3+$CC$9)/$CC$10^2*0)*$CC$2,CA19+$V$4/$V$3)) -CF19 -> 0 | CG20: =CC19+(CF20)*((B19-$CC$8)/$CC$10-($CC$3+$CC$9)/$CC$10^2*CC19)/$CC$2 -> 0 | CH20: =(CC19+CG20)/2 -> 0
A21: =CHOOSE($C$4,AA21,BA21,CA21) -> 0 | B21: =$R$8+$B$6*$B$8*SIN(2*PI()*$B$7*A20) -> 36 | C21: 0 | D21: 0 | E21: 0 | F21: =F20 -> -12 | G21: =G20 -> 12 | H21: =H20 -> 0 | I21: =I20 -> 0 | J21: 0 | K21: =IF($R$5>$R$6, MINA($R$5,1/MAXA(0.000001,(1/$R$6-$R$7*(A21-$A$19)))), MAXA($R$5,1/(1/$R$6+$R$7*(A21-$A$19)))) -> 1.2 | L21: 0 | M21: 0 | N21: =C21 -> 0 | O21: 1 | P21: 0 | Q21: =C21/2 -> 0 | R21: =CHOOSE($X$6+1,$V$6,B21/$X$7) -> 2 | S21: 0 | T21: 0 | U21: 0 | V21: =$V$2+$C$6*$B$8*SIN(2*PI()*$B$7*A20) -> 12 | W21: =IF($W$17,J21,J21) -> 0 | BA21: =BA20 -> 0 | BC21: =BC20 -> 0 | BD21: =BD20 -> 0 | BE21: =BE20 -> 0 | CF21: 0
A22: 0 | B22: 36 | C22: 0 | D22: 0 | E22: 0 | F22: =EXP(-(A22-A21)/$T$2)*(F21+V22-(E22+E21)/2)+((E22+E21)/2-V22) -> -12 | G22: =MINA(MAXA((EXP(-(A22-A21)/$T$2)*(-(E22+E21)/2+V22+F21)+(EXP(-(A22-A21)/$T$4)*((E22+E21)/2-V22-F21+(-$T$3/$T$4+$T$3/$T$2)*G21)))*$T$7+(1-EXP(-(A22-A21)/$T$4))*(H21+$T$4/$T$5*((E22+E21)/2-V22)),V22-MINA($V$8,$V$9/$V$10*A22)),V22) -> 12 | H22: =EXP(-(A22-A21)/$T$6)*(H21-G22)+G22 -> 0 | I22: =V22-G22 -> 0 | J22: 0 | K22: 1.2 | L22: 0 | M22: 0 | N22: =C22 -> 0 | O22: 1 | P22: 0 | Q22: =C22/2 -> 0 | R22: =CHOOSE($X$6+1,$V$6,B22/$X$7) -> 2 | S22: 0 | T22: 0 | U22: 0 | V22: 12 | W22: =IF($W$17,J22,J22) -> 0 | BA22: =MINA(+BA20+BC20/((+BD20*K19/(K19+$BC$5) +($BC$3+ ($BC$5*K19)/ ($BC$5+K19) +$BC$7+$BC$12)*BC20+$BC$6)/$BC$2), BA19+1/$V$3) -> 0 | BC22: =BC20+(BA22-BA20)*(-BD20*K19/(K19+$BC$5) -($BC$3+ ($BC$5*K22)/($BC$5+K22) +$BC$7+$BC$12)*BC21-$BC$6)/$BC$2 -> 0 | BD22: =BD20+(BA22-BA20)*(((BC22+BC20)*K22/2-BD20)/($BC$5+K22))/$BC$4 -> 0 | BE22: =BD22*(K22/($BC$5+K22))+BC22*($BC$5*K22/($BC$5+K22)) -> 0 | CF22: 0
A23: 6.944444444e-06 | B23: 36 | C23: 0 | D23: 0 | E23: 0 | F23: =EXP(-(A23-A22)/$T$2)*(F22+V23-(E23+E22)/2)+((E23+E22)/2-V23) -> -12 | G23: =MINA(MAXA((EXP(-(A23-A22)/$T$2)*(-(E23+E22)/2+V23+F22)+(EXP(-(A23-A22)/$T$4)*((E23+E22)/2-V23-F22+(-$T$3/$T$4+$T$3/$T$2)*G22)))*$T$7+(1-EXP(-(A23-A22)/$T$4))*(H22+$T$4/$T$5*((E23+E22)/2-V23)),V23-MINA($V$8,$V$9/$V$10*A23)),V23) -> 11.30555556 | H23: =EXP(-(A23-A22)/$T$6)*(H22-G23)+G23 -> 0.577210836 | I23: =V23-G23 -> 0.6944444444 | J23: 0.6944444444 | K23: 1.2 | L23: 0.006944444444 | M23: 0 | N23: =C23 -> 0 | O23: 1 | P23: 0 | Q23: =C23/2 -> 0 | R23: 2 | S23: 0 | T23: 0 | U23: 0 | V23: 12 | W23: =IF($W$17,J23,J23) -> 0.6944444444 | BA23: =BA19+1/$V$3 -> 6.944444444e-06 | BC23: =BC22 -> 0 | BD23: =BD22+(BA23-BA22)*(-BD22/($BC$5+K23))/$BC$4 -> 0 | BE23: =BD23*(K23/($BC$5+K23))+BC23*($BC$5*K23/($BC$5+K23)) -> 0 | CF23: 0
A24: 6.944444444e-06 | B24: 36 | C24: 0 | D24: 0 | E24: 0 | F24: =F23 -> -12 | G24: =G23 -> 11.30555556 | H24: =H23 -> 0.577210836 | I24: =I23 -> 0.6944444444 | J24: 0.6944444444 | K24: 1.2 | L24: 0.006944444444 | M24: =C24/$M$14*$O$14 -> 0 | N24: 0 | O24: 2 | P24: =C24 -> 0 | Q24: 0 | R24: 2 | S24: =C24/$M$14 -> 0 | T24: 0 | U24: 0 | V24: 12 | W24: =IF($W$17, IF(Bode!$AT$49=0, (J19+J24*($X$16-1))/($X$16), J19), J24) -> 0.6944444444 | BA24: =BA23 -> 6.944444444e-06 | BC24: =BC23 -> 0 | BD24: =BD23 -> 0 | BE24: =BE23 -> 0 | CF24: =CA24 -> 0
A25: 9.355708671e-06 | B25: 36 | C25: 3.906638711 | D25: 0.01044092258 | E25: 0.07956691564 | F25: =EXP(-(A25-A24)/$T$2)*(F24+V25-E25)+(E25-V25) -> -11.97929029 | G25: =MINA(MAXA((EXP(-(A25-A24)/$T$2)*(-E25+V25+F24)+(EXP(-(A25-A24)/$T$4)*(E25-V25-F24+(-$T$3/$T$4+$T$3/$T$2)*G24)))*$T$7+(1-EXP(-(A25-A24)/$T$4))*(H24+$T$4/$T$5*(E25-V25)),V25-MINA($V$8,$V$9/$V$10*A25)),V25) -> 11.06442913 | H25: =EXP(-(A25-A24)/$T$6)*(H24-G25)+G25 -> 0.7663122671 | I25: =V25-G25 -> 0.9355708671 | J25: 0.9355708671 | K25: 1.2 | L25: =1000*(A25-$A$19) -> 0.009355708671 | M25: =(C25/$M$14 +(B25/$BC$14*(A25-A24))*$M$12)*$O$14 -> 3.906638711 | N25: 0 | O25: =O20+1 -> 2 | P25: =C25 -> 3.906638711 | Q25: 0 | R25: 2 | S25: =C25/$M$14 +(B25/$BC$14*(A25-A24))*$M$12 -> 3.906638711 | T25: 0 | U25: 0 | V25: 12 | W25: =IF($W$17, IF(Bode!$AT$49=0, (J20+J25*($X$16-1))/($X$16), J20), J25) -> 0.9355708671 | BA25: =MAXA(BA24, MINA(+BA24+( W24 -$V$5*BC24)/((R25+$BC$13*B25+0.000001)*$V$3+((B24-$BC$8)/$BC$10-BD24-$BE$6-($BC$3+$BC$5+$BC$12+$BE$7+($BC$11+$BC$9)/$BC$10^2)*BD24/K24)*$V$5/$BC$2), +BA24+($V$7*$BC$10-BC24)/((B24-$BC$8)/$BC$10- BD24*K24/(K24+$BC$5) -$BE$6-($BC$3+ ($BC$5*K24)/($BC$5+K24) +$BC$12+$BE$7+($BC$11+$BC$9)/$BC$10^2)*BC24) *$BC$2, BA24+$V$4/$V$3)) -> 9.355708671e-06 | BC25: =BC24+(BA25-BA24)*((B24-$BC$8)/$BC$10- BD24*K24/(K24+$BC$5) -$BE$6-($BC$3+ ($BC$5*K24)/($BC$5+K24) +$BC$12+$BE$7+($BC$9+$BC$11)/$BC$10^2)* BC24 ) /$BC$2 -> 3.906638711 | BD25: =BD24+(BA25-BA24)*(((BC25+BC24)*K25/2-BD24)/($BC$5+K25))/$BC$4 -> 0.01044092258 | BE25: =BD25*(K25/($BC$5+K25))+BC25*($BC$5*K25/($BC$5+K25)) -> 0.07956691564 | CF25: =MAXA(CA24,MINA(+CA24+(J24-$V$5*CC24)/((R25+0.000001)*$V$3+((B24-$CC$8)/$CC$10-($CC$3+$CC$9)/$CC$10^2*0)*$V$5/$CC$2),+CA24+($V$7*$CC$10-CC24)/((B24-$CC$8)/$CC$10-($CC$3+$CC$9)/$CC$10^2*0)*$CC$2,CA24+$V$4/$V$3)) -CF24 -> 2.411264226e-06 | CG25: =CC24+(CF25)*((B24-$CC$8)/$CC$10-($CC$3+$CC$9)/$CC$10^2*CC24)/$CC$2 -> 3.906638711 | CH25: =(CC24+CG25)/2 -> 1.953319355
A26: 9.355708671e-06 | B26: 36 | C26: 3.906638711 | D26: 0.01044092258 | E26: 0.07956691564 | F26: =F25 -> -11.97929029 | G26: =G25 -> 11.06442913 | H26: =H25 -> 0.7663122671 | I26: =I25 -> 0.9355708671 | J26: 0.9355708671 | K26: 1.2 | L26: 0.009355708671 | M26: 0 | N26: =C26 -> 3.906638711 | O26: 2 | P26: 0 | Q26: =C26/2 -> 1.953319355 | R26: 2 | S26: 0 | T26: 0 | U26: 0 | V26: 12 | W26: =IF($W$17, IF(Bode!$AT$49=0, (J21+J26*($X$16-1))/($X$16), J21), J26) -> 0.9355708671 | BA26: =BA25 -> 9.355708671e-06 | BC26: =BC25 -> 3.906638711 | BD26: =BD25 -> 0.01044092258 | BE26: =BE25 -> 0.07956691564 | CF26: 0
A27: 1.388888889e-05 | B27: 36 | C27: 3.778962462 | D27: 0.04896987659 | E27: 0.1152622669 | F27: =EXP(-(A27-A26)/$T$2)*(F26+V27-(E27+E26)/2)+((E27+E26)/2-V27) -> -11.94610342 | G27: =MINA(MAXA((EXP(-(A27-A26)/$T$2)*(-(E27+E26)/2+V27+F26)+(EXP(-(A27-A26)/$T$4)*((E27+E26)/2-V27-F26+(-$T$3/$T$4+$T$3/$T$2)*G26)))*$T$7+(1-EXP(-(A27-A26)/$T$4))*(H26+$T$4/$T$5*((E27+E26)/2-V27)),V27-MINA($V$8,$V$9/$V$10*A27)),V27) -> 10.61111111 | H27: =EXP(-(A27-A26)/$T$6)*(H26-G27)+G27 -> 1.097395829 | I27: =V27-G27 -> 1.388888889 | J27: 1.388888889 | K27: 1.2 | L27: 0.01388888889 | M27: 0 | N27: =C27 -> 3.778962462 | O27: 2 | P27: 0 | Q27: =C27/2 -> 1.889481231 | R27: 2 | S27: 0 | T27: 0 | U27: 0 | V27: 12 | W27: =IF($W$17, IF(Bode!$AT$49=0, (J22+J27*($X$16-1))/($X$16), J22), J27) -> 1.388888889 | BA27: =MINA(+BA25+BC25/((+BD25*K24/(K24+$BC$5) +($BC$3+ ($BC$5*K24)/ ($BC$5+K24) +$BC$7+$BC$12)*BC25+$BC$6)/$BC$2), BA24+1/$V$3) -> 1.388888889e-05 | BC27: =BC25+(BA27-BA25)*(-BD25*K24/(K24+$BC$5) -($BC$3+ ($BC$5*K27)/($BC$5+K27) +$BC$7+$BC$12)*BC26-$BC$6)/$BC$2 -> 3.778962462 | BD27: =BD25+(BA27-BA25)*(((BC27+BC25)*K27/2-BD25)/($BC$5+K27))/$BC$4 -> 0.04896987659 | BE27: =BD27*(K27/($BC$5+K27))+BC27*($BC$5*K27/($BC$5+K27)) -> 0.1152622669 | CF27: 0
A28: 1.388888889e-05 | B28: 36 | C28: 3.778962462 | D28: 0.04896987659 | E28: 0.1152622669 | F28: =EXP(-(A28-A27)/$T$2)*(F27+V28-(E28+E27)/2)+((E28+E27)/2-V28) -> -11.94610342 | G28: =MINA(MAXA((EXP(-(A28-A27)/$T$2)*(-(E28+E27)/2+V28+F27)+(EXP(-(A28-A27)/$T$4)*((E28+E27)/2-V28-F27+(-$T$3/$T$4+$T$3/$T$2)*G27)))*$T$7+(1-EXP(-(A28-A27)/$T$4))*(H27+$T$4/$T$5*((E28+E27)/2-V28)),V28-MINA($V$8,$V$9/$V$10*A28)),V28) -> 10.61111111 | H28: =EXP(-(A28-A27)/$T$6)*(H27-G28)+G28 -> 1.097395829 | I28: =V28-G28 -> 1.388888889 | J28: 1.388888889 | K28: 1.2 | L28: 0.01388888889 | M28: 0 | N28: =C28 -> 3.778962462 | O28: 2 | P28: 0 | Q28: =C28/2 -> 1.889481231 | R28: 2 | S28: 0 | T28: 0 | U28: 0 | V28: 12 | W28: =IF($W$17, IF(Bode!$AT$49=0, (J23+J28*($X$16-1))/($X$16), J23), J28) -> 1.388888889 | BA28: =BA24+1/$V$3 -> 1.388888889e-05 | BC28: =BC27 -> 3.778962462 | BD28: =BD27+(BA28-BA27)*(-BD27/($BC$5+K28))/$BC$4 -> 0.04896987659 | BE28: =BD28*(K28/($BC$5+K28))+BC28*($BC$5*K28/($BC$5+K28)) -> 0.1152622669 | CF28: 0
A29: 1.388888889e-05 | B29: 36 | C29: 3.778962462 | D29: 0.04896987659 | E29: 0.1152622669 | F29: =F28 -> -11.94610342 | G29: =G28 -> 10.61111111 | H29: =H28 -> 1.097395829 | I29: =I28 -> 1.388888889 | J29: 1.388888889 | K29: 1.2 | L29: 0.01388888889 | M29: =C29/$M$14 -> 3.778962462 | N29: 0 | O29: 3 | P29: =C29 -> 3.778962462 | Q29: =P29 -> 3.778962462 | R29: 2 | S29: =C29/$M$14*$O$14 -> 3.778962462 | T29: 0 | U29: =M29 -> 3.778962462 | V29: 12 | W29: =IF($W$17, IF(Bode!$AT$49=0, (J24+J29*($X$16-1))/($X$16), (J19+J24*($X$16-1))/($X$16)), J29) -> 1.388888889 | BA29: =BA28 -> 1.388888889e-05 | BC29: =BC28 -> 3.778962462 | BD29: =BD28 -> 0.04896987659 | BE29: =BE28 -> 0.1152622669 | CF29: =CA29 -> 0
A30: 1.871141734e-05 | B30: 36 | C30: 11.51309273 | D30: 0.1302730249 | E30: 0.3325208808 | F30: =EXP(-(A30-A29)/$T$2)*(F29+V30-E30)+(E30-V30) -> -11.8199382 | G30: =MINA(MAXA((EXP(-(A30-A29)/$T$2)*(-E30+V30+F29)+(EXP(-(A30-A29)/$T$4)*(E30-V30-F29+(-$T$3/$T$4+$T$3/$T$2)*G29)))*$T$7+(1-EXP(-(A30-A29)/$T$4))*(H29+$T$4/$T$5*(E30-V30)),V30-MINA($V$8,$V$9/$V$10*A30)),V30) -> 10.12885827 | H30: =EXP(-(A30-A29)/$T$6)*(H29-G30)+G30 -> 1.420162967 | I30: =V30-G30 -> 1.871141734 | J30: 1.871141734 | K30: 1.2 | L30: 0.01871141734 | M30: =C30/$M$14 +(B30/$BC$14*(A30-A29))*$M$12 -> 11.51309273 | N30: 0 | O30: 3 | P30: =C30 -> 11.51309273 | Q30: =P30 -> 11.51309273 | R30: 2 | S30: =C30/$M$14*$O$14 -> 11.51309273 | T30: 0 | U30: =M30 -> 11.51309273 | V30: 12 | W30: =IF($W$17, IF(Bode!$AT$49=0, (J25+J30*($X$16-1))/($X$16), (J20+J25*($X$16-1))/($X$16)), J30) -> 1.871141734 | BA30: =MAXA(BA29, MINA(+BA29+( W29 -$V$5*BC29)/((R30+$BC$13*B30+0.000001)*$V$3+((B29-$BC$8)/$BC$10-BD29-$BE$6-($BC$3+$BC$5+$BC$12+$BE$7+($BC$11+$BC$9)/$BC$10^2)*BD29/K29)*$V$5/$BC$2), +BA29+($V$7*$BC$10-BC29)/((B29-$BC$8)/$BC$10- BD29*K29/(K29+$BC$5) -$BE$6-($BC$3+ ($BC$5*K29)/($BC$5+K29) +$BC$12+$BE$7+($BC$11+$BC$9)/$BC$10^2)*BC29) *$BC$2, BA29+$V$4/$V$3)) -> 1.871141734e-05 | BC30: =BC29+(BA30-BA29)*((B29-$BC$8)/$BC$10- BD29*K29/(K29+$BC$5) -$BE$6-($BC$3+ ($BC$5*K29)/($BC$5+K29) +$BC$12+$BE$7+($BC$9+$BC$11)/$BC$10^2)* BC29 ) /$BC$2 -> 11.51309273 | BD30: =BD29+(BA30-BA29)*(((BC30+BC29)*K30/2-BD29)/($BC$5+K30))/$BC$4 -> 0.1302730249 | BE30: =BD30*(K30/($BC$5+K30))+BC30*($BC$5*K30/($BC$5+K30)) -> 0.3325208808 | CG30: =CC29+(CF30)*((B29-$CC$8)/$CC$10-($CC$3+$CC$9)/$CC$10^2*CC29)/$CC$2 -> 0 | CH30: =(CC29+CG30)/2 -> 0
A31: 1.871141734e-05 | B31: 36 | C31: 11.51309273 | D31: 0.1302730249 | E31: 0.3325208808 | F31: =F30 -> -11.8199382 | G31: =G30 -> 10.12885827 | H31: =H30 -> 1.420162967 | I31: =I30 -> 1.871141734 | J31: 1.871141734 | K31: 1.2 | L31: 0.01871141734 | M31: 0 | N31: =C31 -> 11.51309273 | O31: 3 | P31: 0 | Q31: =C31/2 -> 5.756546366 | R31: 2 | S31: 0 | T31: 0 | U31: 0 | V31: 12 | W31: =IF($W$17, IF(Bode!$AT$49=0, (J26+J31*($X$16-1))/($X$16), (J21+J26*($X$16-1))/($X$16)), J31) -> 1.871141734 | BA31: =BA30 -> 1.871141734e-05 | BC31: =BC30 -> 11.51309273 | BD31: =BD30 -> 0.1302730249 | BE31: =BE30 -> 0.3325208808
A32: 2.083333333e-05 | B32: 36 | C32: 11.41871336 | D32: 0.1836957104 | E32: 0.3834803457 | F32: =EXP(-(A32-A31)/$T$2)*(F31+V32-(E32+E31)/2)+((E32+E31)/2-V32) -> -11.77847329 | G32: =MINA(MAXA((EXP(-(A32-A31)/$T$2)*(-(E32+E31)/2+V32+F31)+(EXP(-(A32-A31)/$T$4)*((E32+E31)/2-V32-F31+(-$T$3/$T$4+$T$3/$T$2)*G31)))*$T$7+(1-EXP(-(A32-A31)/$T$4))*(H31+$T$4/$T$5*((E32+E31)/2-V32)),V32-MINA($V$8,$V$9/$V$10*A32)),V32) -> 9.916666667 | H32: =EXP(-(A32-A31)/$T$6)*(H31-G32)+G32 -> 1.555131004 | I32: =V32-G32 -> 2.083333333 | J32: 2.083333333 | K32: 1.2 | L32: 0.02083333333 | M32: 0 | N32: =C32 -> 11.41871336 | O32: 3 | P32: 0 | Q32: =C32/2 -> 5.709356682 | R32: 2 | S32: 0 | T32: 0 | U32: 0 | V32: 12 | W32: =IF($W$17, IF(Bode!$AT$49=0, (J27+J32*($X$16-1))/($X$16), (J22+J27*($X$16-1))/($X$16)), J32) -> 2.083333333 | BA32: =MINA(+BA30+BC30/((+BD30*K29/(K29+$BC$5) +($BC$3+ ($BC$5*K29)/ ($BC$5+K29) +$BC$7+$BC$12)*BC30+$BC$6)/$BC$2), BA29+1/$V$3) -> 2.083333333e-05 | BC32: =BC30+(BA32-BA30)*(-BD30*K29/(K29+$BC$5) -($BC$3+ ($BC$5*K32)/($BC$5+K32) +$BC$7+$BC$12)*BC31-$BC$6)/$BC$2 -> 11.41871336 | BD32: =BD30+(BA32-BA30)*(((BC32+BC30)*K32/2-BD30)/($BC$5+K32))/$BC$4 -> 0.1836957104 | BE32: =BD32*(K32/($BC$5+K32))+BC32*($BC$5*K32/($BC$5+K32)) -> 0.3834803457
A33: 2.083333333e-05 | B33: 36 | C33: 11.41871336 | D33: 0.1836957104 | E33: 0.3834803457 | F33: =EXP(-(A33-A32)/$T$2)*(F32+V33-(E33+E32)/2)+((E33+E32)/2-V33) -> -11.77847329 | G33: =MINA(MAXA((EXP(-(A33-A32)/$T$2)*(-(E33+E32)/2+V33+F32)+(EXP(-(A33-A32)/$T$4)*((E33+E32)/2-V33-F32+(-$T$3/$T$4+$T$3/$T$2)*G32)))*$T$7+(1-EXP(-(A33-A32)/$T$4))*(H32+$T$4/$T$5*((E33+E32)/2-V33)),V33-MINA($V$8,$V$9/$V$10*A33)),V33) -> 9.916666667 | H33: =EXP(-(A33-A32)/$T$6)*(H32-G33)+G33 -> 1.555131004 | I33: =V33-G33 -> 2.083333333 | J33: 2.083333333 | K33: 1.2 | L33: 0.02083333333 | M33: 0 | N33: =C33 -> 11.41871336 | O33: 3 | P33: 0 | Q33: =C33/2 -> 5.709356682 | R33: 2 | S33: 0 | T33: 0 | U33: 0 | V33: 12 | W33: =IF($W$17, IF(Bode!$AT$49=0, (J28+J33*($X$16-1))/($X$16), (J23+J28*($X$16-1))/($X$16)), J33) -> 2.083333333 | BA33: =BA29+1/$V$3 -> 2.083333333e-05 | BC33: =BC32 -> 11.41871336 | BD33: =BD32+(BA33-BA32)*(-BD32/($BC$5+K33))/$BC$4 -> 0.1836957104 | BE33: =BD33*(K33/($BC$5+K33))+BC33*($BC$5*K33/($BC$5+K33)) -> 0.3834803457
A34: 2.083333333e-05 | B34: 36 | C34: 11.41871336 | D34: 0.1836957104 | E34: 0.3834803457 | F34: =F33 -> -11.77847329 | G34: =G33 -> 9.916666667 | H34: =H33 -> 1.555131004 | I34: =I33 -> 2.083333333 | J34: 2.083333333 | K34: 1.2 | L34: 0.02083333333 | M34: =C34/$M$14*$O$14 -> 11.41871336 | N34: 0 | O34: 4 | P34: =C34 -> 11.41871336 | Q34: 0 | R34: 2 | S34: =C34/$M$14 -> 11.41871336 | T34: 0 | U34: 0 | V34: 12 | W34: =IF($W$17, IF(Bode!$AT$49=0, (J29+J34*($X$16-1))/($X$16), (J24+J29*($X$16-1))/($X$16)), J34) -> 2.083333333 | BA34: =BA33 -> 2.083333333e-05 | BC34: =BC33 -> 11.41871336 | BD34: =BD33 -> 0.1836957104 | BE34: =BE33 -> 0.3834803457
A35: 2.167036186e-05 | B35: 36 | C35: 12.732 | D35: 0.2058175014 | E35: 0.428565026 | F35: =EXP(-(A35-A34)/$T$2)*(F34+V35-E35)+(E35-V35) -> -11.75790097 | G35: =MINA(MAXA((EXP(-(A35-A34)/$T$2)*(-E35+V35+F34)+(EXP(-(A35-A34)/$T$4)*(E35-V35-F34+(-$T$3/$T$4+$T$3/$T$2)*G34)))*$T$7+(1-EXP(-(A35-A34)/$T$4))*(H34+$T$4/$T$5*(E35-V35)),V35-MINA($V$8,$V$9/$V$10*A35)),V35) -> 9.832963814 | H35: =EXP(-(A35-A34)/$T$6)*(H34-G35)+G35 -> 1.607252994 | I35: =V35-G35 -> 2.167036186 | J35: 2.167036186 | K35: 1.2 | L35: 0.02167036186 | M35: =(C35/$M$14 +(B35/$BC$14*(A35-A34))*$M$12)*$O$14 -> 12.732 | N35: 0 | O35: 4 | P35: =C35 -> 12.732 | Q35: 0 | R35: 2 | S35: =C35/$M$14 +(B35/$BC$14*(A35-A34))*$M$12 -> 12.732 | T35: 0 | U35: 0 | V35: 12 | W35: =IF($W$17, IF(Bode!$AT$49=0, (J30+J35*($X$16-1))/($X$16), (J25+J30*($X$16-1))/($X$16)), J35) -> 2.167036186 | BA35: =MAXA(BA34, MINA(+BA34+( W34 -$V$5*BC34)/((R35+$BC$13*B35+0.000001)*$V$3+((B34-$BC$8)/$BC$10-BD34-$BE$6-($BC$3+$BC$5+$BC$12+$BE$7+($BC$11+$BC$9)/$BC$10^2)*BD34/K34)*$V$5/$BC$2), +BA34+($V$7*$BC$10-BC34)/((B34-$BC$8)/$BC$10- BD34*K34/(K34+$BC$5) -$BE$6-($BC$3+ ($BC$5*K34)/($BC$5+K34) +$BC$12+$BE$7+($BC$11+$BC$9)/$BC$10^2)*BC34) *$BC$2, BA34+$V$4/$V$3)) -> 2.167036186e-05 | BC35: =BC34+(BA35-BA34)*((B34-$BC$8)/$BC$10- BD34*K34/(K34+$BC$5) -$BE$6-($BC$3+ ($BC$5*K34)/($BC$5+K34) +$BC$12+$BE$7+($BC$9+$BC$11)/$BC$10^2)* BC34 ) /$BC$2 -> 12.732 | BD35: =BD34+(BA35-BA34)*(((BC35+BC34)*K35/2-BD34)/($BC$5+K35))/$BC$4 -> 0.2058175014 | BE35: =BD35*(K35/($BC$5+K35))+BC35*($BC$5*K35/($BC$5+K35)) -> 0.428565026 | CG35: =CC34+(CF35)*((B34-$CC$8)/$CC$10-($CC$3+$CC$9)/$CC$10^2*CC34)/$CC$2 -> 0 | CH35: =(CC34+CG35)/2 -> 0
A36: 2.167036186e-05 | B36: 36 | C36: 12.732 | D36: 0.2058175014 | E36: 0.428565026 | F36: =F35 -> -11.75790097 | G36: =G35 -> 9.832963814 | H36: =H35 -> 1.607252994 | I36: =I35 -> 2.167036186 | J36: 2.167036186 | K36: 1.2 | L36: 0.02167036186 | M36: 0 | N36: =C36 -> 12.732 | O36: 4 | P36: 0 | Q36: =C36/2 -> 6.366 | R36: 2 | S36: 0 | T36: 0 | U36: 0 | V36: 12 | W36: =IF($W$17, IF(Bode!$AT$49=0, (J31+J36*($X$16-1))/($X$16), (J26+J31*($X$16-1))/($X$16)), J36) -> 2.167036186 | BA36: =BA35 -> 2.167036186e-05 | BC36: =BC35 -> 12.732 | BD36: =BD35 -> 0.2058175014 | BE36: =BE35 -> 0.428565026
A37: 2.777777778e-05 | B37: 36 | C37: 12.42912884 | D37: 0.3738204267 | E37: 0.5887140353 | F37: =EXP(-(A37-A36)/$T$2)*(F36+V37-(E37+E36)/2)+((E37+E36)/2-V37) -> -11.61556216 | G37: =MINA(MAXA((EXP(-(A37-A36)/$T$2)*(-(E37+E36)/2+V37+F36)+(EXP(-(A37-A36)/$T$4)*((E37+E36)/2-V37-F36+(-$T$3/$T$4+$T$3/$T$2)*G36)))*$T$7+(1-EXP(-(A37-A36)/$T$4))*(H36+$T$4/$T$5*((E37+E36)/2-V37)),V37-MINA($V$8,$V$9/$V$10*A37)),V37) -> 9.25 | H37: =EXP(-(A37-A36)/$T$6)*(H36-G37)+G37 -> 1.951501757 | I37: =V37-G37 -> 2.75 | J37: 2.75 | K37: 1.2 | L37: 0.02777777778 | M37: 0 | N37: =C37 -> 12.42912884 | O37: 4 | P37: 0 | Q37: =C37/2 -> 6.21456442 | R37: 2 | S37: 0 | T37: 0 | U37: 0 | V37: 12 | W37: =IF($W$17, IF(Bode!$AT$49=0, (J32+J37*($X$16-1))/($X$16), (J27+J32*($X$16-1))/($X$16)), J37) -> 2.75 | BA37: =MINA(+BA35+BC35/((+BD35*K34/(K34+$BC$5) +($BC$3+ ($BC$5*K34)/ ($BC$5+K34) +$BC$7+$BC$12)*BC35+$BC$6)/$BC$2), BA34+1/$V$3) -> 2.777777778e-05 | BC37: =BC35+(BA37-BA35)*(-BD35*K34/(K34+$BC$5) -($BC$3+ ($BC$5*K37)/($BC$5+K37) +$BC$7+$BC$12)*BC36-$BC$6)/$BC$2 -> 12.42912884 | BD37: =BD35+(BA37-BA35)*(((BC37+BC35)*K37/2-BD35)/($BC$5+K37))/$BC$4 -> 0.3738204267 | BE37: =BD37*(K37/($BC$5+K37))+BC37*($BC$5*K37/($BC$5+K37)) -> 0.5887140353
A38: 2.777777778e-05 | B38: 36 | C38: 12.42912884 | D38: 0.3738204267 | E38: 0.5887140353 | F38: =EXP(-(A38-A37)/$T$2)*(F37+V38-(E38+E37)/2)+((E38+E37)/2-V38) -> -11.61556216 | G38: =MINA(MAXA((EXP(-(A38-A37)/$T$2)*(-(E38+E37)/2+V38+F37)+(EXP(-(A38-A37)/$T$4)*((E38+E37)/2-V38-F37+(-$T$3/$T$4+$T$3/$T$2)*G37)))*$T$7+(1-EXP(-(A38-A37)/$T$4))*(H37+$T$4/$T$5*((E38+E37)/2-V38)),V38-MINA($V$8,$V$9/$V$10*A38)),V38) -> 9.25 | H38: =EXP(-(A38-A37)/$T$6)*(H37-G38)+G38 -> 1.951501757 | I38: =V38-G38 -> 2.75 | J38: 2.75 | K38: 1.2 | L38: 0.02777777778 | M38: 0 | N38: =C38 -> 12.42912884 | O38: 4 | P38: 0 | Q38: =C38/2 -> 6.21456442 | R38: 2 | S38: 0 | T38: 0 | U38: 0 | V38: 12 | W38: =IF($W$17, IF(Bode!$AT$49=0, (J33+J38*($X$16-1))/($X$16), (J28+J33*($X$16-1))/($X$16)), J38) -> 2.75 | BA38: =BA34+1/$V$3 -> 2.777777778e-05 | BC38: =BC37 -> 12.42912884 | BD38: =BD37+(BA38-BA37)*(-BD37/($BC$5+K38))/$BC$4 -> 0.3738204267 | BE38: =BD38*(K38/($BC$5+K38))+BC38*($BC$5*K38/($BC$5+K38)) -> 0.5887140353
A39: 2.777777778e-05 | B39: 36 | C39: 12.42912884 | D39: 0.3738204267 | E39: 0.5887140353 | F39: =F38 -> -11.61556216 | G39: =G38 -> 9.25 | H39: =H38 -> 1.951501757 | I39: =I38 -> 2.75 | J39: 2.75 | K39: 1.2 | L39: 0.02777777778 | M39: =C39/$M$14 -> 12.42912884 | N39: 0 | O39: 5 | P39: =C39 -> 12.42912884 | Q39: =P39 -> 12.42912884 | R39: 2 | S39: =C39/$M$14*$O$14 -> 12.42912884 | T39: 0 | U39: =M39 -> 12.42912884 | V39: 12 | W39: =IF($W$17, IF(Bode!$AT$49=0, (J34+J39*($X$16-1))/($X$16), (J29+J34*($X$16-1))/($X$16)), J39) -> 2.75 | BA39: =BA38 -> 2.777777778e-05 | BC39: =BC38 -> 12.42912884 | BD39: =BD38 -> 0.3738204267 | BE39: =BE38 -> 0.5887140353
A40: 2.79723314e-05 | B40: 36 | C40: 12.732 | D40: 0.3791118315 | E40: 0.5992983561 | F40: =EXP(-(A40-A39)/$T$2)*(F39+V40-E40)+(E40-V40) -> -11.61039866 | G40: =MINA(MAXA((EXP(-(A40-A39)/$T$2)*(-E40+V40+F39)+(EXP(-(A40-A39)/$T$4)*(E40-V40-F39+(-$T$3/$T$4+$T$3/$T$2)*G39)))*$T$7+(1-EXP(-(A40-A39)/$T$4))*(H39+$T$4/$T$5*(E40-V40)),V40-MINA($V$8,$V$9/$V$10*A40)),V40) -> 9.25 | H40: =EXP(-(A40-A39)/$T$6)*(H39-G40)+G40 -> 1.96220928 | I40: =V40-G40 -> 2.75 | J40: 2.75 | K40: 1.2 | L40: 0.0279723314 | M40: =C40/$M$14 +(B40/$BC$14*(A40-A39))*$M$12 -> 12.732 | N40: 0 | O40: 5 | P40: =C40 -> 12.732 | Q40: =P40 -> 12.732 | R40: 2 | S40: =C40/$M$14*$O$14 -> 12.732 | T40: 0 | U40: =M40 -> 12.732 | V40: 12 | W40: =IF($W$17, IF(Bode!$AT$49=0, (J35+J40*($X$16-1))/($X$16), (J30+J35*($X$16-1))/($X$16)), J40) -> 2.75 | BA40: =MAXA(BA39, MINA(+BA39+( W39 -$V$5*BC39)/((R40+$BC$13*B40+0.000001)*$V$3+((B39-$BC$8)/$BC$10-BD39-$BE$6-($BC$3+$BC$5+$BC$12+$BE$7+($BC$11+$BC$9)/$BC$10^2)*BD39/K39)*$V$5/$BC$2), +BA39+($V$7*$BC$10-BC39)/((B39-$BC$8)/$BC$10- BD39*K39/(K39+$BC$5) -$BE$6-($BC$3+ ($BC$5*K39)/($BC$5+K39) +$BC$12+$BE$7+($BC$11+$BC$9)/$BC$10^2)*BC39) *$BC$2, BA39+$V$4/$V$3)) -> 2.79723314e-05 | BC40: =BC39+(BA40-BA39)*((B39-$BC$8)/$BC$10- BD39*K39/(K39+$BC$5) -$BE$6-($BC$3+ ($BC$5*K39)/($BC$5+K39) +$BC$12+$BE$7+($BC$9+$BC$11)/$BC$10^2)* BC39 ) /$BC$2 -> 12.732 | BD40: =BD39+(BA40-BA39)*(((BC40+BC39)*K40/2-BD39)/($BC$5+K40))/$BC$4 -> 0.3791118315 | BE40: =BD40*(K40/($BC$5+K40))+BC40*($BC$5*K40/($BC$5+K40)) -> 0.5992983561 | CG40: =CC39+(CF40)*((B39-$CC$8)/$CC$10-($CC$3+$CC$9)/$CC$10^2*CC39)/$CC$2 -> 0 | CH40: =(CC39+CG40)/2 -> 0
A41: 2.79723314e-05 | B41: 36 | C41: 12.732 | D41: 0.3791118315 | E41: 0.5992983561 | F41: =F40 -> -11.61039866 | G41: =G40 -> 9.25 | H41: =H40 -> 1.96220928 | I41: =I40 -> 2.75 | J41: 2.75 | K41: 1.2 | L41: 0.0279723314 | M41: 0 | N41: =C41 -> 12.732 | O41: 5 | P41: 0 | Q41: =C41/2 -> 6.366 | R41: 2 | S41: 0 | T41: 0 | U41: 0 | V41: 12 | W41: =IF($W$17, IF(Bode!$AT$49=0, (J36+J41*($X$16-1))/($X$16), (J31+J36*($X$16-1))/($X$16)), J41) -> 2.75 | BA41: =BA40 -> 2.79723314e-05 | BC41: =BC40 -> 12.732 | BD41: =BD40 -> 0.3791118315 | BE41: =BE40 -> 0.5992983561
A42: 3.472222222e-05 | B42: 36 | C42: 12.34540345 | D42: 0.5620007498 | E42: 0.7726285832 | F42: =EXP(-(A42-A41)/$T$2)*(F41+V42-(E42+E41)/2)+((E42+E41)/2-V42) -> -11.44147492 | G42: =MINA(MAXA((EXP(-(A42-A41)/$T$2)*(-(E42+E41)/2+V42+F41)+(EXP(-(A42-A41)/$T$4)*((E42+E41)/2-V42-F41+(-$T$3/$T$4+$T$3/$T$2)*G41)))*$T$7+(1-EXP(-(A42-A41)/$T$4))*(H41+$T$4/$T$5*((E42+E41)/2-V42)),V42-MINA($V$8,$V$9/$V$10*A42)),V42) -> 9.25 | H42: =EXP(-(A42-A41)/$T$6)*(H41-G42)+G42 -> 2.324130263 | I42: =V42-G42 -> 2.75 | J42: 2.75 | K42: 1.2 | L42: 0.03472222222 | M42: 0 | N42: =C42 -> 12.34540345 | O42: 5 | P42: 0 | Q42: =C42/2 -> 6.172701725 | R42: 2 | S42: 0 | T42: 0 | U42: 0 | V42: 12 | W42: =IF($W$17, IF(Bode!$AT$49=0, (J37+J42*($X$16-1))/($X$16), (J32+J37*($X$16-1))/($X$16)), J42) -> 2.75 | BA42: =MINA(+BA40+BC40/((+BD40*K39/(K39+$BC$5) +($BC$3+ ($BC$5*K39)/ ($BC$5+K39) +$BC$7+$BC$12)*BC40+$BC$6)/$BC$2), BA39+1/$V$3) -> 3.472222222e-05 | BC42: =BC40+(BA42-BA40)*(-BD40*K39/(K39+$BC$5) -($BC$3+ ($BC$5*K42)/($BC$5+K42) +$BC$7+$BC$12)*BC41-$BC$6)/$BC$2 -> 12.34540345 | BD42: =BD40+(BA42-BA40)*(((BC42+BC40)*K42/2-BD40)/($BC$5+K42))/$BC$4 -> 0.5620007498 | BE42: =BD42*(K42/($BC$5+K42))+BC42*($BC$5*K42/($BC$5+K42)) -> 0.7726285832
A43: 3.472222222e-05 | B43: 36 | C43: 12.34540345 | D43: 0.5620007498 | E43: 0.7726285832 | F43: =EXP(-(A43-A42)/$T$2)*(F42+V43-(E43+E42)/2)+((E43+E42)/2-V43) -> -11.44147492 | G43: =MINA(MAXA((EXP(-(A43-A42)/$T$2)*(-(E43+E42)/2+V43+F42)+(EXP(-(A43-A42)/$T$4)*((E43+E42)/2-V43-F42+(-$T$3/$T$4+$T$3/$T$2)*G42)))*$T$7+(1-EXP(-(A43-A42)/$T$4))*(H42+$T$4/$T$5*((E43+E42)/2-V43)),V43-MINA($V$8,$V$9/$V$10*A43)),V43) -> 9.25 | H43: =EXP(-(A43-A42)/$T$6)*(H42-G43)+G43 -> 2.324130263 | I43: =V43-G43 -> 2.75 | J43: 2.75 | K43: 1.2 | L43: 0.03472222222 | M43: 0 | N43: =C43 -> 12.34540345 | O43: 5 | P43: 0 | Q43: =C43/2 -> 6.172701725 | R43: 2 | S43: 0 | T43: 0 | U43: 0 | V43: 12 | W43: =IF($W$17, IF(Bode!$AT$49=0, (J38+J43*($X$16-1))/($X$16), (J33+J38*($X$16-1))/($X$16)), J43) -> 2.75 | BA43: =BA39+1/$V$3 -> 3.472222222e-05 | BC43: =BC42 -> 12.34540345 | BD43: =BD42+(BA43-BA42)*(-BD42/($BC$5+K43))/$BC$4 -> 0.5620007498 | BE43: =BD43*(K43/($BC$5+K43))+BC43*($BC$5*K43/($BC$5+K43)) -> 0.7726285832
A44: 3.472222222e-05 | B44: 36 | C44: 12.34540345 | D44: 0.5620007498 | E44: 0.7726285832 | F44: =F43 -> -11.44147492 | G44: =G43 -> 9.25 | H44: =H43 -> 2.324130263 | I44: =I43 -> 2.75 | J44: 2.75 | K44: 1.2 | L44: 0.03472222222 | M44: =C44/$M$14*$O$14 -> 12.34540345 | N44: 0 | O44: 6 | P44: =C44 -> 12.34540345 | Q44: 0 | R44: 2 | S44: =C44/$M$14 -> 12.34540345 | T44: 0 | U44: 0 | V44: 12 | W44: =IF($W$17, IF(Bode!$AT$49=0, (J39+J44*($X$16-1))/($X$16), (J34+J39*($X$16-1))/($X$16)), J44) -> 2.75 | BA44: =BA43 -> 3.472222222e-05 | BC44: =BC43 -> 12.34540345 | BD44: =BD43 -> 0.5620007498 | BE44: =BE43 -> 0.7726285832
A45: 3.497184537e-05 | B45: 36 | C45: 12.732 | D45: 0.5686799765 | E45: 0.7860650015 | F45: =EXP(-(A45-A44)/$T$2)*(F44+V45-E45)+(E45-V45) -> -11.43448291 | G45: =MINA(MAXA((EXP(-(A45-A44)/$T$2)*(-E45+V45+F44)+(EXP(-(A45-A44)/$T$4)*(E45-V45-F44+(-$T$3/$T$4+$T$3/$T$2)*G44)))*$T$7+(1-EXP(-(A45-A44)/$T$4))*(H44+$T$4/$T$5*(E45-V45)),V45-MINA($V$8,$V$9/$V$10*A45)),V45) -> 9.25 | H45: =EXP(-(A45-A44)/$T$6)*(H44-G45)+G45 -> 2.337164486 | I45: =V45-G45 -> 2.75 | J45: 2.75 | K45: 1.2 | L45: 0.03497184537 | M45: =(C45/$M$14 +(B45/$BC$14*(A45-A44))*$M$12)*$O$14 -> 12.732 | N45: 0 | O45: 6 | P45: =C45 -> 12.732 | Q45: 0 | R45: 2 | S45: =C45/$M$14 +(B45/$BC$14*(A45-A44))*$M$12 -> 12.732 | T45: 0 | U45: 0 | V45: 12 | W45: =IF($W$17, IF(Bode!$AT$49=0, (J40+J45*($X$16-1))/($X$16), (J35+J40*($X$16-1))/($X$16)), J45) -> 2.75 | BA45: =MAXA(BA44, MINA(+BA44+( W44 -$V$5*BC44)/((R45+$BC$13*B45+0.000001)*$V$3+((B44-$BC$8)/$BC$10-BD44-$BE$6-($BC$3+$BC$5+$BC$12+$BE$7+($BC$11+$BC$9)/$BC$10^2)*BD44/K44)*$V$5/$BC$2), +BA44+($V$7*$BC$10-BC44)/((B44-$BC$8)/$BC$10- BD44*K44/(K44+$BC$5) -$BE$6-($BC$3+ ($BC$5*K44)/($BC$5+K44) +$BC$12+$BE$7+($BC$11+$BC$9)/$BC$10^2)*BC44) *$BC$2, BA44+$V$4/$V$3)) -> 3.497184537e-05 | BC45: =BC44+(BA45-BA44)*((B44-$BC$8)/$BC$10- BD44*K44/(K44+$BC$5) -$BE$6-($BC$3+ ($BC$5*K44)/($BC$5+K44) +$BC$12+$BE$7+($BC$9+$BC$11)/$BC$10^2)* BC44 ) /$BC$2 -> 12.732 | BD45: =BD44+(BA45-BA44)*(((BC45+BC44)*K45/2-BD44)/($BC$5+K45))/$BC$4 -> 0.5686799765 | BE45: =BD45*(K45/($BC$5+K45))+BC45*($BC$5*K45/($BC$5+K45)) -> 0.7860650015 | CG45: =CC44+(CF45)*((B44-$CC$8)/$CC$10-($CC$3+$CC$9)/$CC$10^2*CC44)/$CC$2 -> 0 | CH45: =(CC44+CG45)/2 -> 0
A46: 3.497184537e-05 | B46: 36 | C46: 12.732 | D46: 0.5686799765 | E46: 0.7860650015 | F46: =F45 -> -11.43448291 | G46: =G45 -> 9.25 | H46: =H45 -> 2.337164486 | I46: =I45 -> 2.75 | J46: 2.75 | K46: 1.2 | L46: 0.03497184537 | M46: 0 | N46: =C46 -> 12.732 | O46: 6 | P46: 0 | Q46: =C46/2 -> 6.366 | R46: 2 | S46: 0 | T46: 0 | U46: 0 | V46: 12 | W46: =IF($W$17, IF(Bode!$AT$49=0, (J41+J46*($X$16-1))/($X$16), (J36+J41*($X$16-1))/($X$16)), J46) -> 2.75 | BA46: =BA45 -> 3.497184537e-05 | BC46: =BC45 -> 12.732 | BD46: =BD45 -> 0.5686799765 | BE46: =BE45 -> 0.7860650015
A47: 4.166666667e-05 | B47: 36 | C47: 12.29228528 | D47: 0.7473381547 | E47: 0.9542850145 | F47: =EXP(-(A47-A46)/$T$2)*(F46+V47-(E47+E46)/2)+((E47+E46)/2-V47) -> -11.26173579 | G47: =MINA(MAXA((EXP(-(A47-A46)/$T$2)*(-(E47+E46)/2+V47+F46)+(EXP(-(A47-A46)/$T$4)*((E47+E46)/2-V47-F46+(-$T$3/$T$4+$T$3/$T$2)*G46)))*$T$7+(1-EXP(-(A47-A46)/$T$4))*(H46+$T$4/$T$5*((E47+E46)/2-V47)),V47-MINA($V$8,$V$9/$V$10*A47)),V47) -> 9.25 | H47: =EXP(-(A47-A46)/$T$6)*(H46-G47)+G47 -> 2.677734032 | I47: =V47-G47 -> 2.75 | J47: 2.75 | K47: 1.2 | L47: 0.04166666667 | M47: 0 | N47: =C47 -> 12.29228528 | O47: 6 | P47: 0 | Q47: =C47/2 -> 6.146142641 | R47: 2 | S47: 0 | T47: 0 | U47: 0 | V47: 12 | W47: =IF($W$17, IF(Bode!$AT$49=0, (J42+J47*($X$16-1))/($X$16), (J37+J42*($X$16-1))/($X$16)), J47) -> 2.75 | BA47: =MINA(+BA45+BC45/((+BD45*K44/(K44+$BC$5) +($BC$3+ ($BC$5*K44)/ ($BC$5+K44) +$BC$7+$BC$12)*BC45+$BC$6)/$BC$2), BA44+1/$V$3) -> 4.166666667e-05 | BC47: =BC45+(BA47-BA45)*(-BD45*K44/(K44+$BC$5) -($BC$3+ ($BC$5*K47)/($BC$5+K47) +$BC$7+$BC$12)*BC46-$BC$6)/$BC$2 -> 12.29228528 | BD47: =BD45+(BA47-BA45)*(((BC47+BC45)*K47/2-BD45)/($BC$5+K47))/$BC$4 -> 0.7473381547 | BE47: =BD47*(K47/($BC$5+K47))+BC47*($BC$5*K47/($BC$5+K47)) -> 0.9542850145
A48: 4.166666667e-05 | B48: 36 | C48: 12.29228528 | D48: 0.7473381547 | E48: 0.9542850145 | F48: =EXP(-(A48-A47)/$T$2)*(F47+V48-(E48+E47)/2)+((E48+E47)/2-V48) -> -11.26173579 | G48: =MINA(MAXA((EXP(-(A48-A47)/$T$2)*(-(E48+E47)/2+V48+F47)+(EXP(-(A48-A47)/$T$4)*((E48+E47)/2-V48-F47+(-$T$3/$T$4+$T$3/$T$2)*G47)))*$T$7+(1-EXP(-(A48-A47)/$T$4))*(H47+$T$4/$T$5*((E48+E47)/2-V48)),V48-MINA($V$8,$V$9/$V$10*A48)),V48) -> 9.25 | H48: =EXP(-(A48-A47)/$T$6)*(H47-G48)+G48 -> 2.677734032 | I48: =V48-G48 -> 2.75 | J48: 2.75 | K48: 1.2 | L48: 0.04166666667 | M48: 0 | N48: =C48 -> 12.29228528 | O48: 6 | P48: 0 | Q48: =C48/2 -> 6.146142641 | R48: 2 | S48: 0 | T48: 0 | U48: 0 | V48: 12 | W48: =IF($W$17, IF(Bode!$AT$49=0, (J43+J48*($X$16-1))/($X$16), (J38+J43*($X$16-1))/($X$16)), J48) -> 2.75 | BA48: =BA44+1/$V$3 -> 4.166666667e-05 | BC48: =BC47 -> 12.29228528 | BD48: =BD47+(BA48-BA47)*(-BD47/($BC$5+K48))/$BC$4 -> 0.7473381547 | BE48: =BD48*(K48/($BC$5+K48))+BC48*($BC$5*K48/($BC$5+K48)) -> 0.9542850145
A49: 4.166666667e-05 | B49: 36 | C49: 12.29228528 | D49: 0.7473381547 | E49: 0.9542850145 | F49: =F48 -> -11.26173579 | G49: =G48 -> 9.25 | H49: =H48 -> 2.677734032 | I49: =I48 -> 2.75 | J49: 2.75 | K49: 1.2 | L49: 0.04166666667 | M49: =C49/$M$14 -> 12.29228528 | N49: 0 | O49: 7 | P49: =C49 -> 12.29228528 | Q49: =P49 -> 12.29228528 | R49: 2 | S49: =C49/$M$14*$O$14 -> 12.29228528 | T49: 0 | U49: =M49 -> 12.29228528 | V49: 12 | W49: =IF($W$17, IF(Bode!$AT$49=0, (J44+J49*($X$16-1))/($X$16), (J39+J44*($X$16-1))/($X$16)), J49) -> 2.75 | BA49: =BA48 -> 4.166666667e-05 | BC49: =BC48 -> 12.29228528 | BD49: =BD48 -> 0.7473381547 | BE49: =BE48 -> 0.9542850145
A50: 4.195206539e-05 | B50: 36 | C50: 12.732 | D50: 0.7548601205 | E50: 0.9694937148 | F50: =EXP(-(A50-A49)/$T$2)*(F49+V50-E50)+(E50-V50) -> -11.25363011 | G50: =MINA(MAXA((EXP(-(A50-A49)/$T$2)*(-E50+V50+F49)+(EXP(-(A50-A49)/$T$4)*(E50-V50-F49+(-$T$3/$T$4+$T$3/$T$2)*G49)))*$T$7+(1-EXP(-(A50-A49)/$T$4))*(H49+$T$4/$T$5*(E50-V50)),V50-MINA($V$8,$V$9/$V$10*A50)),V50) -> 9.25 | H50: =EXP(-(A50-A49)/$T$6)*(H49-G50)+G50 -> 2.691873548 | I50: =V50-G50 -> 2.75 | J50: 2.75 | K50: 1.2 | L50: 0.04195206539 | M50: =C50/$M$14 +(B50/$BC$14*(A50-A49))*$M$12 -> 12.732 | N50: 0 | O50: 7 | P50: =C50 -> 12.732 | Q50: =P50 -> 12.732 | R50: 2 | S50: =C50/$M$14*$O$14 -> 12.732 | T50: 0 | U50: =M50 -> 12.732 | V50: 12 | W50: =IF($W$17, IF(Bode!$AT$49=0, (J45+J50*($X$16-1))/($X$16), (J40+J45*($X$16-1))/($X$16)), J50) -> 2.75 | BA50: =MAXA(BA49, MINA(+BA49+( W49 -$V$5*BC49)/((R50+$BC$13*B50+0.000001)*$V$3+((B49-$BC$8)/$BC$10-BD49-$BE$6-($BC$3+$BC$5+$BC$12+$BE$7+($BC$11+$BC$9)/$BC$10^2)*BD49/K49)*$V$5/$BC$2), +BA49+($V$7*$BC$10-BC49)/((B49-$BC$8)/$BC$10- BD49*K49/(K49+$BC$5) -$BE$6-($BC$3+ ($BC$5*K49)/($BC$5+K49) +$BC$12+$BE$7+($BC$11+$BC$9)/$BC$10^2)*BC49) *$BC$2, BA49+$V$4/$V$3)) -> 4.195206539e-05 | BC50: =BC49+(BA50-BA49)*((B49-$BC$8)/$BC$10- BD49*K49/(K49+$BC$5) -$BE$6-($BC$3+ ($BC$5*K49)/($BC$5+K49) +$BC$12+$BE$7+($BC$9+$BC$11)/$BC$10^2)* BC49 ) /$BC$2 -> 12.732 | BD50: =BD49+(BA50-BA49)*(((BC50+BC49)*K50/2-BD49)/($BC$5+K50))/$BC$4 -> 0.7548601205 | BE50: =BD50*(K50/($BC$5+K50))+BC50*($BC$5*K50/($BC$5+K50)) -> 0.9694937148 | CG50: =CC49+(CF50)*((B49-$CC$8)/$CC$10-($CC$3+$CC$9)/$CC$10^2*CC49)/$CC$2 -> 0 | CH50: =(CC49+CG50)/2 -> 0
A51: 4.195206539e-05 | B51: 36 | C51: 12.732 | D51: 0.7548601205 | E51: 0.9694937148 | F51: =F50 -> -11.25363011 | G51: =G50 -> 9.25 | H51: =H50 -> 2.691873548 | I51: =I50 -> 2.75 | J51: 2.75 | K51: 1.2 | L51: 0.04195206539 | M51: 0 | N51: =C51 -> 12.732 | O51: 7 | P51: 0 | Q51: =C51/2 -> 6.366 | R51: 2 | S51: 0 | T51: 0 | U51: 0 | V51: 12 | W51: =IF($W$17, IF(Bode!$AT$49=0, (J46+J51*($X$16-1))/($X$16), (J41+J46*($X$16-1))/($X$16)), J51) -> 2.75 | BA51: =BA50 -> 4.195206539e-05 | BC51: =BC50 -> 12.732 | BD51: =BD50 -> 0.7548601205 | BE51: =BE50 -> 0.9694937148
A52: 4.861111111e-05 | B52: 36 | C52: 12.23966381 | D52: 0.9298849419 | E52: 1.133200877 | F52: =EXP(-(A52-A51)/$T$2)*(F51+V52-(E52+E51)/2)+((E52+E51)/2-V52) -> -11.08129382 | G52: =MINA(MAXA((EXP(-(A52-A51)/$T$2)*(-(E52+E51)/2+V52+F51)+(EXP(-(A52-A51)/$T$4)*((E52+E51)/2-V52-F51+(-$T$3/$T$4+$T$3/$T$2)*G51)))*$T$7+(1-EXP(-(A52-A51)/$T$4))*(H51+$T$4/$T$5*((E52+E51)/2-V52)),V52-MINA($V$8,$V$9/$V$10*A52)),V52) -> 9.25 | H52: =EXP(-(A52-A51)/$T$6)*(H51-G52)+G52 -> 3.013284383 | I52: =V52-G52 -> 2.75 | J52: 2.75 | K52: 1.2 | L52: 0.04861111111 | M52: 0 | N52: =C52 -> 12.23966381 | O52: 7 | P52: 0 | Q52: =C52/2 -> 6.119831905 | R52: 2 | S52: 0 | T52: 0 | U52: 0 | V52: 12 | W52: =IF($W$17, IF(Bode!$AT$49=0, (J47+J52*($X$16-1))/($X$16), (J42+J47*($X$16-1))/($X$16)), J52) -> 2.75 | BA52: =MINA(+BA50+BC50/((+BD50*K49/(K49+$BC$5) +($BC$3+ ($BC$5*K49)/ ($BC$5+K49) +$BC$7+$BC$12)*BC50+$BC$6)/$BC$2), BA49+1/$V$3) -> 4.861111111e-05 | BC52: =BC50+(BA52-BA50)*(-BD50*K49/(K49+$BC$5) -($BC$3+ ($BC$5*K52)/($BC$5+K52) +$BC$7+$BC$12)*BC51-$BC$6)/$BC$2 -> 12.23966381 | BD52: =BD50+(BA52-BA50)*(((BC52+BC50)*K52/2-BD50)/($BC$5+K52))/$BC$4 -> 0.9298849419 | BE52: =BD52*(K52/($BC$5+K52))+BC52*($BC$5*K52/($BC$5+K52)) -> 1.133200877
A53: 4.861111111e-05 | B53: 36 | C53: 12.23966381 | D53: 0.9298849419 | E53: 1.133200877 | F53: =EXP(-(A53-A52)/$T$2)*(F52+V53-(E53+E52)/2)+((E53+E52)/2-V53) -> -11.08129382 | G53: =MINA(MAXA((EXP(-(A53-A52)/$T$2)*(-(E53+E52)/2+V53+F52)+(EXP(-(A53-A52)/$T$4)*((E53+E52)/2-V53-F52+(-$T$3/$T$4+$T$3/$T$2)*G52)))*$T$7+(1-EXP(-(A53-A52)/$T$4))*(H52+$T$4/$T$5*((E53+E52)/2-V53)),V53-MINA($V$8,$V$9/$V$10*A53)),V53) -> 9.25 | H53: =EXP(-(A53-A52)/$T$6)*(H52-G53)+G53 -> 3.013284383 | I53: =V53-G53 -> 2.75 | J53: 2.75 | K53: 1.2 | L53: 0.04861111111 | M53: 0 | N53: =C53 -> 12.23966381 | O53: 7 | P53: 0 | Q53: =C53/2 -> 6.119831905 | R53: 2 | S53: 0 | T53: 0 | U53: 0 | V53: 12 | W53: =IF($W$17, IF(Bode!$AT$49=0, (J48+J53*($X$16-1))/($X$16), (J43+J48*($X$16-1))/($X$16)), J53) -> 2.75 | BA53: =BA49+1/$V$3 -> 4.861111111e-05 | BC53: =BC52 -> 12.23966381 | BD53: =BD52+(BA53-BA52)*(-BD52/($BC$5+K53))/$BC$4 -> 0.9298849419 | BE53: =BD53*(K53/($BC$5+K53))+BC53*($BC$5*K53/($BC$5+K53)) -> 1.133200877
A54: 4.861111111e-05 | B54: 36 | C54: 12.23966381 | D54: 0.9298849419 | E54: 1.133200877 | F54: =F53 -> -11.08129382 | G54: =G53 -> 9.25 | H54: =H53 -> 3.013284383 | I54: =I53 -> 2.75 | J54: 2.75 | K54: 1.2 | L54: 0.04861111111 | M54: =C54/$M$14*$O$14 -> 12.23966381 | N54: 0 | O54: 8 | P54: =C54 -> 12.23966381 | Q54: 0 | R54: 2 | S54: =C54/$M$14 -> 12.23966381 | T54: 0 | U54: 0 | V54: 12 | W54: =IF($W$17, IF(Bode!$AT$49=0, (J49+J54*($X$16-1))/($X$16), (J44+J49*($X$16-1))/($X$16)), J54) -> 2.75 | BA54: =BA53 -> 4.861111111e-05 | BC54: =BC53 -> 12.23966381 | BD54: =BD53 -> 0.9298849419 | BE54: =BE53 -> 1.133200877
A55: 4.893231009e-05 | B55: 36 | C55: 12.732 | D55: 0.9382234102 | E55: 1.150147202 | F55: =EXP(-(A55-A54)/$T$2)*(F54+V55-E55)+(E55-V55) -> -11.07218331 | G55: =MINA(MAXA((EXP(-(A55-A54)/$T$2)*(-E55+V55+F54)+(EXP(-(A55-A54)/$T$4)*(E55-V55-F54+(-$T$3/$T$4+$T$3/$T$2)*G54)))*$T$7+(1-EXP(-(A55-A54)/$T$4))*(H54+$T$4/$T$5*(E55-V55)),V55-MINA($V$8,$V$9/$V$10*A55)),V55) -> 9.25 | H55: =EXP(-(A55-A54)/$T$6)*(H54-G55)+G55 -> 3.028383058 | I55: =V55-G55 -> 2.75 | J55: 2.75 | K55: 1.2 | L55: 0.04893231009 | M55: =(C55/$M$14 +(B55/$BC$14*(A55-A54))*$M$12)*$O$14 -> 12.732 | N55: 0 | O55: 8 | P55: =C55 -> 12.732 | Q55: 0 | R55: 2 | S55: =C55/$M$14 +(B55/$BC$14*(A55-A54))*$M$12 -> 12.732 | T55: 0 | U55: 0 | V55: 12 | W55: =IF($W$17, IF(Bode!$AT$49=0, (J50+J55*($X$16-1))/($X$16), (J45+J50*($X$16-1))/($X$16)), J55) -> 2.75 | BA55: =MAXA(BA54, MINA(+BA54+( W54 -$V$5*BC54)/((R55+$BC$13*B55+0.000001)*$V$3+((B54-$BC$8)/$BC$10-BD54-$BE$6-($BC$3+$BC$5+$BC$12+$BE$7+($BC$11+$BC$9)/$BC$10^2)*BD54/K54)*$V$5/$BC$2), +BA54+($V$7*$BC$10-BC54)/((B54-$BC$8)/$BC$10- BD54*K54/(K54+$BC$5) -$BE$6-($BC$3+ ($BC$5*K54)/($BC$5+K54) +$BC$12+$BE$7+($BC$11+$BC$9)/$BC$10^2)*BC54) *$BC$2, BA54+$V$4/$V$3)) -> 4.893231009e-05 | BC55: =BC54+(BA55-BA54)*((B54-$BC$8)/$BC$10- BD54*K54/(K54+$BC$5) -$BE$6-($BC$3+ ($BC$5*K54)/($BC$5+K54) +$BC$12+$BE$7+($BC$9+$BC$11)/$BC$10^2)* BC54 ) /$BC$2 -> 12.732 | BD55: =BD54+(BA55-BA54)*(((BC55+BC54)*K55/2-BD54)/($BC$5+K55))/$BC$4 -> 0.9382234102 | BE55: =BD55*(K55/($BC$5+K55))+BC55*($BC$5*K55/($BC$5+K55)) -> 1.150147202 | CG55: =CC54+(CF55)*((B54-$CC$8)/$CC$10-($CC$3+$CC$9)/$CC$10^2*CC54)/$CC$2 -> 0 | CH55: =(CC54+CG55)/2 -> 0
A56: 4.893231009e-05 | B56: 36 | C56: 12.732 | D56: 0.9382234102 | E56: 1.150147202 | F56: =F55 -> -11.07218331 | G56: =G55 -> 9.25 | H56: =H55 -> 3.028383058 | I56: =I55 -> 2.75 | J56: 2.75 | K56: 1.2 | L56: 0.04893231009 | M56: 0 | N56: =C56 -> 12.732 | O56: 8 | P56: 0 | Q56: =C56/2 -> 6.366 | R56: 2 | S56: 0 | T56: 0 | U56: 0 | V56: 12 | W56: =IF($W$17, IF(Bode!$AT$49=0, (J51+J56*($X$16-1))/($X$16), (J46+J51*($X$16-1))/($X$16)), J56) -> 2.75 | BA56: =BA55 -> 4.893231009e-05 | BC56: =BC55 -> 12.732 | BD56: =BD55 -> 0.9382234102 | BE56: =BE55 -> 1.150147202
A57: 5.555555556e-05 | B57: 36 | C57: 12.18846226 | D57: 1.109687907 | E57: 1.309438648 | F57: =EXP(-(A57-A56)/$T$2)*(F56+V57-(E57+E56)/2)+((E57+E56)/2-V57) -> -10.90213212 | G57: =MINA(MAXA((EXP(-(A57-A56)/$T$2)*(-(E57+E56)/2+V57+F56)+(EXP(-(A57-A56)/$T$4)*((E57+E56)/2-V57-F56+(-$T$3/$T$4+$T$3/$T$2)*G56)))*$T$7+(1-EXP(-(A57-A56)/$T$4))*(H56+$T$4/$T$5*((E57+E56)/2-V57)),V57-MINA($V$8,$V$9/$V$10*A57)),V57) -> 9.25 | H57: =EXP(-(A57-A56)/$T$6)*(H56-G57)+G57 -> 3.331703042 | I57: =V57-G57 -> 2.75 | J57: 2.75 | K57: 1.2 | L57: 0.05555555556 | M57: 0 | N57: =C57 -> 12.18846226 | O57: 8 | P57: 0 | Q57: =C57/2 -> 6.094231129 | R57: 2 | S57: 0 | T57: 0 | U57: 0 | V57: 12 | W57: =IF($W$17, IF(Bode!$AT$49=0, (J52+J57*($X$16-1))/($X$16), (J47+J52*($X$16-1))/($X$16)), J57) -> 2.75 | BA57: =MINA(+BA55+BC55/((+BD55*K54/(K54+$BC$5) +($BC$3+ ($BC$5*K54)/ ($BC$5+K54) +$BC$7+$BC$12)*BC55+$BC$6)/$BC$2), BA54+1/$V$3) -> 5.555555556e-05 | BC57: =BC55+(BA57-BA55)*(-BD55*K54/(K54+$BC$5) -($BC$3+ ($BC$5*K57)/($BC$5+K57) +$BC$7+$BC$12)*BC56-$BC$6)/$BC$2 -> 12.18846226 | BD57: =BD55+(BA57-BA55)*(((BC57+BC55)*K57/2-BD55)/($BC$5+K57))/$BC$4 -> 1.109687907 | BE57: =BD57*(K57/($BC$5+K57))+BC57*($BC$5*K57/($BC$5+K57)) -> 1.309438648
A58: 5.555555556e-05 | B58: 36 | C58: 12.18846226 | D58: 1.109687907 | E58: 1.309438648 | F58: =EXP(-(A58-A57)/$T$2)*(F57+V58-(E58+E57)/2)+((E58+E57)/2-V58) -> -10.90213212 | G58: =MINA(MAXA((EXP(-(A58-A57)/$T$2)*(-(E58+E57)/2+V58+F57)+(EXP(-(A58-A57)/$T$4)*((E58+E57)/2-V58-F57+(-$T$3/$T$4+$T$3/$T$2)*G57)))*$T$7+(1-EXP(-(A58-A57)/$T$4))*(H57+$T$4/$T$5*((E58+E57)/2-V58)),V58-MINA($V$8,$V$9/$V$10*A58)),V58) -> 9.25 | H58: =EXP(-(A58-A57)/$T$6)*(H57-G58)+G58 -> 3.331703042 | I58: =V58-G58 -> 2.75 | J58: 2.75 | K58: 1.2 | L58: 0.05555555556 | M58: 0 | N58: =C58 -> 12.18846226 | O58: 8 | P58: 0 | Q58: =C58/2 -> 6.094231129 | R58: 2 | S58: 0 | T58: 0 | U58: 0 | V58: 12 | W58: =IF($W$17, IF(Bode!$AT$49=0, (J53+J58*($X$16-1))/($X$16), (J48+J53*($X$16-1))/($X$16)), J58) -> 2.75 | BA58: =BA54+1/$V$3 -> 5.555555556e-05 | BC58: =BC57 -> 12.18846226 | BD58: =BD57+(BA58-BA57)*(-BD57/($BC$5+K58))/$BC$4 -> 1.109687907 | BE58: =BD58*(K58/($BC$5+K58))+BC58*($BC$5*K58/($BC$5+K58)) -> 1.309438648
A59: 5.555555556e-05 | B59: 36 | C59: 12.18846226 | D59: 1.109687907 | E59: 1.309438648 | F59: =F58 -> -10.90213212 | G59: =G58 -> 9.25 | H59: =H58 -> 3.331703042 | I59: =I58 -> 2.75 | J59: 2.75 | K59: 1.2 | L59: 0.05555555556 | M59: =C59/$M$14 -> 12.18846226 | N59: 0 | O59: 9 | P59: =C59 -> 12.18846226 | Q59: =P59 -> 12.18846226 | R59: 2 | S59: =C59/$M$14*$O$14 -> 12.18846226 | T59: 0 | U59: =M59 -> 12.18846226 | V59: 12 | W59: =IF($W$17, IF(Bode!$AT$49=0, (J54+J59*($X$16-1))/($X$16), (J49+J54*($X$16-1))/($X$16)), J59) -> 2.75 | BA59: =BA58 -> 5.555555556e-05 | BC59: =BC58 -> 12.18846226 | BD59: =BD58 -> 1.109687907 | BE59: =BE58 -> 1.309438648
A60: 5.59119672e-05 | B60: 36 | C60: 12.732 | D60: 1.118801902 | E60: 1.328057046 | F60: =EXP(-(A60-A59)/$T$2)*(F59+V60-E60)+(E60-V60) -> -10.89209947 | G60: =MINA(MAXA((EXP(-(A60-A59)/$T$2)*(-E60+V60+F59)+(EXP(-(A60-A59)/$T$4)*(E60-V60-F59+(-$T$3/$T$4+$T$3/$T$2)*G59)))*$T$7+(1-EXP(-(A60-A59)/$T$4))*(H59+$T$4/$T$5*(E60-V60)),V60-MINA($V$8,$V$9/$V$10*A60)),V60) -> 9.25 | H60: =EXP(-(A60-A59)/$T$6)*(H59-G60)+G60 -> 3.347599475 | I60: =V60-G60 -> 2.75 | J60: 2.75 | K60: 1.2 | L60: 0.0559119672 | M60: =C60/$M$14 +(B60/$BC$14*(A60-A59))*$M$12 -> 12.732 | N60: 0 | O60: 9 | P60: =C60 -> 12.732 | Q60: =P60 -> 12.732 | R60: 2 | S60: =C60/$M$14*$O$14 -> 12.732 | T60: 0 | U60: =M60 -> 12.732 | V60: 12 | W60: =IF($W$17, IF(Bode!$AT$49=0, (J55+J60*($X$16-1))/($X$16), (J50+J55*($X$16-1))/($X$16)), J60) -> 2.75 | BA60: =MAXA(BA59, MINA(+BA59+( W59 -$V$5*BC59)/((R60+$BC$13*B60+0.000001)*$V$3+((B59-$BC$8)/$BC$10-BD59-$BE$6-($BC$3+$BC$5+$BC$12+$BE$7+($BC$11+$BC$9)/$BC$10^2)*BD59/K59)*$V$5/$BC$2), +BA59+($V$7*$BC$10-BC59)/((B59-$BC$8)/$BC$10- BD59*K59/(K59+$BC$5) -$BE$6-($BC$3+ ($BC$5*K59)/($BC$5+K59) +$BC$12+$BE$7+($BC$11+$BC$9)/$BC$10^2)*BC59) *$BC$2, BA59+$V$4/$V$3)) -> 5.59119672e-05 | BC60: =BC59+(BA60-BA59)*((B59-$BC$8)/$BC$10- BD59*K59/(K59+$BC$5) -$BE$6-($BC$3+ ($BC$5*K59)/($BC$5+K59) +$BC$12+$BE$7+($BC$9+$BC$11)/$BC$10^2)* BC59 ) /$BC$2 -> 12.732 | BD60: =BD59+(BA60-BA59)*(((BC60+BC59)*K60/2-BD59)/($BC$5+K60))/$BC$4 -> 1.118801902 | BE60: =BD60*(K60/($BC$5+K60))+BC60*($BC$5*K60/($BC$5+K60)) -> 1.328057046 | CG60: =CC59+(CF60)*((B59-$CC$8)/$CC$10-($CC$3+$CC$9)/$CC$10^2*CC59)/$CC$2 -> 0 | CH60: =(CC59+CG60)/2 -> 0
A61: 5.59119672e-05 | B61: 36 | C61: 12.732 | D61: 1.118801902 | E61: 1.328057046 | F61: =F60 -> -10.89209947 | G61: =G60 -> 9.25 | H61: =H60 -> 3.347599475 | I61: =I60 -> 2.75 | J61: 2.75 | K61: 1.2 | L61: 0.0559119672 | M61: 0 | N61: =C61 -> 12.732 | O61: 9 | P61: 0 | Q61: =C61/2 -> 6.366 | R61: 2 | S61: 0 | T61: 0 | U61: 0 | V61: 12 | W61: =IF($W$17, IF(Bode!$AT$49=0, (J56+J61*($X$16-1))/($X$16), (J51+J56*($X$16-1))/($X$16)), J61) -> 2.75 | BA61: =BA60 -> 5.59119672e-05 | BC61: =BC60 -> 12.732 | BD61: =BD60 -> 1.118801902 | BE61: =BE60 -> 1.328057046
A62: 6.25e-05 | B62: 36 | C62: 12.1386033 | D62: 1.286793064 | E62: 1.483042289 | F62: =EXP(-(A62-A61)/$T$2)*(F61+V62-(E62+E61)/2)+((E62+E61)/2-V62) -> -10.72505875 | G62: =MINA(MAXA((EXP(-(A62-A61)/$T$2)*(-(E62+E61)/2+V62+F61)+(EXP(-(A62-A61)/$T$4)*((E62+E61)/2-V62-F61+(-$T$3/$T$4+$T$3/$T$2)*G61)))*$T$7+(1-EXP(-(A62-A61)/$T$4))*(H61+$T$4/$T$5*((E62+E61)/2-V62)),V62-MINA($V$8,$V$9/$V$10*A62)),V62) -> 9.25 | H62: =EXP(-(A62-A61)/$T$6)*(H61-G62)+G62 -> 3.633864675 | I62: =V62-G62 -> 2.75 | J62: 2.75 | K62: 1.2 | L62: 0.0625 | M62: 0 | N62: =C62 -> 12.1386033 | O62: 9 | P62: 0 | Q62: =C62/2 -> 6.06930165 | R62: 2 | S62: 0 | T62: 0 | U62: 0 | V62: 12 | W62: =IF($W$17, IF(Bode!$AT$49=0, (J57+J62*($X$16-1))/($X$16), (J52+J57*($X$16-1))/($X$16)), J62) -> 2.75 | BA62: =MINA(+BA60+BC60/((+BD60*K59/(K59+$BC$5) +($BC$3+ ($BC$5*K59)/ ($BC$5+K59) +$BC$7+$BC$12)*BC60+$BC$6)/$BC$2), BA59+1/$V$3) -> 6.25e-05 | BC62: =BC60+(BA62-BA60)*(-BD60*K59/(K59+$BC$5) -($BC$3+ ($BC$5*K62)/($BC$5+K62) +$BC$7+$BC$12)*BC61-$BC$6)/$BC$2 -> 12.1386033 | BD62: =BD60+(BA62-BA60)*(((BC62+BC60)*K62/2-BD60)/($BC$5+K62))/$BC$4 -> 1.286793064 | BE62: =BD62*(K62/($BC$5+K62))+BC62*($BC$5*K62/($BC$5+K62)) -> 1.483042289
A63: 6.25e-05 | B63: 36 | C63: 12.1386033 | D63: 1.286793064 | E63: 1.483042289 | F63: =EXP(-(A63-A62)/$T$2)*(F62+V63-(E63+E62)/2)+((E63+E62)/2-V63) -> -10.72505875 | G63: =MINA(MAXA((EXP(-(A63-A62)/$T$2)*(-(E63+E62)/2+V63+F62)+(EXP(-(A63-A62)/$T$4)*((E63+E62)/2-V63-F62+(-$T$3/$T$4+$T$3/$T$2)*G62)))*$T$7+(1-EXP(-(A63-A62)/$T$4))*(H62+$T$4/$T$5*((E63+E62)/2-V63)),V63-MINA($V$8,$V$9/$V$10*A63)),V63) -> 9.25 | H63: =EXP(-(A63-A62)/$T$6)*(H62-G63)+G63 -> 3.633864675 | I63: =V63-G63 -> 2.75 | J63: 2.75 | K63: 1.2 | L63: 0.0625 | M63: 0 | N63: =C63 -> 12.1386033 | O63: 9 | P63: 0 | Q63: =C63/2 -> 6.06930165 | R63: 2 | S63: 0 | T63: 0 | U63: 0 | V63: 12 | W63: =IF($W$17, IF(Bode!$AT$49=0, (J58+J63*($X$16-1))/($X$16), (J53+J58*($X$16-1))/($X$16)), J63) -> 2.75 | BA63: =BA59+1/$V$3 -> 6.25e-05 | BC63: =BC62 -> 12.1386033 | BD63: =BD62+(BA63-BA62)*(-BD62/($BC$5+K63))/$BC$4 -> 1.286793064 | BE63: =BD63*(K63/($BC$5+K63))+BC63*($BC$5*K63/($BC$5+K63)) -> 1.483042289
A64: 6.25e-05 | B64: 36 | C64: 12.1386033 | D64: 1.286793064 | E64: 1.483042289 | F64: =F63 -> -10.72505875 | G64: =G63 -> 9.25 | H64: =H63 -> 3.633864675 | I64: =I63 -> 2.75 | J64: 2.75 | K64: 1.2 | L64: 0.0625 | M64: =C64/$M$14*$O$14 -> 12.1386033 | N64: 0 | O64: 10 | P64: =C64 -> 12.1386033 | Q64: 0 | R64: 2 | S64: =C64/$M$14 -> 12.1386033 | T64: 0 | U64: 0 | V64: 12 | W64: =IF($W$17, IF(Bode!$AT$49=0, (J59+J64*($X$16-1))/($X$16), (J54+J59*($X$16-1))/($X$16)), J64) -> 2.75 | BA64: =BA63 -> 6.25e-05 | BC64: =BC63 -> 12.1386033 | BD64: =BD63 -> 1.286793064 | BE64: =BE63 -> 1.483042289
A65: 6.289107098e-05 | B65: 36 | C65: 12.732 | D65: 1.296643794 | E65: 1.503270733 | F65: =EXP(-(A65-A64)/$T$2)*(F64+V65-E65)+(E65-V65) -> -10.71416286 | G65: =MINA(MAXA((EXP(-(A65-A64)/$T$2)*(-E65+V65+F64)+(EXP(-(A65-A64)/$T$4)*(E65-V65-F64+(-$T$3/$T$4+$T$3/$T$2)*G64)))*$T$7+(1-EXP(-(A65-A64)/$T$4))*(H64+$T$4/$T$5*(E65-V65)),V65-MINA($V$8,$V$9/$V$10*A65)),V65) -> 9.25 | H65: =EXP(-(A65-A64)/$T$6)*(H64-G65)+G65 -> 3.650414273 | I65: =V65-G65 -> 2.75 | J65: 2.75 | K65: 1.2 | L65: 0.06289107098 | M65: =(C65/$M$14 +(B65/$BC$14*(A65-A64))*$M$12)*$O$14 -> 12.732 | N65: 0 | O65: 10 | P65: =C65 -> 12.732 | Q65: 0 | R65: 2 | S65: =C65/$M$14 +(B65/$BC$14*(A65-A64))*$M$12 -> 12.732 | T65: 0 | U65: 0 | V65: 12 | W65: =IF($W$17, IF(Bode!$AT$49=0, (J60+J65*($X$16-1))/($X$16), (J55+J60*($X$16-1))/($X$16)), J65) -> 2.75 | BA65: =MAXA(BA64, MINA(+BA64+( W64 -$V$5*BC64)/((R65+$BC$13*B65+0.000001)*$V$3+((B64-$BC$8)/$BC$10-BD64-$BE$6-($BC$3+$BC$5+$BC$12+$BE$7+($BC$11+$BC$9)/$BC$10^2)*BD64/K64)*$V$5/$BC$2), +BA64+($V$7*$BC$10-BC64)/((B64-$BC$8)/$BC$10- BD64*K64/(K64+$BC$5) -$BE$6-($BC$3+ ($BC$5*K64)/($BC$5+K64) +$BC$12+$BE$7+($BC$11+$BC$9)/$BC$10^2)*BC64) *$BC$2, BA64+$V$4/$V$3)) -> 6.289107098e-05 | BC65: =BC64+(BA65-BA64)*((B64-$BC$8)/$BC$10- BD64*K64/(K64+$BC$5) -$BE$6-($BC$3+ ($BC$5*K64)/($BC$5+K64) +$BC$12+$BE$7+($BC$9+$BC$11)/$BC$10^2)* BC64 ) /$BC$2 -> 12.732 | BD65: =BD64+(BA65-BA64)*(((BC65+BC64)*K65/2-BD64)/($BC$5+K65))/$BC$4 -> 1.296643794 | BE65: =BD65*(K65/($BC$5+K65))+BC65*($BC$5*K65/($BC$5+K65)) -> 1.503270733 | CG65: =CC64+(CF65)*((B64-$CC$8)/$CC$10-($CC$3+$CC$9)/$CC$10^2*CC64)/$CC$2 -> 0 | CH65: =(CC64+CG65)/2 -> 0
A66: 6.289107098e-05 | B66: 36 | C66: 12.732 | D66: 1.296643794 | E66: 1.503270733 | F66: =F65 -> -10.71416286 | G66: =G65 -> 9.25 | H66: =H65 -> 3.650414273 | I66: =I65 -> 2.75 | J66: 2.75 | K66: 1.2 | L66: 0.06289107098 | M66: 0 | N66: =C66 -> 12.732 | O66: 10 | P66: 0 | Q66: =C66/2 -> 6.366 | R66: 2 | S66: 0 | T66: 0 | U66: 0 | V66: 12 | W66: =IF($W$17, IF(Bode!$AT$49=0, (J61+J66*($X$16-1))/($X$16), (J56+J61*($X$16-1))/($X$16)), J66) -> 2.75 | BA66: =BA65 -> 6.289107098e-05 | BC66: =BC65 -> 12.732 | BD66: =BD65 -> 1.296643794 | BE66: =BE65 -> 1.503270733
A67: 6.944444444e-05 | B67: 36 | C67: 12.09004913 | D67: 1.461245509 | E67: 1.65405556 | F67: =EXP(-(A67-A66)/$T$2)*(F66+V67-(E67+E66)/2)+((E67+E66)/2-V67) -> -10.55038691 | G67: =MINA(MAXA((EXP(-(A67-A66)/$T$2)*(-(E67+E66)/2+V67+F66)+(EXP(-(A67-A66)/$T$4)*((E67+E66)/2-V67-F66+(-$T$3/$T$4+$T$3/$T$2)*G66)))*$T$7+(1-EXP(-(A67-A66)/$T$4))*(H66+$T$4/$T$5*((E67+E66)/2-V67)),V67-MINA($V$8,$V$9/$V$10*A67)),V67) -> 9.25 | H67: =EXP(-(A67-A66)/$T$6)*(H66-G67)+G67 -> 3.920599294 | I67: =V67-G67 -> 2.75 | J67: 2.75 | K67: 1.2 | L67: 0.06944444444 | M67: 0 | N67: =C67 -> 12.09004913 | O67: 10 | P67: 0 | Q67: =C67/2 -> 6.045024566 | R67: 2 | S67: 0 | T67: 0 | U67: 0 | V67: 12 | W67: =IF($W$17, IF(Bode!$AT$49=0, (J62+J67*($X$16-1))/($X$16), (J57+J62*($X$16-1))/($X$16)), J67) -> 2.75 | BA67: =MINA(+BA65+BC65/((+BD65*K64/(K64+$BC$5) +($BC$3+ ($BC$5*K64)/ ($BC$5+K64) +$BC$7+$BC$12)*BC65+$BC$6)/$BC$2), BA64+1/$V$3) -> 6.944444444e-05 | BC67: =BC65+(BA67-BA65)*(-BD65*K64/(K64+$BC$5) -($BC$3+ ($BC$5*K67)/($BC$5+K67) +$BC$7+$BC$12)*BC66-$BC$6)/$BC$2 -> 12.09004913 | BD67: =BD65+(BA67-BA65)*(((BC67+BC65)*K67/2-BD65)/($BC$5+K67))/$BC$4 -> 1.461245509 | BE67: =BD67*(K67/($BC$5+K67))+BC67*($BC$5*K67/($BC$5+K67)) -> 1.65405556
A68: 6.944444444e-05 | B68: 36 | C68: 12.09004913 | D68: 1.461245509 | E68: 1.65405556 | F68: =EXP(-(A68-A67)/$T$2)*(F67+V68-(E68+E67)/2)+((E68+E67)/2-V68) -> -10.55038691 | G68: =MINA(MAXA((EXP(-(A68-A67)/$T$2)*(-(E68+E67)/2+V68+F67)+(EXP(-(A68-A67)/$T$4)*((E68+E67)/2-V68-F67+(-$T$3/$T$4+$T$3/$T$2)*G67)))*$T$7+(1-EXP(-(A68-A67)/$T$4))*(H67+$T$4/$T$5*((E68+E67)/2-V68)),V68-MINA($V$8,$V$9/$V$10*A68)),V68) -> 9.25 | H68: =EXP(-(A68-A67)/$T$6)*(H67-G68)+G68 -> 3.920599294 | I68: =V68-G68 -> 2.75 | J68: 2.75 | K68: 1.2 | L68: 0.06944444444 | M68: 0 | N68: =C68 -> 12.09004913 | O68: 10 | P68: 0 | Q68: =C68/2 -> 6.045024566 | R68: 2 | S68: 0 | T68: 0 | U68: 0 | V68: 12 | W68: =IF($W$17, IF(Bode!$AT$49=0, (J63+J68*($X$16-1))/($X$16), (J58+J63*($X$16-1))/($X$16)), J68) -> 2.75 | BA68: =BA64+1/$V$3 -> 6.944444444e-05 | BC68: =BC67 -> 12.09004913 | BD68: =BD67+(BA68-BA67)*(-BD67/($BC$5+K68))/$BC$4 -> 1.461245509 | BE68: =BD68*(K68/($BC$5+K68))+BC68*($BC$5*K68/($BC$5+K68)) -> 1.65405556
A69: 6.944444444e-05 | B69: 36 | C69: 12.09004913 | D69: 1.461245509 | E69: 1.65405556 | F69: =F68 -> -10.55038691 | G69: =G68 -> 9.25 | H69: =H68 -> 3.920599294 | I69: =I68 -> 2.75 | J69: 2.75 | K69: 1.2 | L69: 0.06944444444 | M69: =C69/$M$14 -> 12.09004913 | N69: 0 | O69: 11 | P69: =C69 -> 12.09004913 | Q69: =P69 -> 12.09004913 | R69: 2 | S69: =C69/$M$14*$O$14 -> 12.09004913 | T69: 0 | U69: =M69 -> 12.09004913 | V69: 12 | W69: =IF($W$17, IF(Bode!$AT$49=0, (J64+J69*($X$16-1))/($X$16), (J59+J64*($X$16-1))/($X$16)), J69) -> 2.75 | BA69: =BA68 -> 6.944444444e-05 | BC69: =BC68 -> 12.09004913 | BD69: =BD68 -> 1.461245509 | BE69: =BE68 -> 1.65405556
A70: 6.986963068e-05 | B70: 36 | C70: 12.732 | D70: 1.471795666 | E70: 1.675834154 | F70: =EXP(-(A70-A69)/$T$2)*(F69+V70-E70)+(E70-V70) -> -10.5386747 | G70: =MINA(MAXA((EXP(-(A70-A69)/$T$2)*(-E70+V70+F69)+(EXP(-(A70-A69)/$T$4)*(E70-V70-F69+(-$T$3/$T$4+$T$3/$T$2)*G69)))*$T$7+(1-EXP(-(A70-A69)/$T$4))*(H69+$T$4/$T$5*(E70-V70)),V70-MINA($V$8,$V$9/$V$10*A70)),V70) -> 9.25 | H70: =EXP(-(A70-A69)/$T$6)*(H69-G70)+G70 -> 3.937671749 | I70: =V70-G70 -> 2.75 | J70: 2.75 | K70: 1.2 | L70: 0.06986963068 | M70: =C70/$M$14 +(B70/$BC$14*(A70-A69))*$M$12 -> 12.732 | N70: 0 | O70: 11 | P70: =C70 -> 12.732 | Q70: =P70 -> 12.732 | R70: 2 | S70: =C70/$M$14*$O$14 -> 12.732 | T70: 0 | U70: =M70 -> 12.732 | V70: 12 | W70: =IF($W$17, IF(Bode!$AT$49=0, (J65+J70*($X$16-1))/($X$16), (J60+J65*($X$16-1))/($X$16)), J70) -> 2.75 | BA70: =MAXA(BA69, MINA(+BA69+( W69 -$V$5*BC69)/((R70+$BC$13*B70+0.000001)*$V$3+((B69-$BC$8)/$BC$10-BD69-$BE$6-($BC$3+$BC$5+$BC$12+$BE$7+($BC$11+$BC$9)/$BC$10^2)*BD69/K69)*$V$5/$BC$2), +BA69+($V$7*$BC$10-BC69)/((B69-$BC$8)/$BC$10- BD69*K69/(K69+$BC$5) -$BE$6-($BC$3+ ($BC$5*K69)/($BC$5+K69) +$BC$12+$BE$7+($BC$11+$BC$9)/$BC$10^2)*BC69) *$BC$2, BA69+$V$4/$V$3)) -> 6.986963068e-05 | BC70: =BC69+(BA70-BA69)*((B69-$BC$8)/$BC$10- BD69*K69/(K69+$BC$5) -$BE$6-($BC$3+ ($BC$5*K69)/($BC$5+K69) +$BC$12+$BE$7+($BC$9+$BC$11)/$BC$10^2)* BC69 ) /$BC$2 -> 12.732 | BD70: =BD69+(BA70-BA69)*(((BC70+BC69)*K70/2-BD69)/($BC$5+K70))/$BC$4 -> 1.471795666 | BE70: =BD70*(K70/($BC$5+K70))+BC70*($BC$5*K70/($BC$5+K70)) -> 1.675834154 | CG70: =CC69+(CF70)*((B69-$CC$8)/$CC$10-($CC$3+$CC$9)/$CC$10^2*CC69)/$CC$2 -> 0 | CH70: =(CC69+CG70)/2 -> 0
A71: 6.986963068e-05 | B71: 36 | C71: 12.732 | D71: 1.471795666 | E71: 1.675834154 | F71: =F70 -> -10.5386747 | G71: =G70 -> 9.25 | H71: =H70 -> 3.937671749 | I71: =I70 -> 2.75 | J71: 2.75 | K71: 1.2 | L71: 0.06986963068 | M71: 0 | N71: =C71 -> 12.732 | O71: 11 | P71: 0 | Q71: =C71/2 -> 6.366 | R71: 2 | S71: 0 | T71: 0 | U71: 0 | V71: 12 | W71: =IF($W$17, IF(Bode!$AT$49=0, (J66+J71*($X$16-1))/($X$16), (J61+J66*($X$16-1))/($X$16)), J71) -> 2.75 | BA71: =BA70 -> 6.986963068e-05 | BC71: =BC70 -> 12.732 | BD71: =BD70 -> 1.471795666 | BE71: =BE70 -> 1.675834154
A72: 7.638888889e-05 | B72: 36 | C72: 12.04276156 | D72: 1.633089443 | E72: 1.822521331 | F72: =EXP(-(A72-A71)/$T$2)*(F71+V72-(E72+E71)/2)+((E72+E71)/2-V72) -> -10.3782227 | G72: =MINA(MAXA((EXP(-(A72-A71)/$T$2)*(-(E72+E71)/2+V72+F71)+(EXP(-(A72-A71)/$T$4)*((E72+E71)/2-V72-F71+(-$T$3/$T$4+$T$3/$T$2)*G71)))*$T$7+(1-EXP(-(A72-A71)/$T$4))*(H71+$T$4/$T$5*((E72+E71)/2-V72)),V72-MINA($V$8,$V$9/$V$10*A72)),V72) -> 9.25 | H72: =EXP(-(A72-A71)/$T$6)*(H71-G72)+G72 -> 4.192694533 | I72: =V72-G72 -> 2.75 | J72: 2.75 | K72: 1.2 | L72: 0.07638888889 | M72: 0 | N72: =C72 -> 12.04276156 | O72: 11 | P72: 0 | Q72: =C72/2 -> 6.021380781 | R72: 2 | S72: 0 | T72: 0 | U72: 0 | V72: 12 | W72: =IF($W$17, IF(Bode!$AT$49=0, (J67+J72*($X$16-1))/($X$16), (J62+J67*($X$16-1))/($X$16)), J72) -> 2.75 | BA72: =MINA(+BA70+BC70/((+BD70*K69/(K69+$BC$5) +($BC$3+ ($BC$5*K69)/ ($BC$5+K69) +$BC$7+$BC$12)*BC70+$BC$6)/$BC$2), BA69+1/$V$3) -> 7.638888889e-05 | BC72: =BC70+(BA72-BA70)*(-BD70*K69/(K69+$BC$5) -($BC$3+ ($BC$5*K72)/($BC$5+K72) +$BC$7+$BC$12)*BC71-$BC$6)/$BC$2 -> 12.04276156 | BD72: =BD70+(BA72-BA70)*(((BC72+BC70)*K72/2-BD70)/($BC$5+K72))/$BC$4 -> 1.633089443 | BE72: =BD72*(K72/($BC$5+K72))+BC72*($BC$5*K72/($BC$5+K72)) -> 1.822521331
A73: 7.638888889e-05 | B73: 36 | C73: 12.04276156 | D73: 1.633089443 | E73: 1.822521331 | F73: =EXP(-(A73-A72)/$T$2)*(F72+V73-(E73+E72)/2)+((E73+E72)/2-V73) -> -10.3782227 | G73: =MINA(MAXA((EXP(-(A73-A72)/$T$2)*(-(E73+E72)/2+V73+F72)+(EXP(-(A73-A72)/$T$4)*((E73+E72)/2-V73-F72+(-$T$3/$T$4+$T$3/$T$2)*G72)))*$T$7+(1-EXP(-(A73-A72)/$T$4))*(H72+$T$4/$T$5*((E73+E72)/2-V73)),V73-MINA($V$8,$V$9/$V$10*A73)),V73) -> 9.25 | H73: =EXP(-(A73-A72)/$T$6)*(H72-G73)+G73 -> 4.192694533 | I73: =V73-G73 -> 2.75 | J73: 2.75 | K73: 1.2 | L73: 0.07638888889 | M73: 0 | N73: =C73 -> 12.04276156 | O73: 11 | P73: 0 | Q73: =C73/2 -> 6.021380781 | R73: 2 | S73: 0 | T73: 0 | U73: 0 | V73: 12 | W73: =IF($W$17, IF(Bode!$AT$49=0, (J68+J73*($X$16-1))/($X$16), (J63+J68*($X$16-1))/($X$16)), J73) -> 2.75 | BA73: =BA69+1/$V$3 -> 7.638888889e-05 | BC73: =BC72 -> 12.04276156 | BD73: =BD72+(BA73-BA72)*(-BD72/($BC$5+K73))/$BC$4 -> 1.633089443 | BE73: =BD73*(K73/($BC$5+K73))+BC73*($BC$5*K73/($BC$5+K73)) -> 1.822521331
A74: 7.638888889e-05 | B74: 36 | C74: 12.04276156 | D74: 1.633089443 | E74: 1.822521331 | F74: =F73 -> -10.3782227 | G74: =G73 -> 9.25 | H74: =H73 -> 4.192694533 | I74: =I73 -> 2.75 | J74: 2.75 | K74: 1.2 | L74: 0.07638888889 | M74: =C74/$M$14*$O$14 -> 12.04276156 | N74: 0 | O74: 12 | P74: =C74 -> 12.04276156 | Q74: 0 | R74: 2 | S74: =C74/$M$14 -> 12.04276156 | T74: 0 | U74: 0 | V74: 12 | W74: =IF($W$17, IF(Bode!$AT$49=0, (J69+J74*($X$16-1))/($X$16), (J64+J69*($X$16-1))/($X$16)), J74) -> 2.75 | BA74: =BA73 -> 7.638888889e-05 | BC74: =BC73 -> 12.04276156 | BD74: =BD73 -> 1.633089443 | BE74: =BE73 -> 1.822521331
A75: 7.68476564e-05 | B75: 36 | C75: 12.732 | D75: 1.644303173 | E75: 1.845792289 | F75: =EXP(-(A75-A74)/$T$2)*(F74+V75-E75)+(E75-V75) -> -10.3657347 | G75: =MINA(MAXA((EXP(-(A75-A74)/$T$2)*(-E75+V75+F74)+(EXP(-(A75-A74)/$T$4)*(E75-V75-F74+(-$T$3/$T$4+$T$3/$T$2)*G74)))*$T$7+(1-EXP(-(A75-A74)/$T$4))*(H74+$T$4/$T$5*(E75-V75)),V75-MINA($V$8,$V$9/$V$10*A75)),V75) -> 9.25 | H75: =EXP(-(A75-A74)/$T$6)*(H74-G75)+G75 -> 4.210172674 | I75: =V75-G75 -> 2.75 | J75: 2.75 | K75: 1.2 | L75: 0.0768476564 | M75: =(C75/$M$14 +(B75/$BC$14*(A75-A74))*$M$12)*$O$14 -> 12.732 | N75: 0 | O75: 12 | P75: =C75 -> 12.732 | Q75: 0 | R75: 2 | S75: =C75/$M$14 +(B75/$BC$14*(A75-A74))*$M$12 -> 12.732 | T75: 0 | U75: 0 | V75: 12 | W75: =IF($W$17, IF(Bode!$AT$49=0, (J70+J75*($X$16-1))/($X$16), (J65+J70*($X$16-1))/($X$16)), J75) -> 2.75 | BA75: =MAXA(BA74, MINA(+BA74+( W74 -$V$5*BC74)/((R75+$BC$13*B75+0.000001)*$V$3+((B74-$BC$8)/$BC$10-BD74-$BE$6-($BC$3+$BC$5+$BC$12+$BE$7+($BC$11+$BC$9)/$BC$10^2)*BD74/K74)*$V$5/$BC$2), +BA74+($V$7*$BC$10-BC74)/((B74-$BC$8)/$BC$10- BD74*K74/(K74+$BC$5) -$BE$6-($BC$3+ ($BC$5*K74)/($BC$5+K74) +$BC$12+$BE$7+($BC$11+$BC$9)/$BC$10^2)*BC74) *$BC$2, BA74+$V$4/$V$3)) -> 7.68476564e-05 | BC75: =BC74+(BA75-BA74)*((B74-$BC$8)/$BC$10- BD74*K74/(K74+$BC$5) -$BE$6-($BC$3+ ($BC$5*K74)/($BC$5+K74) +$BC$12+$BE$7+($BC$9+$BC$11)/$BC$10^2)* BC74 ) /$BC$2 -> 12.732 | BD75: =BD74+(BA75-BA74)*(((BC75+BC74)*K75/2-BD74)/($BC$5+K75))/$BC$4 -> 1.644303173 | BE75: =BD75*(K75/($BC$5+K75))+BC75*($BC$5*K75/($BC$5+K75)) -> 1.845792289 | CG75: =CC74+(CF75)*((B74-$CC$8)/$CC$10-($CC$3+$CC$9)/$CC$10^2*CC74)/$CC$2 -> 0 | CH75: =(CC74+CG75)/2 -> 0
A76: 7.68476564e-05 | B76: 36 | C76: 12.732 | D76: 1.644303173 | E76: 1.845792289 | F76: =F75 -> -10.3657347 | G76: =G75 -> 9.25 | H76: =H75 -> 4.210172674 | I76: =I75 -> 2.75 | J76: 2.75 | K76: 1.2 | L76: 0.0768476564 | M76: 0 | N76: =C76 -> 12.732 | O76: 12 | P76: 0 | Q76: =C76/2 -> 6.366 | R76: 2 | S76: 0 | T76: 0 | U76: 0 | V76: 12 | W76: =IF($W$17, IF(Bode!$AT$49=0, (J71+J76*($X$16-1))/($X$16), (J66+J71*($X$16-1))/($X$16)), J76) -> 2.75 | BA76: =BA75 -> 7.68476564e-05 | BC76: =BC75 -> 12.732 | BD76: =BD75 -> 1.644303173 | BE76: =BE75 -> 1.845792289
A77: 8.333333333e-05 | B77: 36 | C77: 11.99670372 | D77: 1.802368197 | E77: 1.98848164 | F77: =EXP(-(A77-A76)/$T$2)*(F76+V77-(E77+E76)/2)+((E77+E76)/2-V77) -> -10.20858581 | G77: =MINA(MAXA((EXP(-(A77-A76)/$T$2)*(-(E77+E76)/2+V77+F76)+(EXP(-(A77-A76)/$T$4)*((E77+E76)/2-V77-F76+(-$T$3/$T$4+$T$3/$T$2)*G76)))*$T$7+(1-EXP(-(A77-A76)/$T$4))*(H76+$T$4/$T$5*((E77+E76)/2-V77)),V77-MINA($V$8,$V$9/$V$10*A77)),V77) -> 9.25 | H77: =EXP(-(A77-A76)/$T$6)*(H76-G77)+G77 -> 4.450897812 | I77: =V77-G77 -> 2.75 | J77: 2.75 | K77: 1.2 | L77: 0.08333333333 | M77: 0 | N77: =C77 -> 11.99670372 | O77: 12 | P77: 0 | Q77: =C77/2 -> 5.998351859 | R77: 2 | S77: 0 | T77: 0 | U77: 0 | V77: 12 | W77: =IF($W$17, IF(Bode!$AT$49=0, (J72+J77*($X$16-1))/($X$16), (J67+J72*($X$16-1))/($X$16)), J77) -> 2.75 | BA77: =MINA(+BA75+BC75/((+BD75*K74/(K74+$BC$5) +($BC$3+ ($BC$5*K74)/ ($BC$5+K74) +$BC$7+$BC$12)*BC75+$BC$6)/$BC$2), BA74+1/$V$3) -> 8.333333333e-05 | BC77: =BC75+(BA77-BA75)*(-BD75*K74/(K74+$BC$5) -($BC$3+ ($BC$5*K77)/($BC$5+K77) +$BC$7+$BC$12)*BC76-$BC$6)/$BC$2 -> 11.99670372 | BD77: =BD75+(BA77-BA75)*(((BC77+BC75)*K77/2-BD75)/($BC$5+K77))/$BC$4 -> 1.802368197 | BE77: =BD77*(K77/($BC$5+K77))+BC77*($BC$5*K77/($BC$5+K77)) -> 1.98848164
A78: 8.333333333e-05 | B78: 36 | C78: 11.99670372 | D78: 1.802368197 | E78: 1.98848164 | F78: =EXP(-(A78-A77)/$T$2)*(F77+V78-(E78+E77)/2)+((E78+E77)/2-V78) -> -10.20858581 | G78: =MINA(MAXA((EXP(-(A78-A77)/$T$2)*(-(E78+E77)/2+V78+F77)+(EXP(-(A78-A77)/$T$4)*((E78+E77)/2-V78-F77+(-$T$3/$T$4+$T$3/$T$2)*G77)))*$T$7+(1-EXP(-(A78-A77)/$T$4))*(H77+$T$4/$T$5*((E78+E77)/2-V78)),V78-MINA($V$8,$V$9/$V$10*A78)),V78) -> 9.25 | H78: =EXP(-(A78-A77)/$T$6)*(H77-G78)+G78 -> 4.450897812 | I78: =V78-G78 -> 2.75 | J78: 2.75 | K78: 1.2 | L78: 0.08333333333 | M78: 0 | N78: =C78 -> 11.99670372 | O78: 12 | P78: 0 | Q78: =C78/2 -> 5.998351859 | R78: 2 | S78: 0 | T78: 0 | U78: 0 | V78: 12 | W78: =IF($W$17, IF(Bode!$AT$49=0, (J73+J78*($X$16-1))/($X$16), (J68+J73*($X$16-1))/($X$16)), J78) -> 2.75 | BA78: =BA74+1/$V$3 -> 8.333333333e-05 | BC78: =BC77 -> 11.99670372 | BD78: =BD77+(BA78-BA77)*(-BD77/($BC$5+K78))/$BC$4 -> 1.802368197 | BE78: =BD78*(K78/($BC$5+K78))+BC78*($BC$5*K78/($BC$5+K78)) -> 1.98848164
A79: 8.333333333e-05 | B79: 36 | C79: 11.99670372 | D79: 1.802368197 | E79: 1.98848164 | F79: =F78 -> -10.20858581 | G79: =G78 -> 9.25 | H79: =H78 -> 4.450897812 | I79: =I78 -> 2.75 | J79: 2.75 | K79: 1.2 | L79: 0.08333333333 | M79: =C79/$M$14 -> 11.99670372 | N79: 0 | O79: 13 | P79: =C79 -> 11.99670372 | Q79: =P79 -> 11.99670372 | R79: 2 | S79: =C79/$M$14*$O$14 -> 11.99670372 | T79: 0 | U79: =M79 -> 11.99670372 | V79: 12 | W79: =IF($W$17, IF(Bode!$AT$49=0, (J74+J79*($X$16-1))/($X$16), (J69+J74*($X$16-1))/($X$16)), J79) -> 2.75 | BA79: =BA78 -> 8.333333333e-05 | BC79: =BC78 -> 11.99670372 | BD79: =BD78 -> 1.802368197 | BE79: =BE78 -> 1.98848164
A80: 8.382515793e-05 | B80: 36 | C80: 12.732 | D80: 1.814211041 | E80: 2.013189203 | F80: =EXP(-(A80-A79)/$T$2)*(F79+V80-E80)+(E80-V80) -> -10.19535892 | G80: =MINA(MAXA((EXP(-(A80-A79)/$T$2)*(-E80+V80+F79)+(EXP(-(A80-A79)/$T$4)*(E80-V80-F79+(-$T$3/$T$4+$T$3/$T$2)*G79)))*$T$7+(1-EXP(-(A80-A79)/$T$4))*(H79+$T$4/$T$5*(E80-V80)),V80-MINA($V$8,$V$9/$V$10*A80)),V80) -> 9.25 | H80: =EXP(-(A80-A79)/$T$6)*(H79-G80)+G80 -> 4.468676492 | I80: =V80-G80 -> 2.75 | J80: 2.75 | K80: 1.2 | L80: 0.08382515793 | M80: =C80/$M$14 +(B80/$BC$14*(A80-A79))*$M$12 -> 12.732 | N80: 0 | O80: 13 | P80: =C80 -> 12.732 | Q80: =P80 -> 12.732 | R80: 2 | S80: =C80/$M$14*$O$14 -> 12.732 | T80: 0 | U80: =M80 -> 12.732 | V80: 12 | W80: =IF($W$17, IF(Bode!$AT$49=0, (J75+J80*($X$16-1))/($X$16), (J70+J75*($X$16-1))/($X$16)), J80) -> 2.75 | BA80: =MAXA(BA79, MINA(+BA79+( W79 -$V$5*BC79)/((R80+$BC$13*B80+0.000001)*$V$3+((B79-$BC$8)/$BC$10-BD79-$BE$6-($BC$3+$BC$5+$BC$12+$BE$7+($BC$11+$BC$9)/$BC$10^2)*BD79/K79)*$V$5/$BC$2), +BA79+($V$7*$BC$10-BC79)/((B79-$BC$8)/$BC$10- BD79*K79/(K79+$BC$5) -$BE$6-($BC$3+ ($BC$5*K79)/($BC$5+K79) +$BC$12+$BE$7+($BC$11+$BC$9)/$BC$10^2)*BC79) *$BC$2, BA79+$V$4/$V$3)) -> 8.382515793e-05 | BC80: =BC79+(BA80-BA79)*((B79-$BC$8)/$BC$10- BD79*K79/(K79+$BC$5) -$BE$6-($BC$3+ ($BC$5*K79)/($BC$5+K79) +$BC$12+$BE$7+($BC$9+$BC$11)/$BC$10^2)* BC79 ) /$BC$2 -> 12.732 | BD80: =BD79+(BA80-BA79)*(((BC80+BC79)*K80/2-BD79)/($BC$5+K80))/$BC$4 -> 1.814211041 | BE80: =BD80*(K80/($BC$5+K80))+BC80*($BC$5*K80/($BC$5+K80)) -> 2.013189203 | CG80: =CC79+(CF80)*((B79-$CC$8)/$CC$10-($CC$3+$CC$9)/$CC$10^2*CC79)/$CC$2 -> 0 | CH80: =(CC79+CG80)/2 -> 0
A81: 8.382515793e-05 | B81: 36 | C81: 12.732 | D81: 1.814211041 | E81: 2.013189203 | F81: =F80 -> -10.19535892 | G81: =G80 -> 9.25 | H81: =H80 -> 4.468676492 | I81: =I80 -> 2.75 | J81: 2.75 | K81: 1.2 | L81: 0.08382515793 | M81: 0 | N81: =C81 -> 12.732 | O81: 13 | P81: 0 | Q81: =C81/2 -> 6.366 | R81: 2 | S81: 0 | T81: 0 | U81: 0 | V81: 12 | W81: =IF($W$17, IF(Bode!$AT$49=0, (J76+J81*($X$16-1))/($X$16), (J71+J76*($X$16-1))/($X$16)), J81) -> 2.75 | BA81: =BA80 -> 8.382515793e-05 | BC81: =BC80 -> 12.732 | BD81: =BD80 -> 1.814211041 | BE81: =BE80 -> 2.013189203
A82: 9.027777778e-05 | B82: 36 | C82: 11.95183993 | D82: 1.969124253 | E82: 2.151977706 | F82: =EXP(-(A82-A81)/$T$2)*(F81+V82-(E82+E81)/2)+((E82+E81)/2-V82) -> -10.04146013 | G82: =MINA(MAXA((EXP(-(A82-A81)/$T$2)*(-(E82+E81)/2+V82+F81)+(EXP(-(A82-A81)/$T$4)*((E82+E81)/2-V82-F81+(-$T$3/$T$4+$T$3/$T$2)*G81)))*$T$7+(1-EXP(-(A82-A81)/$T$4))*(H81+$T$4/$T$5*((E82+E81)/2-V82)),V82-MINA($V$8,$V$9/$V$10*A82)),V82) -> 9.25 | H82: =EXP(-(A82-A81)/$T$6)*(H81-G82)+G82 -> 4.695918393 | I82: =V82-G82 -> 2.75 | J82: 2.75 | K82: 1.2 | L82: 0.09027777778 | M82: 0 | N82: =C82 -> 11.95183993 | O82: 13 | P82: 0 | Q82: =C82/2 -> 5.975919964 | R82: 2 | S82: 0 | T82: 0 | U82: 0 | V82: 12 | W82: =IF($W$17, IF(Bode!$AT$49=0, (J77+J82*($X$16-1))/($X$16), (J72+J77*($X$16-1))/($X$16)), J82) -> 2.75 | BA82: =MINA(+BA80+BC80/((+BD80*K79/(K79+$BC$5) +($BC$3+ ($BC$5*K79)/ ($BC$5+K79) +$BC$7+$BC$12)*BC80+$BC$6)/$BC$2), BA79+1/$V$3) -> 9.027777778e-05 | BC82: =BC80+(BA82-BA80)*(-BD80*K79/(K79+$BC$5) -($BC$3+ ($BC$5*K82)/($BC$5+K82) +$BC$7+$BC$12)*BC81-$BC$6)/$BC$2 -> 11.95183993 | BD82: =BD80+(BA82-BA80)*(((BC82+BC80)*K82/2-BD80)/($BC$5+K82))/$BC$4 -> 1.969124253 | BE82: =BD82*(K82/($BC$5+K82))+BC82*($BC$5*K82/($BC$5+K82)) -> 2.151977706
A83: 9.027777778e-05 | B83: 36 | C83: 11.95183993 | D83: 1.969124253 | E83: 2.151977706 | F83: =EXP(-(A83-A82)/$T$2)*(F82+V83-(E83+E82)/2)+((E83+E82)/2-V83) -> -10.04146013 | G83: =MINA(MAXA((EXP(-(A83-A82)/$T$2)*(-(E83+E82)/2+V83+F82)+(EXP(-(A83-A82)/$T$4)*((E83+E82)/2-V83-F82+(-$T$3/$T$4+$T$3/$T$2)*G82)))*$T$7+(1-EXP(-(A83-A82)/$T$4))*(H82+$T$4/$T$5*((E83+E82)/2-V83)),V83-MINA($V$8,$V$9/$V$10*A83)),V83) -> 9.25 | H83: =EXP(-(A83-A82)/$T$6)*(H82-G83)+G83 -> 4.695918393 | I83: =V83-G83 -> 2.75 | J83: =IF($R$4="CLOSED",I83,$R$2)*$V$11 -> 2.75 | K83: 1.2 | L83: 0.09027777778 | M83: 0 | N83: =C83 -> 11.95183993 | O83: 13 | P83: 0 | Q83: =C83/2 -> 5.975919964 | R83: 2 | S83: 0 | T83: 0 | U83: 0 | V83: 12 | W83: =IF($W$17, IF(Bode!$AT$49=0, (J78+J83*($X$16-1))/($X$16), (J73+J78*($X$16-1))/($X$16)), J83) -> 2.75 | BA83: =BA79+1/$V$3 -> 9.027777778e-05 | BC83: =BC82 -> 11.95183993 | BD83: =BD82+(BA83-BA82)*(-BD82/($BC$5+K83))/$BC$4 -> 1.969124253 | BE83: =BD83*(K83/($BC$5+K83))+BC83*($BC$5*K83/($BC$5+K83)) -> 2.151977706
A84: 9.027777778e-05 | B84: 36 | C84: =CHOOSE($C$4,AC84,BC84,CC84) -> 11.95183993 | D84: =CHOOSE($C$4,AD84,BD84,CD84) -> 1.969124253 | E84: =CHOOSE($C$4,AE84,BE84,CE84) -> 2.151977706 | F84: =F83 -> -10.04146013 | G84: =G83 -> 9.25 | H84: =H83 -> 4.695918393 | I84: =I83 -> 2.75 | J84: 2.75 | K84: 1.2 | L84: 0.09027777778 | M84: =C84/$M$14*$O$14 -> 11.95183993 | N84: 0 | O84: 14 | P84: =C84 -> 11.95183993 | Q84: 0 | R84: 2 | S84: =C84/$M$14 -> 11.95183993 | T84: =M84-S84 -> 0 | U84: 0 | V84: 12 | W84: =IF($W$17, IF(Bode!$AT$49=0, (J79+J84*($X$16-1))/($X$16), (J74+J79*($X$16-1))/($X$16)), J84) -> 2.75 | BA84: =BA83 -> 9.027777778e-05 | BC84: =BC83 -> 11.95183993 | BD84: =BD83 -> 1.969124253 | BE84: =BE83 -> 2.151977706
A85: =CHOOSE($C$4,AA85,BA85,CA85) -> 9.080214486e-05 | B85: =$R$8+$B$6*$B$8*SIN(2*PI()*$B$7*A84) -> 36 | C85: 12.732 | D85: 1.981563094 | E85: 2.178068073 | F85: =EXP(-(A85-A84)/$T$2)*(F84+V85-E85)+(E85-V85) -> -10.027529 | G85: =MINA(MAXA((EXP(-(A85-A84)/$T$2)*(-E85+V85+F84)+(EXP(-(A85-A84)/$T$4)*(E85-V85-F84+(-$T$3/$T$4+$T$3/$T$2)*G84)))*$T$7+(1-EXP(-(A85-A84)/$T$4))*(H84+$T$4/$T$5*(E85-V85)),V85-MINA($V$8,$V$9/$V$10*A85)),V85) -> 9.25 | H85: =EXP(-(A85-A84)/$T$6)*(H84-G85)+G85 -> 4.713903466 | I85: =V85-G85 -> 2.75 | J85: 2.75 | K85: =IF($R$5>$R$6, MINA($R$5,1/MAXA(0.000001,(1/$R$6-$R$7*(A85-$A$19)))), MAXA($R$5,1/(1/$R$6+$R$7*(A85-$A$19)))) -> 1.2 | L85: 0.09080214486 | M85: =(C85/$M$14 +(B85/$BC$14*(A85-A84))*$M$12)*$O$14 -> 12.732 | N85: 0 | O85: 14 | P85: =C85 -> 12.732 | Q85: 0 | R85: 2 | S85: =C85/$M$14 +(B85/$BC$14*(A85-A84))*$M$12 -> 12.732 | T85: 0 | U85: 0 | V85: =$V$2+$C$6*$B$8*SIN(2*PI()*$B$7*A84) -> 12 | W85: =IF($W$17, IF(Bode!$AT$49=0, (J80+J85*($X$16-1))/($X$16), (J75+J80*($X$16-1))/($X$16)), J85) -> 2.75 | BA85: =MAXA(BA84, MINA(+BA84+( W84 -$V$5*BC84)/((R85+$BC$13*B85+0.000001)*$V$3+((B84-$BC$8)/$BC$10-BD84-$BE$6-($BC$3+$BC$5+$BC$12+$BE$7+($BC$11+$BC$9)/$BC$10^2)*BD84/K84)*$V$5/$BC$2), +BA84+($V$7*$BC$10-BC84)/((B84-$BC$8)/$BC$10- BD84*K84/(K84+$BC$5) -$BE$6-($BC$3+ ($BC$5*K84)/($BC$5+K84) +$BC$12+$BE$7+($BC$11+$BC$9)/$BC$10^2)*BC84) *$BC$2, BA84+$V$4/$V$3)) -> 9.080214486e-05 | BC85: =BC84+(BA85-BA84)*((B84-$BC$8)/$BC$10- BD84*K84/(K84+$BC$5) -$BE$6-($BC$3+ ($BC$5*K84)/($BC$5+K84) +$BC$12+$BE$7+($BC$9+$BC$11)/$BC$10^2)* BC84 ) /$BC$2 -> 12.732 | BD85: =BD84+(BA85-BA84)*(((BC85+BC84)*K85/2-BD84)/($BC$5+K85))/$BC$4 -> 1.981563094 | BE85: =BD85*(K85/($BC$5+K85))+BC85*($BC$5*K85/($BC$5+K85)) -> 2.178068073 | CG85: =CC84+(CF85)*((B84-$CC$8)/$CC$10-($CC$3+$CC$9)/$CC$10^2*CC84)/$CC$2 -> 0 | CH85: =(CC84+CG85)/2 -> 0
A86: 9.080214486e-05 | B86: 36 | C86: 12.732 | D86: 1.981563094 | E86: 2.178068073 | F86: =F85 -> -10.027529 | G86: =G85 -> 9.25 | H86: =H85 -> 4.713903466 | I86: =I85 -> 2.75 | J86: 2.75 | K86: 1.2 | L86: 0.09080214486 | M86: 0 | N86: =C86 -> 12.732 | O86: 14 | P86: 0 | Q86: =C86/2 -> 6.366 | R86: =CHOOSE($X$6+1,$V$6,B86/$X$7) -> 2 | S86: 0 | T86: 0 | U86: 0 | V86: 12 | W86: =IF($W$17, IF(Bode!$AT$49=0, (J81+J86*($X$16-1))/($X$16), (J76+J81*($X$16-1))/($X$16)), J86) -> 2.75 | BA86: =BA85 -> 9.080214486e-05 | BC86: =BC85 -> 12.732 | BD86: =BD85 -> 1.981563094 | BE86: =BE85 -> 2.178068073
A87: 9.722222222e-05 | B87: 36 | C87: 11.90813566 | D87: 2.133399264 | E87: 2.313049957 | F87: =EXP(-(A87-A86)/$T$2)*(F86+V87-(E87+E86)/2)+((E87+E86)/2-V87) -> -9.876815009 | G87: =MINA(MAXA((EXP(-(A87-A86)/$T$2)*(-(E87+E86)/2+V87+F86)+(EXP(-(A87-A86)/$T$4)*((E87+E86)/2-V87-F86+(-$T$3/$T$4+$T$3/$T$2)*G86)))*$T$7+(1-EXP(-(A87-A86)/$T$4))*(H86+$T$4/$T$5*((E87+E86)/2-V87)),V87-MINA($V$8,$V$9/$V$10*A87)),V87) -> 9.25 | H87: =EXP(-(A87-A86)/$T$6)*(H86-G87)+G87 -> 4.928429324 | I87: =V87-G87 -> 2.75 | J87: 2.75 | K87: 1.2 | L87: 0.09722222222 | M87: 0 | N87: =C87 -> 11.90813566 | O87: 14 | P87: 0 | Q87: =C87/2 -> 5.954067832 | R87: 2 | S87: 0 | T87: 0 | U87: 0 | V87: 12 | W87: =IF($W$17, IF(Bode!$AT$49=0, (J82+J87*($X$16-1))/($X$16), (J77+J82*($X$16-1))/($X$16)), J87) -> 2.75 | BA87: =MINA(+BA85+BC85/((+BD85*K84/(K84+$BC$5) +($BC$3+ ($BC$5*K84)/ ($BC$5+K84) +$BC$7+$BC$12)*BC85+$BC$6)/$BC$2), BA84+1/$V$3) -> 9.722222222e-05 | BC87: =BC85+(BA87-BA85)*(-BD85*K84/(K84+$BC$5) -($BC$3+ ($BC$5*K87)/($BC$5+K87) +$BC$7+$BC$12)*BC86-$BC$6)/$BC$2 -> 11.90813566 | BD87: =BD85+(BA87-BA85)*(((BC87+BC85)*K87/2-BD85)/($BC$5+K87))/$BC$4 -> 2.133399264 | BE87: =BD87*(K87/($BC$5+K87))+BC87*($BC$5*K87/($BC$5+K87)) -> 2.313049957
A88: 9.722222222e-05 | B88: 36 | C88: 11.90813566 | D88: 2.133399264 | E88: 2.313049957 | F88: =EXP(-(A88-A87)/$T$2)*(F87+V88-(E88+E87)/2)+((E88+E87)/2-V88) -> -9.876815009 | G88: =MINA(MAXA((EXP(-(A88-A87)/$T$2)*(-(E88+E87)/2+V88+F87)+(EXP(-(A88-A87)/$T$4)*((E88+E87)/2-V88-F87+(-$T$3/$T$4+$T$3/$T$2)*G87)))*$T$7+(1-EXP(-(A88-A87)/$T$4))*(H87+$T$4/$T$5*((E88+E87)/2-V88)),V88-MINA($V$8,$V$9/$V$10*A88)),V88) -> 9.25 | H88: =EXP(-(A88-A87)/$T$6)*(H87-G88)+G88 -> 4.928429324 | I88: =V88-G88 -> 2.75 | J88: 2.75 | K88: 1.2 | L88: 0.09722222222 | M88: 0 | N88: =C88 -> 11.90813566 | O88: 14 | P88: 0 | Q88: =C88/2 -> 5.954067832 | R88: 2 | S88: 0 | T88: 0 | U88: 0 | V88: 12 | W88: =IF($W$17, IF(Bode!$AT$49=0, (J83+J88*($X$16-1))/($X$16), (J78+J83*($X$16-1))/($X$16)), J88) -> 2.75 | BA88: =BA84+1/$V$3 -> 9.722222222e-05 | BC88: =BC87 -> 11.90813566 | BD88: =BD87+(BA88-BA87)*(-BD87/($BC$5+K88))/$BC$4 -> 2.133399264 | BE88: =BD88*(K88/($BC$5+K88))+BC88*($BC$5*K88/($BC$5+K88)) -> 2.313049957
A89: 9.722222222e-05 | B89: 36 | C89: 11.90813566 | D89: 2.133399264 | E89: 2.313049957 | F89: =F88 -> -9.876815009 | G89: =G88 -> 9.25 | H89: =H88 -> 4.928429324 | I89: =I88 -> 2.75 | J89: 2.75 | K89: 1.2 | L89: =1000*(A89-$A$19) -> 0.09722222222 | M89: =C89/$M$14 -> 11.90813566 | N89: 0 | O89: =O84+1 -> 15 | P89: =C89 -> 11.90813566 | Q89: =P89 -> 11.90813566 | R89: 2 | S89: =C89/$M$14*$O$14 -> 11.90813566 | T89: 0 | U89: =M89 -> 11.90813566 | V89: 12 | W89: =IF($W$17, IF(Bode!$AT$49=0, (J84+J89*($X$16-1))/($X$16), (J79+J84*($X$16-1))/($X$16)), J89) -> 2.75 | BA89: =BA88 -> 9.722222222e-05 | BC89: =BC88 -> 11.90813566 | BD89: =BD88 -> 2.133399264 | BE89: =BE88 -> 2.313049957
A90: 9.777862653e-05 | B90: 36 | C90: 12.732 | D90: 2.146402277 | E90: 2.340471209 | F90: =EXP(-(A90-A89)/$T$2)*(F89+V90-E90)+(E90-V90) -> -9.862212643 | G90: =MINA(MAXA((EXP(-(A90-A89)/$T$2)*(-E90+V90+F89)+(EXP(-(A90-A89)/$T$4)*(E90-V90-F89+(-$T$3/$T$4+$T$3/$T$2)*G89)))*$T$7+(1-EXP(-(A90-A89)/$T$4))*(H89+$T$4/$T$5*(E90-V90)),V90-MINA($V$8,$V$9/$V$10*A90)),V90) -> 9.25 | H90: =EXP(-(A90-A89)/$T$6)*(H89-G90)+G90 -> 4.946536704 | I90: =V90-G90 -> 2.75 | J90: 2.75 | K90: 1.2 | L90: 0.09777862653 | M90: =C90/$M$14 +(B90/$BC$14*(A90-A89))*$M$12 -> 12.732 | N90: 0 | O90: 15 | P90: =C90 -> 12.732 | Q90: =P90 -> 12.732 | R90: 2 | S90: =C90/$M$14*$O$14 -> 12.732 | T90: 0 | U90: =M90 -> 12.732 | V90: 12 | W90: =IF($W$17, IF(Bode!$AT$49=0, (J85+J90*($X$16-1))/($X$16), (J80+J85*($X$16-1))/($X$16)), J90) -> 2.75 | BA90: =MAXA(BA89, MINA(+BA89+( W89 -$V$5*BC89)/((R90+$BC$13*B90+0.000001)*$V$3+((B89-$BC$8)/$BC$10-BD89-$BE$6-($BC$3+$BC$5+$BC$12+$BE$7+($BC$11+$BC$9)/$BC$10^2)*BD89/K89)*$V$5/$BC$2), +BA89+($V$7*$BC$10-BC89)/((B89-$BC$8)/$BC$10- BD89*K89/(K89+$BC$5) -$BE$6-($BC$3+ ($BC$5*K89)/($BC$5+K89) +$BC$12+$BE$7+($BC$11+$BC$9)/$BC$10^2)*BC89) *$BC$2, BA89+$V$4/$V$3)) -> 9.777862653e-05 | BC90: =BC89+(BA90-BA89)*((B89-$BC$8)/$BC$10- BD89*K89/(K89+$BC$5) -$BE$6-($BC$3+ ($BC$5*K89)/($BC$5+K89) +$BC$12+$BE$7+($BC$9+$BC$11)/$BC$10^2)* BC89 ) /$BC$2 -> 12.732 | BD90: =BD89+(BA90-BA89)*(((BC90+BC89)*K90/2-BD89)/($BC$5+K90))/$BC$4 -> 2.146402277 | BE90: =BD90*(K90/($BC$5+K90))+BC90*($BC$5*K90/($BC$5+K90)) -> 2.340471209 | CG90: =CC89+(CF90)*((B89-$CC$8)/$CC$10-($CC$3+$CC$9)/$CC$10^2*CC89)/$CC$2 -> 0 | CH90: =(CC89+CG90)/2 -> 0
A91: 9.777862653e-05 | B91: 36 | C91: 12.732 | D91: 2.146402277 | E91: 2.340471209 | F91: =F90 -> -9.862212643 | G91: =G90 -> 9.25 | H91: =H90 -> 4.946536704 | I91: =I90 -> 2.75 | J91: 2.75 | K91: 1.2 | L91: 0.09777862653 | M91: 0 | N91: =C91 -> 12.732 | O91: 15 | P91: 0 | Q91: =C91/2 -> 6.366 | R91: 2 | S91: 0 | T91: 0 | U91: 0 | V91: 12 | W91: =IF($W$17, IF(Bode!$AT$49=0, (J86+J91*($X$16-1))/($X$16), (J81+J86*($X$16-1))/($X$16)), J91) -> 2.75 | BA91: =BA90 -> 9.777862653e-05 | BC91: =BC90 -> 12.732 | BD91: =BD90 -> 2.146402277 | BE91: =BE90 -> 2.340471209
A92: 0.0001041666667 | B92: 36 | C92: 11.86555751 | D92: 2.295234074 | E92: 2.471738038 | F92: =EXP(-(A92-A91)/$T$2)*(F91+V92-(E92+E91)/2)+((E92+E91)/2-V92) -> -9.714614163 | G92: =MINA(MAXA((EXP(-(A92-A91)/$T$2)*(-(E92+E91)/2+V92+F91)+(EXP(-(A92-A91)/$T$4)*((E92+E91)/2-V92-F91+(-$T$3/$T$4+$T$3/$T$2)*G91)))*$T$7+(1-EXP(-(A92-A91)/$T$4))*(H91+$T$4/$T$5*((E92+E91)/2-V92)),V92-MINA($V$8,$V$9/$V$10*A92)),V92) -> 9.25 | H92: =EXP(-(A92-A91)/$T$6)*(H91-G92)+G92 -> 5.149069293 | I92: =V92-G92 -> 2.75 | J92: 2.75 | K92: 1.2 | L92: 0.1041666667 | M92: 0 | N92: =C92 -> 11.86555751 | O92: 15 | P92: 0 | Q92: =C92/2 -> 5.932778756 | R92: 2 | S92: 0 | T92: 0 | U92: 0 | V92: 12 | W92: =IF($W$17, IF(Bode!$AT$49=0, (J87+J92*($X$16-1))/($X$16), (J82+J87*($X$16-1))/($X$16)), J92) -> 2.75 | BA92: =MINA(+BA90+BC90/((+BD90*K89/(K89+$BC$5) +($BC$3+ ($BC$5*K89)/ ($BC$5+K89) +$BC$7+$BC$12)*BC90+$BC$6)/$BC$2), BA89+1/$V$3) -> 0.0001041666667 | BC92: =BC90+(BA92-BA90)*(-BD90*K89/(K89+$BC$5) -($BC$3+ ($BC$5*K92)/($BC$5+K92) +$BC$7+$BC$12)*BC91-$BC$6)/$BC$2 -> 11.86555751 | BD92: =BD90+(BA92-BA90)*(((BC92+BC90)*K92/2-BD90)/($BC$5+K92))/$BC$4 -> 2.295234074 | BE92: =BD92*(K92/($BC$5+K92))+BC92*($BC$5*K92/($BC$5+K92)) -> 2.471738038
A93: 0.0001041666667 | B93: 36 | C93: 11.86555751 | D93: 2.295234074 | E93: 2.471738038 | F93: =EXP(-(A93-A92)/$T$2)*(F92+V93-(E93+E92)/2)+((E93+E92)/2-V93) -> -9.714614163 | G93: =MINA(MAXA((EXP(-(A93-A92)/$T$2)*(-(E93+E92)/2+V93+F92)+(EXP(-(A93-A92)/$T$4)*((E93+E92)/2-V93-F92+(-$T$3/$T$4+$T$3/$T$2)*G92)))*$T$7+(1-EXP(-(A93-A92)/$T$4))*(H92+$T$4/$T$5*((E93+E92)/2-V93)),V93-MINA($V$8,$V$9/$V$10*A93)),V93) -> 9.25 | H93: =EXP(-(A93-A92)/$T$6)*(H92-G93)+G93 -> 5.149069293 | I93: =V93-G93 -> 2.75 | J93: 2.75 | K93: 1.2 | L93: 0.1041666667 | M93: 0 | N93: =C93 -> 11.86555751 | O93: 15 | P93: 0 | Q93: =C93/2 -> 5.932778756 | R93: 2 | S93: 0 | T93: 0 | U93: 0 | V93: 12 | W93: =IF($W$17, IF(Bode!$AT$49=0, (J88+J93*($X$16-1))/($X$16), (J83+J88*($X$16-1))/($X$16)), J93) -> 2.75 | BA93: =BA89+1/$V$3 -> 0.0001041666667 | BC93: =BC92 -> 11.86555751 | BD93: =BD92+(BA93-BA92)*(-BD92/($BC$5+K93))/$BC$4 -> 2.295234074 | BE93: =BD93*(K93/($BC$5+K93))+BC93*($BC$5*K93/($BC$5+K93)) -> 2.471738038
A94: 0.0001041666667 | B94: 36 | C94: 11.86555751 | D94: 2.295234074 | E94: 2.471738038 | F94: =F93 -> -9.714614163 | G94: =G93 -> 9.25 | H94: =H93 -> 5.149069293 | I94: =I93 -> 2.75 | J94: 2.75 | K94: 1.2 | L94: 0.1041666667 | M94: =C94/$M$14*$O$14 -> 11.86555751 | N94: 0 | O94: 16 | P94: =C94 -> 11.86555751 | Q94: 0 | R94: 2 | S94: =C94/$M$14 -> 11.86555751 | T94: 0 | U94: 0 | V94: 12 | W94: =IF($W$17, IF(Bode!$AT$49=0, (J89+J94*($X$16-1))/($X$16), (J84+J89*($X$16-1))/($X$16)), J94) -> 2.75 | BA94: =BA93 -> 0.0001041666667 | BC94: =BC93 -> 11.86555751 | BD94: =BD93 -> 2.295234074 | BE94: =BE93 -> 2.471738038
A95: 0.0001047546121 | B95: 36 | C95: 12.732 | D95: 2.308770675 | E95: 2.500440074 | F95: =EXP(-(A95-A94)/$T$2)*(F94+V95-E95)+(E95-V95) -> -9.699372252 | G95: =MINA(MAXA((EXP(-(A95-A94)/$T$2)*(-E95+V95+F94)+(EXP(-(A95-A94)/$T$4)*(E95-V95-F94+(-$T$3/$T$4+$T$3/$T$2)*G94)))*$T$7+(1-EXP(-(A95-A94)/$T$4))*(H94+$T$4/$T$5*(E95-V95)),V95-MINA($V$8,$V$9/$V$10*A95)),V95) -> 9.25 | H95: =EXP(-(A95-A94)/$T$6)*(H94-G95)+G95 -> 5.167224086 | I95: =V95-G95 -> 2.75 | J95: 2.75 | K95: 1.2 | L95: 0.1047546121 | M95: =(C95/$M$14 +(B95/$BC$14*(A95-A94))*$M$12)*$O$14 -> 12.732 | N95: 0 | O95: 16 | P95: =C95 -> 12.732 | Q95: 0 | R95: 2 | S95: =C95/$M$14 +(B95/$BC$14*(A95-A94))*$M$12 -> 12.732 | T95: 0 | U95: 0 | V95: 12 | W95: =IF($W$17, IF(Bode!$AT$49=0, (J90+J95*($X$16-1))/($X$16), (J85+J90*($X$16-1))/($X$16)), J95) -> 2.75 | BA95: =MAXA(BA94, MINA(+BA94+( W94 -$V$5*BC94)/((R95+$BC$13*B95+0.000001)*$V$3+((B94-$BC$8)/$BC$10-BD94-$BE$6-($BC$3+$BC$5+$BC$12+$BE$7+($BC$11+$BC$9)/$BC$10^2)*BD94/K94)*$V$5/$BC$2), +BA94+($V$7*$BC$10-BC94)/((B94-$BC$8)/$BC$10- BD94*K94/(K94+$BC$5) -$BE$6-($BC$3+ ($BC$5*K94)/($BC$5+K94) +$BC$12+$BE$7+($BC$11+$BC$9)/$BC$10^2)*BC94) *$BC$2, BA94+$V$4/$V$3)) -> 0.0001047546121 | BC95: =BC94+(BA95-BA94)*((B94-$BC$8)/$BC$10- BD94*K94/(K94+$BC$5) -$BE$6-($BC$3+ ($BC$5*K94)/($BC$5+K94) +$BC$12+$BE$7+($BC$9+$BC$11)/$BC$10^2)* BC94 ) /$BC$2 -> 12.732 | BD95: =BD94+(BA95-BA94)*(((BC95+BC94)*K95/2-BD94)/($BC$5+K95))/$BC$4 -> 2.308770675 | BE95: =BD95*(K95/($BC$5+K95))+BC95*($BC$5*K95/($BC$5+K95)) -> 2.500440074 | CG95: =CC94+(CF95)*((B94-$CC$8)/$CC$10-($CC$3+$CC$9)/$CC$10^2*CC94)/$CC$2 -> 0 | CH95: =(CC94+CG95)/2 -> 0
A96: 0.0001047546121 | B96: 36 | C96: 12.732 | D96: 2.308770675 | E96: 2.500440074 | F96: =F95 -> -9.699372252 | G96: =G95 -> 9.25 | H96: =H95 -> 5.167224086 | I96: =I95 -> 2.75 | J96: 2.75 | K96: 1.2 | L96: 0.1047546121 | M96: 0 | N96: =C96 -> 12.732 | O96: 16 | P96: 0 | Q96: =C96/2 -> 6.366 | R96: 2 | S96: 0 | T96: 0 | U96: 0 | V96: 12 | W96: =IF($W$17, IF(Bode!$AT$49=0, (J91+J96*($X$16-1))/($X$16), (J86+J91*($X$16-1))/($X$16)), J96) -> 2.75 | BA96: =BA95 -> 0.0001047546121 | BC96: =BC95 -> 12.732 | BD96: =BD95 -> 2.308770675 | BE96: =BE95 -> 2.500440074
A97: 0.0001111111111 | B97: 36 | C97: 11.82407313 | D97: 2.454668737 | E97: 2.628080841 | F97: =EXP(-(A97-A96)/$T$2)*(F96+V97-(E97+E96)/2)+((E97+E96)/2-V97) -> -9.55481938 | G97: =MINA(MAXA((EXP(-(A97-A96)/$T$2)*(-(E97+E96)/2+V97+F96)+(EXP(-(A97-A96)/$T$4)*((E97+E96)/2-V97-F96+(-$T$3/$T$4+$T$3/$T$2)*G96)))*$T$7+(1-EXP(-(A97-A96)/$T$4))*(H96+$T$4/$T$5*((E97+E96)/2-V97)),V97-MINA($V$8,$V$9/$V$10*A97)),V97) -> 9.25 | H97: =EXP(-(A97-A96)/$T$6)*(H96-G97)+G97 -> 5.358444376 | I97: =V97-G97 -> 2.75 | J97: 2.75 | K97: 1.2 | L97: 0.1111111111 | M97: 0 | N97: =C97 -> 11.82407313 | O97: 16 | P97: 0 | Q97: =C97/2 -> 5.912036565 | R97: 2 | S97: 0 | T97: 0 | U97: 0 | V97: 12 | W97: =IF($W$17, IF(Bode!$AT$49=0, (J92+J97*($X$16-1))/($X$16), (J87+J92*($X$16-1))/($X$16)), J97) -> 2.75 | BA97: =MINA(+BA95+BC95/((+BD95*K94/(K94+$BC$5) +($BC$3+ ($BC$5*K94)/ ($BC$5+K94) +$BC$7+$BC$12)*BC95+$BC$6)/$BC$2), BA94+1/$V$3) -> 0.0001111111111 | BC97: =BC95+(BA97-BA95)*(-BD95*K94/(K94+$BC$5) -($BC$3+ ($BC$5*K97)/($BC$5+K97) +$BC$7+$BC$12)*BC96-$BC$6)/$BC$2 -> 11.82407313 | BD97: =BD95+(BA97-BA95)*(((BC97+BC95)*K97/2-BD95)/($BC$5+K97))/$BC$4 -> 2.454668737 | BE97: =BD97*(K97/($BC$5+K97))+BC97*($BC$5*K97/($BC$5+K97)) -> 2.628080841
A98: 0.0001111111111 | B98: 36 | C98: 11.82407313 | D98: 2.454668737 | E98: 2.628080841 | F98: =EXP(-(A98-A97)/$T$2)*(F97+V98-(E98+E97)/2)+((E98+E97)/2-V98) -> -9.55481938 | G98: =MINA(MAXA((EXP(-(A98-A97)/$T$2)*(-(E98+E97)/2+V98+F97)+(EXP(-(A98-A97)/$T$4)*((E98+E97)/2-V98-F97+(-$T$3/$T$4+$T$3/$T$2)*G97)))*$T$7+(1-EXP(-(A98-A97)/$T$4))*(H97+$T$4/$T$5*((E98+E97)/2-V98)),V98-MINA($V$8,$V$9/$V$10*A98)),V98) -> 9.25 | H98: =EXP(-(A98-A97)/$T$6)*(H97-G98)+G98 -> 5.358444376 | I98: =V98-G98 -> 2.75 | J98: 2.75 | K98: 1.2 | L98: 0.1111111111 | M98: 0 | N98: =C98 -> 11.82407313 | O98: 16 | P98: 0 | Q98: =C98/2 -> 5.912036565 | R98: 2 | S98: 0 | T98: 0 | U98: 0 | V98: 12 | W98: =IF($W$17, IF(Bode!$AT$49=0, (J93+J98*($X$16-1))/($X$16), (J88+J93*($X$16-1))/($X$16)), J98) -> 2.75 | BA98: =BA94+1/$V$3 -> 0.0001111111111 | BC98: =BC97 -> 11.82407313 | BD98: =BD97+(BA98-BA97)*(-BD97/($BC$5+K98))/$BC$4 -> 2.454668737 | BE98: =BD98*(K98/($BC$5+K98))+BC98*($BC$5*K98/($BC$5+K98)) -> 2.628080841
A99: 0.0001111111111 | B99: 36 | C99: 11.82407313 | D99: 2.454668737 | E99: 2.628080841 | F99: =F98 -> -9.55481938 | G99: =G98 -> 9.25 | H99: =H98 -> 5.358444376 | I99: =I98 -> 2.75 | J99: 2.75 | K99: 1.2 | L99: 0.1111111111 | M99: =C99/$M$14 -> 11.82407313 | N99: 0 | O99: 17 | P99: =C99 -> 11.82407313 | Q99: =P99 -> 11.82407313 | R99: 2 | S99: =C99/$M$14*$O$14 -> 11.82407313 | T99: 0 | U99: =M99 -> 11.82407313 | V99: 12 | W99: =IF($W$17, IF(Bode!$AT$49=0, (J94+J99*($X$16-1))/($X$16), (J89+J94*($X$16-1))/($X$16)), J99) -> 2.75 | BA99: =BA98 -> 0.0001111111111 | BC99: =BC98 -> 11.82407313 | BD99: =BD98 -> 2.454668737 | BE99: =BE98 -> 2.628080841
A100: 0.0001117301104 | B100: 36 | C100: 12.732 | D100: 2.468709538 | E100: 2.658015308 | F100: =EXP(-(A100-A99)/$T$2)*(F99+V100-E100)+(E100-V100) -> -9.538968459 | G100: =MINA(MAXA((EXP(-(A100-A99)/$T$2)*(-E100+V100+F99)+(EXP(-(A100-A99)/$T$4)*(E100-V100-F99+(-$T$3/$T$4+$T$3/$T$2)*G99)))*$T$7+(1-EXP(-(A100-A99)/$T$4))*(H99+$T$4/$T$5*(E100-V100)),V100-MINA($V$8,$V$9/$V$10*A100)),V100) -> 9.25 | H100: =EXP(-(A100-A99)/$T$6)*(H99-G100)+G100 -> 5.376580081 | I100: =V100-G100 -> 2.75 | J100: 2.75 | K100: 1.2 | L100: 0.1117301104 | M100: =C100/$M$14 +(B100/$BC$14*(A100-A99))*$M$12 -> 12.732 | N100: 0 | O100: 17 | P100: =C100 -> 12.732 | Q100: =P100 -> 12.732 | R100: 2 | S100: =C100/$M$14*$O$14 -> 12.732 | T100: 0 | U100: =M100 -> 12.732 | V100: 12 | W100: =IF($W$17, IF(Bode!$AT$49=0, (J95+J100*($X$16-1))/($X$16), (J90+J95*($X$16-1))/($X$16)), J100) -> 2.75 | BA100: =MAXA(BA99, MINA(+BA99+( W99 -$V$5*BC99)/((R100+$BC$13*B100+0.000001)*$V$3+((B99-$BC$8)/$BC$10-BD99-$BE$6-($BC$3+$BC$5+$BC$12+$BE$7+($BC$11+$BC$9)/$BC$10^2)*BD99/K99)*$V$5/$BC$2), +BA99+($V$7*$BC$10-BC99)/((B99-$BC$8)/$BC$10- BD99*K99/(K99+$BC$5) -$BE$6-($BC$3+ ($BC$5*K99)/($BC$5+K99) +$BC$12+$BE$7+($BC$11+$BC$9)/$BC$10^2)*BC99) *$BC$2, BA99+$V$4/$V$3)) -> 0.0001117301104 | BC100: =BC99+(BA100-BA99)*((B99-$BC$8)/$BC$10- BD99*K99/(K99+$BC$5) -$BE$6-($BC$3+ ($BC$5*K99)/($BC$5+K99) +$BC$12+$BE$7+($BC$9+$BC$11)/$BC$10^2)* BC99 ) /$BC$2 -> 12.732 | BD100: =BD99+(BA100-BA99)*(((BC100+BC99)*K100/2-BD99)/($BC$5+K100))/$BC$4 -> 2.468709538 | BE100: =BD100*(K100/($BC$5+K100))+BC100*($BC$5*K100/($BC$5+K100)) -> 2.658015308 | CG100: =CC99+(CF100)*((B99-$CC$8)/$CC$10-($CC$3+$CC$9)/$CC$10^2*CC99)/$CC$2 -> 0 | CH100: =(CC99+CG100)/2 -> 0
A101: 0.0001117301104 | B101: 36 | C101: 12.732 | D101: 2.468709538 | E101: 2.658015308 | F101: =F100 -> -9.538968459 | G101: =G100 -> 9.25 | H101: =H100 -> 5.376580081 | I101: =I100 -> 2.75 | J101: 2.75 | K101: 1.2 | L101: 0.1117301104 | M101: 0 | N101: =C101 -> 12.732 | O101: 17 | P101: 0 | Q101: =C101/2 -> 6.366 | R101: 2 | S101: 0 | T101: 0 | U101: 0 | V101: 12 | W101: =IF($W$17, IF(Bode!$AT$49=0, (J96+J101*($X$16-1))/($X$16), (J91+J96*($X$16-1))/($X$16)), J101) -> 2.75 | BA101: =BA100 -> 0.0001117301104 | BC101: =BC100 -> 12.732 | BD101: =BD100 -> 2.468709538 | BE101: =BE100 -> 2.658015308
A102: 0.0001180555556 | B102: 36 | C102: 11.7836512 | D102: 2.611742539 | E102: 2.782116513 | F102: =EXP(-(A102-A101)/$T$2)*(F101+V102-(E102+E101)/2)+((E102+E101)/2-V102) -> -9.397392082 | G102: =MINA(MAXA((EXP(-(A102-A101)/$T$2)*(-(E102+E101)/2+V102+F101)+(EXP(-(A102-A101)/$T$4)*((E102+E101)/2-V102-F101+(-$T$3/$T$4+$T$3/$T$2)*G101)))*$T$7+(1-EXP(-(A102-A101)/$T$4))*(H101+$T$4/$T$5*((E102+E101)/2-V102)),V102-MINA($V$8,$V$9/$V$10*A102)),V102) -> 9.25 | H102: =EXP(-(A102-A101)/$T$6)*(H101-G102)+G102 -> 5.55712971 | I102: =V102-G102 -> 2.75 | J102: 2.75 | K102: 1.2 | L102: 0.1180555556 | M102: 0 | N102: =C102 -> 11.7836512 | O102: 17 | P102: 0 | Q102: =C102/2 -> 5.891825602 | R102: 2 | S102: 0 | T102: 0 | U102: 0 | V102: 12 | W102: =IF($W$17, IF(Bode!$AT$49=0, (J97+J102*($X$16-1))/($X$16), (J92+J97*($X$16-1))/($X$16)), J102) -> 2.75 | BA102: =MINA(+BA100+BC100/((+BD100*K99/(K99+$BC$5) +($BC$3+ ($BC$5*K99)/ ($BC$5+K99) +$BC$7+$BC$12)*BC100+$BC$6)/$BC$2), BA99+1/$V$3) -> 0.0001180555556 | BC102: =BC100+(BA102-BA100)*(-BD100*K99/(K99+$BC$5) -($BC$3+ ($BC$5*K102)/($BC$5+K102) +$BC$7+$BC$12)*BC101-$BC$6)/$BC$2 -> 11.7836512 | BD102: =BD100+(BA102-BA100)*(((BC102+BC100)*K102/2-BD100)/($BC$5+K102))/$BC$4 -> 2.611742539 | BE102: =BD102*(K102/($BC$5+K102))+BC102*($BC$5*K102/($BC$5+K102)) -> 2.782116513
A103: 0.0001180555556 | B103: 36 | C103: 11.7836512 | D103: 2.611742539 | E103: 2.782116513 | F103: =EXP(-(A103-A102)/$T$2)*(F102+V103-(E103+E102)/2)+((E103+E102)/2-V103) -> -9.397392082 | G103: =MINA(MAXA((EXP(-(A103-A102)/$T$2)*(-(E103+E102)/2+V103+F102)+(EXP(-(A103-A102)/$T$4)*((E103+E102)/2-V103-F102+(-$T$3/$T$4+$T$3/$T$2)*G102)))*$T$7+(1-EXP(-(A103-A102)/$T$4))*(H102+$T$4/$T$5*((E103+E102)/2-V103)),V103-MINA($V$8,$V$9/$V$10*A103)),V103) -> 9.25 | H103: =EXP(-(A103-A102)/$T$6)*(H102-G103)+G103 -> 5.55712971 | I103: =V103-G103 -> 2.75 | J103: 2.75 | K103: 1.2 | L103: 0.1180555556 | M103: 0 | N103: =C103 -> 11.7836512 | O103: 17 | P103: 0 | Q103: =C103/2 -> 5.891825602 | R103: 2 | S103: 0 | T103: 0 | U103: 0 | V103: 12 | W103: =IF($W$17, IF(Bode!$AT$49=0, (J98+J103*($X$16-1))/($X$16), (J93+J98*($X$16-1))/($X$16)), J103) -> 2.75 | BA103: =BA99+1/$V$3 -> 0.0001180555556 | BC103: =BC102 -> 11.7836512 | BD103: =BD102+(BA103-BA102)*(-BD102/($BC$5+K103))/$BC$4 -> 2.611742539 | BE103: =BD103*(K103/($BC$5+K103))+BC103*($BC$5*K103/($BC$5+K103)) -> 2.782116513
A104: 0.0001180555556 | B104: 36 | C104: 11.7836512 | D104: 2.611742539 | E104: 2.782116513 | F104: =F103 -> -9.397392082 | G104: =G103 -> 9.25 | H104: =H103 -> 5.55712971 | I104: =I103 -> 2.75 | J104: 2.75 | K104: 1.2 | L104: 0.1180555556 | M104: =C104/$M$14*$O$14 -> 11.7836512 | N104: 0 | O104: 18 | P104: =C104 -> 11.7836512 | Q104: 0 | R104: 2 | S104: =C104/$M$14 -> 11.7836512 | T104: 0 | U104: 0 | V104: 12 | W104: =IF($W$17, IF(Bode!$AT$49=0, (J99+J104*($X$16-1))/($X$16), (J94+J99*($X$16-1))/($X$16)), J104) -> 2.75 | BA104: =BA103 -> 0.0001180555556 | BC104: =BC103 -> 11.7836512 | BD104: =BD103 -> 2.611742539 | BE104: =BE103 -> 2.782116513
A105: 0.0001187051303 | B105: 36 | C105: 12.732 | D105: 2.626259298 | E105: 2.813236746 | F105: =EXP(-(A105-A104)/$T$2)*(F104+V105-E105)+(E105-V105) -> -9.380961623 | G105: =MINA(MAXA((EXP(-(A105-A104)/$T$2)*(-E105+V105+F104)+(EXP(-(A105-A104)/$T$4)*(E105-V105-F104+(-$T$3/$T$4+$T$3/$T$2)*G104)))*$T$7+(1-EXP(-(A105-A104)/$T$4))*(H104+$T$4/$T$5*(E105-V105)),V105-MINA($V$8,$V$9/$V$10*A105)),V105) -> 9.25 | H105: =EXP(-(A105-A104)/$T$6)*(H104-G105)+G105 -> 5.575187481 | I105: =V105-G105 -> 2.75 | J105: 2.75 | K105: 1.2 | L105: 0.1187051303 | M105: =(C105/$M$14 +(B105/$BC$14*(A105-A104))*$M$12)*$O$14 -> 12.732 | N105: 0 | O105: 18 | P105: =C105 -> 12.732 | Q105: 0 | R105: 2 | S105: =C105/$M$14 +(B105/$BC$14*(A105-A104))*$M$12 -> 12.732 | T105: 0 | U105: 0 | V105: 12 | W105: =IF($W$17, IF(Bode!$AT$49=0, (J100+J105*($X$16-1))/($X$16), (J95+J100*($X$16-1))/($X$16)), J105) -> 2.75 | BA105: =MAXA(BA104, MINA(+BA104+( W104 -$V$5*BC104)/((R105+$BC$13*B105+0.000001)*$V$3+((B104-$BC$8)/$BC$10-BD104-$BE$6-($BC$3+$BC$5+$BC$12+$BE$7+($BC$11+$BC$9)/$BC$10^2)*BD104/K104)*$V$5/$BC$2), +BA104+($V$7*$BC$10-BC104)/((B104-$BC$8)/$BC$10- BD104*K104/(K104+$BC$5) -$BE$6-($BC$3+ ($BC$5*K104)/($BC$5+K104) +$BC$12+$BE$7+($BC$11+$BC$9)/$BC$10^2)*BC104) *$BC$2, BA104+$V$4/$V$3)) -> 0.0001187051303 | BC105: =BC104+(BA105-BA104)*((B104-$BC$8)/$BC$10- BD104*K104/(K104+$BC$5) -$BE$6-($BC$3+ ($BC$5*K104)/($BC$5+K104) +$BC$12+$BE$7+($BC$9+$BC$11)/$BC$10^2)* BC104 ) /$BC$2 -> 12.732 | BD105: =BD104+(BA105-BA104)*(((BC105+BC104)*K105/2-BD104)/($BC$5+K105))/$BC$4 -> 2.626259298 | BE105: =BD105*(K105/($BC$5+K105))+BC105*($BC$5*K105/($BC$5+K105)) -> 2.813236746 | CG105: =CC104+(CF105)*((B104-$CC$8)/$CC$10-($CC$3+$CC$9)/$CC$10^2*CC104)/$CC$2 -> 0 | CH105: =(CC104+CG105)/2 -> 0
A106: 0.0001187051303 | B106: 36 | C106: 12.732 | D106: 2.626259298 | E106: 2.813236746 | F106: =F105 -> -9.380961623 | G106: =G105 -> 9.25 | H106: =H105 -> 5.575187481 | I106: =I105 -> 2.75 | J106: 2.75 | K106: 1.2 | L106: 0.1187051303 | M106: 0 | N106: =C106 -> 12.732 | O106: 18 | P106: 0 | Q106: =C106/2 -> 6.366 | R106: 2 | S106: 0 | T106: 0 | U106: 0 | V106: 12 | W106: =IF($W$17, IF(Bode!$AT$49=0, (J101+J106*($X$16-1))/($X$16), (J96+J101*($X$16-1))/($X$16)), J106) -> 2.75 | BA106: =BA105 -> 0.0001187051303 | BC106: =BC105 -> 12.732 | BD106: =BD105 -> 2.626259298 | BE106: =BE105 -> 2.813236746
A107: 0.000125 | B107: 36 | C107: 11.74426142 | D107: 2.766494011 | E107: 2.933882479 | F107: =EXP(-(A107-A106)/$T$2)*(F106+V107-(E107+E106)/2)+((E107+E106)/2-V107) -> -9.242293969 | G107: =MINA(MAXA((EXP(-(A107-A106)/$T$2)*(-(E107+E106)/2+V107+F106)+(EXP(-(A107-A106)/$T$4)*((E107+E106)/2-V107-F106+(-$T$3/$T$4+$T$3/$T$2)*G106)))*$T$7+(1-EXP(-(A107-A106)/$T$4))*(H106+$T$4/$T$5*((E107+E106)/2-V107)),V107-MINA($V$8,$V$9/$V$10*A107)),V107) -> 9.25 | H107: =EXP(-(A107-A106)/$T$6)*(H106-G107)+G107 -> 5.745671063 | I107: =V107-G107 -> 2.75 | J107: 2.75 | K107: 1.2 | L107: 0.125 | M107: 0 | N107: =C107 -> 11.74426142 | O107: 18 | P107: 0 | Q107: =C107/2 -> 5.872130708 | R107: 2 | S107: 0 | T107: 0 | U107: 0 | V107: 12 | W107: =IF($W$17, IF(Bode!$AT$49=0, (J102+J107*($X$16-1))/($X$16), (J97+J102*($X$16-1))/($X$16)), J107) -> 2.75 | BA107: =MINA(+BA105+BC105/((+BD105*K104/(K104+$BC$5) +($BC$3+ ($BC$5*K104)/ ($BC$5+K104) +$BC$7+$BC$12)*BC105+$BC$6)/$BC$2), BA104+1/$V$3) -> 0.000125 | BC107: =BC105+(BA107-BA105)*(-BD105*K104/(K104+$BC$5) -($BC$3+ ($BC$5*K107)/($BC$5+K107) +$BC$7+$BC$12)*BC106-$BC$6)/$BC$2 -> 11.74426142 | BD107: =BD105+(BA107-BA105)*(((BC107+BC105)*K107/2-BD105)/($BC$5+K107))/$BC$4 -> 2.766494011 | BE107: =BD107*(K107/($BC$5+K107))+BC107*($BC$5*K107/($BC$5+K107)) -> 2.933882479
A108: 0.000125 | B108: 36 | C108: 11.74426142 | D108: 2.766494011 | E108: 2.933882479 | F108: =EXP(-(A108-A107)/$T$2)*(F107+V108-(E108+E107)/2)+((E108+E107)/2-V108) -> -9.242293969 | G108: =MINA(MAXA((EXP(-(A108-A107)/$T$2)*(-(E108+E107)/2+V108+F107)+(EXP(-(A108-A107)/$T$4)*((E108+E107)/2-V108-F107+(-$T$3/$T$4+$T$3/$T$2)*G107)))*$T$7+(1-EXP(-(A108-A107)/$T$4))*(H107+$T$4/$T$5*((E108+E107)/2-V108)),V108-MINA($V$8,$V$9/$V$10*A108)),V108) -> 9.25 | H108: =EXP(-(A108-A107)/$T$6)*(H107-G108)+G108 -> 5.745671063 | I108: =V108-G108 -> 2.75 | J108: 2.75 | K108: 1.2 | L108: 0.125 | M108: 0 | N108: =C108 -> 11.74426142 | O108: 18 | P108: 0 | Q108: =C108/2 -> 5.872130708 | R108: 2 | S108: 0 | T108: 0 | U108: 0 | V108: 12 | W108: =IF($W$17, IF(Bode!$AT$49=0, (J103+J108*($X$16-1))/($X$16), (J98+J103*($X$16-1))/($X$16)), J108) -> 2.75 | BA108: =BA104+1/$V$3 -> 0.000125 | BC108: =BC107 -> 11.74426142 | BD108: =BD107+(BA108-BA107)*(-BD107/($BC$5+K108))/$BC$4 -> 2.766494011 | BE108: =BD108*(K108/($BC$5+K108))+BC108*($BC$5*K108/($BC$5+K108)) -> 2.933882479
A109: 0.000125 | B109: 36 | C109: 11.74426142 | D109: 2.766494011 | E109: 2.933882479 | F109: =F108 -> -9.242293969 | G109: =G108 -> 9.25 | H109: =H108 -> 5.745671063 | I109: =I108 -> 2.75 | J109: 2.75 | K109: 1.2 | L109: 0.125 | M109: =C109/$M$14 -> 11.74426142 | N109: 0 | O109: 19 | P109: =C109 -> 11.74426142 | Q109: =P109 -> 11.74426142 | R109: 2 | S109: =C109/$M$14*$O$14 -> 11.74426142 | T109: 0 | U109: =M109 -> 11.74426142 | V109: 12 | W109: =IF($W$17, IF(Bode!$AT$49=0, (J104+J109*($X$16-1))/($X$16), (J99+J104*($X$16-1))/($X$16)), J109) -> 2.75 | BA109: =BA108 -> 0.000125 | BC109: =BC108 -> 11.74426142 | BD109: =BD108 -> 2.766494011 | BE109: =BE108 -> 2.933882479
A110: 0.0001256796802 | B110: 36 | C110: 12.732 | D110: 2.781459593 | E110: 2.966143441 | F110: =EXP(-(A110-A109)/$T$2)*(F109+V110-E110)+(E110-V110) -> -9.225312432 | G110: =MINA(MAXA((EXP(-(A110-A109)/$T$2)*(-E110+V110+F109)+(EXP(-(A110-A109)/$T$4)*(E110-V110-F109+(-$T$3/$T$4+$T$3/$T$2)*G109)))*$T$7+(1-EXP(-(A110-A109)/$T$4))*(H109+$T$4/$T$5*(E110-V110)),V110-MINA($V$8,$V$9/$V$10*A110)),V110) -> 9.25 | H110: =EXP(-(A110-A109)/$T$6)*(H109-G110)+G110 -> 5.763599035 | I110: =V110-G110 -> 2.75 | J110: 2.75 | K110: 1.2 | L110: 0.1256796802 | M110: =C110/$M$14 +(B110/$BC$14*(A110-A109))*$M$12 -> 12.732 | N110: 0 | O110: 19 | P110: =C110 -> 12.732 | Q110: =P110 -> 12.732 | R110: 2 | S110: =C110/$M$14*$O$14 -> 12.732 | T110: 0 | U110: =M110 -> 12.732 | V110: 12 | W110: =IF($W$17, IF(Bode!$AT$49=0, (J105+J110*($X$16-1))/($X$16), (J100+J105*($X$16-1))/($X$16)), J110) -> 2.75 | BA110: =MAXA(BA109, MINA(+BA109+( W109 -$V$5*BC109)/((R110+$BC$13*B110+0.000001)*$V$3+((B109-$BC$8)/$BC$10-BD109-$BE$6-($BC$3+$BC$5+$BC$12+$BE$7+($BC$11+$BC$9)/$BC$10^2)*BD109/K109)*$V$5/$BC$2), +BA109+($V$7*$BC$10-BC109)/((B109-$BC$8)/$BC$10- BD109*K109/(K109+$BC$5) -$BE$6-($BC$3+ ($BC$5*K109)/($BC$5+K109) +$BC$12+$BE$7+($BC$11+$BC$9)/$BC$10^2)*BC109) *$BC$2, BA109+$V$4/$V$3)) -> 0.0001256796802 | BC110: =BC109+(BA110-BA109)*((B109-$BC$8)/$BC$10- BD109*K109/(K109+$BC$5) -$BE$6-($BC$3+ ($BC$5*K109)/($BC$5+K109) +$BC$12+$BE$7+($BC$9+$BC$11)/$BC$10^2)* BC109 ) /$BC$2 -> 12.732 | BD110: =BD109+(BA110-BA109)*(((BC110+BC109)*K110/2-BD109)/($BC$5+K110))/$BC$4 -> 2.781459593 | BE110: =BD110*(K110/($BC$5+K110))+BC110*($BC$5*K110/($BC$5+K110)) -> 2.966143441 | CG110: =CC109+(CF110)*((B109-$CC$8)/$CC$10-($CC$3+$CC$9)/$CC$10^2*CC109)/$CC$2 -> 0 | CH110: =(CC109+CG110)/2 -> 0
A111: 0.0001256796802 | B111: 36 | C111: 12.732 | D111: 2.781459593 | E111: 2.966143441 | F111: =F110 -> -9.225312432 | G111: =G110 -> 9.25 | H111: =H110 -> 5.763599035 | I111: =I110 -> 2.75 | J111: 2.75 | K111: 1.2 | L111: 0.1256796802 | M111: 0 | N111: =C111 -> 12.732 | O111: 19 | P111: 0 | Q111: =C111/2 -> 6.366 | R111: 2 | S111: 0 | T111: 0 | U111: 0 | V111: 12 | W111: =IF($W$17, IF(Bode!$AT$49=0, (J106+J111*($X$16-1))/($X$16), (J101+J106*($X$16-1))/($X$16)), J111) -> 2.75 | BA111: =BA110 -> 0.0001256796802 | BC111: =BC110 -> 12.732 | BD111: =BD110 -> 2.781459593 | BE111: =BE110 -> 2.966143441
A112: 0.0001319444444 | B112: 36 | C112: 11.70587441 | D112: 2.918960951 | E112: 3.083415458 | F112: =EXP(-(A112-A111)/$T$2)*(F111+V112-(E112+E111)/2)+((E112+E111)/2-V112) -> -9.089487275 | G112: =MINA(MAXA((EXP(-(A112-A111)/$T$2)*(-(E112+E111)/2+V112+F111)+(EXP(-(A112-A111)/$T$4)*((E112+E111)/2-V112-F111+(-$T$3/$T$4+$T$3/$T$2)*G111)))*$T$7+(1-EXP(-(A112-A111)/$T$4))*(H111+$T$4/$T$5*((E112+E111)/2-V112)),V112-MINA($V$8,$V$9/$V$10*A112)),V112) -> 9.25 | H112: =EXP(-(A112-A111)/$T$6)*(H111-G112)+G112 -> 5.924586343 | I112: =V112-G112 -> 2.75 | J112: 2.75 | K112: 1.2 | L112: 0.1319444444 | M112: 0 | N112: =C112 -> 11.70587441 | O112: 19 | P112: 0 | Q112: =C112/2 -> 5.852937203 | R112: 2 | S112: 0 | T112: 0 | U112: 0 | V112: 12 | W112: =IF($W$17, IF(Bode!$AT$49=0, (J107+J112*($X$16-1))/($X$16), (J102+J107*($X$16-1))/($X$16)), J112) -> 2.75 | BA112: =MINA(+BA110+BC110/((+BD110*K109/(K109+$BC$5) +($BC$3+ ($BC$5*K109)/ ($BC$5+K109) +$BC$7+$BC$12)*BC110+$BC$6)/$BC$2), BA109+1/$V$3) -> 0.0001319444444 | BC112: =BC110+(BA112-BA110)*(-BD110*K109/(K109+$BC$5) -($BC$3+ ($BC$5*K112)/($BC$5+K112) +$BC$7+$BC$12)*BC111-$BC$6)/$BC$2 -> 11.70587441 | BD112: =BD110+(BA112-BA110)*(((BC112+BC110)*K112/2-BD110)/($BC$5+K112))/$BC$4 -> 2.918960951 | BE112: =BD112*(K112/($BC$5+K112))+BC112*($BC$5*K112/($BC$5+K112)) -> 3.083415458
A113: 0.0001319444444 | B113: 36 | C113: 11.70587441 | D113: 2.918960951 | E113: 3.083415458 | F113: =EXP(-(A113-A112)/$T$2)*(F112+V113-(E113+E112)/2)+((E113+E112)/2-V113) -> -9.089487275 | G113: =MINA(MAXA((EXP(-(A113-A112)/$T$2)*(-(E113+E112)/2+V113+F112)+(EXP(-(A113-A112)/$T$4)*((E113+E112)/2-V113-F112+(-$T$3/$T$4+$T$3/$T$2)*G112)))*$T$7+(1-EXP(-(A113-A112)/$T$4))*(H112+$T$4/$T$5*((E113+E112)/2-V113)),V113-MINA($V$8,$V$9/$V$10*A113)),V113) -> 9.25 | H113: =EXP(-(A113-A112)/$T$6)*(H112-G113)+G113 -> 5.924586343 | I113: =V113-G113 -> 2.75 | J113: 2.75 | K113: 1.2 | L113: 0.1319444444 | M113: 0 | N113: =C113 -> 11.70587441 | O113: 19 | P113: 0 | Q113: =C113/2 -> 5.852937203 | R113: 2 | S113: 0 | T113: 0 | U113: 0 | V113: 12 | W113: =IF($W$17, IF(Bode!$AT$49=0, (J108+J113*($X$16-1))/($X$16), (J103+J108*($X$16-1))/($X$16)), J113) -> 2.75 | BA113: =BA109+1/$V$3 -> 0.0001319444444 | BC113: =BC112 -> 11.70587441 | BD113: =BD112+(BA113-BA112)*(-BD112/($BC$5+K113))/$BC$4 -> 2.918960951 | BE113: =BD113*(K113/($BC$5+K113))+BC113*($BC$5*K113/($BC$5+K113)) -> 3.083415458
A114: 0.0001319444444 | B114: 36 | C114: 11.70587441 | D114: 2.918960951 | E114: 3.083415458 | F114: =F113 -> -9.089487275 | G114: =G113 -> 9.25 | H114: =H113 -> 5.924586343 | I114: =I113 -> 2.75 | J114: 2.75 | K114: 1.2 | L114: 0.1319444444 | M114: =C114/$M$14*$O$14 -> 11.70587441 | N114: 0 | O114: 20 | P114: =C114 -> 11.70587441 | Q114: 0 | R114: 2 | S114: =C114/$M$14 -> 11.70587441 | T114: 0 | U114: 0 | V114: 12 | W114: =IF($W$17, IF(Bode!$AT$49=0, (J109+J114*($X$16-1))/($X$16), (J104+J109*($X$16-1))/($X$16)), J114) -> 2.75 | BA114: =BA113 -> 0.0001319444444 | BC114: =BC113 -> 11.70587441 | BD114: =BD113 -> 2.918960951 | BE114: =BE113 -> 3.083415458
A115: 0.0001326537685 | B115: 36 | C115: 12.732 | D115: 2.934349284 | E115: 3.116773679 | F115: =EXP(-(A115-A114)/$T$2)*(F114+V115-E115)+(E115-V115) -> -9.07198215 | G115: =MINA(MAXA((EXP(-(A115-A114)/$T$2)*(-E115+V115+F114)+(EXP(-(A115-A114)/$T$4)*(E115-V115-F114+(-$T$3/$T$4+$T$3/$T$2)*G114)))*$T$7+(1-EXP(-(A115-A114)/$T$4))*(H114+$T$4/$T$5*(E115-V115)),V115-MINA($V$8,$V$9/$V$10*A115)),V115) -> 9.25 | H115: =EXP(-(A115-A114)/$T$6)*(H114-G115)+G115 -> 5.942339006 | I115: =V115-G115 -> 2.75 | J115: 2.75 | K115: 1.2 | L115: 0.1326537685 | M115: =(C115/$M$14 +(B115/$BC$14*(A115-A114))*$M$12)*$O$14 -> 12.732 | N115: 0 | O115: 20 | P115: =C115 -> 12.732 | Q115: 0 | R115: 2 | S115: =C115/$M$14 +(B115/$BC$14*(A115-A114))*$M$12 -> 12.732 | T115: 0 | U115: 0 | V115: 12 | W115: =IF($W$17, IF(Bode!$AT$49=0, (J110+J115*($X$16-1))/($X$16), (J105+J110*($X$16-1))/($X$16)), J115) -> 2.75 | BA115: =MAXA(BA114, MINA(+BA114+( W114 -$V$5*BC114)/((R115+$BC$13*B115+0.000001)*$V$3+((B114-$BC$8)/$BC$10-BD114-$BE$6-($BC$3+$BC$5+$BC$12+$BE$7+($BC$11+$BC$9)/$BC$10^2)*BD114/K114)*$V$5/$BC$2), +BA114+($V$7*$BC$10-BC114)/((B114-$BC$8)/$BC$10- BD114*K114/(K114+$BC$5) -$BE$6-($BC$3+ ($BC$5*K114)/($BC$5+K114) +$BC$12+$BE$7+($BC$11+$BC$9)/$BC$10^2)*BC114) *$BC$2, BA114+$V$4/$V$3)) -> 0.0001326537685 | BC115: =BC114+(BA115-BA114)*((B114-$BC$8)/$BC$10- BD114*K114/(K114+$BC$5) -$BE$6-($BC$3+ ($BC$5*K114)/($BC$5+K114) +$BC$12+$BE$7+($BC$9+$BC$11)/$BC$10^2)* BC114 ) /$BC$2 -> 12.732 | BD115: =BD114+(BA115-BA114)*(((BC115+BC114)*K115/2-BD114)/($BC$5+K115))/$BC$4 -> 2.934349284 | BE115: =BD115*(K115/($BC$5+K115))+BC115*($BC$5*K115/($BC$5+K115)) -> 3.116773679 | CG115: =CC114+(CF115)*((B114-$CC$8)/$CC$10-($CC$3+$CC$9)/$CC$10^2*CC114)/$CC$2 -> 0 | CH115: =(CC114+CG115)/2 -> 0
A116: 0.0001326537685 | B116: 36 | C116: 12.732 | D116: 2.934349284 | E116: 3.116773679 | F116: =F115 -> -9.07198215 | G116: =G115 -> 9.25 | H116: =H115 -> 5.942339006 | I116: =I115 -> 2.75 | J116: 2.75 | K116: 1.2 | L116: 0.1326537685 | M116: 0 | N116: =C116 -> 12.732 | O116: 20 | P116: 0 | Q116: =C116/2 -> 6.366 | R116: 2 | S116: 0 | T116: 0 | U116: 0 | V116: 12 | W116: =IF($W$17, IF(Bode!$AT$49=0, (J111+J116*($X$16-1))/($X$16), (J106+J111*($X$16-1))/($X$16)), J116) -> 2.75 | BA116: =BA115 -> 0.0001326537685 | BC116: =BC115 -> 12.732 | BD116: =BD115 -> 2.934349284 | BE116: =BE115 -> 3.116773679
A117: 0.0001388888889 | B117: 36 | C117: 11.66846175 | D117: 3.069180439 | E117: 3.230751478 | F117: =EXP(-(A117-A116)/$T$2)*(F116+V117-(E117+E116)/2)+((E117+E116)/2-V117) -> -8.938934867 | G117: =MINA(MAXA((EXP(-(A117-A116)/$T$2)*(-(E117+E116)/2+V117+F116)+(EXP(-(A117-A116)/$T$4)*((E117+E116)/2-V117-F116+(-$T$3/$T$4+$T$3/$T$2)*G116)))*$T$7+(1-EXP(-(A117-A116)/$T$4))*(H116+$T$4/$T$5*((E117+E116)/2-V117)),V117-MINA($V$8,$V$9/$V$10*A117)),V117) -> 9.25 | H117: =EXP(-(A117-A116)/$T$6)*(H116-G117)+G117 -> 6.094367013 | I117: =V117-G117 -> 2.75 | J117: 2.75 | K117: 1.2 | L117: 0.1388888889 | M117: 0 | N117: =C117 -> 11.66846175 | O117: 20 | P117: 0 | Q117: =C117/2 -> 5.834230873 | R117: 2 | S117: 0 | T117: 0 | U117: 0 | V117: 12 | W117: =IF($W$17, IF(Bode!$AT$49=0, (J112+J117*($X$16-1))/($X$16), (J107+J112*($X$16-1))/($X$16)), J117) -> 2.75 | BA117: =MINA(+BA115+BC115/((+BD115*K114/(K114+$BC$5) +($BC$3+ ($BC$5*K114)/ ($BC$5+K114) +$BC$7+$BC$12)*BC115+$BC$6)/$BC$2), BA114+1/$V$3) -> 0.0001388888889 | BC117: =BC115+(BA117-BA115)*(-BD115*K114/(K114+$BC$5) -($BC$3+ ($BC$5*K117)/($BC$5+K117) +$BC$7+$BC$12)*BC116-$BC$6)/$BC$2 -> 11.66846175 | BD117: =BD115+(BA117-BA115)*(((BC117+BC115)*K117/2-BD115)/($BC$5+K117))/$BC$4 -> 3.069180439 | BE117: =BD117*(K117/($BC$5+K117))+BC117*($BC$5*K117/($BC$5+K117)) -> 3.230751478
A118: 0.0001388888889 | B118: 36 | C118: 11.66846175 | D118: 3.069180439 | E118: 3.230751478 | F118: =EXP(-(A118-A117)/$T$2)*(F117+V118-(E118+E117)/2)+((E118+E117)/2-V118) -> -8.938934867 | G118: =MINA(MAXA((EXP(-(A118-A117)/$T$2)*(-(E118+E117)/2+V118+F117)+(EXP(-(A118-A117)/$T$4)*((E118+E117)/2-V118-F117+(-$T$3/$T$4+$T$3/$T$2)*G117)))*$T$7+(1-EXP(-(A118-A117)/$T$4))*(H117+$T$4/$T$5*((E118+E117)/2-V118)),V118-MINA($V$8,$V$9/$V$10*A118)),V118) -> 9.25 | H118: =EXP(-(A118-A117)/$T$6)*(H117-G118)+G118 -> 6.094367013 | I118: =V118-G118 -> 2.75 | J118: 2.75 | K118: 1.2 | L118: 0.1388888889 | M118: 0 | N118: =C118 -> 11.66846175 | O118: 20 | P118: 0 | Q118: =C118/2 -> 5.834230873 | R118: 2 | S118: 0 | T118: 0 | U118: 0 | V118: 12 | W118: =IF($W$17, IF(Bode!$AT$49=0, (J113+J118*($X$16-1))/($X$16), (J108+J113*($X$16-1))/($X$16)), J118) -> 2.75 | BA118: =BA114+1/$V$3 -> 0.0001388888889 | BC118: =BC117 -> 11.66846175 | BD118: =BD117+(BA118-BA117)*(-BD117/($BC$5+K118))/$BC$4 -> 3.069180439 | BE118: =BD118*(K118/($BC$5+K118))+BC118*($BC$5*K118/($BC$5+K118)) -> 3.230751478
A119: 0.0001388888889 | B119: 36 | C119: 11.66846175 | D119: 3.069180439 | E119: 3.230751478 | F119: =F118 -> -8.938934867 | G119: =G118 -> 9.25 | H119: =H118 -> 6.094367013 | I119: =I118 -> 2.75 | J119: 2.75 | K119: 1.2 | L119: 0.1388888889 | M119: =C119/$M$14 -> 11.66846175 | N119: 0 | O119: 21 | P119: =C119 -> 11.66846175 | Q119: =P119 -> 11.66846175 | R119: 2 | S119: =C119/$M$14*$O$14 -> 11.66846175 | T119: 0 | U119: =M119 -> 11.66846175 | V119: 12 | W119: =IF($W$17, IF(Bode!$AT$49=0, (J114+J119*($X$16-1))/($X$16), (J109+J114*($X$16-1))/($X$16)), J119) -> 2.75 | BA119: =BA118 -> 0.0001388888889 | BC119: =BC118 -> 11.66846175 | BD119: =BD118 -> 3.069180439 | BE119: =BE118 -> 3.230751478
A120: 0.0001396274033 | B120: 36 | C120: 12.732 | D120: 3.084966475 | E120: 3.265165 | F120: =EXP(-(A120-A119)/$T$2)*(F119+V120-E120)+(E120-V120) -> -8.920932706 | G120: =MINA(MAXA((EXP(-(A120-A119)/$T$2)*(-E120+V120+F119)+(EXP(-(A120-A119)/$T$4)*(E120-V120-F119+(-$T$3/$T$4+$T$3/$T$2)*G119)))*$T$7+(1-EXP(-(A120-A119)/$T$4))*(H119+$T$4/$T$5*(E120-V120)),V120-MINA($V$8,$V$9/$V$10*A120)),V120) -> 9.25 | H120: =EXP(-(A120-A119)/$T$6)*(H119-G120)+G120 -> 6.11190464 | I120: =V120-G120 -> 2.75 | J120: 2.75 | K120: 1.2 | L120: 0.1396274033 | M120: =C120/$M$14 +(B120/$BC$14*(A120-A119))*$M$12 -> 12.732 | N120: 0 | O120: 21 | P120: =C120 -> 12.732 | Q120: =P120 -> 12.732 | R120: 2 | S120: =C120/$M$14*$O$14 -> 12.732 | T120: 0 | U120: =M120 -> 12.732 | V120: 12 | W120: =IF($W$17, IF(Bode!$AT$49=0, (J115+J120*($X$16-1))/($X$16), (J110+J115*($X$16-1))/($X$16)), J120) -> 2.75 | BA120: =MAXA(BA119, MINA(+BA119+( W119 -$V$5*BC119)/((R120+$BC$13*B120+0.000001)*$V$3+((B119-$BC$8)/$BC$10-BD119-$BE$6-($BC$3+$BC$5+$BC$12+$BE$7+($BC$11+$BC$9)/$BC$10^2)*BD119/K119)*$V$5/$BC$2), +BA119+($V$7*$BC$10-BC119)/((B119-$BC$8)/$BC$10- BD119*K119/(K119+$BC$5) -$BE$6-($BC$3+ ($BC$5*K119)/($BC$5+K119) +$BC$12+$BE$7+($BC$11+$BC$9)/$BC$10^2)*BC119) *$BC$2, BA119+$V$4/$V$3)) -> 0.0001396274033 | BC120: =BC119+(BA120-BA119)*((B119-$BC$8)/$BC$10- BD119*K119/(K119+$BC$5) -$BE$6-($BC$3+ ($BC$5*K119)/($BC$5+K119) +$BC$12+$BE$7+($BC$9+$BC$11)/$BC$10^2)* BC119 ) /$BC$2 -> 12.732 | BD120: =BD119+(BA120-BA119)*(((BC120+BC119)*K120/2-BD119)/($BC$5+K120))/$BC$4 -> 3.084966475 | BE120: =BD120*(K120/($BC$5+K120))+BC120*($BC$5*K120/($BC$5+K120)) -> 3.265165 | CG120: =CC119+(CF120)*((B119-$CC$8)/$CC$10-($CC$3+$CC$9)/$CC$10^2*CC119)/$CC$2 -> 0 | CH120: =(CC119+CG120)/2 -> 0
A121: 0.0001396274033 | B121: 36 | C121: 12.732 | D121: 3.084966475 | E121: 3.265165 | F121: =F120 -> -8.920932706 | G121: =G120 -> 9.25 | H121: =H120 -> 6.11190464 | I121: =I120 -> 2.75 | J121: 2.75 | K121: 1.2 | L121: 0.1396274033 | M121: 0 | N121: =C121 -> 12.732 | O121: 21 | P121: 0 | Q121: =C121/2 -> 6.366 | R121: 2 | S121: 0 | T121: 0 | U121: 0 | V121: 12 | W121: =IF($W$17, IF(Bode!$AT$49=0, (J116+J121*($X$16-1))/($X$16), (J111+J116*($X$16-1))/($X$16)), J121) -> 2.75 | BA121: =BA120 -> 0.0001396274033 | BC121: =BC120 -> 12.732 | BD121: =BD120 -> 3.084966475 | BE121: =BE120 -> 3.265165
A122: 0.0001458333333 | B122: 36 | C122: 11.63199589 | D122: 3.217188855 | E122: 3.375925892 | F122: =EXP(-(A122-A121)/$T$2)*(F121+V122-(E122+E121)/2)+((E122+E121)/2-V122) -> -8.790600277 | G122: =MINA(MAXA((EXP(-(A122-A121)/$T$2)*(-(E122+E121)/2+V122+F121)+(EXP(-(A122-A121)/$T$4)*((E122+E121)/2-V122-F121+(-$T$3/$T$4+$T$3/$T$2)*G121)))*$T$7+(1-EXP(-(A122-A121)/$T$4))*(H121+$T$4/$T$5*((E122+E121)/2-V122)),V122-MINA($V$8,$V$9/$V$10*A122)),V122) -> 9.25 | H122: =EXP(-(A122-A121)/$T$6)*(H121-G122)+G122 -> 6.255479446 | I122: =V122-G122 -> 2.75 | J122: 2.75 | K122: 1.2 | L122: 0.1458333333 | M122: 0 | N122: =C122 -> 11.63199589 | O122: 21 | P122: 0 | Q122: =C122/2 -> 5.815997946 | R122: 2 | S122: 0 | T122: 0 | U122: 0 | V122: 12 | W122: =IF($W$17, IF(Bode!$AT$49=0, (J117+J122*($X$16-1))/($X$16), (J112+J117*($X$16-1))/($X$16)), J122) -> 2.75 | BA122: =MINA(+BA120+BC120/((+BD120*K119/(K119+$BC$5) +($BC$3+ ($BC$5*K119)/ ($BC$5+K119) +$BC$7+$BC$12)*BC120+$BC$6)/$BC$2), BA119+1/$V$3) -> 0.0001458333333 | BC122: =BC120+(BA122-BA120)*(-BD120*K119/(K119+$BC$5) -($BC$3+ ($BC$5*K122)/($BC$5+K122) +$BC$7+$BC$12)*BC121-$BC$6)/$BC$2 -> 11.63199589 | BD122: =BD120+(BA122-BA120)*(((BC122+BC120)*K122/2-BD120)/($BC$5+K122))/$BC$4 -> 3.217188855 | BE122: =BD122*(K122/($BC$5+K122))+BC122*($BC$5*K122/($BC$5+K122)) -> 3.375925892
A123: 0.0001458333333 | B123: 36 | C123: 11.63199589 | D123: 3.217188855 | E123: 3.375925892 | F123: =EXP(-(A123-A122)/$T$2)*(F122+V123-(E123+E122)/2)+((E123+E122)/2-V123) -> -8.790600277 | G123: =MINA(MAXA((EXP(-(A123-A122)/$T$2)*(-(E123+E122)/2+V123+F122)+(EXP(-(A123-A122)/$T$4)*((E123+E122)/2-V123-F122+(-$T$3/$T$4+$T$3/$T$2)*G122)))*$T$7+(1-EXP(-(A123-A122)/$T$4))*(H122+$T$4/$T$5*((E123+E122)/2-V123)),V123-MINA($V$8,$V$9/$V$10*A123)),V123) -> 9.25 | H123: =EXP(-(A123-A122)/$T$6)*(H122-G123)+G123 -> 6.255479446 | I123: =V123-G123 -> 2.75 | J123: 2.75 | K123: 1.2 | L123: 0.1458333333 | M123: 0 | N123: =C123 -> 11.63199589 | O123: 21 | P123: 0 | Q123: =C123/2 -> 5.815997946 | R123: 2 | S123: 0 | T123: 0 | U123: 0 | V123: 12 | W123: =IF($W$17, IF(Bode!$AT$49=0, (J118+J123*($X$16-1))/($X$16), (J113+J118*($X$16-1))/($X$16)), J123) -> 2.75 | BA123: =BA119+1/$V$3 -> 0.0001458333333 | BC123: =BC122 -> 11.63199589 | BD123: =BD122+(BA123-BA122)*(-BD122/($BC$5+K123))/$BC$4 -> 3.217188855 | BE123: =BD123*(K123/($BC$5+K123))+BC123*($BC$5*K123/($BC$5+K123)) -> 3.375925892
A124: 0.0001458333333 | B124: 36 | C124: 11.63199589 | D124: 3.217188855 | E124: 3.375925892 | F124: =F123 -> -8.790600277 | G124: =G123 -> 9.25 | H124: =H123 -> 6.255479446 | I124: =I123 -> 2.75 | J124: 2.75 | K124: 1.2 | L124: 0.1458333333 | M124: =C124/$M$14*$O$14 -> 11.63199589 | N124: 0 | O124: 22 | P124: =C124 -> 11.63199589 | Q124: 0 | R124: 2 | S124: =C124/$M$14 -> 11.63199589 | T124: 0 | U124: 0 | V124: 12 | W124: =IF($W$17, IF(Bode!$AT$49=0, (J119+J124*($X$16-1))/($X$16), (J114+J119*($X$16-1))/($X$16)), J124) -> 2.75 | BA124: =BA123 -> 0.0001458333333 | BC124: =BC123 -> 11.63199589 | BD124: =BD123 -> 3.217188855 | BE124: =BE123 -> 3.375925892
A125: 0.0001466005927 | B125: 36 | C125: 12.732 | D125: 3.23334853 | E125: 3.411354217 | F125: =EXP(-(A125-A124)/$T$2)*(F124+V125-E125)+(E125-V125) -> -8.772126724 | G125: =MINA(MAXA((EXP(-(A125-A124)/$T$2)*(-E125+V125+F124)+(EXP(-(A125-A124)/$T$4)*(E125-V125-F124+(-$T$3/$T$4+$T$3/$T$2)*G124)))*$T$7+(1-EXP(-(A125-A124)/$T$4))*(H124+$T$4/$T$5*(E125-V125)),V125-MINA($V$8,$V$9/$V$10*A125)),V125) -> 9.25 | H125: =EXP(-(A125-A124)/$T$6)*(H124-G125)+G125 -> 6.272767565 | I125: =V125-G125 -> 2.75 | J125: 2.75 | K125: 1.2 | L125: 0.1466005927 | M125: =(C125/$M$14 +(B125/$BC$14*(A125-A124))*$M$12)*$O$14 -> 12.732 | N125: 0 | O125: 22 | P125: =C125 -> 12.732 | Q125: 0 | R125: 2 | S125: =C125/$M$14 +(B125/$BC$14*(A125-A124))*$M$12 -> 12.732 | T125: 0 | U125: 0 | V125: 12 | W125: =IF($W$17, IF(Bode!$AT$49=0, (J120+J125*($X$16-1))/($X$16), (J115+J120*($X$16-1))/($X$16)), J125) -> 2.75 | BA125: =MAXA(BA124, MINA(+BA124+( W124 -$V$5*BC124)/((R125+$BC$13*B125+0.000001)*$V$3+((B124-$BC$8)/$BC$10-BD124-$BE$6-($BC$3+$BC$5+$BC$12+$BE$7+($BC$11+$BC$9)/$BC$10^2)*BD124/K124)*$V$5/$BC$2), +BA124+($V$7*$BC$10-BC124)/((B124-$BC$8)/$BC$10- BD124*K124/(K124+$BC$5) -$BE$6-($BC$3+ ($BC$5*K124)/($BC$5+K124) +$BC$12+$BE$7+($BC$11+$BC$9)/$BC$10^2)*BC124) *$BC$2, BA124+$V$4/$V$3)) -> 0.0001466005927 | BC125: =BC124+(BA125-BA124)*((B124-$BC$8)/$BC$10- BD124*K124/(K124+$BC$5) -$BE$6-($BC$3+ ($BC$5*K124)/($BC$5+K124) +$BC$12+$BE$7+($BC$9+$BC$11)/$BC$10^2)* BC124 ) /$BC$2 -> 12.732 | BD125: =BD124+(BA125-BA124)*(((BC125+BC124)*K125/2-BD124)/($BC$5+K125))/$BC$4 -> 3.23334853 | BE125: =BD125*(K125/($BC$5+K125))+BC125*($BC$5*K125/($BC$5+K125)) -> 3.411354217 | CG125: =CC124+(CF125)*((B124-$CC$8)/$CC$10-($CC$3+$CC$9)/$CC$10^2*CC124)/$CC$2 -> 0 | CH125: =(CC124+CG125)/2 -> 0
A126: 0.0001466005927 | B126: 36 | C126: 12.732 | D126: 3.23334853 | E126: 3.411354217 | F126: =F125 -> -8.772126724 | G126: =G125 -> 9.25 | H126: =H125 -> 6.272767565 | I126: =I125 -> 2.75 | J126: 2.75 | K126: 1.2 | L126: 0.1466005927 | M126: 0 | N126: =C126 -> 12.732 | O126: 22 | P126: 0 | Q126: =C126/2 -> 6.366 | R126: 2 | S126: 0 | T126: 0 | U126: 0 | V126: 12 | W126: =IF($W$17, IF(Bode!$AT$49=0, (J121+J126*($X$16-1))/($X$16), (J116+J121*($X$16-1))/($X$16)), J126) -> 2.75 | BA126: =BA125 -> 0.0001466005927 | BC126: =BC125 -> 12.732 | BD126: =BD125 -> 3.23334853 | BE126: =BE125 -> 3.411354217
A127: 0.0001527777778 | B127: 36 | C127: 11.59645017 | D127: 3.363021893 | E127: 3.518973395 | F127: =EXP(-(A127-A126)/$T$2)*(F126+V127-(E127+E126)/2)+((E127+E126)/2-V127) -> -8.644447709 | G127: =MINA(MAXA((EXP(-(A127-A126)/$T$2)*(-(E127+E126)/2+V127+F126)+(EXP(-(A127-A126)/$T$4)*((E127+E126)/2-V127-F126+(-$T$3/$T$4+$T$3/$T$2)*G126)))*$T$7+(1-EXP(-(A127-A126)/$T$4))*(H126+$T$4/$T$5*((E127+E126)/2-V127)),V127-MINA($V$8,$V$9/$V$10*A127)),V127) -> 9.25 | H127: =EXP(-(A127-A126)/$T$6)*(H126-G127)+G127 -> 6.408366201 | I127: =V127-G127 -> 2.75 | J127: 2.75 | K127: 1.2 | L127: 0.1527777778 | M127: 0 | N127: =C127 -> 11.59645017 | O127: 22 | P127: 0 | Q127: =C127/2 -> 5.798225084 | R127: 2 | S127: 0 | T127: 0 | U127: 0 | V127: 12 | W127: =IF($W$17, IF(Bode!$AT$49=0, (J122+J127*($X$16-1))/($X$16), (J117+J122*($X$16-1))/($X$16)), J127) -> 2.75 | BA127: =MINA(+BA125+BC125/((+BD125*K124/(K124+$BC$5) +($BC$3+ ($BC$5*K124)/ ($BC$5+K124) +$BC$7+$BC$12)*BC125+$BC$6)/$BC$2), BA124+1/$V$3) -> 0.0001527777778 | BC127: =BC125+(BA127-BA125)*(-BD125*K124/(K124+$BC$5) -($BC$3+ ($BC$5*K127)/($BC$5+K127) +$BC$7+$BC$12)*BC126-$BC$6)/$BC$2 -> 11.59645017 | BD127: =BD125+(BA127-BA125)*(((BC127+BC125)*K127/2-BD125)/($BC$5+K127))/$BC$4 -> 3.363021893 | BE127: =BD127*(K127/($BC$5+K127))+BC127*($BC$5*K127/($BC$5+K127)) -> 3.518973395
A128: 0.0001527777778 | B128: 36 | C128: 11.59645017 | D128: 3.363021893 | E128: 3.518973395 | F128: =EXP(-(A128-A127)/$T$2)*(F127+V128-(E128+E127)/2)+((E128+E127)/2-V128) -> -8.644447709 | G128: =MINA(MAXA((EXP(-(A128-A127)/$T$2)*(-(E128+E127)/2+V128+F127)+(EXP(-(A128-A127)/$T$4)*((E128+E127)/2-V128-F127+(-$T$3/$T$4+$T$3/$T$2)*G127)))*$T$7+(1-EXP(-(A128-A127)/$T$4))*(H127+$T$4/$T$5*((E128+E127)/2-V128)),V128-MINA($V$8,$V$9/$V$10*A128)),V128) -> 9.25 | H128: =EXP(-(A128-A127)/$T$6)*(H127-G128)+G128 -> 6.408366201 | I128: =V128-G128 -> 2.75 | J128: 2.75 | K128: 1.2 | L128: 0.1527777778 | M128: 0 | N128: =C128 -> 11.59645017 | O128: 22 | P128: 0 | Q128: =C128/2 -> 5.798225084 | R128: 2 | S128: 0 | T128: 0 | U128: 0 | V128: 12 | W128: =IF($W$17, IF(Bode!$AT$49=0, (J123+J128*($X$16-1))/($X$16), (J118+J123*($X$16-1))/($X$16)), J128) -> 2.75 | BA128: =BA124+1/$V$3 -> 0.0001527777778 | BC128: =BC127 -> 11.59645017 | BD128: =BD127+(BA128-BA127)*(-BD127/($BC$5+K128))/$BC$4 -> 3.363021893 | BE128: =BD128*(K128/($BC$5+K128))+BC128*($BC$5*K128/($BC$5+K128)) -> 3.518973395
A129: 0.0001527777778 | B129: 36 | C129: 11.59645017 | D129: 3.363021893 | E129: 3.518973395 | F129: =F128 -> -8.644447709 | G129: =G128 -> 9.25 | H129: =H128 -> 6.408366201 | I129: =I128 -> 2.75 | J129: 2.75 | K129: 1.2 | L129: 0.1527777778 | M129: =C129/$M$14 -> 11.59645017 | N129: 0 | O129: 23 | P129: =C129 -> 11.59645017 | Q129: =P129 -> 11.59645017 | R129: 2 | S129: =C129/$M$14*$O$14 -> 11.59645017 | T129: 0 | U129: =M129 -> 11.59645017 | V129: 12 | W129: =IF($W$17, IF(Bode!$AT$49=0, (J124+J129*($X$16-1))/($X$16), (J119+J124*($X$16-1))/($X$16)), J129) -> 2.75 | BA129: =BA128 -> 0.0001527777778 | BC129: =BC128 -> 11.59645017 | BD129: =BD128 -> 3.363021893 | BE129: =BE128 -> 3.518973395
A130: 0.0001535733443 | B130: 36 | C130: 12.732 | D130: 3.379532093 | E130: 3.555377432 | F130: =EXP(-(A130-A129)/$T$2)*(F129+V130-E130)+(E130-V130) -> -8.625527526 | G130: =MINA(MAXA((EXP(-(A130-A129)/$T$2)*(-E130+V130+F129)+(EXP(-(A130-A129)/$T$4)*(E130-V130-F129+(-$T$3/$T$4+$T$3/$T$2)*G129)))*$T$7+(1-EXP(-(A130-A129)/$T$4))*(H129+$T$4/$T$5*(E130-V130)),V130-MINA($V$8,$V$9/$V$10*A130)),V130) -> 9.25 | H130: =EXP(-(A130-A129)/$T$6)*(H129-G130)+G130 -> 6.425375114 | I130: =V130-G130 -> 2.75 | J130: 2.75 | K130: 1.2 | L130: 0.1535733443 | M130: =C130/$M$14 +(B130/$BC$14*(A130-A129))*$M$12 -> 12.732 | N130: 0 | O130: 23 | P130: =C130 -> 12.732 | Q130: =P130 -> 12.732 | R130: 2 | S130: =C130/$M$14*$O$14 -> 12.732 | T130: 0 | U130: =M130 -> 12.732 | V130: 12 | W130: =IF($W$17, IF(Bode!$AT$49=0, (J125+J130*($X$16-1))/($X$16), (J120+J125*($X$16-1))/($X$16)), J130) -> 2.75 | BA130: =MAXA(BA129, MINA(+BA129+( W129 -$V$5*BC129)/((R130+$BC$13*B130+0.000001)*$V$3+((B129-$BC$8)/$BC$10-BD129-$BE$6-($BC$3+$BC$5+$BC$12+$BE$7+($BC$11+$BC$9)/$BC$10^2)*BD129/K129)*$V$5/$BC$2), +BA129+($V$7*$BC$10-BC129)/((B129-$BC$8)/$BC$10- BD129*K129/(K129+$BC$5) -$BE$6-($BC$3+ ($BC$5*K129)/($BC$5+K129) +$BC$12+$BE$7+($BC$11+$BC$9)/$BC$10^2)*BC129) *$BC$2, BA129+$V$4/$V$3)) -> 0.0001535733443 | BC130: =BC129+(BA130-BA129)*((B129-$BC$8)/$BC$10- BD129*K129/(K129+$BC$5) -$BE$6-($BC$3+ ($BC$5*K129)/($BC$5+K129) +$BC$12+$BE$7+($BC$9+$BC$11)/$BC$10^2)* BC129 ) /$BC$2 -> 12.732 | BD130: =BD129+(BA130-BA129)*(((BC130+BC129)*K130/2-BD129)/($BC$5+K130))/$BC$4 -> 3.379532093 | BE130: =BD130*(K130/($BC$5+K130))+BC130*($BC$5*K130/($BC$5+K130)) -> 3.555377432 | CG130: =CC129+(CF130)*((B129-$CC$8)/$CC$10-($CC$3+$CC$9)/$CC$10^2*CC129)/$CC$2 -> 0 | CH130: =(CC129+CG130)/2 -> 0
A131: 0.0001535733443 | B131: 36 | C131: 12.732 | D131: 3.379532093 | E131: 3.555377432 | F131: =F130 -> -8.625527526 | G131: =G130 -> 9.25 | H131: =H130 -> 6.425375114 | I131: =I130 -> 2.75 | J131: 2.75 | K131: 1.2 | L131: 0.1535733443 | M131: 0 | N131: =C131 -> 12.732 | O131: 23 | P131: 0 | Q131: =C131/2 -> 6.366 | R131: 2 | S131: 0 | T131: 0 | U131: 0 | V131: 12 | W131: =IF($W$17, IF(Bode!$AT$49=0, (J126+J131*($X$16-1))/($X$16), (J121+J126*($X$16-1))/($X$16)), J131) -> 2.75 | BA131: =BA130 -> 0.0001535733443 | BC131: =BC130 -> 12.732 | BD131: =BD130 -> 3.379532093 | BE131: =BE130 -> 3.555377432
A132: 0.0001597222222 | B132: 36 | C132: 11.56179873 | D132: 3.506714581 | E132: 3.659928038 | F132: =EXP(-(A132-A131)/$T$2)*(F131+V132-(E132+E131)/2)+((E132+E131)/2-V132) -> -8.500442028 | G132: =MINA(MAXA((EXP(-(A132-A131)/$T$2)*(-(E132+E131)/2+V132+F131)+(EXP(-(A132-A131)/$T$4)*((E132+E131)/2-V132-F131+(-$T$3/$T$4+$T$3/$T$2)*G131)))*$T$7+(1-EXP(-(A132-A131)/$T$4))*(H131+$T$4/$T$5*((E132+E131)/2-V132)),V132-MINA($V$8,$V$9/$V$10*A132)),V132) -> 9.25 | H132: =EXP(-(A132-A131)/$T$6)*(H131-G132)+G132 -> 6.553447247 | I132: =V132-G132 -> 2.75 | J132: 2.75 | K132: 1.2 | L132: 0.1597222222 | M132: 0 | N132: =C132 -> 11.56179873 | O132: 23 | P132: 0 | Q132: =C132/2 -> 5.780899364 | R132: 2 | S132: 0 | T132: 0 | U132: 0 | V132: 12 | W132: =IF($W$17, IF(Bode!$AT$49=0, (J127+J132*($X$16-1))/($X$16), (J122+J127*($X$16-1))/($X$16)), J132) -> 2.75 | BA132: =MINA(+BA130+BC130/((+BD130*K129/(K129+$BC$5) +($BC$3+ ($BC$5*K129)/ ($BC$5+K129) +$BC$7+$BC$12)*BC130+$BC$6)/$BC$2), BA129+1/$V$3) -> 0.0001597222222 | BC132: =BC130+(BA132-BA130)*(-BD130*K129/(K129+$BC$5) -($BC$3+ ($BC$5*K132)/($BC$5+K132) +$BC$7+$BC$12)*BC131-$BC$6)/$BC$2 -> 11.56179873 | BD132: =BD130+(BA132-BA130)*(((BC132+BC130)*K132/2-BD130)/($BC$5+K132))/$BC$4 -> 3.506714581 | BE132: =BD132*(K132/($BC$5+K132))+BC132*($BC$5*K132/($BC$5+K132)) -> 3.659928038
A133: 0.0001597222222 | B133: 36 | C133: 11.56179873 | D133: 3.506714581 | E133: 3.659928038 | F133: =EXP(-(A133-A132)/$T$2)*(F132+V133-(E133+E132)/2)+((E133+E132)/2-V133) -> -8.500442028 | G133: =MINA(MAXA((EXP(-(A133-A132)/$T$2)*(-(E133+E132)/2+V133+F132)+(EXP(-(A133-A132)/$T$4)*((E133+E132)/2-V133-F132+(-$T$3/$T$4+$T$3/$T$2)*G132)))*$T$7+(1-EXP(-(A133-A132)/$T$4))*(H132+$T$4/$T$5*((E133+E132)/2-V133)),V133-MINA($V$8,$V$9/$V$10*A133)),V133) -> 9.25 | H133: =EXP(-(A133-A132)/$T$6)*(H132-G133)+G133 -> 6.553447247 | I133: =V133-G133 -> 2.75 | J133: 2.75 | K133: 1.2 | L133: 0.1597222222 | M133: 0 | N133: =C133 -> 11.56179873 | O133: 23 | P133: 0 | Q133: =C133/2 -> 5.780899364 | R133: 2 | S133: 0 | T133: 0 | U133: 0 | V133: 12 | W133: =IF($W$17, IF(Bode!$AT$49=0, (J128+J133*($X$16-1))/($X$16), (J123+J128*($X$16-1))/($X$16)), J133) -> 2.75 | BA133: =BA129+1/$V$3 -> 0.0001597222222 | BC133: =BC132 -> 11.56179873 | BD133: =BD132+(BA133-BA132)*(-BD132/($BC$5+K133))/$BC$4 -> 3.506714581 | BE133: =BD133*(K133/($BC$5+K133))+BC133*($BC$5*K133/($BC$5+K133)) -> 3.659928038
A134: 0.0001597222222 | B134: 36 | C134: 11.56179873 | D134: 3.506714581 | E134: 3.659928038 | F134: =F133 -> -8.500442028 | G134: =G133 -> 9.25 | H134: =H133 -> 6.553447247 | I134: =I133 -> 2.75 | J134: 2.75 | K134: 1.2 | L134: 0.1597222222 | M134: =C134/$M$14*$O$14 -> 11.56179873 | N134: 0 | O134: 24 | P134: =C134 -> 11.56179873 | Q134: 0 | R134: 2 | S134: =C134/$M$14 -> 11.56179873 | T134: 0 | U134: 0 | V134: 12 | W134: =IF($W$17, IF(Bode!$AT$49=0, (J129+J134*($X$16-1))/($X$16), (J124+J129*($X$16-1))/($X$16)), J134) -> 2.75 | BA134: =BA133 -> 0.0001597222222 | BC134: =BC133 -> 11.56179873 | BD134: =BD133 -> 3.506714581 | BE134: =BE133 -> 3.659928038
A135: 0.0001605456658 | B135: 36 | C135: 12.732 | D135: 3.523553103 | E135: 3.697270052 | F135: =EXP(-(A135-A134)/$T$2)*(F134+V135-E135)+(E135-V135) -> -8.481099125 | G135: =MINA(MAXA((EXP(-(A135-A134)/$T$2)*(-E135+V135+F134)+(EXP(-(A135-A134)/$T$4)*(E135-V135-F134+(-$T$3/$T$4+$T$3/$T$2)*G134)))*$T$7+(1-EXP(-(A135-A134)/$T$4))*(H134+$T$4/$T$5*(E135-V135)),V135-MINA($V$8,$V$9/$V$10*A135)),V135) -> 9.25 | H135: =EXP(-(A135-A134)/$T$6)*(H134-G135)+G135 -> 6.570151578 | I135: =V135-G135 -> 2.75 | J135: 2.75 | K135: 1.2 | L135: 0.1605456658 | M135: =(C135/$M$14 +(B135/$BC$14*(A135-A134))*$M$12)*$O$14 -> 12.732 | N135: 0 | O135: 24 | P135: =C135 -> 12.732 | Q135: 0 | R135: 2 | S135: =C135/$M$14 +(B135/$BC$14*(A135-A134))*$M$12 -> 12.732 | T135: 0 | U135: 0 | V135: 12 | W135: =IF($W$17, IF(Bode!$AT$49=0, (J130+J135*($X$16-1))/($X$16), (J125+J130*($X$16-1))/($X$16)), J135) -> 2.75 | BA135: =MAXA(BA134, MINA(+BA134+( W134 -$V$5*BC134)/((R135+$BC$13*B135+0.000001)*$V$3+((B134-$BC$8)/$BC$10-BD134-$BE$6-($BC$3+$BC$5+$BC$12+$BE$7+($BC$11+$BC$9)/$BC$10^2)*BD134/K134)*$V$5/$BC$2), +BA134+($V$7*$BC$10-BC134)/((B134-$BC$8)/$BC$10- BD134*K134/(K134+$BC$5) -$BE$6-($BC$3+ ($BC$5*K134)/($BC$5+K134) +$BC$12+$BE$7+($BC$11+$BC$9)/$BC$10^2)*BC134) *$BC$2, BA134+$V$4/$V$3)) -> 0.0001605456658 | BC135: =BC134+(BA135-BA134)*((B134-$BC$8)/$BC$10- BD134*K134/(K134+$BC$5) -$BE$6-($BC$3+ ($BC$5*K134)/($BC$5+K134) +$BC$12+$BE$7+($BC$9+$BC$11)/$BC$10^2)* BC134 ) /$BC$2 -> 12.732 | BD135: =BD134+(BA135-BA134)*(((BC135+BC134)*K135/2-BD134)/($BC$5+K135))/$BC$4 -> 3.523553103 | BE135: =BD135*(K135/($BC$5+K135))+BC135*($BC$5*K135/($BC$5+K135)) -> 3.697270052 | CG135: =CC134+(CF135)*((B134-$CC$8)/$CC$10-($CC$3+$CC$9)/$CC$10^2*CC134)/$CC$2 -> 0 | CH135: =(CC134+CG135)/2 -> 0
A136: 0.0001605456658 | B136: 36 | C136: 12.732 | D136: 3.523553103 | E136: 3.697270052 | F136: =F135 -> -8.481099125 | G136: =G135 -> 9.25 | H136: =H135 -> 6.570151578 | I136: =I135 -> 2.75 | J136: 2.75 | K136: 1.2 | L136: 0.1605456658 | M136: 0 | N136: =C136 -> 12.732 | O136: 24 | P136: 0 | Q136: =C136/2 -> 6.366 | R136: 2 | S136: 0 | T136: 0 | U136: 0 | V136: 12 | W136: =IF($W$17, IF(Bode!$AT$49=0, (J131+J136*($X$16-1))/($X$16), (J126+J131*($X$16-1))/($X$16)), J136) -> 2.75 | BA136: =BA135 -> 0.0001605456658 | BC136: =BC135 -> 12.732 | BD136: =BD135 -> 3.523553103 | BE136: =BE135 -> 3.697270052
A137: 0.0001666666667 | B137: 36 | C137: 11.52801652 | D137: 3.648301292 | E137: 3.798823241 | F137: =EXP(-(A137-A136)/$T$2)*(F136+V137-(E137+E136)/2)+((E137+E136)/2-V137) -> -8.358548751 | G137: =MINA(MAXA((EXP(-(A137-A136)/$T$2)*(-(E137+E136)/2+V137+F136)+(EXP(-(A137-A136)/$T$4)*((E137+E136)/2-V137-F136+(-$T$3/$T$4+$T$3/$T$2)*G136)))*$T$7+(1-EXP(-(A137-A136)/$T$4))*(H136+$T$4/$T$5*((E137+E136)/2-V137)),V137-MINA($V$8,$V$9/$V$10*A137)),V137) -> 9.25 | H137: =EXP(-(A137-A136)/$T$6)*(H136-G137)+G137 -> 6.691121107 | I137: =V137-G137 -> 2.75 | J137: 2.75 | K137: 1.2 | L137: 0.1666666667 | M137: 0 | N137: =C137 -> 11.52801652 | O137: 24 | P137: 0 | Q137: =C137/2 -> 5.764008262 | R137: 2 | S137: 0 | T137: 0 | U137: 0 | V137: 12 | W137: =IF($W$17, IF(Bode!$AT$49=0, (J132+J137*($X$16-1))/($X$16), (J127+J132*($X$16-1))/($X$16)), J137) -> 2.75 | BA137: =MINA(+BA135+BC135/((+BD135*K134/(K134+$BC$5) +($BC$3+ ($BC$5*K134)/ ($BC$5+K134) +$BC$7+$BC$12)*BC135+$BC$6)/$BC$2), BA134+1/$V$3) -> 0.0001666666667 | BC137: =BC135+(BA137-BA135)*(-BD135*K134/(K134+$BC$5) -($BC$3+ ($BC$5*K137)/($BC$5+K137) +$BC$7+$BC$12)*BC136-$BC$6)/$BC$2 -> 11.52801652 | BD137: =BD135+(BA137-BA135)*(((BC137+BC135)*K137/2-BD135)/($BC$5+K137))/$BC$4 -> 3.648301292 | BE137: =BD137*(K137/($BC$5+K137))+BC137*($BC$5*K137/($BC$5+K137)) -> 3.798823241
A138: 0.0001666666667 | B138: 36 | C138: 11.52801652 | D138: 3.648301292 | E138: 3.798823241 | F138: =EXP(-(A138-A137)/$T$2)*(F137+V138-(E138+E137)/2)+((E138+E137)/2-V138) -> -8.358548751 | G138: =MINA(MAXA((EXP(-(A138-A137)/$T$2)*(-(E138+E137)/2+V138+F137)+(EXP(-(A138-A137)/$T$4)*((E138+E137)/2-V138-F137+(-$T$3/$T$4+$T$3/$T$2)*G137)))*$T$7+(1-EXP(-(A138-A137)/$T$4))*(H137+$T$4/$T$5*((E138+E137)/2-V138)),V138-MINA($V$8,$V$9/$V$10*A138)),V138) -> 9.25 | H138: =EXP(-(A138-A137)/$T$6)*(H137-G138)+G138 -> 6.691121107 | I138: =V138-G138 -> 2.75 | J138: 2.75 | K138: 1.2 | L138: 0.1666666667 | M138: 0 | N138: =C138 -> 11.52801652 | O138: 24 | P138: 0 | Q138: =C138/2 -> 5.764008262 | R138: 2 | S138: 0 | T138: 0 | U138: 0 | V138: 12 | W138: =IF($W$17, IF(Bode!$AT$49=0, (J133+J138*($X$16-1))/($X$16), (J128+J133*($X$16-1))/($X$16)), J138) -> 2.75 | BA138: =BA134+1/$V$3 -> 0.0001666666667 | BC138: =BC137 -> 11.52801652 | BD138: =BD137+(BA138-BA137)*(-BD137/($BC$5+K138))/$BC$4 -> 3.648301292 | BE138: =BD138*(K138/($BC$5+K138))+BC138*($BC$5*K138/($BC$5+K138)) -> 3.798823241
A139: 0.0001666666667 | B139: 36 | C139: 11.52801652 | D139: 3.648301292 | E139: 3.798823241 | F139: =F138 -> -8.358548751 | G139: =G138 -> 9.25 | H139: =H138 -> 6.691121107 | I139: =I138 -> 2.75 | J139: 2.75 | K139: 1.2 | L139: 0.1666666667 | M139: =C139/$M$14 -> 11.52801652 | N139: 0 | O139: 25 | P139: =C139 -> 11.52801652 | Q139: =P139 -> 11.52801652 | R139: 2 | S139: =C139/$M$14*$O$14 -> 11.52801652 | T139: 0 | U139: =M139 -> 11.52801652 | V139: 12 | W139: =IF($W$17, IF(Bode!$AT$49=0, (J134+J139*($X$16-1))/($X$16), (J129+J134*($X$16-1))/($X$16)), J139) -> 2.75 | BA139: =BA138 -> 0.0001666666667 | BC139: =BC138 -> 11.52801652 | BD139: =BD138 -> 3.648301292 | BE139: =BE138 -> 3.798823241
A140: 0.0001675175647 | B140: 36 | C140: 12.732 | D140: 3.66544681 | E140: 3.837066808 | F140: =EXP(-(A140-A139)/$T$2)*(F139+V140-E140)+(E140-V140) -> -8.338806207 | G140: =MINA(MAXA((EXP(-(A140-A139)/$T$2)*(-E140+V140+F139)+(EXP(-(A140-A139)/$T$4)*(E140-V140-F139+(-$T$3/$T$4+$T$3/$T$2)*G139)))*$T$7+(1-EXP(-(A140-A139)/$T$4))*(H139+$T$4/$T$5*(E140-V140)),V140-MINA($V$8,$V$9/$V$10*A140)),V140) -> 9.25 | H140: =EXP(-(A140-A139)/$T$6)*(H139-G140)+G140 -> 6.707499399 | I140: =V140-G140 -> 2.75 | J140: 2.75 | K140: 1.2 | L140: 0.1675175647 | M140: =C140/$M$14 +(B140/$BC$14*(A140-A139))*$M$12 -> 12.732 | N140: 0 | O140: 25 | P140: =C140 -> 12.732 | Q140: =P140 -> 12.732 | R140: 2 | S140: =C140/$M$14*$O$14 -> 12.732 | T140: 0 | U140: =M140 -> 12.732 | V140: 12 | W140: =IF($W$17, IF(Bode!$AT$49=0, (J135+J140*($X$16-1))/($X$16), (J130+J135*($X$16-1))/($X$16)), J140) -> 2.75 | BA140: =MAXA(BA139, MINA(+BA139+( W139 -$V$5*BC139)/((R140+$BC$13*B140+0.000001)*$V$3+((B139-$BC$8)/$BC$10-BD139-$BE$6-($BC$3+$BC$5+$BC$12+$BE$7+($BC$11+$BC$9)/$BC$10^2)*BD139/K139)*$V$5/$BC$2), +BA139+($V$7*$BC$10-BC139)/((B139-$BC$8)/$BC$10- BD139*K139/(K139+$BC$5) -$BE$6-($BC$3+ ($BC$5*K139)/($BC$5+K139) +$BC$12+$BE$7+($BC$11+$BC$9)/$BC$10^2)*BC139) *$BC$2, BA139+$V$4/$V$3)) -> 0.0001675175647 | BC140: =BC139+(BA140-BA139)*((B139-$BC$8)/$BC$10- BD139*K139/(K139+$BC$5) -$BE$6-($BC$3+ ($BC$5*K139)/($BC$5+K139) +$BC$12+$BE$7+($BC$9+$BC$11)/$BC$10^2)* BC139 ) /$BC$2 -> 12.732 | BD140: =BD139+(BA140-BA139)*(((BC140+BC139)*K140/2-BD139)/($BC$5+K140))/$BC$4 -> 3.66544681 | BE140: =BD140*(K140/($BC$5+K140))+BC140*($BC$5*K140/($BC$5+K140)) -> 3.837066808 | CG140: =CC139+(CF140)*((B139-$CC$8)/$CC$10-($CC$3+$CC$9)/$CC$10^2*CC139)/$CC$2 -> 0 | CH140: =(CC139+CG140)/2 -> 0
A141: 0.0001675175647 | B141: 36 | C141: 12.732 | D141: 3.66544681 | E141: 3.837066808 | F141: =F140 -> -8.338806207 | G141: =G140 -> 9.25 | H141: =H140 -> 6.707499399 | I141: =I140 -> 2.75 | J141: 2.75 | K141: 1.2 | L141: 0.1675175647 | M141: 0 | N141: =C141 -> 12.732 | O141: 25 | P141: 0 | Q141: =C141/2 -> 6.366 | R141: 2 | S141: 0 | T141: 0 | U141: 0 | V141: 12 | W141: =IF($W$17, IF(Bode!$AT$49=0, (J136+J141*($X$16-1))/($X$16), (J131+J136*($X$16-1))/($X$16)), J141) -> 2.75 | BA141: =BA140 -> 0.0001675175647 | BC141: =BC140 -> 12.732 | BD141: =BD140 -> 3.66544681 | BE141: =BE140 -> 3.837066808
A142: 0.0001736111111 | B142: 36 | C142: 11.49507929 | D142: 3.78781576 | E142: 3.93569181 | F142: =EXP(-(A142-A141)/$T$2)*(F141+V142-(E142+E141)/2)+((E142+E141)/2-V142) -> -8.218734034 | G142: =MINA(MAXA((EXP(-(A142-A141)/$T$2)*(-(E142+E141)/2+V142+F141)+(EXP(-(A142-A141)/$T$4)*((E142+E141)/2-V142-F141+(-$T$3/$T$4+$T$3/$T$2)*G141)))*$T$7+(1-EXP(-(A142-A141)/$T$4))*(H141+$T$4/$T$5*((E142+E141)/2-V142)),V142-MINA($V$8,$V$9/$V$10*A142)),V142) -> 9.25 | H142: =EXP(-(A142-A141)/$T$6)*(H141-G142)+G142 -> 6.821765958 | I142: =V142-G142 -> 2.75 | J142: 2.75 | K142: 1.2 | L142: 0.1736111111 | M142: 0 | N142: =C142 -> 11.49507929 | O142: 25 | P142: 0 | Q142: =C142/2 -> 5.747539646 | R142: 2 | S142: 0 | T142: 0 | U142: 0 | V142: 12 | W142: =IF($W$17, IF(Bode!$AT$49=0, (J137+J142*($X$16-1))/($X$16), (J132+J137*($X$16-1))/($X$16)), J142) -> 2.75 | BA142: =MINA(+BA140+BC140/((+BD140*K139/(K139+$BC$5) +($BC$3+ ($BC$5*K139)/ ($BC$5+K139) +$BC$7+$BC$12)*BC140+$BC$6)/$BC$2), BA139+1/$V$3) -> 0.0001736111111 | BC142: =BC140+(BA142-BA140)*(-BD140*K139/(K139+$BC$5) -($BC$3+ ($BC$5*K142)/($BC$5+K142) +$BC$7+$BC$12)*BC141-$BC$6)/$BC$2 -> 11.49507929 | BD142: =BD140+(BA142-BA140)*(((BC142+BC140)*K142/2-BD140)/($BC$5+K142))/$BC$4 -> 3.78781576 | BE142: =BD142*(K142/($BC$5+K142))+BC142*($BC$5*K142/($BC$5+K142)) -> 3.93569181
A143: 0.0001736111111 | B143: 36 | C143: 11.49507929 | D143: 3.78781576 | E143: 3.93569181 | F143: =EXP(-(A143-A142)/$T$2)*(F142+V143-(E143+E142)/2)+((E143+E142)/2-V143) -> -8.218734034 | G143: =MINA(MAXA((EXP(-(A143-A142)/$T$2)*(-(E143+E142)/2+V143+F142)+(EXP(-(A143-A142)/$T$4)*((E143+E142)/2-V143-F142+(-$T$3/$T$4+$T$3/$T$2)*G142)))*$T$7+(1-EXP(-(A143-A142)/$T$4))*(H142+$T$4/$T$5*((E143+E142)/2-V143)),V143-MINA($V$8,$V$9/$V$10*A143)),V143) -> 9.25 | H143: =EXP(-(A143-A142)/$T$6)*(H142-G143)+G143 -> 6.821765958 | I143: =V143-G143 -> 2.75 | J143: 2.75 | K143: 1.2 | L143: 0.1736111111 | M143: 0 | N143: =C143 -> 11.49507929 | O143: 25 | P143: 0 | Q143: =C143/2 -> 5.747539646 | R143: 2 | S143: 0 | T143: 0 | U143: 0 | V143: 12 | W143: =IF($W$17, IF(Bode!$AT$49=0, (J138+J143*($X$16-1))/($X$16), (J133+J138*($X$16-1))/($X$16)), J143) -> 2.75 | BA143: =BA139+1/$V$3 -> 0.0001736111111 | BC143: =BC142 -> 11.49507929 | BD143: =BD142+(BA143-BA142)*(-BD142/($BC$5+K143))/$BC$4 -> 3.78781576 | BE143: =BD143*(K143/($BC$5+K143))+BC143*($BC$5*K143/($BC$5+K143)) -> 3.93569181
A144: 0.0001736111111 | B144: 36 | C144: 11.49507929 | D144: 3.78781576 | E144: 3.93569181 | F144: =F143 -> -8.218734034 | G144: =G143 -> 9.25 | H144: =H143 -> 6.821765958 | I144: =I143 -> 2.75 | J144: 2.75 | K144: 1.2 | L144: 0.1736111111 | M144: =C144/$M$14*$O$14 -> 11.49507929 | N144: 0 | O144: 26 | P144: =C144 -> 11.49507929 | Q144: 0 | R144: 2 | S144: =C144/$M$14 -> 11.49507929 | T144: 0 | U144: 0 | V144: 12 | W144: =IF($W$17, IF(Bode!$AT$49=0, (J139+J144*($X$16-1))/($X$16), (J134+J139*($X$16-1))/($X$16)), J144) -> 2.75 | BA144: =BA143 -> 0.0001736111111 | BC144: =BC143 -> 11.49507929 | BD144: =BD143 -> 3.78781576 | BE144: =BE143 -> 3.93569181
A145: 0.0001744890483 | B145: 36 | C145: 12.732 | D145: 3.805247796 | E145: 3.974801769 | F145: =EXP(-(A145-A144)/$T$2)*(F144+V145-E145)+(E145-V145) -> -8.198614123 | G145: =MINA(MAXA((EXP(-(A145-A144)/$T$2)*(-E145+V145+F144)+(EXP(-(A145-A144)/$T$4)*(E145-V145-F144+(-$T$3/$T$4+$T$3/$T$2)*G144)))*$T$7+(1-EXP(-(A145-A144)/$T$4))*(H144+$T$4/$T$5*(E145-V145)),V145-MINA($V$8,$V$9/$V$10*A145)),V145) -> 9.25 | H145: =EXP(-(A145-A144)/$T$6)*(H144-G145)+G145 -> 6.837800298 | I145: =V145-G145 -> 2.75 | J145: 2.75 | K145: 1.2 | L145: 0.1744890483 | M145: =(C145/$M$14 +(B145/$BC$14*(A145-A144))*$M$12)*$O$14 -> 12.732 | N145: 0 | O145: 26 | P145: =C145 -> 12.732 | Q145: 0 | R145: 2 | S145: =C145/$M$14 +(B145/$BC$14*(A145-A144))*$M$12 -> 12.732 | T145: 0 | U145: 0 | V145: 12 | W145: =IF($W$17, IF(Bode!$AT$49=0, (J140+J145*($X$16-1))/($X$16), (J135+J140*($X$16-1))/($X$16)), J145) -> 2.75 | BA145: =MAXA(BA144, MINA(+BA144+( W144 -$V$5*BC144)/((R145+$BC$13*B145+0.000001)*$V$3+((B144-$BC$8)/$BC$10-BD144-$BE$6-($BC$3+$BC$5+$BC$12+$BE$7+($BC$11+$BC$9)/$BC$10^2)*BD144/K144)*$V$5/$BC$2), +BA144+($V$7*$BC$10-BC144)/((B144-$BC$8)/$BC$10- BD144*K144/(K144+$BC$5) -$BE$6-($BC$3+ ($BC$5*K144)/($BC$5+K144) +$BC$12+$BE$7+($BC$11+$BC$9)/$BC$10^2)*BC144) *$BC$2, BA144+$V$4/$V$3)) -> 0.0001744890483 | BC145: =BC144+(BA145-BA144)*((B144-$BC$8)/$BC$10- BD144*K144/(K144+$BC$5) -$BE$6-($BC$3+ ($BC$5*K144)/($BC$5+K144) +$BC$12+$BE$7+($BC$9+$BC$11)/$BC$10^2)* BC144 ) /$BC$2 -> 12.732 | BD145: =BD144+(BA145-BA144)*(((BC145+BC144)*K145/2-BD144)/($BC$5+K145))/$BC$4 -> 3.805247796 | BE145: =BD145*(K145/($BC$5+K145))+BC145*($BC$5*K145/($BC$5+K145)) -> 3.974801769 | CG145: =CC144+(CF145)*((B144-$CC$8)/$CC$10-($CC$3+$CC$9)/$CC$10^2*CC144)/$CC$2 -> 0 | CH145: =(CC144+CG145)/2 -> 0
A146: 0.0001744890483 | B146: 36 | C146: 12.732 | D146: 3.805247796 | E146: 3.974801769 | F146: =F145 -> -8.198614123 | G146: =G145 -> 9.25 | H146: =H145 -> 6.837800298 | I146: =I145 -> 2.75 | J146: 2.75 | K146: 1.2 | L146: 0.1744890483 | M146: 0 | N146: =C146 -> 12.732 | O146: 26 | P146: 0 | Q146: =C146/2 -> 6.366 | R146: 2 | S146: 0 | T146: 0 | U146: 0 | V146: 12 | W146: =IF($W$17, IF(Bode!$AT$49=0, (J141+J146*($X$16-1))/($X$16), (J136+J141*($X$16-1))/($X$16)), J146) -> 2.75 | BA146: =BA145 -> 0.0001744890483 | BC146: =BC145 -> 12.732 | BD146: =BD145 -> 3.805247796 | BE146: =BE145 -> 3.974801769
A147: 0.0001805555556 | B147: 36 | C147: 11.46296351 | D147: 3.925291096 | E147: 4.07056595 | F147: =EXP(-(A147-A146)/$T$2)*(F146+V147-(E147+E146)/2)+((E147+E146)/2-V147) -> -8.080964657 | G147: =MINA(MAXA((EXP(-(A147-A146)/$T$2)*(-(E147+E146)/2+V147+F146)+(EXP(-(A147-A146)/$T$4)*((E147+E146)/2-V147-F146+(-$T$3/$T$4+$T$3/$T$2)*G146)))*$T$7+(1-EXP(-(A147-A146)/$T$4))*(H146+$T$4/$T$5*((E147+E146)/2-V147)),V147-MINA($V$8,$V$9/$V$10*A147)),V147) -> 9.25 | H147: =EXP(-(A147-A146)/$T$6)*(H146-G147)+G147 -> 6.945740671 | I147: =V147-G147 -> 2.75 | J147: =IF($R$4="CLOSED",I147,$R$2)*$V$11 -> 2.75 | K147: 1.2 | L147: 0.1805555556 | M147: 0 | N147: =C147 -> 11.46296351 | O147: 26 | P147: 0 | Q147: =C147/2 -> 5.731481755 | R147: 2 | S147: 0 | T147: 0 | U147: 0 | V147: 12 | W147: =IF($W$17, IF(Bode!$AT$49=0, (J142+J147*($X$16-1))/($X$16), (J137+J142*($X$16-1))/($X$16)), J147) -> 2.75 | BA147: =MINA(+BA145+BC145/((+BD145*K144/(K144+$BC$5) +($BC$3+ ($BC$5*K144)/ ($BC$5+K144) +$BC$7+$BC$12)*BC145+$BC$6)/$BC$2), BA144+1/$V$3) -> 0.0001805555556 | BC147: =BC145+(BA147-BA145)*(-BD145*K144/(K144+$BC$5) -($BC$3+ ($BC$5*K147)/($BC$5+K147) +$BC$7+$BC$12)*BC146-$BC$6)/$BC$2 -> 11.46296351 | BD147: =BD145+(BA147-BA145)*(((BC147+BC145)*K147/2-BD145)/($BC$5+K147))/$BC$4 -> 3.925291096 | BE147: =BD147*(K147/($BC$5+K147))+BC147*($BC$5*K147/($BC$5+K147)) -> 4.07056595
A148: 0.0001805555556 | B148: 36 | C148: =CHOOSE($C$4,AC148,BC148,CC148) -> 11.46296351 | D148: =CHOOSE($C$4,AD148,BD148,CD148) -> 3.925291096 | E148: =CHOOSE($C$4,AE148,BE148,CE148) -> 4.07056595 | F148: =EXP(-(A148-A147)/$T$2)*(F147+V148-(E148+E147)/2)+((E148+E147)/2-V148) -> -8.080964657 | G148: =MINA(MAXA((EXP(-(A148-A147)/$T$2)*(-(E148+E147)/2+V148+F147)+(EXP(-(A148-A147)/$T$4)*((E148+E147)/2-V148-F147+(-$T$3/$T$4+$T$3/$T$2)*G147)))*$T$7+(1-EXP(-(A148-A147)/$T$4))*(H147+$T$4/$T$5*((E148+E147)/2-V148)),V148-MINA($V$8,$V$9/$V$10*A148)),V148) -> 9.25 | H148: =EXP(-(A148-A147)/$T$6)*(H147-G148)+G148 -> 6.945740671 | I148: =V148-G148 -> 2.75 | J148: 2.75 | K148: 1.2 | L148: 0.1805555556 | M148: 0 | N148: =C148 -> 11.46296351 | O148: 26 | P148: 0 | Q148: =C148/2 -> 5.731481755 | R148: 2 | S148: 0 | T148: =M148-S148 -> 0 | U148: 0 | V148: 12 | W148: =IF($W$17, IF(Bode!$AT$49=0, (J143+J148*($X$16-1))/($X$16), (J138+J143*($X$16-1))/($X$16)), J148) -> 2.75 | BA148: =BA144+1/$V$3 -> 0.0001805555556 | BC148: =BC147 -> 11.46296351 | BD148: =BD147+(BA148-BA147)*(-BD147/($BC$5+K148))/$BC$4 -> 3.925291096 | BE148: =BD148*(K148/($BC$5+K148))+BC148*($BC$5*K148/($BC$5+K148)) -> 4.07056595
A149: =CHOOSE($C$4,AA149,BA149,CA149) -> 0.0001805555556 | B149: =$R$8+$B$6*$B$8*SIN(2*PI()*$B$7*A148) -> 36 | C149: 11.46296351 | D149: 3.925291096 | E149: 4.07056595 | F149: =F148 -> -8.080964657 | G149: =G148 -> 9.25 | H149: =H148 -> 6.945740671 | I149: =I148 -> 2.75 | J149: 2.75 | K149: =IF($R$5>$R$6, MINA($R$5,1/MAXA(0.000001,(1/$R$6-$R$7*(A149-$A$19)))), MAXA($R$5,1/(1/$R$6+$R$7*(A149-$A$19)))) -> 1.2 | L149: 0.1805555556 | M149: =C149/$M$14 -> 11.46296351 | N149: 0 | O149: 27 | P149: =C149 -> 11.46296351 | Q149: =P149 -> 11.46296351 | R149: 2 | S149: =C149/$M$14*$O$14 -> 11.46296351 | T149: 0 | U149: =M149 -> 11.46296351 | V149: =$V$2+$C$6*$B$8*SIN(2*PI()*$B$7*A148) -> 12 | W149: =IF($W$17, IF(Bode!$AT$49=0, (J144+J149*($X$16-1))/($X$16), (J139+J144*($X$16-1))/($X$16)), J149) -> 2.75 | BA149: =BA148 -> 0.0001805555556 | BC149: =BC148 -> 11.46296351 | BD149: =BD148 -> 3.925291096 | BE149: =BE148 -> 4.07056595
A150: 0.0001814601236 | B150: 36 | C150: 12.732 | D150: 3.942989984 | E150: 4.110508358 | F150: =EXP(-(A150-A149)/$T$2)*(F149+V150-E150)+(E150-V150) -> -8.060488873 | G150: =MINA(MAXA((EXP(-(A150-A149)/$T$2)*(-E150+V150+F149)+(EXP(-(A150-A149)/$T$4)*(E150-V150-F149+(-$T$3/$T$4+$T$3/$T$2)*G149)))*$T$7+(1-EXP(-(A150-A149)/$T$4))*(H149+$T$4/$T$5*(E150-V150)),V150-MINA($V$8,$V$9/$V$10*A150)),V150) -> 9.25 | H150: =EXP(-(A150-A149)/$T$6)*(H149-G150)+G150 -> 6.961416341 | I150: =V150-G150 -> 2.75 | J150: 2.75 | K150: 1.2 | L150: 0.1814601236 | M150: =C150/$M$14 +(B150/$BC$14*(A150-A149))*$M$12 -> 12.732 | N150: 0 | O150: 27 | P150: =C150 -> 12.732 | Q150: =P150 -> 12.732 | R150: =CHOOSE($X$6+1,$V$6,B150/$X$7) -> 2 | S150: =C150/$M$14*$O$14 -> 12.732 | T150: 0 | U150: =M150 -> 12.732 | V150: 12 | W150: =IF($W$17, IF(Bode!$AT$49=0, (J145+J150*($X$16-1))/($X$16), (J140+J145*($X$16-1))/($X$16)), J150) -> 2.75 | BA150: =MAXA(BA149, MINA(+BA149+( W149 -$V$5*BC149)/((R150+$BC$13*B150+0.000001)*$V$3+((B149-$BC$8)/$BC$10-BD149-$BE$6-($BC$3+$BC$5+$BC$12+$BE$7+($BC$11+$BC$9)/$BC$10^2)*BD149/K149)*$V$5/$BC$2), +BA149+($V$7*$BC$10-BC149)/((B149-$BC$8)/$BC$10- BD149*K149/(K149+$BC$5) -$BE$6-($BC$3+ ($BC$5*K149)/($BC$5+K149) +$BC$12+$BE$7+($BC$11+$BC$9)/$BC$10^2)*BC149) *$BC$2, BA149+$V$4/$V$3)) -> 0.0001814601236 | BC150: =BC149+(BA150-BA149)*((B149-$BC$8)/$BC$10- BD149*K149/(K149+$BC$5) -$BE$6-($BC$3+ ($BC$5*K149)/($BC$5+K149) +$BC$12+$BE$7+($BC$9+$BC$11)/$BC$10^2)* BC149 ) /$BC$2 -> 12.732 | BD150: =BD149+(BA150-BA149)*(((BC150+BC149)*K150/2-BD149)/($BC$5+K150))/$BC$4 -> 3.942989984 | BE150: =BD150*(K150/($BC$5+K150))+BC150*($BC$5*K150/($BC$5+K150)) -> 4.110508358 | CG150: =CC149+(CF150)*((B149-$CC$8)/$CC$10-($CC$3+$CC$9)/$CC$10^2*CC149)/$CC$2 -> 0 | CH150: =(CC149+CG150)/2 -> 0
A151: 0.0001814601236 | B151: 36 | C151: 12.732 | D151: 3.942989984 | E151: 4.110508358 | F151: =F150 -> -8.060488873 | G151: =G150 -> 9.25 | H151: =H150 -> 6.961416341 | I151: =I150 -> 2.75 | J151: 2.75 | K151: 1.2 | L151: 0.1814601236 | M151: 0 | N151: =C151 -> 12.732 | O151: 27 | P151: 0 | Q151: =C151/2 -> 6.366 | R151: 2 | S151: 0 | T151: 0 | U151: 0 | V151: 12 | W151: =IF($W$17, IF(Bode!$AT$49=0, (J146+J151*($X$16-1))/($X$16), (J141+J146*($X$16-1))/($X$16)), J151) -> 2.75 | BA151: =BA150 -> 0.0001814601236 | BC151: =BC150 -> 12.732 | BD151: =BD150 -> 3.942989984 | BE151: =BE150 -> 4.110508358
A152: 0.0001875 | B152: 36 | C152: 11.43164638 | D152: 4.0607598 | E152: 4.203477276 | F152: =EXP(-(A152-A151)/$T$2)*(F151+V152-(E152+E151)/2)+((E152+E151)/2-V152) -> -7.945208009 | G152: =MINA(MAXA((EXP(-(A152-A151)/$T$2)*(-(E152+E151)/2+V152+F151)+(EXP(-(A152-A151)/$T$4)*((E152+E151)/2-V152-F151+(-$T$3/$T$4+$T$3/$T$2)*G151)))*$T$7+(1-EXP(-(A152-A151)/$T$4))*(H151+$T$4/$T$5*((E152+E151)/2-V152)),V152-MINA($V$8,$V$9/$V$10*A152)),V152) -> 9.25 | H152: =EXP(-(A152-A151)/$T$6)*(H151-G152)+G152 -> 7.063385792 | I152: =V152-G152 -> 2.75 | J152: 2.75 | K152: 1.2 | L152: 0.1875 | M152: 0 | N152: =C152 -> 11.43164638 | O152: 27 | P152: 0 | Q152: =C152/2 -> 5.715823189 | R152: 2 | S152: 0 | T152: 0 | U152: 0 | V152: 12 | W152: =IF($W$17, IF(Bode!$AT$49=0, (J147+J152*($X$16-1))/($X$16), (J142+J147*($X$16-1))/($X$16)), J152) -> 2.75 | BA152: =MINA(+BA150+BC150/((+BD150*K149/(K149+$BC$5) +($BC$3+ ($BC$5*K149)/ ($BC$5+K149) +$BC$7+$BC$12)*BC150+$BC$6)/$BC$2), BA149+1/$V$3) -> 0.0001875 | BC152: =BC150+(BA152-BA150)*(-BD150*K149/(K149+$BC$5) -($BC$3+ ($BC$5*K152)/($BC$5+K152) +$BC$7+$BC$12)*BC151-$BC$6)/$BC$2 -> 11.43164638 | BD152: =BD150+(BA152-BA150)*(((BC152+BC150)*K152/2-BD150)/($BC$5+K152))/$BC$4 -> 4.0607598 | BE152: =BD152*(K152/($BC$5+K152))+BC152*($BC$5*K152/($BC$5+K152)) -> 4.203477276
A153: 0.0001875 | B153: 36 | C153: 11.43164638 | D153: 4.0607598 | E153: 4.203477276 | F153: =EXP(-(A153-A152)/$T$2)*(F152+V153-(E153+E152)/2)+((E153+E152)/2-V153) -> -7.945208009 | G153: =MINA(MAXA((EXP(-(A153-A152)/$T$2)*(-(E153+E152)/2+V153+F152)+(EXP(-(A153-A152)/$T$4)*((E153+E152)/2-V153-F152+(-$T$3/$T$4+$T$3/$T$2)*G152)))*$T$7+(1-EXP(-(A153-A152)/$T$4))*(H152+$T$4/$T$5*((E153+E152)/2-V153)),V153-MINA($V$8,$V$9/$V$10*A153)),V153) -> 9.25 | H153: =EXP(-(A153-A152)/$T$6)*(H152-G153)+G153 -> 7.063385792 | I153: =V153-G153 -> 2.75 | J153: 2.75 | K153: 1.2 | L153: =1000*(A153-$A$19) -> 0.1875 | M153: 0 | N153: =C153 -> 11.43164638 | O153: =O148+1 -> 27 | P153: 0 | Q153: =C153/2 -> 5.715823189 | R153: 2 | S153: 0 | T153: 0 | U153: 0 | V153: 12 | W153: =IF($W$17, IF(Bode!$AT$49=0, (J148+J153*($X$16-1))/($X$16), (J143+J148*($X$16-1))/($X$16)), J153) -> 2.75 | BA153: =BA149+1/$V$3 -> 0.0001875 | BC153: =BC152 -> 11.43164638 | BD153: =BD152+(BA153-BA152)*(-BD152/($BC$5+K153))/$BC$4 -> 4.0607598 | BE153: =BD153*(K153/($BC$5+K153))+BC153*($BC$5*K153/($BC$5+K153)) -> 4.203477276
A154: 0.0001875 | B154: 36 | C154: 11.43164638 | D154: 4.0607598 | E154: 4.203477276 | F154: =F153 -> -7.945208009 | G154: =G153 -> 9.25 | H154: =H153 -> 7.063385792 | I154: =I153 -> 2.75 | J154: 2.75 | K154: 1.2 | L154: 0.1875 | M154: =C154/$M$14*$O$14 -> 11.43164638 | N154: 0 | O154: 28 | P154: =C154 -> 11.43164638 | Q154: 0 | R154: 2 | S154: =C154/$M$14 -> 11.43164638 | T154: 0 | U154: 0 | V154: 12 | W154: =IF($W$17, IF(Bode!$AT$49=0, (J149+J154*($X$16-1))/($X$16), (J144+J149*($X$16-1))/($X$16)), J154) -> 2.75 | BA154: =BA153 -> 0.0001875 | BC154: =BC153 -> 11.43164638 | BD154: =BD153 -> 4.0607598 | BE154: =BE153 -> 4.203477276
A155: 0.0001884307978 | B155: 36 | C155: 12.732 | D155: 4.078706658 | E155: 4.244219368 | F155: =EXP(-(A155-A154)/$T$2)*(F154+V155-E155)+(E155-V155) -> -7.92439709 | G155: =MINA(MAXA((EXP(-(A155-A154)/$T$2)*(-E155+V155+F154)+(EXP(-(A155-A154)/$T$4)*(E155-V155-F154+(-$T$3/$T$4+$T$3/$T$2)*G154)))*$T$7+(1-EXP(-(A155-A154)/$T$4))*(H154+$T$4/$T$5*(E155-V155)),V155-MINA($V$8,$V$9/$V$10*A155)),V155) -> 9.25 | H155: =EXP(-(A155-A154)/$T$6)*(H154-G155)+G155 -> 7.07869096 | I155: =V155-G155 -> 2.75 | J155: 2.75 | K155: 1.2 | L155: 0.1884307978 | M155: =(C155/$M$14 +(B155/$BC$14*(A155-A154))*$M$12)*$O$14 -> 12.732 | N155: 0 | O155: 28 | P155: =C155 -> 12.732 | Q155: 0 | R155: 2 | S155: =C155/$M$14 +(B155/$BC$14*(A155-A154))*$M$12 -> 12.732 | T155: 0 | U155: 0 | V155: 12 | W155: =IF($W$17, IF(Bode!$AT$49=0, (J150+J155*($X$16-1))/($X$16), (J145+J150*($X$16-1))/($X$16)), J155) -> 2.75 | BA155: =MAXA(BA154, MINA(+BA154+( W154 -$V$5*BC154)/((R155+$BC$13*B155+0.000001)*$V$3+((B154-$BC$8)/$BC$10-BD154-$BE$6-($BC$3+$BC$5+$BC$12+$BE$7+($BC$11+$BC$9)/$BC$10^2)*BD154/K154)*$V$5/$BC$2), +BA154+($V$7*$BC$10-BC154)/((B154-$BC$8)/$BC$10- BD154*K154/(K154+$BC$5) -$BE$6-($BC$3+ ($BC$5*K154)/($BC$5+K154) +$BC$12+$BE$7+($BC$11+$BC$9)/$BC$10^2)*BC154) *$BC$2, BA154+$V$4/$V$3)) -> 0.0001884307978 | BC155: =BC154+(BA155-BA154)*((B154-$BC$8)/$BC$10- BD154*K154/(K154+$BC$5) -$BE$6-($BC$3+ ($BC$5*K154)/($BC$5+K154) +$BC$12+$BE$7+($BC$9+$BC$11)/$BC$10^2)* BC154 ) /$BC$2 -> 12.732 | BD155: =BD154+(BA155-BA154)*(((BC155+BC154)*K155/2-BD154)/($BC$5+K155))/$BC$4 -> 4.078706658 | BE155: =BD155*(K155/($BC$5+K155))+BC155*($BC$5*K155/($BC$5+K155)) -> 4.244219368 | CG155: =CC154+(CF155)*((B154-$CC$8)/$CC$10-($CC$3+$CC$9)/$CC$10^2*CC154)/$CC$2 -> 0 | CH155: =(CC154+CG155)/2 -> 0
A156: 0.0001884307978 | B156: 36 | C156: 12.732 | D156: 4.078706658 | E156: 4.244219368 | F156: =F155 -> -7.92439709 | G156: =G155 -> 9.25 | H156: =H155 -> 7.07869096 | I156: =I155 -> 2.75 | J156: 2.75 | K156: 1.2 | L156: 0.1884307978 | M156: 0 | N156: =C156 -> 12.732 | O156: 28 | P156: 0 | Q156: =C156/2 -> 6.366 | R156: 2 | S156: 0 | T156: 0 | U156: 0 | V156: 12 | W156: =IF($W$17, IF(Bode!$AT$49=0, (J151+J156*($X$16-1))/($X$16), (J146+J151*($X$16-1))/($X$16)), J156) -> 2.75 | BA156: =BA155 -> 0.0001884307978 | BC156: =BC155 -> 12.732 | BD156: =BD155 -> 4.078706658 | BE156: =BE155 -> 4.244219368
A157: 0.0001944444444 | B157: 36 | C157: 11.4011058 | D157: 4.194253777 | E157: 4.334456829 | F157: =EXP(-(A157-A156)/$T$2)*(F156+V157-(E157+E156)/2)+((E157+E156)/2-V157) -> -7.811432079 | G157: =MINA(MAXA((EXP(-(A157-A156)/$T$2)*(-(E157+E156)/2+V157+F156)+(EXP(-(A157-A156)/$T$4)*((E157+E156)/2-V157-F156+(-$T$3/$T$4+$T$3/$T$2)*G156)))*$T$7+(1-EXP(-(A157-A156)/$T$4))*(H156+$T$4/$T$5*((E157+E156)/2-V157)),V157-MINA($V$8,$V$9/$V$10*A157)),V157) -> 9.25 | H157: =EXP(-(A157-A156)/$T$6)*(H156-G157)+G157 -> 7.175024482 | I157: =V157-G157 -> 2.75 | J157: 2.75 | K157: 1.2 | L157: 0.1944444444 | M157: 0 | N157: =C157 -> 11.4011058 | O157: 28 | P157: 0 | Q157: =C157/2 -> 5.7005529 | R157: 2 | S157: 0 | T157: 0 | U157: 0 | V157: 12 | W157: =IF($W$17, IF(Bode!$AT$49=0, (J152+J157*($X$16-1))/($X$16), (J147+J152*($X$16-1))/($X$16)), J157) -> 2.75 | BA157: =MINA(+BA155+BC155/((+BD155*K154/(K154+$BC$5) +($BC$3+ ($BC$5*K154)/ ($BC$5+K154) +$BC$7+$BC$12)*BC155+$BC$6)/$BC$2), BA154+1/$V$3) -> 0.0001944444444 | BC157: =BC155+(BA157-BA155)*(-BD155*K154/(K154+$BC$5) -($BC$3+ ($BC$5*K157)/($BC$5+K157) +$BC$7+$BC$12)*BC156-$BC$6)/$BC$2 -> 11.4011058 | BD157: =BD155+(BA157-BA155)*(((BC157+BC155)*K157/2-BD155)/($BC$5+K157))/$BC$4 -> 4.194253777 | BE157: =BD157*(K157/($BC$5+K157))+BC157*($BC$5*K157/($BC$5+K157)) -> 4.334456829
A158: 0.0001944444444 | B158: 36 | C158: 11.4011058 | D158: 4.194253777 | E158: 4.334456829 | F158: =EXP(-(A158-A157)/$T$2)*(F157+V158-(E158+E157)/2)+((E158+E157)/2-V158) -> -7.811432079 | G158: =MINA(MAXA((EXP(-(A158-A157)/$T$2)*(-(E158+E157)/2+V158+F157)+(EXP(-(A158-A157)/$T$4)*((E158+E157)/2-V158-F157+(-$T$3/$T$4+$T$3/$T$2)*G157)))*$T$7+(1-EXP(-(A158-A157)/$T$4))*(H157+$T$4/$T$5*((E158+E157)/2-V158)),V158-MINA($V$8,$V$9/$V$10*A158)),V158) -> 9.25 | H158: =EXP(-(A158-A157)/$T$6)*(H157-G158)+G158 -> 7.175024482 | I158: =V158-G158 -> 2.75 | J158: 2.75 | K158: 1.2 | L158: 0.1944444444 | M158: 0 | N158: =C158 -> 11.4011058 | O158: 28 | P158: 0 | Q158: =C158/2 -> 5.7005529 | R158: 2 | S158: 0 | T158: 0 | U158: 0 | V158: 12 | W158: =IF($W$17, IF(Bode!$AT$49=0, (J153+J158*($X$16-1))/($X$16), (J148+J153*($X$16-1))/($X$16)), J158) -> 2.75 | BA158: =BA154+1/$V$3 -> 0.0001944444444 | BC158: =BC157 -> 11.4011058 | BD158: =BD157+(BA158-BA157)*(-BD157/($BC$5+K158))/$BC$4 -> 4.194253777 | BE158: =BD158*(K158/($BC$5+K158))+BC158*($BC$5*K158/($BC$5+K158)) -> 4.334456829
A159: 0.0001944444444 | B159: 36 | C159: 11.4011058 | D159: 4.194253777 | E159: 4.334456829 | F159: =F158 -> -7.811432079 | G159: =G158 -> 9.25 | H159: =H158 -> 7.175024482 | I159: =I158 -> 2.75 | J159: 2.75 | K159: 1.2 | L159: 0.1944444444 | M159: =C159/$M$14 -> 11.4011058 | N159: 0 | O159: 29 | P159: =C159 -> 11.4011058 | Q159: =P159 -> 11.4011058 | R159: 2 | S159: =C159/$M$14*$O$14 -> 11.4011058 | T159: 0 | U159: =M159 -> 11.4011058 | V159: 12 | W159: =IF($W$17, IF(Bode!$AT$49=0, (J154+J159*($X$16-1))/($X$16), (J149+J154*($X$16-1))/($X$16)), J159) -> 2.75 | BA159: =BA158 -> 0.0001944444444 | BC159: =BC158 -> 11.4011058 | BD159: =BD158 -> 4.194253777 | BE159: =BE158 -> 4.334456829
A160: 0.0001954010776 | B160: 36 | C160: 12.732 | D160: 4.212430478 | E160: 4.375966974 | F160: =EXP(-(A160-A159)/$T$2)*(F159+V160-E160)+(E160-V160) -> -7.790306026 | G160: =MINA(MAXA((EXP(-(A160-A159)/$T$2)*(-E160+V160+F159)+(EXP(-(A160-A159)/$T$4)*(E160-V160-F159+(-$T$3/$T$4+$T$3/$T$2)*G159)))*$T$7+(1-EXP(-(A160-A159)/$T$4))*(H159+$T$4/$T$5*(E160-V160)),V160-MINA($V$8,$V$9/$V$10*A160)),V160) -> 9.25 | H160: =EXP(-(A160-A159)/$T$6)*(H159-G160)+G160 -> 7.189949908 | I160: =V160-G160 -> 2.75 | J160: 2.75 | K160: 1.2 | L160: 0.1954010776 | M160: =C160/$M$14 +(B160/$BC$14*(A160-A159))*$M$12 -> 12.732 | N160: 0 | O160: 29 | P160: =C160 -> 12.732 | Q160: =P160 -> 12.732 | R160: 2 | S160: =C160/$M$14*$O$14 -> 12.732 | T160: 0 | U160: =M160 -> 12.732 | V160: 12 | W160: =IF($W$17, IF(Bode!$AT$49=0, (J155+J160*($X$16-1))/($X$16), (J150+J155*($X$16-1))/($X$16)), J160) -> 2.75 | BA160: =MAXA(BA159, MINA(+BA159+( W159 -$V$5*BC159)/((R160+$BC$13*B160+0.000001)*$V$3+((B159-$BC$8)/$BC$10-BD159-$BE$6-($BC$3+$BC$5+$BC$12+$BE$7+($BC$11+$BC$9)/$BC$10^2)*BD159/K159)*$V$5/$BC$2), +BA159+($V$7*$BC$10-BC159)/((B159-$BC$8)/$BC$10- BD159*K159/(K159+$BC$5) -$BE$6-($BC$3+ ($BC$5*K159)/($BC$5+K159) +$BC$12+$BE$7+($BC$11+$BC$9)/$BC$10^2)*BC159) *$BC$2, BA159+$V$4/$V$3)) -> 0.0001954010776 | BC160: =BC159+(BA160-BA159)*((B159-$BC$8)/$BC$10- BD159*K159/(K159+$BC$5) -$BE$6-($BC$3+ ($BC$5*K159)/($BC$5+K159) +$BC$12+$BE$7+($BC$9+$BC$11)/$BC$10^2)* BC159 ) /$BC$2 -> 12.732 | BD160: =BD159+(BA160-BA159)*(((BC160+BC159)*K160/2-BD159)/($BC$5+K160))/$BC$4 -> 4.212430478 | BE160: =BD160*(K160/($BC$5+K160))+BC160*($BC$5*K160/($BC$5+K160)) -> 4.375966974 | CG160: =CC159+(CF160)*((B159-$CC$8)/$CC$10-($CC$3+$CC$9)/$CC$10^2*CC159)/$CC$2 -> 0 | CH160: =(CC159+CG160)/2 -> 0
A161: 0.0001954010776 | B161: 36 | C161: 12.732 | D161: 4.212430478 | E161: 4.375966974 | F161: =F160 -> -7.790306026 | G161: =G160 -> 9.25 | H161: =H160 -> 7.189949908 | I161: =I160 -> 2.75 | J161: 2.75 | K161: 1.2 | L161: 0.1954010776 | M161: 0 | N161: =C161 -> 12.732 | O161: 29 | P161: 0 | Q161: =C161/2 -> 6.366 | R161: 2 | S161: 0 | T161: 0 | U161: 0 | V161: 12 | W161: =IF($W$17, IF(Bode!$AT$49=0, (J156+J161*($X$16-1))/($X$16), (J151+J156*($X$16-1))/($X$16)), J161) -> 2.75 | BA161: =BA160 -> 0.0001954010776 | BC161: =BC160 -> 12.732 | BD161: =BD160 -> 4.212430478 | BE161: =BE160 -> 4.375966974
A162: 0.0002013888889 | B162: 36 | C162: 11.37132035 | D162: 4.325804348 | E162: 4.463535088 | F162: =EXP(-(A162-A161)/$T$2)*(F161+V162-(E162+E161)/2)+((E162+E161)/2-V162) -> -7.679605437 | G162: =MINA(MAXA((EXP(-(A162-A161)/$T$2)*(-(E162+E161)/2+V162+F161)+(EXP(-(A162-A161)/$T$4)*((E162+E161)/2-V162-F161+(-$T$3/$T$4+$T$3/$T$2)*G161)))*$T$7+(1-EXP(-(A162-A161)/$T$4))*(H161+$T$4/$T$5*((E162+E161)/2-V162)),V162-MINA($V$8,$V$9/$V$10*A162)),V162) -> 9.25 | H162: =EXP(-(A162-A161)/$T$6)*(H161-G162)+G162 -> 7.280963403 | I162: =V162-G162 -> 2.75 | J162: 2.75 | K162: 1.2 | L162: 0.2013888889 | M162: 0 | N162: =C162 -> 11.37132035 | O162: 29 | P162: 0 | Q162: =C162/2 -> 5.685660174 | R162: 2 | S162: 0 | T162: 0 | U162: 0 | V162: 12 | W162: =IF($W$17, IF(Bode!$AT$49=0, (J157+J162*($X$16-1))/($X$16), (J152+J157*($X$16-1))/($X$16)), J162) -> 2.75 | BA162: =MINA(+BA160+BC160/((+BD160*K159/(K159+$BC$5) +($BC$3+ ($BC$5*K159)/ ($BC$5+K159) +$BC$7+$BC$12)*BC160+$BC$6)/$BC$2), BA159+1/$V$3) -> 0.0002013888889 | BC162: =BC160+(BA162-BA160)*(-BD160*K159/(K159+$BC$5) -($BC$3+ ($BC$5*K162)/($BC$5+K162) +$BC$7+$BC$12)*BC161-$BC$6)/$BC$2 -> 11.37132035 | BD162: =BD160+(BA162-BA160)*(((BC162+BC160)*K162/2-BD160)/($BC$5+K162))/$BC$4 -> 4.325804348 | BE162: =BD162*(K162/($BC$5+K162))+BC162*($BC$5*K162/($BC$5+K162)) -> 4.463535088
A163: 0.0002013888889 | B163: 36 | C163: 11.37132035 | D163: 4.325804348 | E163: 4.463535088 | F163: =EXP(-(A163-A162)/$T$2)*(F162+V163-(E163+E162)/2)+((E163+E162)/2-V163) -> -7.679605437 | G163: =MINA(MAXA((EXP(-(A163-A162)/$T$2)*(-(E163+E162)/2+V163+F162)+(EXP(-(A163-A162)/$T$4)*((E163+E162)/2-V163-F162+(-$T$3/$T$4+$T$3/$T$2)*G162)))*$T$7+(1-EXP(-(A163-A162)/$T$4))*(H162+$T$4/$T$5*((E163+E162)/2-V163)),V163-MINA($V$8,$V$9/$V$10*A163)),V163) -> 9.25 | H163: =EXP(-(A163-A162)/$T$6)*(H162-G163)+G163 -> 7.280963403 | I163: =V163-G163 -> 2.75 | J163: 2.75 | K163: 1.2 | L163: 0.2013888889 | M163: 0 | N163: =C163 -> 11.37132035 | O163: 29 | P163: 0 | Q163: =C163/2 -> 5.685660174 | R163: 2 | S163: 0 | T163: 0 | U163: 0 | V163: 12 | W163: =IF($W$17, IF(Bode!$AT$49=0, (J158+J163*($X$16-1))/($X$16), (J153+J158*($X$16-1))/($X$16)), J163) -> 2.75 | BA163: =BA159+1/$V$3 -> 0.0002013888889 | BC163: =BC162 -> 11.37132035 | BD163: =BD162+(BA163-BA162)*(-BD162/($BC$5+K163))/$BC$4 -> 4.325804348 | BE163: =BD163*(K163/($BC$5+K163))+BC163*($BC$5*K163/($BC$5+K163)) -> 4.463535088
A164: 0.0002013888889 | B164: 36 | C164: 11.37132035 | D164: 4.325804348 | E164: 4.463535088 | F164: =F163 -> -7.679605437 | G164: =G163 -> 9.25 | H164: =H163 -> 7.280963403 | I164: =I163 -> 2.75 | J164: 2.75 | K164: 1.2 | L164: 0.2013888889 | M164: =C164/$M$14*$O$14 -> 11.37132035 | N164: 0 | O164: 30 | P164: =C164 -> 11.37132035 | Q164: 0 | R164: 2 | S164: =C164/$M$14 -> 11.37132035 | T164: 0 | U164: 0 | V164: 12 | W164: =IF($W$17, IF(Bode!$AT$49=0, (J159+J164*($X$16-1))/($X$16), (J154+J159*($X$16-1))/($X$16)), J164) -> 2.75 | BA164: =BA163 -> 0.0002013888889 | BC164: =BC163 -> 11.37132035 | BD164: =BD163 -> 4.325804348 | BE164: =BE163 -> 4.463535088
A165: 0.0002023709698 | B165: 36 | C165: 12.732 | D165: 4.344193491 | E165: 4.50578275 | F165: =EXP(-(A165-A164)/$T$2)*(F164+V165-E165)+(E165-V165) -> -7.658183542 | G165: =MINA(MAXA((EXP(-(A165-A164)/$T$2)*(-E165+V165+F164)+(EXP(-(A165-A164)/$T$4)*(E165-V165-F164+(-$T$3/$T$4+$T$3/$T$2)*G164)))*$T$7+(1-EXP(-(A165-A164)/$T$4))*(H164+$T$4/$T$5*(E165-V165)),V165-MINA($V$8,$V$9/$V$10*A165)),V165) -> 9.25 | H165: =EXP(-(A165-A164)/$T$6)*(H164-G165)+G165 -> 7.295502175 | I165: =V165-G165 -> 2.75 | J165: 2.75 | K165: 1.2 | L165: 0.2023709698 | M165: =(C165/$M$14 +(B165/$BC$14*(A165-A164))*$M$12)*$O$14 -> 12.732 | N165: 0 | O165: 30 | P165: =C165 -> 12.732 | Q165: 0 | R165: 2 | S165: =C165/$M$14 +(B165/$BC$14*(A165-A164))*$M$12 -> 12.732 | T165: 0 | U165: 0 | V165: 12 | W165: =IF($W$17, IF(Bode!$AT$49=0, (J160+J165*($X$16-1))/($X$16), (J155+J160*($X$16-1))/($X$16)), J165) -> 2.75 | BA165: =MAXA(BA164, MINA(+BA164+( W164 -$V$5*BC164)/((R165+$BC$13*B165+0.000001)*$V$3+((B164-$BC$8)/$BC$10-BD164-$BE$6-($BC$3+$BC$5+$BC$12+$BE$7+($BC$11+$BC$9)/$BC$10^2)*BD164/K164)*$V$5/$BC$2), +BA164+($V$7*$BC$10-BC164)/((B164-$BC$8)/$BC$10- BD164*K164/(K164+$BC$5) -$BE$6-($BC$3+ ($BC$5*K164)/($BC$5+K164) +$BC$12+$BE$7+($BC$11+$BC$9)/$BC$10^2)*BC164) *$BC$2, BA164+$V$4/$V$3)) -> 0.0002023709698 | BC165: =BC164+(BA165-BA164)*((B164-$BC$8)/$BC$10- BD164*K164/(K164+$BC$5) -$BE$6-($BC$3+ ($BC$5*K164)/($BC$5+K164) +$BC$12+$BE$7+($BC$9+$BC$11)/$BC$10^2)* BC164 ) /$BC$2 -> 12.732 | BD165: =BD164+(BA165-BA164)*(((BC165+BC164)*K165/2-BD164)/($BC$5+K165))/$BC$4 -> 4.344193491 | BE165: =BD165*(K165/($BC$5+K165))+BC165*($BC$5*K165/($BC$5+K165)) -> 4.50578275 | CG165: =CC164+(CF165)*((B164-$CC$8)/$CC$10-($CC$3+$CC$9)/$CC$10^2*CC164)/$CC$2 -> 0 | CH165: =(CC164+CG165)/2 -> 0
A166: 0.0002023709698 | B166: 36 | C166: 12.732 | D166: 4.344193491 | E166: 4.50578275 | F166: =F165 -> -7.658183542 | G166: =G165 -> 9.25 | H166: =H165 -> 7.295502175 | I166: =I165 -> 2.75 | J166: 2.75 | K166: 1.2 | L166: 0.2023709698 | M166: 0 | N166: =C166 -> 12.732 | O166: 30 | P166: 0 | Q166: =C166/2 -> 6.366 | R166: 2 | S166: 0 | T166: 0 | U166: 0 | V166: 12 | W166: =IF($W$17, IF(Bode!$AT$49=0, (J161+J166*($X$16-1))/($X$16), (J156+J161*($X$16-1))/($X$16)), J166) -> 2.75 | BA166: =BA165 -> 0.0002023709698 | BC166: =BC165 -> 12.732 | BD166: =BD165 -> 4.344193491 | BE166: =BE165 -> 4.50578275
A167: 0.0002083333333 | B167: 36 | C167: 11.34226925 | D167: 4.455442263 | E167: 4.590741979 | F167: =EXP(-(A167-A166)/$T$2)*(F166+V167-(E167+E166)/2)+((E167+E166)/2-V167) -> -7.549697228 | G167: =MINA(MAXA((EXP(-(A167-A166)/$T$2)*(-(E167+E166)/2+V167+F166)+(EXP(-(A167-A166)/$T$4)*((E167+E166)/2-V167-F166+(-$T$3/$T$4+$T$3/$T$2)*G166)))*$T$7+(1-EXP(-(A167-A166)/$T$4))*(H166+$T$4/$T$5*((E167+E166)/2-V167)),V167-MINA($V$8,$V$9/$V$10*A167)),V167) -> 9.25 | H167: =EXP(-(A167-A166)/$T$6)*(H166-G167)+G167 -> 7.381493559 | I167: =V167-G167 -> 2.75 | J167: 2.75 | K167: 1.2 | L167: 0.2083333333 | M167: 0 | N167: =C167 -> 11.34226925 | O167: 30 | P167: 0 | Q167: =C167/2 -> 5.671134624 | R167: 2 | S167: 0 | T167: 0 | U167: 0 | V167: 12 | W167: =IF($W$17, IF(Bode!$AT$49=0, (J162+J167*($X$16-1))/($X$16), (J157+J162*($X$16-1))/($X$16)), J167) -> 2.75 | BA167: =MINA(+BA165+BC165/((+BD165*K164/(K164+$BC$5) +($BC$3+ ($BC$5*K164)/ ($BC$5+K164) +$BC$7+$BC$12)*BC165+$BC$6)/$BC$2), BA164+1/$V$3) -> 0.0002083333333 | BC167: =BC165+(BA167-BA165)*(-BD165*K164/(K164+$BC$5) -($BC$3+ ($BC$5*K167)/($BC$5+K167) +$BC$7+$BC$12)*BC166-$BC$6)/$BC$2 -> 11.34226925 | BD167: =BD165+(BA167-BA165)*(((BC167+BC165)*K167/2-BD165)/($BC$5+K167))/$BC$4 -> 4.455442263 | BE167: =BD167*(K167/($BC$5+K167))+BC167*($BC$5*K167/($BC$5+K167)) -> 4.590741979
A168: 0.0002083333333 | B168: 36 | C168: 11.34226925 | D168: 4.455442263 | E168: 4.590741979 | F168: =EXP(-(A168-A167)/$T$2)*(F167+V168-(E168+E167)/2)+((E168+E167)/2-V168) -> -7.549697228 | G168: =MINA(MAXA((EXP(-(A168-A167)/$T$2)*(-(E168+E167)/2+V168+F167)+(EXP(-(A168-A167)/$T$4)*((E168+E167)/2-V168-F167+(-$T$3/$T$4+$T$3/$T$2)*G167)))*$T$7+(1-EXP(-(A168-A167)/$T$4))*(H167+$T$4/$T$5*((E168+E167)/2-V168)),V168-MINA($V$8,$V$9/$V$10*A168)),V168) -> 9.25 | H168: =EXP(-(A168-A167)/$T$6)*(H167-G168)+G168 -> 7.381493559 | I168: =V168-G168 -> 2.75 | J168: 2.75 | K168: 1.2 | L168: 0.2083333333 | M168: 0 | N168: =C168 -> 11.34226925 | O168: 30 | P168: 0 | Q168: =C168/2 -> 5.671134624 | R168: 2 | S168: 0 | T168: 0 | U168: 0 | V168: 12 | W168: =IF($W$17, IF(Bode!$AT$49=0, (J163+J168*($X$16-1))/($X$16), (J158+J163*($X$16-1))/($X$16)), J168) -> 2.75 | BA168: =BA164+1/$V$3 -> 0.0002083333333 | BC168: =BC167 -> 11.34226925 | BD168: =BD167+(BA168-BA167)*(-BD167/($BC$5+K168))/$BC$4 -> 4.455442263 | BE168: =BD168*(K168/($BC$5+K168))+BC168*($BC$5*K168/($BC$5+K168)) -> 4.590741979
A169: 0.0002083333333 | B169: 36 | C169: 11.34226925 | D169: 4.455442263 | E169: 4.590741979 | F169: =F168 -> -7.549697228 | G169: =G168 -> 9.25 | H169: =H168 -> 7.381493559 | I169: =I168 -> 2.75 | J169: 2.75 | K169: 1.2 | L169: 0.2083333333 | M169: =C169/$M$14 -> 11.34226925 | N169: 0 | O169: 31 | P169: =C169 -> 11.34226925 | Q169: =P169 -> 11.34226925 | R169: 2 | S169: =C169/$M$14*$O$14 -> 11.34226925 | T169: 0 | U169: =M169 -> 11.34226925 | V169: 12 | W169: =IF($W$17, IF(Bode!$AT$49=0, (J164+J169*($X$16-1))/($X$16), (J159+J164*($X$16-1))/($X$16)), J169) -> 2.75 | BA169: =BA168 -> 0.0002083333333 | BC169: =BC168 -> 11.34226925 | BD169: =BD168 -> 4.455442263 | BE169: =BE168 -> 4.590741979
A170: 0.0002093404809 | B170: 36 | C170: 12.732 | D170: 4.474027148 | E170: 4.633697682 | F170: =EXP(-(A170-A169)/$T$2)*(F169+V170-E170)+(E170-V170) -> -7.52799809 | G170: =MINA(MAXA((EXP(-(A170-A169)/$T$2)*(-E170+V170+F169)+(EXP(-(A170-A169)/$T$4)*(E170-V170-F169+(-$T$3/$T$4+$T$3/$T$2)*G169)))*$T$7+(1-EXP(-(A170-A169)/$T$4))*(H169+$T$4/$T$5*(E170-V170)),V170-MINA($V$8,$V$9/$V$10*A170)),V170) -> 9.25 | H170: =EXP(-(A170-A169)/$T$6)*(H169-G170)+G170 -> 7.395640851 | I170: =V170-G170 -> 2.75 | J170: 2.75 | K170: 1.2 | L170: 0.2093404809 | M170: =C170/$M$14 +(B170/$BC$14*(A170-A169))*$M$12 -> 12.732 | N170: 0 | O170: 31 | P170: =C170 -> 12.732 | Q170: =P170 -> 12.732 | R170: 2 | S170: =C170/$M$14*$O$14 -> 12.732 | T170: 0 | U170: =M170 -> 12.732 | V170: 12 | W170: =IF($W$17, IF(Bode!$AT$49=0, (J165+J170*($X$16-1))/($X$16), (J160+J165*($X$16-1))/($X$16)), J170) -> 2.75 | BA170: =MAXA(BA169, MINA(+BA169+( W169 -$V$5*BC169)/((R170+$BC$13*B170+0.000001)*$V$3+((B169-$BC$8)/$BC$10-BD169-$BE$6-($BC$3+$BC$5+$BC$12+$BE$7+($BC$11+$BC$9)/$BC$10^2)*BD169/K169)*$V$5/$BC$2), +BA169+($V$7*$BC$10-BC169)/((B169-$BC$8)/$BC$10- BD169*K169/(K169+$BC$5) -$BE$6-($BC$3+ ($BC$5*K169)/($BC$5+K169) +$BC$12+$BE$7+($BC$11+$BC$9)/$BC$10^2)*BC169) *$BC$2, BA169+$V$4/$V$3)) -> 0.0002093404809 | BC170: =BC169+(BA170-BA169)*((B169-$BC$8)/$BC$10- BD169*K169/(K169+$BC$5) -$BE$6-($BC$3+ ($BC$5*K169)/($BC$5+K169) +$BC$12+$BE$7+($BC$9+$BC$11)/$BC$10^2)* BC169 ) /$BC$2 -> 12.732 | BD170: =BD169+(BA170-BA169)*(((BC170+BC169)*K170/2-BD169)/($BC$5+K170))/$BC$4 -> 4.474027148 | BE170: =BD170*(K170/($BC$5+K170))+BC170*($BC$5*K170/($BC$5+K170)) -> 4.633697682 | CG170: =CC169+(CF170)*((B169-$CC$8)/$CC$10-($CC$3+$CC$9)/$CC$10^2*CC169)/$CC$2 -> 0 | CH170: =(CC169+CG170)/2 -> 0
A171: 0.0002093404809 | B171: 36 | C171: 12.732 | D171: 4.474027148 | E171: 4.633697682 | F171: =F170 -> -7.52799809 | G171: =G170 -> 9.25 | H171: =H170 -> 7.395640851 | I171: =I170 -> 2.75 | J171: 2.75 | K171: 1.2 | L171: 0.2093404809 | M171: 0 | N171: =C171 -> 12.732 | O171: 31 | P171: 0 | Q171: =C171/2 -> 6.366 | R171: 2 | S171: 0 | T171: 0 | U171: 0 | V171: 12 | W171: =IF($W$17, IF(Bode!$AT$49=0, (J166+J171*($X$16-1))/($X$16), (J161+J166*($X$16-1))/($X$16)), J171) -> 2.75 | BA171: =BA170 -> 0.0002093404809 | BC171: =BC170 -> 12.732 | BD171: =BD170 -> 4.474027148 | BE171: =BE170 -> 4.633697682
A172: 0.0002152777778 | B172: 36 | C172: 11.31393236 | D172: 4.583197715 | E172: 4.716106894 | F172: =EXP(-(A172-A171)/$T$2)*(F171+V172-(E172+E171)/2)+((E172+E171)/2-V172) -> -7.421677151 | G172: =MINA(MAXA((EXP(-(A172-A171)/$T$2)*(-(E172+E171)/2+V172+F171)+(EXP(-(A172-A171)/$T$4)*((E172+E171)/2-V172-F171+(-$T$3/$T$4+$T$3/$T$2)*G171)))*$T$7+(1-EXP(-(A172-A171)/$T$4))*(H171+$T$4/$T$5*((E172+E171)/2-V172)),V172-MINA($V$8,$V$9/$V$10*A172)),V172) -> 9.25 | H172: =EXP(-(A172-A171)/$T$6)*(H171-G172)+G172 -> 7.476891097 | I172: =V172-G172 -> 2.75 | J172: 2.75 | K172: 1.2 | L172: 0.2152777778 | M172: 0 | N172: =C172 -> 11.31393236 | O172: 31 | P172: 0 | Q172: =C172/2 -> 5.656966178 | R172: 2 | S172: 0 | T172: 0 | U172: 0 | V172: 12 | W172: =IF($W$17, IF(Bode!$AT$49=0, (J167+J172*($X$16-1))/($X$16), (J162+J167*($X$16-1))/($X$16)), J172) -> 2.75 | BA172: =MINA(+BA170+BC170/((+BD170*K169/(K169+$BC$5) +($BC$3+ ($BC$5*K169)/ ($BC$5+K169) +$BC$7+$BC$12)*BC170+$BC$6)/$BC$2), BA169+1/$V$3) -> 0.0002152777778 | BC172: =BC170+(BA172-BA170)*(-BD170*K169/(K169+$BC$5) -($BC$3+ ($BC$5*K172)/($BC$5+K172) +$BC$7+$BC$12)*BC171-$BC$6)/$BC$2 -> 11.31393236 | BD172: =BD170+(BA172-BA170)*(((BC172+BC170)*K172/2-BD170)/($BC$5+K172))/$BC$4 -> 4.583197715 | BE172: =BD172*(K172/($BC$5+K172))+BC172*($BC$5*K172/($BC$5+K172)) -> 4.716106894
A173: 0.0002152777778 | B173: 36 | C173: 11.31393236 | D173: 4.583197715 | E173: 4.716106894 | F173: =EXP(-(A173-A172)/$T$2)*(F172+V173-(E173+E172)/2)+((E173+E172)/2-V173) -> -7.421677151 | G173: =MINA(MAXA((EXP(-(A173-A172)/$T$2)*(-(E173+E172)/2+V173+F172)+(EXP(-(A173-A172)/$T$4)*((E173+E172)/2-V173-F172+(-$T$3/$T$4+$T$3/$T$2)*G172)))*$T$7+(1-EXP(-(A173-A172)/$T$4))*(H172+$T$4/$T$5*((E173+E172)/2-V173)),V173-MINA($V$8,$V$9/$V$10*A173)),V173) -> 9.25 | H173: =EXP(-(A173-A172)/$T$6)*(H172-G173)+G173 -> 7.476891097 | I173: =V173-G173 -> 2.75 | J173: 2.75 | K173: 1.2 | L173: 0.2152777778 | M173: 0 | N173: =C173 -> 11.31393236 | O173: 31 | P173: 0 | Q173: =C173/2 -> 5.656966178 | R173: 2 | S173: 0 | T173: 0 | U173: 0 | V173: 12 | W173: =IF($W$17, IF(Bode!$AT$49=0, (J168+J173*($X$16-1))/($X$16), (J163+J168*($X$16-1))/($X$16)), J173) -> 2.75 | BA173: =BA169+1/$V$3 -> 0.0002152777778 | BC173: =BC172 -> 11.31393236 | BD173: =BD172+(BA173-BA172)*(-BD172/($BC$5+K173))/$BC$4 -> 4.583197715 | BE173: =BD173*(K173/($BC$5+K173))+BC173*($BC$5*K173/($BC$5+K173)) -> 4.716106894
A174: 0.0002152777778 | B174: 36 | C174: 11.31393236 | D174: 4.583197715 | E174: 4.716106894 | F174: =F173 -> -7.421677151 | G174: =G173 -> 9.25 | H174: =H173 -> 7.476891097 | I174: =I173 -> 2.75 | J174: 2.75 | K174: 1.2 | L174: 0.2152777778 | M174: =C174/$M$14*$O$14 -> 11.31393236 | N174: 0 | O174: 32 | P174: =C174 -> 11.31393236 | Q174: 0 | R174: 2 | S174: =C174/$M$14 -> 11.31393236 | T174: 0 | U174: 0 | V174: 12 | W174: =IF($W$17, IF(Bode!$AT$49=0, (J169+J174*($X$16-1))/($X$16), (J164+J169*($X$16-1))/($X$16)), J174) -> 2.75 | BA174: =BA173 -> 0.0002152777778 | BC174: =BC173 -> 11.31393236 | BD174: =BD173 -> 4.583197715 | BE174: =BE173 -> 4.716106894
A175: 0.0002163096173 | B175: 36 | C175: 12.732 | D175: 4.601962314 | E175: 4.759742182 | F175: =EXP(-(A175-A174)/$T$2)*(F174+V175-E175)+(E175-V175) -> -7.399718701 | G175: =MINA(MAXA((EXP(-(A175-A174)/$T$2)*(-E175+V175+F174)+(EXP(-(A175-A174)/$T$4)*(E175-V175-F174+(-$T$3/$T$4+$T$3/$T$2)*G174)))*$T$7+(1-EXP(-(A175-A174)/$T$4))*(H174+$T$4/$T$5*(E175-V175)),V175-MINA($V$8,$V$9/$V$10*A175)),V175) -> 9.25 | H175: =EXP(-(A175-A174)/$T$6)*(H174-G175)+G175 -> 7.490643949 | I175: =V175-G175 -> 2.75 | J175: 2.75 | K175: 1.2 | L175: 0.2163096173 | M175: =(C175/$M$14 +(B175/$BC$14*(A175-A174))*$M$12)*$O$14 -> 12.732 | N175: 0 | O175: 32 | P175: =C175 -> 12.732 | Q175: 0 | R175: 2 | S175: =C175/$M$14 +(B175/$BC$14*(A175-A174))*$M$12 -> 12.732 | T175: 0 | U175: 0 | V175: 12 | W175: =IF($W$17, IF(Bode!$AT$49=0, (J170+J175*($X$16-1))/($X$16), (J165+J170*($X$16-1))/($X$16)), J175) -> 2.75 | BA175: =MAXA(BA174, MINA(+BA174+( W174 -$V$5*BC174)/((R175+$BC$13*B175+0.000001)*$V$3+((B174-$BC$8)/$BC$10-BD174-$BE$6-($BC$3+$BC$5+$BC$12+$BE$7+($BC$11+$BC$9)/$BC$10^2)*BD174/K174)*$V$5/$BC$2), +BA174+($V$7*$BC$10-BC174)/((B174-$BC$8)/$BC$10- BD174*K174/(K174+$BC$5) -$BE$6-($BC$3+ ($BC$5*K174)/($BC$5+K174) +$BC$12+$BE$7+($BC$11+$BC$9)/$BC$10^2)*BC174) *$BC$2, BA174+$V$4/$V$3)) -> 0.0002163096173 | BC175: =BC174+(BA175-BA174)*((B174-$BC$8)/$BC$10- BD174*K174/(K174+$BC$5) -$BE$6-($BC$3+ ($BC$5*K174)/($BC$5+K174) +$BC$12+$BE$7+($BC$9+$BC$11)/$BC$10^2)* BC174 ) /$BC$2 -> 12.732 | BD175: =BD174+(BA175-BA174)*(((BC175+BC174)*K175/2-BD174)/($BC$5+K175))/$BC$4 -> 4.601962314 | BE175: =BD175*(K175/($BC$5+K175))+BC175*($BC$5*K175/($BC$5+K175)) -> 4.759742182 | CG175: =CC174+(CF175)*((B174-$CC$8)/$CC$10-($CC$3+$CC$9)/$CC$10^2*CC174)/$CC$2 -> 0 | CH175: =(CC174+CG175)/2 -> 0
A176: 0.0002163096173 | B176: 36 | C176: 12.732 | D176: 4.601962314 | E176: 4.759742182 | F176: =F175 -> -7.399718701 | G176: =G175 -> 9.25 | H176: =H175 -> 7.490643949 | I176: =I175 -> 2.75 | J176: 2.75 | K176: 1.2 | L176: 0.2163096173 | M176: 0 | N176: =C176 -> 12.732 | O176: 32 | P176: 0 | Q176: =C176/2 -> 6.366 | R176: 2 | S176: 0 | T176: 0 | U176: 0 | V176: 12 | W176: =IF($W$17, IF(Bode!$AT$49=0, (J171+J176*($X$16-1))/($X$16), (J166+J171*($X$16-1))/($X$16)), J176) -> 2.75 | BA176: =BA175 -> 0.0002163096173 | BC176: =BC175 -> 12.732 | BD176: =BD175 -> 4.601962314 | BE176: =BE175 -> 4.759742182
A177: 0.0002222222222 | B177: 36 | C177: 11.28629014 | D177: 4.709100352 | E177: 4.839658694 | F177: =EXP(-(A177-A176)/$T$2)*(F176+V177-(E177+E176)/2)+((E177+E176)/2-V177) -> -7.295515456 | G177: =MINA(MAXA((EXP(-(A177-A176)/$T$2)*(-(E177+E176)/2+V177+F176)+(EXP(-(A177-A176)/$T$4)*((E177+E176)/2-V177-F176+(-$T$3/$T$4+$T$3/$T$2)*G176)))*$T$7+(1-EXP(-(A177-A176)/$T$4))*(H176+$T$4/$T$5*((E177+E176)/2-V177)),V177-MINA($V$8,$V$9/$V$10*A177)),V177) -> 9.25 | H177: =EXP(-(A177-A176)/$T$6)*(H176-G177)+G177 -> 7.567418065 | I177: =V177-G177 -> 2.75 | J177: 2.75 | K177: 1.2 | L177: 0.2222222222 | M177: 0 | N177: =C177 -> 11.28629014 | O177: 32 | P177: 0 | Q177: =C177/2 -> 5.64314507 | R177: 2 | S177: 0 | T177: 0 | U177: 0 | V177: 12 | W177: =IF($W$17, IF(Bode!$AT$49=0, (J172+J177*($X$16-1))/($X$16), (J167+J172*($X$16-1))/($X$16)), J177) -> 2.75 | BA177: =MINA(+BA175+BC175/((+BD175*K174/(K174+$BC$5) +($BC$3+ ($BC$5*K174)/ ($BC$5+K174) +$BC$7+$BC$12)*BC175+$BC$6)/$BC$2), BA174+1/$V$3) -> 0.0002222222222 | BC177: =BC175+(BA177-BA175)*(-BD175*K174/(K174+$BC$5) -($BC$3+ ($BC$5*K177)/($BC$5+K177) +$BC$7+$BC$12)*BC176-$BC$6)/$BC$2 -> 11.28629014 | BD177: =BD175+(BA177-BA175)*(((BC177+BC175)*K177/2-BD175)/($BC$5+K177))/$BC$4 -> 4.709100352 | BE177: =BD177*(K177/($BC$5+K177))+BC177*($BC$5*K177/($BC$5+K177)) -> 4.839658694
A178: 0.0002222222222 | B178: 36 | C178: 11.28629014 | D178: 4.709100352 | E178: 4.839658694 | F178: =EXP(-(A178-A177)/$T$2)*(F177+V178-(E178+E177)/2)+((E178+E177)/2-V178) -> -7.295515456 | G178: =MINA(MAXA((EXP(-(A178-A177)/$T$2)*(-(E178+E177)/2+V178+F177)+(EXP(-(A178-A177)/$T$4)*((E178+E177)/2-V178-F177+(-$T$3/$T$4+$T$3/$T$2)*G177)))*$T$7+(1-EXP(-(A178-A177)/$T$4))*(H177+$T$4/$T$5*((E178+E177)/2-V178)),V178-MINA($V$8,$V$9/$V$10*A178)),V178) -> 9.25 | H178: =EXP(-(A178-A177)/$T$6)*(H177-G178)+G178 -> 7.567418065 | I178: =V178-G178 -> 2.75 | J178: 2.75 | K178: 1.2 | L178: 0.2222222222 | M178: 0 | N178: =C178 -> 11.28629014 | O178: 32 | P178: 0 | Q178: =C178/2 -> 5.64314507 | R178: 2 | S178: 0 | T178: 0 | U178: 0 | V178: 12 | W178: =IF($W$17, IF(Bode!$AT$49=0, (J173+J178*($X$16-1))/($X$16), (J168+J173*($X$16-1))/($X$16)), J178) -> 2.75 | BA178: =BA174+1/$V$3 -> 0.0002222222222 | BC178: =BC177 -> 11.28629014 | BD178: =BD177+(BA178-BA177)*(-BD177/($BC$5+K178))/$BC$4 -> 4.709100352 | BE178: =BD178*(K178/($BC$5+K178))+BC178*($BC$5*K178/($BC$5+K178)) -> 4.839658694
A179: 0.0002222222222 | B179: 36 | C179: 11.28629014 | D179: 4.709100352 | E179: 4.839658694 | F179: =F178 -> -7.295515456 | G179: =G178 -> 9.25 | H179: =H178 -> 7.567418065 | I179: =I178 -> 2.75 | J179: 2.75 | K179: 1.2 | L179: 0.2222222222 | M179: =C179/$M$14 -> 11.28629014 | N179: 0 | O179: 33 | P179: =C179 -> 11.28629014 | Q179: =P179 -> 11.28629014 | R179: 2 | S179: =C179/$M$14*$O$14 -> 11.28629014 | T179: 0 | U179: =M179 -> 11.28629014 | V179: 12 | W179: =IF($W$17, IF(Bode!$AT$49=0, (J174+J179*($X$16-1))/($X$16), (J169+J174*($X$16-1))/($X$16)), J179) -> 2.75 | BA179: =BA178 -> 0.0002222222222 | BC179: =BC178 -> 11.28629014 | BD179: =BD178 -> 4.709100352 | BE179: =BE178 -> 4.839658694
A180: 0.0002232783854 | B180: 36 | C180: 12.732 | D180: 4.728029288 | E180: 4.883946096 | F180: =EXP(-(A180-A179)/$T$2)*(F179+V180-E180)+(E180-V180) -> -7.273314977 | G180: =MINA(MAXA((EXP(-(A180-A179)/$T$2)*(-E180+V180+F179)+(EXP(-(A180-A179)/$T$4)*(E180-V180-F179+(-$T$3/$T$4+$T$3/$T$2)*G179)))*$T$7+(1-EXP(-(A180-A179)/$T$4))*(H179+$T$4/$T$5*(E180-V180)),V180-MINA($V$8,$V$9/$V$10*A180)),V180) -> 9.25 | H180: =EXP(-(A180-A179)/$T$6)*(H179-G180)+G180 -> 7.580775179 | I180: =V180-G180 -> 2.75 | J180: 2.75 | K180: 1.2 | L180: 0.2232783854 | M180: =C180/$M$14 +(B180/$BC$14*(A180-A179))*$M$12 -> 12.732 | N180: 0 | O180: 33 | P180: =C180 -> 12.732 | Q180: =P180 -> 12.732 | R180: 2 | S180: =C180/$M$14*$O$14 -> 12.732 | T180: 0 | U180: =M180 -> 12.732 | V180: 12 | W180: =IF($W$17, IF(Bode!$AT$49=0, (J175+J180*($X$16-1))/($X$16), (J170+J175*($X$16-1))/($X$16)), J180) -> 2.75 | BA180: =MAXA(BA179, MINA(+BA179+( W179 -$V$5*BC179)/((R180+$BC$13*B180+0.000001)*$V$3+((B179-$BC$8)/$BC$10-BD179-$BE$6-($BC$3+$BC$5+$BC$12+$BE$7+($BC$11+$BC$9)/$BC$10^2)*BD179/K179)*$V$5/$BC$2), +BA179+($V$7*$BC$10-BC179)/((B179-$BC$8)/$BC$10- BD179*K179/(K179+$BC$5) -$BE$6-($BC$3+ ($BC$5*K179)/($BC$5+K179) +$BC$12+$BE$7+($BC$11+$BC$9)/$BC$10^2)*BC179) *$BC$2, BA179+$V$4/$V$3)) -> 0.0002232783854 | BC180: =BC179+(BA180-BA179)*((B179-$BC$8)/$BC$10- BD179*K179/(K179+$BC$5) -$BE$6-($BC$3+ ($BC$5*K179)/($BC$5+K179) +$BC$12+$BE$7+($BC$9+$BC$11)/$BC$10^2)* BC179 ) /$BC$2 -> 12.732 | BD180: =BD179+(BA180-BA179)*(((BC180+BC179)*K180/2-BD179)/($BC$5+K180))/$BC$4 -> 4.728029288 | BE180: =BD180*(K180/($BC$5+K180))+BC180*($BC$5*K180/($BC$5+K180)) -> 4.883946096 | CG180: =CC179+(CF180)*((B179-$CC$8)/$CC$10-($CC$3+$CC$9)/$CC$10^2*CC179)/$CC$2 -> 0 | CH180: =(CC179+CG180)/2 -> 0
A181: 0.0002232783854 | B181: 36 | C181: 12.732 | D181: 4.728029288 | E181: 4.883946096 | F181: =F180 -> -7.273314977 | G181: =G180 -> 9.25 | H181: =H180 -> 7.580775179 | I181: =I180 -> 2.75 | J181: 2.75 | K181: 1.2 | L181: 0.2232783854 | M181: 0 | N181: =C181 -> 12.732 | O181: 33 | P181: 0 | Q181: =C181/2 -> 6.366 | R181: 2 | S181: 0 | T181: 0 | U181: 0 | V181: 12 | W181: =IF($W$17, IF(Bode!$AT$49=0, (J176+J181*($X$16-1))/($X$16), (J171+J176*($X$16-1))/($X$16)), J181) -> 2.75 | BA181: =BA180 -> 0.0002232783854 | BC181: =BC180 -> 12.732 | BD181: =BD180 -> 4.728029288 | BE181: =BE180 -> 4.883946096
A182: 0.0002291666667 | B182: 36 | C182: 11.25932365 | D182: 4.833179288 | E182: 4.961425728 | F182: =EXP(-(A182-A181)/$T$2)*(F181+V182-(E182+E181)/2)+((E182+E181)/2-V182) -> -7.171182924 | G182: =MINA(MAXA((EXP(-(A182-A181)/$T$2)*(-(E182+E181)/2+V182+F181)+(EXP(-(A182-A181)/$T$4)*((E182+E181)/2-V182-F181+(-$T$3/$T$4+$T$3/$T$2)*G181)))*$T$7+(1-EXP(-(A182-A181)/$T$4))*(H181+$T$4/$T$5*((E182+E181)/2-V182)),V182-MINA($V$8,$V$9/$V$10*A182)),V182) -> 9.25 | H182: =EXP(-(A182-A181)/$T$6)*(H181-G182)+G182 -> 7.653323134 | I182: =V182-G182 -> 2.75 | J182: 2.75 | K182: 1.2 | L182: 0.2291666667 | M182: 0 | N182: =C182 -> 11.25932365 | O182: 33 | P182: 0 | Q182: =C182/2 -> 5.629661824 | R182: 2 | S182: 0 | T182: 0 | U182: 0 | V182: 12 | W182: =IF($W$17, IF(Bode!$AT$49=0, (J177+J182*($X$16-1))/($X$16), (J172+J177*($X$16-1))/($X$16)), J182) -> 2.75 | BA182: =MINA(+BA180+BC180/((+BD180*K179/(K179+$BC$5) +($BC$3+ ($BC$5*K179)/ ($BC$5+K179) +$BC$7+$BC$12)*BC180+$BC$6)/$BC$2), BA179+1/$V$3) -> 0.0002291666667 | BC182: =BC180+(BA182-BA180)*(-BD180*K179/(K179+$BC$5) -($BC$3+ ($BC$5*K182)/($BC$5+K182) +$BC$7+$BC$12)*BC181-$BC$6)/$BC$2 -> 11.25932365 | BD182: =BD180+(BA182-BA180)*(((BC182+BC180)*K182/2-BD180)/($BC$5+K182))/$BC$4 -> 4.833179288 | BE182: =BD182*(K182/($BC$5+K182))+BC182*($BC$5*K182/($BC$5+K182)) -> 4.961425728
A183: 0.0002291666667 | B183: 36 | C183: 11.25932365 | D183: 4.833179288 | E183: 4.961425728 | F183: =EXP(-(A183-A182)/$T$2)*(F182+V183-(E183+E182)/2)+((E183+E182)/2-V183) -> -7.171182924 | G183: =MINA(MAXA((EXP(-(A183-A182)/$T$2)*(-(E183+E182)/2+V183+F182)+(EXP(-(A183-A182)/$T$4)*((E183+E182)/2-V183-F182+(-$T$3/$T$4+$T$3/$T$2)*G182)))*$T$7+(1-EXP(-(A183-A182)/$T$4))*(H182+$T$4/$T$5*((E183+E182)/2-V183)),V183-MINA($V$8,$V$9/$V$10*A183)),V183) -> 9.25 | H183: =EXP(-(A183-A182)/$T$6)*(H182-G183)+G183 -> 7.653323134 | I183: =V183-G183 -> 2.75 | J183: 2.75 | K183: 1.2 | L183: 0.2291666667 | M183: 0 | N183: =C183 -> 11.25932365 | O183: 33 | P183: 0 | Q183: =C183/2 -> 5.629661824 | R183: 2 | S183: 0 | T183: 0 | U183: 0 | V183: 12 | W183: =IF($W$17, IF(Bode!$AT$49=0, (J178+J183*($X$16-1))/($X$16), (J173+J178*($X$16-1))/($X$16)), J183) -> 2.75 | BA183: =BA179+1/$V$3 -> 0.0002291666667 | BC183: =BC182 -> 11.25932365 | BD183: =BD182+(BA183-BA182)*(-BD182/($BC$5+K183))/$BC$4 -> 4.833179288 | BE183: =BD183*(K183/($BC$5+K183))+BC183*($BC$5*K183/($BC$5+K183)) -> 4.961425728
A184: 0.0002291666667 | B184: 36 | C184: 11.25932365 | D184: 4.833179288 | E184: 4.961425728 | F184: =F183 -> -7.171182924 | G184: =G183 -> 9.25 | H184: =H183 -> 7.653323134 | I184: =I183 -> 2.75 | J184: 2.75 | K184: 1.2 | L184: 0.2291666667 | M184: =C184/$M$14*$O$14 -> 11.25932365 | N184: 0 | O184: 34 | P184: =C184 -> 11.25932365 | Q184: 0 | R184: 2 | S184: =C184/$M$14 -> 11.25932365 | T184: 0 | U184: 0 | V184: 12 | W184: =IF($W$17, IF(Bode!$AT$49=0, (J179+J184*($X$16-1))/($X$16), (J174+J179*($X$16-1))/($X$16)), J184) -> 2.75 | BA184: =BA183 -> 0.0002291666667 | BC184: =BC183 -> 11.25932365 | BD184: =BD183 -> 4.833179288 | BE184: =BE183 -> 4.961425728
A185: 0.0002302467912 | B185: 36 | C185: 12.732 | D185: 4.852257807 | E185: 5.006338726 | F185: =EXP(-(A185-A184)/$T$2)*(F184+V185-E185)+(E185-V185) -> -7.14875707 | G185: =MINA(MAXA((EXP(-(A185-A184)/$T$2)*(-E185+V185+F184)+(EXP(-(A185-A184)/$T$4)*(E185-V185-F184+(-$T$3/$T$4+$T$3/$T$2)*G184)))*$T$7+(1-EXP(-(A185-A184)/$T$4))*(H184+$T$4/$T$5*(E185-V185)),V185-MINA($V$8,$V$9/$V$10*A185)),V185) -> 9.25 | H185: =EXP(-(A185-A184)/$T$6)*(H184-G185)+G185 -> 7.666284688 | I185: =V185-G185 -> 2.75 | J185: 2.75 | K185: 1.2 | L185: 0.2302467912 | M185: =(C185/$M$14 +(B185/$BC$14*(A185-A184))*$M$12)*$O$14 -> 12.732 | N185: 0 | O185: 34 | P185: =C185 -> 12.732 | Q185: 0 | R185: 2 | S185: =C185/$M$14 +(B185/$BC$14*(A185-A184))*$M$12 -> 12.732 | T185: 0 | U185: 0 | V185: 12 | W185: =IF($W$17, IF(Bode!$AT$49=0, (J180+J185*($X$16-1))/($X$16), (J175+J180*($X$16-1))/($X$16)), J185) -> 2.75 | BA185: =MAXA(BA184, MINA(+BA184+( W184 -$V$5*BC184)/((R185+$BC$13*B185+0.000001)*$V$3+((B184-$BC$8)/$BC$10-BD184-$BE$6-($BC$3+$BC$5+$BC$12+$BE$7+($BC$11+$BC$9)/$BC$10^2)*BD184/K184)*$V$5/$BC$2), +BA184+($V$7*$BC$10-BC184)/((B184-$BC$8)/$BC$10- BD184*K184/(K184+$BC$5) -$BE$6-($BC$3+ ($BC$5*K184)/($BC$5+K184) +$BC$12+$BE$7+($BC$11+$BC$9)/$BC$10^2)*BC184) *$BC$2, BA184+$V$4/$V$3)) -> 0.0002302467912 | BC185: =BC184+(BA185-BA184)*((B184-$BC$8)/$BC$10- BD184*K184/(K184+$BC$5) -$BE$6-($BC$3+ ($BC$5*K184)/($BC$5+K184) +$BC$12+$BE$7+($BC$9+$BC$11)/$BC$10^2)* BC184 ) /$BC$2 -> 12.732 | BD185: =BD184+(BA185-BA184)*(((BC185+BC184)*K185/2-BD184)/($BC$5+K185))/$BC$4 -> 4.852257807 | BE185: =BD185*(K185/($BC$5+K185))+BC185*($BC$5*K185/($BC$5+K185)) -> 5.006338726 | CG185: =CC184+(CF185)*((B184-$CC$8)/$CC$10-($CC$3+$CC$9)/$CC$10^2*CC184)/$CC$2 -> 0 | CH185: =(CC184+CG185)/2 -> 0
A186: 0.0002302467912 | B186: 36 | C186: 12.732 | D186: 4.852257807 | E186: 5.006338726 | F186: =F185 -> -7.14875707 | G186: =G185 -> 9.25 | H186: =H185 -> 7.666284688 | I186: =I185 -> 2.75 | J186: 2.75 | K186: 1.2 | L186: 0.2302467912 | M186: 0 | N186: =C186 -> 12.732 | O186: 34 | P186: 0 | Q186: =C186/2 -> 6.366 | R186: 2 | S186: 0 | T186: 0 | U186: 0 | V186: 12 | W186: =IF($W$17, IF(Bode!$AT$49=0, (J181+J186*($X$16-1))/($X$16), (J176+J181*($X$16-1))/($X$16)), J186) -> 2.75 | BA186: =BA185 -> 0.0002302467912 | BC186: =BC185 -> 12.732 | BD186: =BD185 -> 4.852257807 | BE186: =BE185 -> 5.006338726
A187: 0.0002361111111 | B187: 36 | C187: 11.2330145 | D187: 4.955463115 | E187: 5.081435839 | F187: =EXP(-(A187-A186)/$T$2)*(F186+V187-(E187+E186)/2)+((E187+E186)/2-V187) -> -7.048650863 | G187: =MINA(MAXA((EXP(-(A187-A186)/$T$2)*(-(E187+E186)/2+V187+F186)+(EXP(-(A187-A186)/$T$4)*((E187+E186)/2-V187-F186+(-$T$3/$T$4+$T$3/$T$2)*G186)))*$T$7+(1-EXP(-(A187-A186)/$T$4))*(H186+$T$4/$T$5*((E187+E186)/2-V187)),V187-MINA($V$8,$V$9/$V$10*A187)),V187) -> 9.25 | H187: =EXP(-(A187-A186)/$T$6)*(H186-G187)+G187 -> 7.734842276 | I187: =V187-G187 -> 2.75 | J187: 2.75 | K187: 1.2 | L187: 0.2361111111 | M187: 0 | N187: =C187 -> 11.2330145 | O187: 34 | P187: 0 | Q187: =C187/2 -> 5.616507252 | R187: 2 | S187: 0 | T187: 0 | U187: 0 | V187: 12 | W187: =IF($W$17, IF(Bode!$AT$49=0, (J182+J187*($X$16-1))/($X$16), (J177+J182*($X$16-1))/($X$16)), J187) -> 2.75 | BA187: =MINA(+BA185+BC185/((+BD185*K184/(K184+$BC$5) +($BC$3+ ($BC$5*K184)/ ($BC$5+K184) +$BC$7+$BC$12)*BC185+$BC$6)/$BC$2), BA184+1/$V$3) -> 0.0002361111111 | BC187: =BC185+(BA187-BA185)*(-BD185*K184/(K184+$BC$5) -($BC$3+ ($BC$5*K187)/($BC$5+K187) +$BC$7+$BC$12)*BC186-$BC$6)/$BC$2 -> 11.2330145 | BD187: =BD185+(BA187-BA185)*(((BC187+BC185)*K187/2-BD185)/($BC$5+K187))/$BC$4 -> 4.955463115 | BE187: =BD187*(K187/($BC$5+K187))+BC187*($BC$5*K187/($BC$5+K187)) -> 5.081435839
A188: 0.0002361111111 | B188: 36 | C188: 11.2330145 | D188: 4.955463115 | E188: 5.081435839 | F188: =EXP(-(A188-A187)/$T$2)*(F187+V188-(E188+E187)/2)+((E188+E187)/2-V188) -> -7.048650863 | G188: =MINA(MAXA((EXP(-(A188-A187)/$T$2)*(-(E188+E187)/2+V188+F187)+(EXP(-(A188-A187)/$T$4)*((E188+E187)/2-V188-F187+(-$T$3/$T$4+$T$3/$T$2)*G187)))*$T$7+(1-EXP(-(A188-A187)/$T$4))*(H187+$T$4/$T$5*((E188+E187)/2-V188)),V188-MINA($V$8,$V$9/$V$10*A188)),V188) -> 9.25 | H188: =EXP(-(A188-A187)/$T$6)*(H187-G188)+G188 -> 7.734842276 | I188: =V188-G188 -> 2.75 | J188: 2.75 | K188: 1.2 | L188: 0.2361111111 | M188: 0 | N188: =C188 -> 11.2330145 | O188: 34 | P188: 0 | Q188: =C188/2 -> 5.616507252 | R188: 2 | S188: 0 | T188: 0 | U188: 0 | V188: 12 | W188: =IF($W$17, IF(Bode!$AT$49=0, (J183+J188*($X$16-1))/($X$16), (J178+J183*($X$16-1))/($X$16)), J188) -> 2.75 | BA188: =BA184+1/$V$3 -> 0.0002361111111 | BC188: =BC187 -> 11.2330145 | BD188: =BD187+(BA188-BA187)*(-BD187/($BC$5+K188))/$BC$4 -> 4.955463115 | BE188: =BD188*(K188/($BC$5+K188))+BC188*($BC$5*K188/($BC$5+K188)) -> 5.081435839
A189: 0.0002361111111 | B189: 36 | C189: 11.2330145 | D189: 4.955463115 | E189: 5.081435839 | F189: =F188 -> -7.048650863 | G189: =G188 -> 9.25 | H189: =H188 -> 7.734842276 | I189: =I188 -> 2.75 | J189: 2.75 | K189: 1.2 | L189: 0.2361111111 | M189: =C189/$M$14 -> 11.2330145 | N189: 0 | O189: 35 | P189: =C189 -> 11.2330145 | Q189: =P189 -> 11.2330145 | R189: 2 | S189: =C189/$M$14*$O$14 -> 11.2330145 | T189: 0 | U189: =M189 -> 11.2330145 | V189: 12 | W189: =IF($W$17, IF(Bode!$AT$49=0, (J184+J189*($X$16-1))/($X$16), (J179+J184*($X$16-1))/($X$16)), J189) -> 2.75 | BA189: =BA188 -> 0.0002361111111 | BC189: =BC188 -> 11.2330145 | BD189: =BD188 -> 4.955463115 | BE189: =BE188 -> 5.081435839
A190: 0.0002372148409 | B190: 36 | C190: 12.732 | D190: 4.974677066 | E190: 5.126948833 | F190: =EXP(-(A190-A189)/$T$2)*(F189+V190-E190)+(E190-V190) -> -7.026015678 | G190: =MINA(MAXA((EXP(-(A190-A189)/$T$2)*(-E190+V190+F189)+(EXP(-(A190-A189)/$T$4)*(E190-V190-F189+(-$T$3/$T$4+$T$3/$T$2)*G189)))*$T$7+(1-EXP(-(A190-A189)/$T$4))*(H189+$T$4/$T$5*(E190-V190)),V190-MINA($V$8,$V$9/$V$10*A190)),V190) -> 9.25 | H190: =EXP(-(A190-A189)/$T$6)*(H189-G190)+G190 -> 7.747409755 | I190: =V190-G190 -> 2.75 | J190: 2.75 | K190: 1.2 | L190: 0.2372148409 | M190: =C190/$M$14 +(B190/$BC$14*(A190-A189))*$M$12 -> 12.732 | N190: 0 | O190: 35 | P190: =C190 -> 12.732 | Q190: =P190 -> 12.732 | R190: 2 | S190: =C190/$M$14*$O$14 -> 12.732 | T190: 0 | U190: =M190 -> 12.732 | V190: 12 | W190: =IF($W$17, IF(Bode!$AT$49=0, (J185+J190*($X$16-1))/($X$16), (J180+J185*($X$16-1))/($X$16)), J190) -> 2.75 | BA190: =MAXA(BA189, MINA(+BA189+( W189 -$V$5*BC189)/((R190+$BC$13*B190+0.000001)*$V$3+((B189-$BC$8)/$BC$10-BD189-$BE$6-($BC$3+$BC$5+$BC$12+$BE$7+($BC$11+$BC$9)/$BC$10^2)*BD189/K189)*$V$5/$BC$2), +BA189+($V$7*$BC$10-BC189)/((B189-$BC$8)/$BC$10- BD189*K189/(K189+$BC$5) -$BE$6-($BC$3+ ($BC$5*K189)/($BC$5+K189) +$BC$12+$BE$7+($BC$11+$BC$9)/$BC$10^2)*BC189) *$BC$2, BA189+$V$4/$V$3)) -> 0.0002372148409 | BC190: =BC189+(BA190-BA189)*((B189-$BC$8)/$BC$10- BD189*K189/(K189+$BC$5) -$BE$6-($BC$3+ ($BC$5*K189)/($BC$5+K189) +$BC$12+$BE$7+($BC$9+$BC$11)/$BC$10^2)* BC189 ) /$BC$2 -> 12.732 | BD190: =BD189+(BA190-BA189)*(((BC190+BC189)*K190/2-BD189)/($BC$5+K190))/$BC$4 -> 4.974677066 | BE190: =BD190*(K190/($BC$5+K190))+BC190*($BC$5*K190/($BC$5+K190)) -> 5.126948833 | CG190: =CC189+(CF190)*((B189-$CC$8)/$CC$10-($CC$3+$CC$9)/$CC$10^2*CC189)/$CC$2 -> 0 | CH190: =(CC189+CG190)/2 -> 0
A191: 0.0002372148409 | B191: 36 | C191: 12.732 | D191: 4.974677066 | E191: 5.126948833 | F191: =F190 -> -7.026015678 | G191: =G190 -> 9.25 | H191: =H190 -> 7.747409755 | I191: =I190 -> 2.75 | J191: 2.75 | K191: 1.2 | L191: 0.2372148409 | M191: 0 | N191: =C191 -> 12.732 | O191: 35 | P191: 0 | Q191: =C191/2 -> 6.366 | R191: 2 | S191: 0 | T191: 0 | U191: 0 | V191: 12 | W191: =IF($W$17, IF(Bode!$AT$49=0, (J186+J191*($X$16-1))/($X$16), (J181+J186*($X$16-1))/($X$16)), J191) -> 2.75 | BA191: =BA190 -> 0.0002372148409 | BC191: =BC190 -> 12.732 | BD191: =BD190 -> 4.974677066 | BE191: =BE190 -> 5.126948833
A192: 0.0002430555556 | B192: 36 | C192: 11.20734488 | D192: 5.075979915 | E192: 5.199716377 | F192: =EXP(-(A192-A191)/$T$2)*(F191+V192-(E192+E191)/2)+((E192+E191)/2-V192) -> -6.92789109 | G192: =MINA(MAXA((EXP(-(A192-A191)/$T$2)*(-(E192+E191)/2+V192+F191)+(EXP(-(A192-A191)/$T$4)*((E192+E191)/2-V192-F191+(-$T$3/$T$4+$T$3/$T$2)*G191)))*$T$7+(1-EXP(-(A192-A191)/$T$4))*(H191+$T$4/$T$5*((E192+E191)/2-V192)),V192-MINA($V$8,$V$9/$V$10*A192)),V192) -> 9.25 | H192: =EXP(-(A192-A191)/$T$6)*(H191-G192)+G192 -> 7.812199417 | I192: =V192-G192 -> 2.75 | J192: 2.75 | K192: 1.2 | L192: 0.2430555556 | M192: 0 | N192: =C192 -> 11.20734488 | O192: 35 | P192: 0 | Q192: =C192/2 -> 5.60367244 | R192: 2 | S192: 0 | T192: 0 | U192: 0 | V192: 12 | W192: =IF($W$17, IF(Bode!$AT$49=0, (J187+J192*($X$16-1))/($X$16), (J182+J187*($X$16-1))/($X$16)), J192) -> 2.75 | BA192: =MINA(+BA190+BC190/((+BD190*K189/(K189+$BC$5) +($BC$3+ ($BC$5*K189)/ ($BC$5+K189) +$BC$7+$BC$12)*BC190+$BC$6)/$BC$2), BA189+1/$V$3) -> 0.0002430555556 | BC192: =BC190+(BA192-BA190)*(-BD190*K189/(K189+$BC$5) -($BC$3+ ($BC$5*K192)/($BC$5+K192) +$BC$7+$BC$12)*BC191-$BC$6)/$BC$2 -> 11.20734488 | BD192: =BD190+(BA192-BA190)*(((BC192+BC190)*K192/2-BD190)/($BC$5+K192))/$BC$4 -> 5.075979915 | BE192: =BD192*(K192/($BC$5+K192))+BC192*($BC$5*K192/($BC$5+K192)) -> 5.199716377
A193: 0.0002430555556 | B193: 36 | C193: 11.20734488 | D193: 5.075979915 | E193: 5.199716377 | F193: =EXP(-(A193-A192)/$T$2)*(F192+V193-(E193+E192)/2)+((E193+E192)/2-V193) -> -6.92789109 | G193: =MINA(MAXA((EXP(-(A193-A192)/$T$2)*(-(E193+E192)/2+V193+F192)+(EXP(-(A193-A192)/$T$4)*((E193+E192)/2-V193-F192+(-$T$3/$T$4+$T$3/$T$2)*G192)))*$T$7+(1-EXP(-(A193-A192)/$T$4))*(H192+$T$4/$T$5*((E193+E192)/2-V193)),V193-MINA($V$8,$V$9/$V$10*A193)),V193) -> 9.25 | H193: =EXP(-(A193-A192)/$T$6)*(H192-G193)+G193 -> 7.812199417 | I193: =V193-G193 -> 2.75 | J193: 2.75 | K193: 1.2 | L193: 0.2430555556 | M193: 0 | N193: =C193 -> 11.20734488 | O193: 35 | P193: 0 | Q193: =C193/2 -> 5.60367244 | R193: 2 | S193: 0 | T193: 0 | U193: 0 | V193: 12 | W193: =IF($W$17, IF(Bode!$AT$49=0, (J188+J193*($X$16-1))/($X$16), (J183+J188*($X$16-1))/($X$16)), J193) -> 2.75 | BA193: =BA189+1/$V$3 -> 0.0002430555556 | BC193: =BC192 -> 11.20734488 | BD193: =BD192+(BA193-BA192)*(-BD192/($BC$5+K193))/$BC$4 -> 5.075979915 | BE193: =BD193*(K193/($BC$5+K193))+BC193*($BC$5*K193/($BC$5+K193)) -> 5.199716377
A194: 0.0002430555556 | B194: 36 | C194: 11.20734488 | D194: 5.075979915 | E194: 5.199716377 | F194: =F193 -> -6.92789109 | G194: =G193 -> 9.25 | H194: =H193 -> 7.812199417 | I194: =I193 -> 2.75 | J194: 2.75 | K194: 1.2 | L194: 0.2430555556 | M194: =C194/$M$14*$O$14 -> 11.20734488 | N194: 0 | O194: 36 | P194: =C194 -> 11.20734488 | Q194: 0 | R194: 2 | S194: =C194/$M$14 -> 11.20734488 | T194: 0 | U194: 0 | V194: 12 | W194: =IF($W$17, IF(Bode!$AT$49=0, (J189+J194*($X$16-1))/($X$16), (J184+J189*($X$16-1))/($X$16)), J194) -> 2.75 | BA194: =BA193 -> 0.0002430555556 | BC194: =BC193 -> 11.20734488 | BD194: =BD193 -> 5.075979915 | BE194: =BE193 -> 5.199716377
A195: 0.0002441825403 | B195: 36 | C195: 12.732 | D195: 5.095315725 | E195: 5.245804655 | F195: =EXP(-(A195-A194)/$T$2)*(F194+V195-E195)+(E195-V195) -> -6.905062029 | G195: =MINA(MAXA((EXP(-(A195-A194)/$T$2)*(-E195+V195+F194)+(EXP(-(A195-A194)/$T$4)*(E195-V195-F194+(-$T$3/$T$4+$T$3/$T$2)*G194)))*$T$7+(1-EXP(-(A195-A194)/$T$4))*(H194+$T$4/$T$5*(E195-V195)),V195-MINA($V$8,$V$9/$V$10*A195)),V195) -> 9.25 | H195: =EXP(-(A195-A194)/$T$6)*(H194-G195)+G195 -> 7.824375461 | I195: =V195-G195 -> 2.75 | J195: 2.75 | K195: 1.2 | L195: 0.2441825403 | M195: =(C195/$M$14 +(B195/$BC$14*(A195-A194))*$M$12)*$O$14 -> 12.732 | N195: 0 | O195: 36 | P195: =C195 -> 12.732 | Q195: 0 | R195: 2 | S195: =C195/$M$14 +(B195/$BC$14*(A195-A194))*$M$12 -> 12.732 | T195: 0 | U195: 0 | V195: 12 | W195: =IF($W$17, IF(Bode!$AT$49=0, (J190+J195*($X$16-1))/($X$16), (J185+J190*($X$16-1))/($X$16)), J195) -> 2.75 | BA195: =MAXA(BA194, MINA(+BA194+( W194 -$V$5*BC194)/((R195+$BC$13*B195+0.000001)*$V$3+((B194-$BC$8)/$BC$10-BD194-$BE$6-($BC$3+$BC$5+$BC$12+$BE$7+($BC$11+$BC$9)/$BC$10^2)*BD194/K194)*$V$5/$BC$2), +BA194+($V$7*$BC$10-BC194)/((B194-$BC$8)/$BC$10- BD194*K194/(K194+$BC$5) -$BE$6-($BC$3+ ($BC$5*K194)/($BC$5+K194) +$BC$12+$BE$7+($BC$11+$BC$9)/$BC$10^2)*BC194) *$BC$2, BA194+$V$4/$V$3)) -> 0.0002441825403 | BC195: =BC194+(BA195-BA194)*((B194-$BC$8)/$BC$10- BD194*K194/(K194+$BC$5) -$BE$6-($BC$3+ ($BC$5*K194)/($BC$5+K194) +$BC$12+$BE$7+($BC$9+$BC$11)/$BC$10^2)* BC194 ) /$BC$2 -> 12.732 | BD195: =BD194+(BA195-BA194)*(((BC195+BC194)*K195/2-BD194)/($BC$5+K195))/$BC$4 -> 5.095315725 | BE195: =BD195*(K195/($BC$5+K195))+BC195*($BC$5*K195/($BC$5+K195)) -> 5.245804655 | CG195: =CC194+(CF195)*((B194-$CC$8)/$CC$10-($CC$3+$CC$9)/$CC$10^2*CC194)/$CC$2 -> 0 | CH195: =(CC194+CG195)/2 -> 0
A196: 0.0002441825403 | B196: 36 | C196: 12.732 | D196: 5.095315725 | E196: 5.245804655 | F196: =F195 -> -6.905062029 | G196: =G195 -> 9.25 | H196: =H195 -> 7.824375461 | I196: =I195 -> 2.75 | J196: 2.75 | K196: 1.2 | L196: 0.2441825403 | M196: 0 | N196: =C196 -> 12.732 | O196: 36 | P196: 0 | Q196: =C196/2 -> 6.366 | R196: 2 | S196: 0 | T196: 0 | U196: 0 | V196: 12 | W196: =IF($W$17, IF(Bode!$AT$49=0, (J191+J196*($X$16-1))/($X$16), (J186+J191*($X$16-1))/($X$16)), J196) -> 2.75 | BA196: =BA195 -> 0.0002441825403 | BC196: =BC195 -> 12.732 | BD196: =BD195 -> 5.095315725 | BE196: =BE195 -> 5.245804655
A197: 0.00025 | B197: 36 | C197: 11.18229748 | D197: 5.194757267 | E197: 5.316294209 | F197: =EXP(-(A197-A196)/$T$2)*(F196+V197-(E197+E196)/2)+((E197+E196)/2-V197) -> -6.808875923 | G197: =MINA(MAXA((EXP(-(A197-A196)/$T$2)*(-(E197+E196)/2+V197+F196)+(EXP(-(A197-A196)/$T$4)*((E197+E196)/2-V197-F196+(-$T$3/$T$4+$T$3/$T$2)*G196)))*$T$7+(1-EXP(-(A197-A196)/$T$4))*(H196+$T$4/$T$5*((E197+E196)/2-V197)),V197-MINA($V$8,$V$9/$V$10*A197)),V197) -> 9.25 | H197: =EXP(-(A197-A196)/$T$6)*(H196-G197)+G197 -> 7.88560705 | I197: =V197-G197 -> 2.75 | J197: 2.75 | K197: 1.2 | L197: 0.25 | M197: 0 | N197: =C197 -> 11.18229748 | O197: 36 | P197: 0 | Q197: =C197/2 -> 5.591148739 | R197: 2 | S197: 0 | T197: 0 | U197: 0 | V197: 12 | W197: =IF($W$17, IF(Bode!$AT$49=0, (J192+J197*($X$16-1))/($X$16), (J187+J192*($X$16-1))/($X$16)), J197) -> 2.75 | BA197: =MINA(+BA195+BC195/((+BD195*K194/(K194+$BC$5) +($BC$3+ ($BC$5*K194)/ ($BC$5+K194) +$BC$7+$BC$12)*BC195+$BC$6)/$BC$2), BA194+1/$V$3) -> 0.00025 | BC197: =BC195+(BA197-BA195)*(-BD195*K194/(K194+$BC$5) -($BC$3+ ($BC$5*K197)/($BC$5+K197) +$BC$7+$BC$12)*BC196-$BC$6)/$BC$2 -> 11.18229748 | BD197: =BD195+(BA197-BA195)*(((BC197+BC195)*K197/2-BD195)/($BC$5+K197))/$BC$4 -> 5.194757267 | BE197: =BD197*(K197/($BC$5+K197))+BC197*($BC$5*K197/($BC$5+K197)) -> 5.316294209
A198: 0.00025 | B198: 36 | C198: 11.18229748 | D198: 5.194757267 | E198: 5.316294209 | F198: =EXP(-(A198-A197)/$T$2)*(F197+V198-(E198+E197)/2)+((E198+E197)/2-V198) -> -6.808875923 | G198: =MINA(MAXA((EXP(-(A198-A197)/$T$2)*(-(E198+E197)/2+V198+F197)+(EXP(-(A198-A197)/$T$4)*((E198+E197)/2-V198-F197+(-$T$3/$T$4+$T$3/$T$2)*G197)))*$T$7+(1-EXP(-(A198-A197)/$T$4))*(H197+$T$4/$T$5*((E198+E197)/2-V198)),V198-MINA($V$8,$V$9/$V$10*A198)),V198) -> 9.25 | H198: =EXP(-(A198-A197)/$T$6)*(H197-G198)+G198 -> 7.88560705 | I198: =V198-G198 -> 2.75 | J198: 2.75 | K198: 1.2 | L198: 0.25 | M198: 0 | N198: =C198 -> 11.18229748 | O198: 36 | P198: 0 | Q198: =C198/2 -> 5.591148739 | R198: 2 | S198: 0 | T198: 0 | U198: 0 | V198: 12 | W198: =IF($W$17, IF(Bode!$AT$49=0, (J193+J198*($X$16-1))/($X$16), (J188+J193*($X$16-1))/($X$16)), J198) -> 2.75 | BA198: =BA194+1/$V$3 -> 0.00025 | BC198: =BC197 -> 11.18229748 | BD198: =BD197+(BA198-BA197)*(-BD197/($BC$5+K198))/$BC$4 -> 5.194757267 | BE198: =BD198*(K198/($BC$5+K198))+BC198*($BC$5*K198/($BC$5+K198)) -> 5.316294209
A199: 0.00025 | B199: 36 | C199: 11.18229748 | D199: 5.194757267 | E199: 5.316294209 | F199: =F198 -> -6.808875923 | G199: =G198 -> 9.25 | H199: =H198 -> 7.88560705 | I199: =I198 -> 2.75 | J199: 2.75 | K199: 1.2 | L199: 0.25 | M199: =C199/$M$14 -> 11.18229748 | N199: 0 | O199: 37 | P199: =C199 -> 11.18229748 | Q199: =P199 -> 11.18229748 | R199: 2 | S199: =C199/$M$14*$O$14 -> 11.18229748 | T199: 0 | U199: =M199 -> 11.18229748 | V199: 12 | W199: =IF($W$17, IF(Bode!$AT$49=0, (J194+J199*($X$16-1))/($X$16), (J189+J194*($X$16-1))/($X$16)), J199) -> 2.75 | BA199: =BA198 -> 0.00025 | BC199: =BC198 -> 11.18229748 | BD199: =BD198 -> 5.194757267 | BE199: =BE198 -> 5.316294209
A200: 0.0002511498953 | B200: 36 | C200: 12.732 | D200: 5.214201925 | E200: 5.362933916 | F200: =EXP(-(A200-A199)/$T$2)*(F199+V200-E200)+(E200-V200) -> -6.78586787 | G200: =MINA(MAXA((EXP(-(A200-A199)/$T$2)*(-E200+V200+F199)+(EXP(-(A200-A199)/$T$4)*(E200-V200-F199+(-$T$3/$T$4+$T$3/$T$2)*G199)))*$T$7+(1-EXP(-(A200-A199)/$T$4))*(H199+$T$4/$T$5*(E200-V200)),V200-MINA($V$8,$V$9/$V$10*A200)),V200) -> 9.25 | H200: =EXP(-(A200-A199)/$T$6)*(H199-G200)+G200 -> 7.897395313 | I200: =V200-G200 -> 2.75 | J200: 2.75 | K200: 1.2 | L200: 0.2511498953 | M200: =C200/$M$14 +(B200/$BC$14*(A200-A199))*$M$12 -> 12.732 | N200: 0 | O200: 37 | P200: =C200 -> 12.732 | Q200: =P200 -> 12.732 | R200: 2 | S200: =C200/$M$14*$O$14 -> 12.732 | T200: 0 | U200: =M200 -> 12.732 | V200: 12 | W200: =IF($W$17, IF(Bode!$AT$49=0, (J195+J200*($X$16-1))/($X$16), (J190+J195*($X$16-1))/($X$16)), J200) -> 2.75 | BA200: =MAXA(BA199, MINA(+BA199+( W199 -$V$5*BC199)/((R200+$BC$13*B200+0.000001)*$V$3+((B199-$BC$8)/$BC$10-BD199-$BE$6-($BC$3+$BC$5+$BC$12+$BE$7+($BC$11+$BC$9)/$BC$10^2)*BD199/K199)*$V$5/$BC$2), +BA199+($V$7*$BC$10-BC199)/((B199-$BC$8)/$BC$10- BD199*K199/(K199+$BC$5) -$BE$6-($BC$3+ ($BC$5*K199)/($BC$5+K199) +$BC$12+$BE$7+($BC$11+$BC$9)/$BC$10^2)*BC199) *$BC$2, BA199+$V$4/$V$3)) -> 0.0002511498953 | BC200: =BC199+(BA200-BA199)*((B199-$BC$8)/$BC$10- BD199*K199/(K199+$BC$5) -$BE$6-($BC$3+ ($BC$5*K199)/($BC$5+K199) +$BC$12+$BE$7+($BC$9+$BC$11)/$BC$10^2)* BC199 ) /$BC$2 -> 12.732 | BD200: =BD199+(BA200-BA199)*(((BC200+BC199)*K200/2-BD199)/($BC$5+K200))/$BC$4 -> 5.214201925 | BE200: =BD200*(K200/($BC$5+K200))+BC200*($BC$5*K200/($BC$5+K200)) -> 5.362933916 | CG200: =CC199+(CF200)*((B199-$CC$8)/$CC$10-($CC$3+$CC$9)/$CC$10^2*CC199)/$CC$2 -> 0 | CH200: =(CC199+CG200)/2 -> 0
A201: 0.0002511498953 | B201: 36 | C201: 12.732 | D201: 5.214201925 | E201: 5.362933916 | F201: =F200 -> -6.78586787 | G201: =G200 -> 9.25 | H201: =H200 -> 7.897395313 | I201: =I200 -> 2.75 | J201: 2.75 | K201: 1.2 | L201: 0.2511498953 | M201: 0 | N201: =C201 -> 12.732 | O201: 37 | P201: 0 | Q201: =C201/2 -> 6.366 | R201: 2 | S201: 0 | T201: 0 | U201: 0 | V201: 12 | W201: =IF($W$17, IF(Bode!$AT$49=0, (J196+J201*($X$16-1))/($X$16), (J191+J196*($X$16-1))/($X$16)), J201) -> 2.75 | BA201: =BA200 -> 0.0002511498953 | BC201: =BC200 -> 12.732 | BD201: =BD200 -> 5.214201925 | BE201: =BE200 -> 5.362933916
... 924 more rows

Sheet FETS
C4: Part Number | D4: Configuration | E4: Voltage Rating | F4: Rds | G4: Output Cap | H4: Gate charge | I4: Switching Time
E5: V | F5: mOhm | G5: at Rated V | H5: at voltage | I5: ns
C6: EPC2152 | D6: HB Integrated | E6: 80 | F6: 8.5

Sheet MultiSweeps
S5: Loop Conditions
S6: Line (V) | T6: Load (%) | U6: Load (A) | V6: Load R
S7: =InputMin -> 36 | T7: 100 | U7: =T7/100*OutputAmps -> 10 | V7: =OutputVolts/MultiSweeps!U7 -> 1.2
S8: =S7 -> 36 | T8: 50 | U8: 5 | V8: =OutputVolts/MultiSweeps!U8 -> 2.4
S9: =S7 -> 36 | T9: 10 | U9: 1 | V9: =OutputVolts/MultiSweeps!U9 -> 12
S10: =InputNom -> 48 | T10: 100 | U10: 10 | V10: =OutputVolts/MultiSweeps!U10 -> 1.2
S11: =S10 -> 48 | T11: 50 | U11: 5 | V11: =OutputVolts/MultiSweeps!U11 -> 2.4
S12: =S10 -> 48 | T12: 10 | U12: 1 | V12: =OutputVolts/MultiSweeps!U12 -> 12
S13: =InputMax -> 60 | T13: 100 | U13: 10 | V13: =OutputVolts/MultiSweeps!U13 -> 1.2
S14: =S13 -> 60 | T14: 50 | U14: 5 | V14: =OutputVolts/MultiSweeps!U14 -> 2.4
S15: =S13 -> 60 | T15: 10 | U15: 1 | V15: =OutputVolts/MultiSweeps!U15 -> 12
M24: =multifrequency -> 61252.38061 | N24: Hz
M27: Magnitude | N27: Phase
M28: =OFFSET(E59,cursoroffset,0) -> -19.38912337 | N28: =OFFSET(F59,cursoroffset,0) -> -132.3810432
M29: =OFFSET(G59,cursoroffset,0) -> -19.38891763 | N29: =OFFSET(H59,cursoroffset,0) -> -132.5215601
M30: =OFFSET(I59,cursoroffset,0) -> -18.9949124 | N30: =OFFSET(J59,cursoroffset,0) -> -89.84297145
M31: =OFFSET(K59,cursoroffset,0) -> -16.88907228 | N31: =OFFSET(L59,cursoroffset,0) -> -132.4128127
M32: =OFFSET(M59,cursoroffset,0) -> -16.88887857 | N32: =OFFSET(N59,cursoroffset,0) -> -132.5531443
M33: =OFFSET(O59,cursoroffset,0) -> -15.46750302 | N33: =OFFSET(P59,cursoroffset,0) -> -86.47562491
M34: =OFFSET(Q59,cursoroffset,0) -> -14.94904267 | N34: =OFFSET(R59,cursoroffset,0) -> -132.4320346
M35: =OFFSET(S59,cursoroffset,0) -> -14.94885647 | N35: =OFFSET(T59,cursoroffset,0) -> -132.5720436
M36: =OFFSET(U60,cursoroffset,0) -> -13.39445974 | N36: =OFFSET(V60,cursoroffset,0) -> -87.44438048
F41: =OFFSET(D59,cursoroffset,0) -> 61252.38061 | G41: Hz
A55: =Bode!AS55 -> 0 | B55: =Bode!AT55 -> 0 | C55: =Bode!AU55 -> 0 | D55: ='AP300 Measurements'!V54 -> 0 | E55: Pointer Offset
A57: Live Imports | F57: =S7&" V Input " & U7 & " A Load" -> 36 V Input 10 A Load | H57: =S8&" V Input " & U8 & " A Load" -> 36 V Input 5 A Load | J57: =S9&" V Input " & U9 & " A Load" -> 36 V Input 1 A Load | L57: =S10&" V Input " & U10 & " A Load" -> 48 V Input 10 A Load | N57: =S11&" V Input " & U11 & " A Load" -> 48 V Input 5 A Load | P57: =S12&" V Input " & U12 & " A Load" -> 48 V Input 1 A Load | R57: =S13&" V Input " & U13 & " A Load" -> 60 V Input 10 A Load | T57: =S14&" V Input " & U14 & " A Load" -> 60 V Input 5 A Load | V57: =S15&" V Input " & U15 & " A Load" -> 60 V Input 1 A Load | AQ57: Min | AR57: curs offset | AS57: 167 | AT57: attach | AU57: 0
B58: Present Measurement | E58: Dataset 1 | G58: Dataset 2 | I58: Dataset 3 | K58: Dataset 4 | M58: Dataset 5 | O58: Dataset 6 | Q58: Dataset 7 | S58: Dataset 8 | U58: Dataset 9 | W58: Dataset 10 | Y58: Dataset 11 | AO58: Cursor | AQ58: Max | AR58: Cursor
A59: Frequency | B59: Magnitude | C59: Phase | D59: Frequency | E59: Magnitude | F59: Phase | G59: Magnitude | H59: Phase | I59: Magnitude | J59: Phase | K59: Magnitude | L59: Phase | M59: Magnitude | N59: Phase | O59: Magnitude | P59: Phase | Q59: Magnitude | R59: Phase | S59: Magnitude | T59: Phase | U59: Magnitude | V59: Phase | W59: Magnitude | X59: Phase | Y59: Magnitude | Z59: Phase | AO59: Magnitude | AP59: Phase | AQ59: frequency | AR59: Magnitude | AS59: Phase | AT59: frequency
A60: =IF(Bode!AS60=0,10,Bode!AS60) -> 10.01172 | B60: =Bode!AT60 -> 22.08842 | C60: =Bode!AU60 -> -0.6390768 | D60: 10.01 | E60: 56.20109834 | F60: -89.32127974 | G60: 56.2011101 | H60: -89.28768574 | I60: 54.70516972 | J60: -96.73162777 | K60: 58.70110126 | L60: -89.31368432 | M60: 58.70111233 | N60: -89.28013497 | O60: 58.34332092 | P60: -97.29862305 | Q60: 60.64110295 | R60: -89.30908883 | S60: 60.64111359 | T60: -89.27561679 | U60: 60.88636937 | V60: -97.61334999 | AO60: =IF(AR60=$D$55,$AR$57,IF(AR60=1+$D$55,$AR$58,"")) ->  | AP60: =IF(AR60=$D$55,$AS$57,IF(AR60=1+$D$55,$AS$58,"")) ->  | AQ60: =OFFSET(D59,D55,0) -> Frequency | AR60: =MIN(E60:E259,G60:G259,I60:I259,K60:K259,M60:M259,O60:O259,Q60:Q259,S60:S259,U60:U259) -> -42.78363912 | AS60: =MIN(C59:C258,F59:F258,H59:H258,J59:J258,L59:L258,N59:N258,P59:P258,R59:R258,T59:T258,V59:V258) -> -179.8496 | AT60: =multifrequency -> 61252.38061
A61: =IF(Bode!AS61=0,10,Bode!AS61) -> 10.52395 | B61: =Bode!AT61 -> 22.09799 | C61: =Bode!AU61 -> -0.7193996 | D61: 10.62953051 | E61: 55.67959796 | F61: -89.27927583 | G61: 55.67961122 | H61: -89.24360251 | I61: 54.17407392 | J61: -97.1423661 | K61: 58.17960125 | L61: -89.27121029 | M61: 58.17961373 | N61: -89.23558437 | O61: 57.8107447 | P61: -97.74302608 | Q61: 60.11960316 | R61: -89.26633036 | S61: 60.11961516 | T61: -89.23078654 | U61: 60.35292672 | V61: -98.07634902 | AR61: =MAX(E60:E259,G60:G259,I60:I259,K60:K259,M60:M259,O60:O259,Q60:Q259,S60:S259,U60:U259) -> 60.88636937 | AS61: =MAX(C60:C259,F60:F259,H60:H259,J60:J259,L60:L259,N60:N259,P60:P259,R60:R259,T60:T259,V60:V259) -> 179.4965 | AT61: =AT60 -> 61252.38061
A62: =IF(Bode!AS62=0,10,Bode!AS62) -> 11.03617 | B62: =Bode!AT62 -> 22.09776 | C62: =Bode!AU62 -> -0.6601194 | D62: 11.18710128 | E62: 55.23562309 | F62: -89.24147321 | G62: 55.23563778 | H62: -89.20392849 | I62: 53.72099024 | J62: -97.51113615 | K62: 57.73562674 | L62: -89.23298455 | M62: 57.73564057 | N62: -89.19548973 | O62: 57.35625916 | P62: -98.14188123 | Q62: 59.67562885 | R62: -89.22784863 | S62: 59.67564214 | T62: -89.1904402 | U62: 59.89762117 | V62: -98.49180925 | AR62: Horizontal Cursor
A63: =IF(Bode!AS63=0,10,Bode!AS63) -> 11.64153 | B63: =Bode!AT63 -> 22.09824 | C63: =Bode!AU63 -> -0.7534858 | D63: 11.77419713 | E63: 54.79145358 | F63: -89.2016693 | G63: 54.79146985 | H63: -89.16215407 | I63: 53.26674844 | J63: -97.8984761 | K63: 57.29145762 | L63: -89.19273512 | M63: 57.29147294 | N63: -89.1532724 | O63: 56.90047117 | P63: -98.56067127 | Q63: 59.23145996 | R63: -89.18732964 | S63: 59.23147468 | T63: -89.14795785 | U63: 59.44092921 | V63: -98.92794319 | AR63: =M28 -> -19.38912337 | AS63: =N28 -> -132.3810432 | AT63: =D60 -> 10.01
A64: =IF(Bode!AS64=0,10,Bode!AS64) -> 12.20033 | B64: =Bode!AT64 -> 22.0981 | C64: =Bode!AU64 -> -0.8084409 | D64: 12.39238149 | E64: 54.34710067 | F64: -89.1597582 | G64: 54.34711869 | H64: -89.11816809 | I64: 52.81126016 | J64: -98.30521462 | K64: 56.84710514 | L64: -89.15035491 | M64: 56.84712211 | N64: -89.10882005 | O64: 56.44327831 | P64: -99.0002613 | Q64: 58.78710773 | R64: -89.1446656 | S64: 58.78712404 | T64: -89.10322644 | U64: 58.98274038 | V64: -99.38563312 | AR64: =AR63 -> -19.38912337 | AS64: =AS63 -> -132.3810432 | AT64: =D259 -> 288000.1
A65: =IF(Bode!AS65=0,10,Bode!AS65) -> 12.85225 | B65: =Bode!AT65 -> 22.09048 | C65: =Bode!AU65 -> -0.791647 | D65: 13.0433006 | E65: 53.90257522 | F65: -89.11562844 | G65: 53.90259518 | H65: -89.07185353 | I65: 52.35442695 | J65: -98.73219991 | K65: 56.40258018 | L65: -89.10573118 | M65: 56.40259897 | N65: -89.06201443 | O65: 55.9845669 | P65: -99.46153247 | Q65: 58.34258305 | R65: -89.099743 | S65: 58.34260112 | T65: -89.05612697 | U65: 58.52293228 | V65: -99.86577507
A66: =IF(Bode!AS66=0,10,Bode!AS66) -> 13.50418 | B66: =Bode!AT66 -> 22.0937 | C66: =Bode!AU66 -> -0.8251558 | D66: 13.72868786 | E66: 53.45788778 | F66: -89.06916264 | G66: 53.4579099 | H66: -89.0230872 | I66: 51.89613945 | J66: -99.18029702 | K66: 55.95789327 | L66: -89.05874524 | M66: 55.9579141 | N66: -89.01273101 | O66: 55.52421112 | P66: -99.94537848 | Q66: 57.89789645 | R66: -89.05244236 | S66: 57.89791647 | T66: -89.00653414 | U66: 58.06136967 | V66: -100.3692747 | AR66: Inductor Cursor
A67: =IF(Bode!AS67=0,10,Bode!AS67) -> 14.1561 | B67: =Bode!AT67 -> 22.10074 | C67: =Bode!AU67 -> -0.856816 | D67: 14.45036847 | E67: 53.01304858 | F67: -89.02023721 | G67: 53.01307309 | H67: -88.97173937 | I67: 51.43627656 | J67: -99.65038461 | K67: 55.51305467 | L67: -89.00927212 | M67: 55.51307774 | N67: -88.96083871 | O67: 55.06207211 | P67: -100.4527012 | Q67: 57.45305819 | R67: -89.00263787 | S67: 57.45308037 | T67: -88.95431604 | U67: 57.59790362 | V67: -100.8970424 | AR67: =MIN(AX60:AX259) -> 0 | AT67: =AT60 -> 61252.38061
A68: =IF(Bode!AS68=0,10,Bode!AS68) -> 14.90116 | B68: =Bode!AT68 -> 22.10018 | C68: =Bode!AU68 -> -0.8875581 | D68: 15.21026426 | E68: 52.5680676 | F68: -88.96872206 | G68: 52.56809475 | H68: -88.9176735 | I68: 50.97470461 | J68: -100.1433509 | K68: 55.06807434 | L68: -88.95718027 | M68: 55.0680999 | N68: -88.90619952 | O68: 54.59799709 | P68: -100.9844055 | Q68: 57.00807825 | R68: -88.9501971 | S68: 57.00810282 | T68: -88.89933379 | U68: 57.13237051 | V68: -101.4499873 | AR68: =MAX(AX60:AX259) -> 0 | AS68: =IF(AU68=$V$54,$AV$56,IF(AU68=1+$V$54,$AV$57,"")) -> 0 | AT68: =AT67 -> 61252.38061
A69: =IF(Bode!AS69=0,10,Bode!AS69) -> 15.64622 | B69: =Bode!AT69 -> 22.09534 | C69: =Bode!AU69 -> -0.944502 | D69: 16.01039886 | E69: 52.12295459 | F69: -88.91448024 | G69: 52.12298467 | H69: -88.86074582 | I69: 50.51127639 | J69: -100.6600891 | K69: 54.62296206 | L69: -88.9023312 | M69: 54.62299039 | N69: -88.84866814 | O69: 54.13181842 | P69: -101.5413933 | Q69: 56.56296639 | R69: -88.89498061 | S69: 56.56299362 | T69: -88.84144118 | U69: 56.66459117 | V69: -102.0290105 | AR69: Inductor Horizontal
A70: =IF(Bode!AS70=0,10,Bode!AS70) -> 16.43784 | B70: =Bode!AT70 -> 22.08983 | C70: =Bode!AU70 -> -1.017237 | D70: 16.85290303 | E70: 51.67771912 | F70: -88.85736755 | G70: 51.67775246 | H70: -88.80080498 | I70: 50.04583029 | J70: -101.201491 | K70: 54.1777274 | L70: -88.84457908 | M70: 54.17775878 | N70: -88.78809162 | O70: 53.66335266 | P70: -102.1245559 | Q70: 56.1177322 | R70: -88.83684162 | S70: 56.11776237 | T70: -88.78048428 | U70: 56.19436993 | V70: -102.6349968 | AR70: =OFFSET(N25,cursorattach,0) -> 0 | AT70: =AT63 -> 10.01
A71: =IF(Bode!AS71=0,10,Bode!AS71) -> 17.27603 | B71: =Bode!AT71 -> 22.10207 | C71: =Bode!AU71 -> -1.060394 | D71: 17.74002037 | E71: 51.23237062 | F71: -88.79723221 | G71: 51.23240756 | H71: -88.73769164 | I71: 49.57818934 | J71: -101.7684411 | K71: 53.73237979 | L71: -88.78377044 | M71: 53.73241457 | N71: -88.72430892 | O71: 53.19239968 | P71: -102.7347662 | Q71: 55.67238511 | R71: -88.77562561 | S71: 55.67241854 | T71: -88.71630105 | U71: 55.72149371 | V71: -103.2688057 | AR71: =AR70 -> 0 | AT71: s
A72: =IF(Bode!AS72=0,10,Bode!AS72) -> 18.16079 | B72: =Bode!AT72 -> 22.10487 | C72: =Bode!AU72 -> -1.08056 | D72: 18.67411327 | E72: 50.7869184 | F72: -88.73391444 | G72: 50.78695933 | H72: -88.67123807 | I72: 49.10816028 | J72: -102.3618079 | K72: 53.28692857 | L72: -88.71974369 | M72: 53.2869671 | N72: -88.65715052 | O72: 52.71874175 | P72: -103.3728683 | Q72: 55.22693446 | R72: -88.7111699 | S72: 55.2269715 | T72: -88.6487209 | U72: 55.24573122 | V72: -103.9312603
A73: =IF(Bode!AS73=0,10,Bode!AS73) -> 19.09211 | B73: =Bode!AT73 -> 22.09236 | C73: =Bode!AU73 -> -1.152472 | D73: 19.65766925 | E73: 50.34137174 | F73: -88.66724604 | G73: 50.3414171 | H73: -88.60126769 | I73: 48.63553272 | J73: -102.9824352 | K73: 52.84138301 | L73: -88.65232874 | M73: 52.84142571 | N73: -88.58643797 | O73: 52.24214276 | P73: -104.0396673 | Q73: 54.78138954 | R73: -88.64330326 | S73: 54.78143058 | T73: -88.57756424 | U73: 54.76683218 | V73: -104.6231356
A74: =IF(Bode!AS74=0,10,Bode!AS74) -> 20.07 | B74: =Bode!AT74 -> 22.09961 | C74: =Bode!AU74 -> -1.182565 | D74: 20.69330751 | E74: 49.89573989 | F74: -88.59704995 | G74: 49.89579015 | H74: -88.52759465 | I74: 48.1600782 | J74: -103.6311315 | K74: 52.39575237 | L74: -88.58134654 | M74: 52.3957997 | N74: -88.51198341 | O74: 51.76234745 | P74: -104.7359159 | Q74: 54.33575961 | R74: -88.57184543 | S74: 54.3358051 | T74: -88.50264204 | U74: 54.2845267 | V74: -105.3451445
A75: =IF(Bode!AS75=0,10,Bode!AS75) -> 21.09446 | B75: =Bode!AT75 -> 22.09707 | C75: =Bode!AU75 -> -1.272218 | D75: 21.78378598 | E75: 49.45003214 | F75: -88.52313982 | G75: 49.45008784 | H75: -88.45002327 | I75: 47.68154949 | J75: -104.3086579 | K75: 51.95004597 | L75: -88.50660863 | M75: 51.95009841 | N75: -88.4335891 | O75: 51.27908083 | P75: -105.462301 | Q75: 53.89005399 | R75: -88.49660668 | S75: 53.8901044 | T75: -88.42375531 | U75: 53.79852478 | V75: -106.0979229
A76: =IF(Bode!AS76=0,10,Bode!AS76) -> 22.16548 | B76: =Bode!AT76 -> 22.10435 | C76: =Bode!AU76 -> -1.360092 | D76: 22.93200861 | E76: 49.00425786 | F76: -88.44531947 | G76: 49.00431959 | H76: -88.36834762 | I76: 47.19967993 | J76: -105.0157151 | K76: 51.50427319 | L76: -88.42791663 | M76: 51.50433131 | N76: -88.35104689 | O76: 50.79204774 | P76: -106.2194279 | Q76: 53.44428208 | R76: -88.4173873 | S76: 53.44433794 | T76: -88.34069457 | U76: 53.30851603 | V76: -106.8820127
A77: =IF(Bode!AS77=0,10,Bode!AS77) -> 23.32963 | B77: =Bode!AT77 -> 22.0989 | C77: =Bode!AU77 -> -1.406925 | D77: 24.14103314 | E77: 48.55842658 | F77: -88.36338244 | G77: 48.558495 | H77: -88.28235093 | I77: 46.71418287 | J77: -105.7529277 | K77: 51.05844357 | L77: -88.34506175 | M77: 51.05850798 | N77: -88.26413769 | O77: 50.30093265 | P77: -107.0078031 | Q77: 52.99845342 | R77: -88.33397709 | S77: 52.99851533 | T77: -88.25323936 | U77: 52.81416966 | V77: -107.6978438
A78: =IF(Bode!AS78=0,10,Bode!AS78) -> 24.49378 | B78: =Bode!AT78 -> 22.09995 | C78: =Bode!AU78 -> -1.486039 | D78: 25.4140792 | E78: 48.11254803 | F78: -88.27711145 | G78: 48.11262385 | H78: -88.19180503 | I78: 46.22475142 | J78: -106.5208286 | K78: 50.61256685 | L78: -88.25782424 | M78: 50.61263824 | N78: -88.17263092 | O78: 49.80539965 | P78: -107.8278157 | Q78: 52.55257777 | R78: -88.2461548 | S78: 52.55264639 | T78: -88.16115761 | U78: 52.31513476 | V78: -108.5457142
A79: =IF(Bode!AS79=0,10,Bode!AS79) -> 25.75107 | B79: =Bode!AT79 -> 22.10264 | C79: =Bode!AU79 -> -1.589962 | D79: 26.75453694 | E79: 47.66663217 | F79: -88.18627779 | G79: 47.66671621 | H79: -88.09646979 | I79: 45.73105831 | J79: -107.3198401 | K79: 50.16665304 | L79: -88.16597282 | M79: 50.16673216 | N79: -88.07628386 | O79: 49.30509289 | P79: -108.6797172 | Q79: 52.10666514 | R79: -88.1536876 | S79: 52.10674119 | T79: -88.0642051 | U79: 51.8110409 | V79: -109.4257693
A80: =IF(Bode!AS80=0,10,Bode!AS80) -> 27.05492 | B80: =Bode!AT80 -> 22.10493 | C80: =Bode!AU80 -> -1.606093 | D80: 28.165976 | E80: 47.22068935 | F80: -88.09064082 | G80: 47.22078249 | H80: -87.99609252 | I80: 45.23275619 | J80: -108.1502547 | K80: 49.72071248 | L80: -88.06926412 | M80: 49.72080017 | N80: -87.97484109 | O80: 48.79963725 | P80: -109.5636006 | Q80: 51.66072588 | R80: -88.05633045 | S80: 51.66081018 | T80: -87.96212476 | U80: 51.30149922 | V80: -110.3379797
A81: =IF(Bode!AS81=0,10,Bode!AS81) -> 28.4519 | B81: =Bode!AT81 -> 22.10208 | C81: =Bode!AU81 -> -1.676953 | D81: 29.65215507 | E81: 46.77473027 | F81: -87.98994727 | G81: 46.77483351 | H81: -87.89040725 | I81: 44.72947815 | J81: -109.0122144 | K81: 49.27475591 | L81: -87.967442 | M81: 49.27485311 | N81: -87.86803381 | O81: 48.28863957 | P81: -110.4793779 | Q81: 51.21477077 | R81: -87.95382549 | S81: 51.2148642 | T81: -87.85464609 | U81: 50.78610397 | V81: -111.2821187
A82: =IF(Bode!AS82=0,10,Bode!AS82) -> 29.89545 | B82: =Bode!AT82 -> 22.12174 | C82: =Bode!AU82 -> -1.74862 | D82: 31.21703186 | E82: 46.32876615 | F82: -87.88393068 | G82: 46.32888058 | H82: -87.77913412 | I82: 44.22083871 | J82: -109.9056886 | K82: 48.82879457 | L82: -87.86023697 | M82: 48.8289023 | N82: -87.75557915 | O82: 47.77169025 | P82: -111.4267575 | Q82: 50.76881104 | R82: -87.84590141 | S82: 50.7689146 | T82: -87.74148442 | U82: 50.26443453 | V82: -112.2577393
A83: =IF(Bode!AS83=0,10,Bode!AS83) -> 31.43214 | B83: =Bode!AT83 -> 22.11371 | C83: =Bode!AU83 -> -1.874907 | D83: 32.86477364 | E83: 45.88280877 | F83: -87.77231068 | G83: 45.8829356 | H83: -87.66197868 | I83: 43.70643531 | J83: -110.8304518 | K83: 48.38284026 | L83: -87.74736547 | M83: 48.38295968 | N83: -87.63717947 | O83: 47.24836553 | P83: -112.4052211 | Q83: 50.32285852 | R83: -87.73227271 | S83: 50.32297331 | T83: -87.62234022 | U83: 49.73605812 | V83: -113.2641521
A84: =IF(Bode!AS84=0,10,Bode!AS84) -> 33.01539 | B84: =Bode!AT84 -> 22.11593 | C84: =Bode!AU84 -> -1.988691 | D84: 34.59976838 | E84: 45.43687055 | F84: -87.6547923 | G84: 45.43701115 | H84: -87.53863108 | I84: 43.18585027 | J84: -111.78606 | K84: 47.93690546 | L84: -87.62852919 | M84: 47.93703783 | N84: -87.5125216 | O84: 46.71823022 | P84: -113.4140017 | Q84: 49.8769257 | R84: -87.61263903 | S84: 49.87705294 | T84: -87.49689831 | U84: 49.20053296 | V84: -114.3004029
A85: =IF(Bode!AS85=0,10,Bode!AS85) -> 34.69177 | B85: =Bode!AT85 -> 22.11229 | C85: =Bode!AU85 -> -2.044849 | D85: 36.42663639 | E85: 44.99096472 | F85: -87.53106526 | G85: 44.99112057 | H85: -87.40876538 | I85: 42.65865333 | J85: -112.7718286 | K85: 47.49100342 | L85: -87.50341428 | M85: 47.49115015 | N85: -87.38127606 | O85: 46.18084118 | P85: -114.4520618 | Q85: 49.43102585 | R85: -87.4866844 | S85: 49.4311669 | T85: -87.3648271 | U85: 48.65741221 | V85: -115.3652535
A86: =IF(Bode!AS86=0,10,Bode!AS86) -> 36.46128 | B86: =Bode!AT86 -> 22.10895 | C86: =Bode!AU86 -> -2.139784 | D86: 38.35024263 | E86: 44.54510536 | F86: -87.40080317 | G86: 44.54527812 | H86: -87.27203869 | I86: 42.12440481 | J86: -113.7868103 | K86: 47.04514826 | L86: -87.37169064 | M86: 47.04531091 | N86: -87.24309625 | O86: 45.63575124 | P86: -115.5180744 | Q86: 48.98517312 | R86: -87.35407646 | S86: 48.98532947 | T86: -87.22577777 | U86: 48.10624846 | V86: -116.457164
A87: =IF(Bode!AS87=0,10,Bode!AS87) -> 38.32392 | B87: =Bode!AT87 -> 22.12092 | C87: =Bode!AU87 -> -2.252539 | D87: 40.3757097 | E87: 44.09930755 | F87: -87.26366277 | G87: 44.09949906 | H87: -87.12809032 | I87: 41.58265937 | J87: -114.8297746 | K87: 46.5993551 | L87: -87.23301108 | M87: 46.59953541 | N87: -87.09761757 | O87: 45.08251399 | P87: -116.6104061 | Q87: 48.53938267 | R87: -87.21446562 | S87: 48.53955599 | T87: -87.07938338 | U87: 47.54659874 | V87: -117.5742788
A88: =IF(Bode!AS88=0,10,Bode!AS88) -> 40.2797 | B88: =Bode!AT88 -> 22.11822 | C88: =Bode!AU88 -> -2.451753 | D88: 42.50843142 | E88: 43.65358752 | F88: -87.11928309 | G88: 43.65379982 | H88: -86.97654094 | I88: 41.03297044 | J88: -115.8991897 | K88: 46.15364023 | L88: -87.08701046 | M88: 46.15384012 | N88: -86.94445657 | O88: 44.52068888 | P88: -117.7271043 | Q88: 48.09367079 | R88: -87.06748425 | S88: 48.09386293 | T88: -86.92525801 | U88: 46.97803023 | V88: -118.7144168
A89: =IF(Bode!AS89=0,10,Bode!AS89) -> 42.37518 | B89: =Bode!AT89 -> 22.11687 | C89: =Bode!AU89 -> -2.526029 | D89: 44.75408727 | E89: 43.20796277 | F89: -86.96728459 | G89: 43.20819813 | H89: -86.81699167 | I89: 40.47489522 | J89: -116.9932081 | K89: 45.70802121 | L89: -86.93330487 | M89: 45.70824281 | N89: -86.78321 | O89: 43.94984704 | P89: -118.8658881 | Q89: 47.64805509 | R89: -86.91274579 | S89: 47.6482681 | T89: -86.76299579 | U89: 46.40012623 | V89: -119.8750667
A90: =IF(Bode!AS90=0,10,Bode!AS90) -> 44.51722 | B90: =Bode!AT90 -> 22.12011 | C90: =Bode!AU90 -> -2.679224 | D90: 47.11865745 | E90: 42.76245225 | F90: -86.80726825 | G90: 42.76271318 | H90: -86.64902307 | I90: 39.90800018 | J90: -118.1096555 | K90: 45.26251704 | L90: -86.77149069 | M90: 45.26276271 | N90: -86.61345383 | O90: 43.36957739 | P90: -120.0241456 | Q90: 47.2025546 | R90: -86.74984381 | S90: 47.20279075 | T90: -86.59216996 | U90: 45.81249258 | V90: -121.0533885
A91: =IF(Bode!AS91=0,10,Bode!AS91) -> 46.79896 | B91: =Bode!AT91 -> 22.13592 | C91: =Bode!AU91 -> -2.81966 | D91: 49.60843883 | E91: 42.31707655 | F91: -86.63881469 | G91: 42.31736584 | H91: -86.47219421 | I91: 39.33186713 | J91: -119.2460256 | K91: 44.81714838 | L91: -86.60114365 | M91: 44.81742075 | N91: -86.43474229 | O91: 42.7794931 | P91: -121.1989361 | Q91: 46.75719002 | R91: -86.57835112 | S91: 46.75745183 | T91: -86.41233184 | U91: 45.21476413 | V91: -122.2462206
A92: =IF(Bode!AS92=0,10,Bode!AS92) -> 49.17383 | B92: =Bode!AT92 -> 22.13086 | C92: =Bode!AU92 -> -2.95504 | D92: 52.23006173 | E92: 41.87185805 | F92: -86.46148315 | G92: 41.87217879 | H92: -86.28604162 | I92: 38.7460995 | J92: -120.3994793 | K92: 44.37193769 | L92: -86.42181789 | M92: 44.37223967 | N92: -86.24660679 | O92: 42.17923807 | P92: -122.3869999 | Q92: 46.31198386 | R92: -86.39781874 | S92: 46.31227413 | T92: -86.22300979 | U92: 44.60661128 | V92: -123.4500952
A93: =IF(Bode!AS93=0,10,Bode!AS93) -> 51.6884 | B93: =Bode!AT93 -> 22.13311 | C93: =Bode!AU93 -> -3.096772 | D93: 54.99050757 | E93: 41.42682121 | F93: -86.27481058 | G93: 41.42717683 | H93: -86.09007825 | I93: 38.15032892 | J93: -121.5668522 | K93: 43.92690951 | L93: -86.23304491 | M93: 43.92724433 | N93: -86.04855489 | O93: 41.56849348 | P93: -123.5847745 | Q93: 45.8669607 | R93: -86.20777488 | S93: 45.86728254 | T93: -86.02370813 | U93: 43.98774621 | V93: -124.6612594
A94: =IF(Bode!AS94=0,10,Bode!AS94) -> 54.29611 | B94: =Bode!AT94 -> 22.13581 | C94: =Bode!AU94 -> -3.316137 | D94: 57.89712744 | E94: 40.98199275 | F94: -86.07831055 | G94: 40.98238704 | H94: -85.88379237 | I94: 37.54422176 | J94: -122.744667 | K94: 43.48209065 | L94: -86.03433258 | M94: 43.48246188 | N94: -85.84006917 | O94: 40.9469839 | P94: -124.7884177 | Q94: 45.4221474 | R94: -86.00772397 | S94: 45.42250425 | T94: -85.81390602 | U94: 43.35792871 | V94: -125.8757039
A95: =IF(Bode!AS95=0,10,Bode!AS95) -> 57.09007 | B95: =Bode!AT95 -> 22.14796 | C95: =Bode!AU95 -> -3.466418 | D95: 60.9576617 | E95: 40.53740192 | F95: -85.87147228 | G95: 40.53783911 | H95: -85.66664646 | I95: 36.92748542 | J95: -123.9291544 | K95: 43.03751047 | L95: -85.82516406 | M95: 43.0379221 | N95: -85.62060607 | O95: 40.31448301 | P95: -125.9938386 | Q95: 44.9775734 | R95: -85.7971455 | S95: 44.97796908 | T95: -85.59305633 | U95: 42.71697138 | V95: -127.0891982
A96: =IF(Bode!AS96=0,10,Bode!AS96) -> 59.97717 | B96: =Bode!AT96 -> 22.13746 | C96: =Bode!AU96 -> -3.713041 | D96: 64.18026058 | E96: 40.09308082 | F96: -85.65375951 | G96: 40.09356561 | H96: -85.43807602 | I96: 36.29987437 | J96: -125.1162801 | K96: 42.5932012 | L96: -85.60499674 | M96: 42.59365763 | N96: -85.38959477 | O96: 39.67081861 | P96: -127.1967331 | Q96: 44.53327097 | R96: -85.57549301 | S96: 44.53370972 | T96: -85.36058441 | U96: 42.06474388 | V96: -128.2973309
A97: =IF(Bode!AS97=0,10,Bode!AS97) -> 63.05054 | B97: =Bode!AT97 -> 22.1415 | C97: =Bode!AU97 -> -3.833466 | D97: 67.57350591 | E97: 39.64906473 | F97: -85.42460948 | G97: 39.64960231 | H97: -85.19748847 | I97: 35.66119542 | J97: -126.301779 | K97: 42.14919821 | L97: -85.37326111 | M97: 42.14970435 | N97: -85.14643594 | O97: 39.01587664 | P97: -128.3926266 | Q97: 44.08927559 | R97: -85.34219289 | S97: 44.08976212 | T97: -85.11588692 | U97: 41.40117628 | V97: -129.4955553
A98: =IF(Bode!AS98=0,10,Bode!AS98) -> 66.2636 | B98: =Bode!AT98 -> 22.14965 | C98: =Bode!AU98 -> -4.028698 | D98: 71.14643394 | E98: 39.20539242 | F98: -85.18343179 | G98: 39.20598856 | H98: -84.94426189 | I98: 35.01131227 | J98: -127.4811943 | K98: 41.70554044 | L98: -85.12935965 | M98: 41.70610172 | N98: -84.89050058 | O98: 38.34960427 | P98: -129.5769195 | Q98: 43.64562624 | R98: -85.09664333 | S98: 43.64616578 | T98: -84.85833059 | U98: 40.72626117 | V98: -130.6792376
A99: =IF(Bode!AS99=0,10,Bode!AS99) -> 69.66293 | B99: =Bode!AT99 -> 22.16098 | C99: =Bode!AU99 -> -4.198612 | D99: 74.9085594 | E99: 38.76210657 | F99: -84.92960734 | G99: 38.76276769 | H99: -84.67774382 | I99: 34.350149 | J99: -128.6499226 | K99: 41.26227072 | L99: -84.87266573 | M99: 41.26289319 | N99: -84.62112872 | O99: 37.67201173 | P99: -130.7449367 | Q99: 43.20236588 | R99: -84.83821314 | S99: 43.20296423 | T99: -84.58725099 | U99: 40.04005456 | V99: -131.8437067
A100: =IF(Bode!AS100=0,10,Bode!AS100) -> 73.20195 | B100: =Bode!AT100 -> 22.14179 | C100: =Bode!AU100 -> -4.463173 | D100: 78.86990089 | E100: 38.31925422 | F100: -84.6624872 | G100: 38.31998743 | H100: -84.39725009 | I100: 33.67769252 | J100: -129.8032614 | K100: 40.81943627 | L100: -84.60252247 | M100: 40.82012662 | N100: -84.33762823 | O100: 36.98317287 | P100: -131.8919772 | Q100: 42.7595418 | R100: -84.56624061 | S100: 42.76020541 | T100: -84.30195121 | U100: 39.3426755 | V100: -132.9843046
A101: =IF(Bode!AS101=0,10,Bode!AS101) -> 76.92724 | B101: =Bode!AT101 -> 22.1638 | C101: =Bode!AU101 -> -4.712974 | D101: 83.0410075 | E101: 37.87688723 | F101: -84.38139153 | G101: 37.87770044 | H101: -84.10206353 | I101: 32.99399366 | J101: -130.936459 | K101: 40.37708914 | L101: -84.3182416 | M101: 40.37785482 | N101: -84.03927355 | O101: 36.28322455 | P101: -133.0133641 | Q101: 42.31720619 | R101: -84.28003239 | S101: 42.31794221 | T101: -84.00170067 | U101: 38.63430448 | V101: -134.0964342
A102: =IF(Bode!AS102=0,10,Bode!AS102) -> 80.88537 | B102: =Bode!AT102 -> 22.18055 | C102: =Bode!AU102 -> -5.030706 | D102: 87.43298693 | E102: 37.43506281 | F102: -84.08560855 | G102: 37.43596482 | H102: -83.79143284 | I102: 32.29916713 | J102: -132.0447642 | K102: 39.93528677 | L102: -84.01910241 | M102: 39.93613605 | N102: -83.72530448 | O102: 35.57236469 | P102: -134.104492 | Q102: 41.8754166 | R102: -83.97886235 | S102: 41.87623298 | T102: -83.68573382 | U102: 37.91518068 | V102: -135.1756049
A103: =IF(Bode!AS103=0,10,Bode!AS103) -> 84.98318 | B103: =Bode!AT103 -> 22.18183 | C103: =Bode!AU103 -> -5.31968 | D103: 92.05753508 | E103: 36.99384413 | F103: -83.77439349 | G103: 36.99484468 | H103: -83.46457137 | I103: 31.59339018 | J103: -133.1234756 | K103: 39.49409256 | L103: -83.7043507 | M103: 39.49503463 | N103: -83.39492491 | O103: 34.85084933 | P103: -135.1608714 | Q103: 41.43423657 | R103: -83.66197057 | S103: 41.43514215 | T103: -83.35324892 | U103: 37.18559819 | V103: -136.2174728
A104: =IF(Bode!AS104=0,10,Bode!AS104) -> 89.31383 | B104: =Bode!AT104 -> 22.18451 | C104: =Bode!AU104 -> -5.551433 | D104: 96.92696715 | E104: 36.55330095 | F104: -83.4469676 | G104: 36.55441089 | H104: -83.12065601 | I104: 30.87690008 | J104: -134.1679869 | K104: 39.05357653 | L104: -83.3731977 | M104: 39.0546216 | N104: -83.04730174 | O104: 34.11898862 | P104: -136.1781676 | Q104: 40.99373628 | R104: -83.32856223 | S104: 40.99474088 | T104: -83.00340685 | U104: 36.44590141 | V104: -137.2178757
A105: =IF(Bode!AS105=0,10,Bode!AS105) -> 93.87732 | B105: =Bode!AT105 -> 22.18255 | C105: =Bode!AU105 -> -5.934998 | D105: 102.0542505 | E105: 36.11351032 | F105: -83.10251733 | G105: 36.11474171 | H105: -82.75882609 | I105: 30.14999061 | J105: -135.1738284 | K105: 38.61381606 | L105: -83.02481924 | M105: 38.61497548 | N105: -82.68156367 | O105: 33.37714208 | P105: -137.1522342 | Q105: 40.55399329 | R105: -82.97780671 | S105: 40.55510782 | T105: -82.63532996 | U105: 35.69647979 | V105: -138.1728613
A106: =IF(Bode!AS106=0,10,Bode!AS106) -> 98.67363 | B106: =Bode!AT106 -> 22.20221 | C106: =Bode!AU106 -> -6.160852 | D106: 107.4530392 | E106: 35.67455741 | F106: -82.74019348 | G106: 35.67592367 | H106: -82.37818243 | I106: 29.41300764 | J106: -136.1367032 | K106: 38.17489663 | L106: -82.65835485 | M106: 38.17618304 | N106: -82.29680023 | O106: 32.62571322 | P106: -138.0791396 | Q106: 40.11509327 | R106: -82.60883671 | S106: 40.11632987 | T106: -82.24810103 | U106: 34.93776218 | V106: -139.0787091
A107: =IF(Bode!AS107=0,10,Bode!AS107) -> 103.7028 | B107: =Bode!AT107 -> 22.22899 | C107: =Bode!AU107 -> -6.621337 | D107: 113.1377102 | E107: 35.23653638 | F107: -82.35911059 | G107: 35.2380524 | H107: -81.97778643 | I107: 28.6663441 | J107: -137.0525164 | K107: 37.73691277 | L107: -82.27290708 | M107: 37.73834021 | N107: -81.89206082 | O107: 31.86514387 | P107: -138.9551868 | Q107: 39.67713097 | R107: -82.22074753 | S107: 39.67850314 | T107: -81.84076227 | U107: 34.17021091 | V107: -139.9319441
A108: =IF(Bode!AS108=0,10,Bode!AS108) -> 109.0113 | B108: =Bode!AT108 -> 22.22908 | C108: =Bode!AU108 -> -6.951529 | D108: 119.1234019 | E108: 34.79955128 | F108: -81.95834643 | G108: 34.80123366 | H108: -81.55665934 | I108: 27.91043442 | J108: -137.9173983 | K108: 37.29996898 | L108: -81.86754098 | M108: 37.30155307 | N108: -81.46635395 | O108: 31.0959083 | P108: -139.7769263 | Q108: 39.24021111 | R108: -81.81259651 | S108: 39.24173388 | T108: -81.41231452 | U108: 33.39431601 | V108: -140.729345
A109: =IF(Bode!AS109=0,10,Bode!AS109) -> 114.5527 | B109: =Bode!AT109 -> 22.24621 | C109: =Bode!AU109 -> -7.406704 | D109: 125.4260542 | E109: 34.36371722 | F109: -81.53694173 | G109: 34.36558443 | H109: -81.11378173 | I109: 27.14574882 | J109: -138.7277196 | K109: 36.86418079 | L109: -81.44128373 | M109: 36.86593894 | N109: -81.01864657 | O109: 30.31850744 | P109: -140.5411615 | Q109: 38.80444953 | R109: -81.38340259 | S109: 38.80613962 | T109: -80.96171662 | U109: 32.61058945 | V109: -141.4679447
A110: =IF(Bode!AS110=0,10,Bode!AS110) -> 120.42 | B110: =Bode!AT110 -> 22.25491 | C110: =Bode!AU110 -> -7.786388 | D110: 132.0624512 | E110: 33.92916144 | F110: -81.0939002 | G110: 33.93123406 | H110: -80.64809316 | I110: 26.37278753 | J110: -139.480101 | K110: 36.42967601 | L110: -80.99312458 | M110: 36.43162758 | N110: -80.54786375 | O110: 29.53346333 | P110: -141.2449486 | Q110: 38.3699743 | R110: -80.93214629 | S110: 38.37185034 | T110: -80.48788492 | U110: 31.81955989 | V110: -142.1450254
A111: =IF(Bode!AS111=0,10,Bode!AS111) -> 126.5667 | B111: =Bode!AT111 -> 22.25644 | C111: =Bode!AU111 -> -8.131802 | D111: 139.0502656 | E111: 33.4960247 | F111: -80.62818878 | G111: 33.49832563 | H111: -80.15849213 | I111: 25.59207517 | J111: -140.1714148 | K111: 35.99659593 | L111: -80.52201507 | M111: 35.99876252 | N111: -80.0528885 | O111: 28.74131393 | P111: -141.8855903 | Q111: 37.93692709 | R111: -80.45776979 | S111: 37.93900983 | T111: -79.98969316 | U111: 31.02176783 | V111: -142.7581092
A112: =IF(Bode!AS112=0,10,Bode!AS112) -> 133.0394 | B112: =Bode!AT112 -> 22.27128 | C112: =Bode!AU112 -> -8.735042 | D112: 146.4081062 | E112: 33.06446261 | F112: -80.13873834 | G112: 33.06701742 | H112: -79.64383637 | I112: 24.80415555 | J112: -140.7987818 | K112: 35.56509686 | L112: -80.02686962 | M112: 35.56750252 | N112: -79.532562 | O112: 27.94260853 | P112: -142.4606251 | Q112: 37.50546454 | R112: -79.95917755 | S112: 37.50777713 | T112: -79.4659726 | U112: 30.21776136 | V112: -143.3049436
A113: =IF(Bode!AS113=0,10,Bode!AS113) -> 139.7915 | B113: =Bode!AT113 -> 22.28025 | C113: =Bode!AU113 -> -9.235131 | D113: 154.1555668 | E113: 32.63464729 | F113: -79.62444486 | G113: 32.63748446 | H113: -79.10294359 | I113: 24.00958686 | J113: -141.3595625 | K113: 35.13535162 | L113: -79.50656661 | M113: 35.1380232 | N113: -78.98568422 | O113: 27.1379037 | P113: -142.9678125 | Q113: 37.07575994 | R113: -79.43523725 | S113: 37.07832818 | T113: -78.91551257 | U113: 29.40809259 | V113: -143.7834846
A114: =IF(Bode!AS114=0,10,Bode!AS114) -> 146.9627 | B114: =Bode!AT114 -> 22.30683 | C114: =Bode!AU114 -> -9.769982 | D114: 162.3132792 | E114: 32.20676905 | F114: -79.08417109 | G114: 32.20992039 | H114: -78.53459266 | I114: 23.20893749 | J114: -141.8513443 | K114: 34.70755135 | L114: -78.95994995 | M114: 34.71051881 | N114: -78.41101502 | O114: 26.32775992 | P114: -143.4051152 | Q114: 36.64800488 | R114: -78.88478136 | S114: 36.65085758 | T114: -78.33706152 | U114: 28.59331476 | V114: -144.1918768
A115: =IF(Bode!AS115=0,10,Bode!AS115) -> 154.4598 | B115: =Bode!AT115 -> 22.30811 | C115: =Bode!AU115 -> -10.34512 | D115: 170.9029673 | E115: 31.7810383 | F115: -78.51674896 | G115: 31.78453934 | H115: -77.93752546 | I115: 22.40278245 | J115: -142.2719254 | K115: 34.28190739 | L115: -78.38583132 | M115: 34.2852042 | N115: -77.80727582 | O115: 25.5127389 | P115: -143.7706797 | Q115: 36.22241124 | R115: -78.30660931 | S115: 36.22558059 | T115: -77.72932862 | U115: 27.77398001 | V115: -144.528433
A116: =IF(Bode!AS116=0,10,Bode!AS116) -> 162.3295 | B116: =Bode!AT116 -> 22.33689 | C116: =Bode!AU116 -> -10.92515 | D116: 179.9475056 | E116: 31.35768767 | F116: -77.92098271 | G116: 31.36157812 | H116: -77.31044935 | I116: 21.59170059 | J116: -142.6192967 | K116: 33.85865339 | L116: -77.78299323 | M116: 33.86231697 | N116: -77.17315201 | O116: 24.69340165 | P116: -144.0628151 | Q116: 35.79921327 | R116: -77.69949038 | S116: 35.80273525 | T116: -77.09098606 | U116: 26.95063785 | V116: -144.7916121
A117: =IF(Bode!AS117=0,10,Bode!AS117) -> 170.6183 | B117: =Bode!AT117 -> 22.34714 | C117: =Bode!AU117 -> -11.71075 | D117: 189.4709798 | E117: 30.93697428 | F117: -77.29565298 | G117: 30.94129858 | H117: -76.65204063 | I117: 20.77627239 | J117: -142.8916215 | K117: 33.43804766 | L117: -77.15019292 | M117: 33.44211987 | N117: -76.50729613 | O117: 23.87030717 | P117: -144.2799722 | Q117: 35.37866996 | R117: -77.06216761 | S117: 35.38258482 | T117: -76.42067213 | U117: 26.12383436 | V117: -144.9799982
A118: =IF(Bode!AS118=0,10,Bode!AS118) -> 179.3262 | B118: =Bode!AT118 -> 22.37481 | C118: =Bode!AU118 -> -12.28314 | D118: 199.498751 | E118: 30.51918231 | F118: -76.63952205 | G118: 30.5239902 | H118: -75.96094883 | I118: 19.95707854 | J118: -143.0872156 | K118: 33.02037567 | L118: -76.48616739 | M118: 33.02490339 | N118: -75.80833208 | O118: 23.0440118 | P118: -144.4207225 | Q118: 34.96106755 | R118: -76.39336264 | S118: 34.96542039 | T118: -75.71699533 | U118: 25.29411188 | V118: -145.0922794
A119: =IF(Bode!AS119=0,10,Bode!AS119) -> 188.4531 | B119: =Bode!AT119 -> 22.35387 | C119: =Bode!AU119 -> -12.85353 | D119: 210.0575233 | E119: 30.10462571 | F119: -75.95134027 | G119: 30.10997299 | H119: -75.23580234 | I119: 19.13469916 | J119: -143.2045271 | K119: 32.60595289 | L119: -75.7896397 | M119: 32.61098871 | N119: -75.07486042 | O119: 22.21506923 | P119: -144.4837387 | Q119: 34.54672238 | R119: -75.69178193 | S119: 34.55156376 | T119: -74.97853953 | U119: 24.46200935 | V119: -145.1272295
A120: =IF(Bode!AS120=0,10,Bode!AS120) -> 198.0457 | B120: =Bode!AT120 -> 22.39068 | C120: =Bode!AU120 -> -13.75013 | D120: 221.1754148 | E120: 29.69365133 | F120: -75.22985417 | G120: 29.69960061 | H120: -74.47521532 | I120: 18.3097136 | J120: -143.2421173 | K120: 32.19512785 | L120: -75.05932674 | M120: 32.20073077 | N120: -74.30546512 | O120: 21.38403094 | P120: -144.4677761 | Q120: 34.13598394 | R120: -74.95612436 | S120: 34.14137062 | T120: -74.20387053 | U120: 23.62806313 | V120: -145.0836893
A121: =IF(Bode!AS121=0,10,Bode!AS121) -> 208.1972 | B121: =Bode!AT121 -> 22.39188 | C121: =Bode!AU121 -> -14.56032 | D121: 232.8820326 | E121: 29.28664219 | F121: -74.4738162 | G121: 29.29326383 | H121: -73.67779626 | I121: 17.48270093 | J121: -143.198643 | K121: 31.78828548 | L121: -74.29394882 | M121: 31.79452183 | N121: -73.49872176 | O121: 20.55144728 | P121: -144.3716567 | Q121: 33.7292383 | R121: -74.18509066 | S121: 33.73523409 | T121: -73.39154418 | U121: 22.79280827 | V121: -144.9605522
A122: =IF(Bode!AS122=0,10,Bode!AS122) -> 218.8142 | B122: =Bode!AT122 -> 22.40352 | C122: =Bode!AU122 -> -15.34187 | D122: 245.2085515 | E122: 28.88402115 | F122: -73.68199672 | G122: 28.89139437 | H122: -72.84215851 | I122: 16.65424076 | J122: -143.0728409 | K122: 31.38585085 | L122: -73.49224125 | M122: 31.3927953 | N122: -72.65320775 | O122: 19.71786884 | P122: -144.1942549 | Q122: 33.32691178 | R122: -73.37739478 | S122: 33.33358849 | T122: -72.54011623 | U122: 21.95678017 | V122: -144.756751
A123: =IF(Bode!AS123=0,10,Bode!AS123) -> 229.9435 | B123: =Bode!AT123 -> 22.42973 | C123: =Bode!AU123 -> -16.3135 | D123: 258.1877973 | E123: 28.48625494 | F123: -72.85319836 | G123: 28.49446901 | H123: -71.96693292 | I123: 15.82491468 | J123: -142.863514 | K123: 30.98829315 | L123: -72.65296833 | M123: 30.99602989 | N123: -71.76751453 | O123: 18.88384828 | P123: -143.9344867 | Q123: 32.92947503 | R123: -72.53177773 | S123: 32.93691367 | T123: -71.64815446 | U123: 21.12051652 | V123: -144.4712477
A124: =IF(Bode!AS124=0,10,Bode!AS124) -> 241.6782 | B124: =Bode!AT124 -> 22.4151 | C124: =Bode!AU124 -> -17.35056 | D124: 271.8543336 | E124: 28.09385849 | F124: -71.98627323 | G124: 28.10301425 | H124: -71.05078313 | I124: 14.995308 | J124: -142.569522 | K124: 30.59613018 | L124: -71.77494023 | M124: 30.60475429 | N124: -70.84026246 | O124: 18.04994243 | P124: -143.5913008 | Q124: 32.5374475 | R124: -71.64702408 | S124: 32.54573955 | T124: -70.71425317 | U124: 20.28455961 | V124: -144.1030265
A125: =IF(Bode!AS125=0,10,Bode!AS125) -> 254.0182 | B125: =Bode!AT125 -> 22.44172 | C125: =Bode!AU125 -> -18.43304 | D125: 286.2445548 | E125: 27.70739974 | F125: -71.08014356 | G125: 27.71761127 | H125: -70.09242391 | I125: 14.16601173 | J125: -142.189773 | K125: 30.20993315 | L125: -70.85703306 | M125: 30.21955225 | N125: -69.87011853 | O125: 17.2167146 | P125: -143.163674 | Q125: 32.15140232 | R125: -70.72198179 | S125: 32.16065132 | T125: -69.73705058 | U125: 19.44945871 | V125: -143.6510894
A126: =IF(Bode!AS126=0,10,Bode!AS126) -> 266.9636 | B126: =Bode!AT126 -> 22.46613 | C126: =Bode!AU126 -> -19.56817 | D126: 301.3967821 | E126: 27.32750488 | F126: -70.13382619 | G126: 27.33890155 | H126: -69.0906429 | I126: 13.33762498 | J126: -141.7232199 | K126: 29.83033203 | L126: -69.89821278 | M126: 29.84106815 | N126: -68.8558175 | O126: 16.38473712 | P126: -142.6506088 | Q126: 31.77197162 | R126: -69.75558576 | S126: 31.78229503 | T126: -68.7152496 | U126: 18.61577271 | V126: -143.1144558
A127: =IF(Bode!AS127=0,10,Bode!AS127) -> 280.6075 | B127: =Bode!AT127 -> 22.46536 | C127: =Bode!AU127 -> -20.47476 | D127: 317.3513661 | E127: 26.95486405 | F127: -69.14646161 | G127: 26.96759289 | H127: -68.04432654 | I127: 12.51075732 | J127: -141.1688597 | K127: 29.4580213 | L127: -68.89756358 | M127: 29.47001318 | N127: -67.79618703 | O127: 15.55459392 | P127: -142.0511351 | Q127: 31.39985245 | R127: -68.74688578 | S127: 31.41138378 | T127: -67.64764246 | U127: 17.78407279 | V127: -142.4921648
A128: =IF(Bode!AS128=0,10,Bode!AS128) -> 294.9033 | B128: =Bode!AT128 -> 22.47343 | C128: =Bode!AU128 -> -21.73154 | D128: 334.150794 | E128: 26.59023759 | F128: -68.11734836 | G128: 26.60446613 | H128: -66.95249067 | I128: 11.6860314 | J128: -140.5257367 | K128: 29.09376637 | L128: -67.85432149 | M128: 29.10717213 | N128: -66.69017739 | O128: 14.72688328 | P128: -141.3643153 | Q128: 31.03581313 | R128: -67.69507965 | S128: 31.04870462 | T128: -66.53313988 | U128: 16.95494512 | V128: -141.7832811
A129: =IF(Bode!AS129=0,10,Bode!AS129) -> 309.9907 | B129: =Bode!AT129 -> 22.49743 | C129: =Bode!AU129 -> -23.11476 | D129: 351.8398029 | E129: 26.23446293 | F129: -67.04598367 | G129: 26.25038262 | H129: -65.8143167 | I129: 10.86408551 | J129: -139.7929489 | K129: 28.73841054 | L129: -66.76791403 | M129: 28.75341095 | N129: -65.53689654 | O129: 13.9022204 | P129: -140.5892528 | Q129: 30.68070042 | R129: -66.5995522 | S129: 30.69512607 | T129: -65.37080546 | U129: 16.12899358 | V129: -140.9869049
A130: =IF(Bode!AS130=0,10,Bode!AS130) -> 325.7766 | B130: =Bode!AT130 -> 22.50169 | C130: =Bode!AU130 -> -24.39148 | D130: 370.4654987 | E130: 25.88846202 | F130: -65.93211146 | G130: 25.90629232 | H130: -64.62919428 | I130: 10.04557609 | J130: -138.969659 | K130: 28.39288268 | L130: -65.63800712 | M130: 28.40968499 | N130: -64.33565144 | O130: 13.08124003 | P130: -139.7251046 | Q130: 30.33544717 | R130: -65.45992155 | S130: 30.35160658 | T130: -64.15989624 | U130: 15.30684225 | V130: -140.1021849
A131: =IF(Bode!AS131=0,10,Bode!AS131) -> 342.4007 | B131: =Bode!AT131 -> 22.49752 | C131: =Bode!AU131 -> -26.0696 | D131: 390.077482 | E131: 25.55324967 | F131: -64.7757789 | G131: 25.57324301 | H131: -63.39677159 | I131: 9.231180156 | J131: -138.0551091 | K131: 28.05820569 | L131: -64.46456031 | M131: 28.07704838 | N131: -63.0859968 | O131: 12.26459884 | P131: -138.7710973 | Q131: 30.00108102 | R131: -64.27609344 | S131: 30.01920389 | T131: -62.89991039 | U131: 14.48913791 | V131: -139.1283355
A132: =IF(Bode!AS132=0,10,Bode!AS132) -> 359.863 | B132: =Bode!AT132 -> 22.51666 | C132: =Bode!AU132 -> -27.25473 | D132: 410.7279796 | E132: 25.22994257 | F132: -63.57740341 | G132: 25.25239041 | H132: -62.11701455 | I132: 8.42159745 | J132: -137.0486386 | K132: 27.73550583 | L132: -63.24789214 | M132: 27.75666439 | N132: -61.78779241 | O132: 11.45297761 | P132: -137.7265469 | Q132: 29.67873383 | R132: -63.04832566 | S132: 29.69908554 | T132: -61.59064347 | U132: 13.67655209 | V132: -138.0646569
A133: =IF(Bode!AS133=0,10,Bode!AS133) -> 378.2567 | B133: =Bode!AT133 -> 22.4921 | C133: =Bode!AU133 -> -29.07681 | D133: 432.4719841 | E133: 24.91976936 | F133: -62.33785178 | G133: 24.94500961 | H133: -60.79027692 | I133: 7.61755231 | J133: -135.9497069 | K133: 27.42602315 | L133: -61.98875741 | M133: 27.44981709 | N133: -60.44127083 | O133: 10.64708303 | P133: -136.5908829 | Q133: 29.36965228 | R133: -61.77730407 | S133: 29.39254073 | T133: -60.23225459 | U133: 12.86978297 | V133: -136.9105596
A134: =IF(Bode!AS134=0,10,Bode!AS134) -> 397.535 | B134: =Bode!AT134 -> 22.50389 | C134: =Bode!AU134 -> -30.78171 | D134: 455.3674 | E134: 24.62408179 | F134: -61.05853427 | G134: 24.65250801 | H134: -59.41738313 | I134: 6.81979513 | J134: -134.7579195 | K134: 27.13112303 | L134: -60.68843896 | M134: 27.15792469 | N134: -59.04711747 | O134: 9.847649159 | P134: -135.3636748 | Q134: 29.07520971 | R134: -60.4642329 | S134: 29.1009938 | T134: -58.82534483 | U134: 12.0695567 | V134: -135.6655923
A135: =IF(Bode!AS135=0,10,Bode!AS135) -> 417.8379 | B135: =Bode!AT135 -> 22.50847 | C135: =Bode!AU135 -> -32.79651 | D135: 479.475198 | E135: 24.34436725 | F135: -59.74151666 | G135: 24.37644009 | H135: -57.99972692 | I135: 6.029103321 | J135: -133.4730572 | K135: 26.85230926 | L135: -59.34885697 | M135: 26.88255469 | N135: -57.60656568 | O135: 9.055438321 | P135: -134.044663 | Q135: 28.79691949 | R135: -59.1109424 | S135: 28.82601969 | T135: -57.37105009 | U135: 11.27662835 | V135: -134.3294722
A136: =IF(Bode!AS136=0,10,Bode!AS136) -> 439.1652 | B136: =Bode!AT136 -> 22.51496 | C136: =Bode!AU136 -> -34.58567 | D136: 504.8595775 | E136: 24.08226276 | F136: -58.38965468 | G136: 24.11852436 | H136: -56.53938933 | I136: 5.246281661 | J136: -132.0951089 | K136: 26.59123875 | L136: -57.97270014 | M136: 26.62544153 | N136: -56.12151048 | O136: 8.271241383 | P136: -132.6337924 | Q136: 28.53645018 | R136: -57.72001778 | S136: 28.56936188 | T136: -55.87115219 | U136: 10.4917821 | V136: -132.9021197
A137: =IF(Bode!AS137=0,10,Bode!AS137) -> 461.5635 | B137: =Bode!AT137 -> 22.50347 | C137: =Bode!AU137 -> -36.88247 | D137: 531.5881374 | E137: 23.83957092 | F137: -57.00675639 | G137: 23.88066322 | H137: -55.03928103 | I137: 4.472161933 | J137: -130.6243073 | K137: 26.34973842 | L137: -56.56358403 | M137: 26.38850708 | N137: -54.59464548 | O137: 7.495877346 | P137: -131.1312486 | Q137: 28.29564292 | R137: -56.2949551 | S137: 28.33295338 | T137: -54.32821244 | U137: 9.715830826 | V137: -131.3836949
A138: =IF(Bode!AS138=0,10,Bode!AS138) -> 485.1259 | B138: =Bode!AT138 -> 22.44596 | C138: =Bode!AU138 -> -38.49231 | D138: 559.732056 | E138: 23.61827815 | F138: -55.59778006 | G138: 23.66496619 | H138: -53.50331565 | I138: 3.707601754 | J138: -129.0611665 | K138: 26.12982461 | L138: -55.12624422 | M138: 26.17388505 | N138: -53.02962957 | O138: 6.730192103 | P138: -129.5374963 | Q138: 28.07653159 | R138: -54.84035121 | S138: 28.1189417 | T138: -52.74573413 | U138: 8.949614813 | V138: -129.7746358
A139: =IF(Bode!AS139=0,10,Bode!AS139) -> 509.8525 | B139: =Bode!AT139 -> 22.42724 | C139: =Bode!AU139 -> -41.3203 | D139: 589.366281 | E139: 23.42057555 | F139: -54.16907799 | G139: 23.4737778 | H139: -51.93662355 | I139: 2.953482485 | J139: -127.4065211 | K139: 25.93372563 | L139: -53.66677438 | M139: 25.98395017 | N139: -51.43129231 | O139: 5.975056286 | P139: -127.8533189 | Q139: 27.88136633 | R139: -53.36213814 | S139: 27.92971883 | T139: -51.12836266 | U139: 8.19399957 | V139: -128.0756988
A140: =IF(Bode!AS140=0,10,Bode!AS140) -> 535.883 | B140: =Bode!AT140 -> 22.3839 | C140: =Bode!AU140 -> -43.91544 | D140: 620.5697287 | E140: 23.2488832 | F140: -52.72870054 | G140: 23.30971103 | H140: -50.34581919 | I140: 2.210706148 | J140: -125.6615661 | K140: 25.76390819 | L140: -52.19292359 | M140: 25.82135364 | N140: -49.8058907 | O140: 5.231362118 | P140: -126.0798592 | Q140: 27.71264126 | R140: -51.86787581 | S140: 27.76795781 | T140: -49.48213558 | U140: 7.449872647 | V140: -126.287999
A141: =IF(Bode!AS141=0,10,Bode!AS141) -> 563.2173 | B141: =Bode!AT141 -> 22.37573 | C141: =Bode!AU141 -> -46.72713 | D141: 653.4254941 | E141: 23.1058783 | F141: -51.28678091 | G141: 23.17568832 | H141: -48.73934108 | I141: 1.480191272 | J141: -123.8278963 | K141: 25.62310856 | L141: -50.71447307 | M141: 25.68906667 | N141: -48.16143575 | O141: 4.500019191 | P141: -124.2186585 | Q141: 27.57312744 | R141: -50.36712342 | S141: 27.6366578 | T141: -47.81480057 | U141: 6.718139381 | V141: -124.4130502
A142: =IF(Bode!AS142=0,10,Bode!AS142) -> 591.9486 | B142: =Bode!AT142 -> 22.30389 | C142: =Bode!AU142 -> -49.31263 | D142: 688.0210725 | E142: 22.99452784 | F142: -49.85602919 | G142: 23.07499189 | H142: -47.12789199 | I142: 0.7628676246 | J142: -121.9075437 | K142: 25.51436937 | L142: -49.2437213 | M142: 25.59043462 | N142: -46.50811567 | O142: 3.78194914 | P142: -122.2716955 | Q142: 27.46591213 | R142: -48.8719181 | S142: 27.53920038 | T142: -46.13622768 | U142: 5.99971754 | V142: -122.4528031
A143: =IF(Bode!AS143=0,10,Bode!AS143) -> 622.17 | B143: =Bode!AT143 -> 22.23964 | C143: =Bode!AU143 -> -52.25778 | D143: 724.4485924 | E143: 22.91812623 | F143: -48.45237766 | G143: 23.01132639 | H143: -45.52502036 | I143: 0.05966980573 | J143: -119.9030129 | K143: 25.44108301 | L143: -47.79611949 | M143: 25.52924489 | N143: -44.85885574 | O143: 3.078079177 | P143: -120.2414206 | Q143: 27.39444565 | R143: -47.39740321 | S143: 27.47942053 | T143: -44.45895502 | U143: 5.295530824 | V143: -120.4096803
A144: =IF(Bode!AS144=0,10,Bode!AS144) -> 653.9281 | B144: =Bode!AT144 -> 22.12619 | C144: =Bode!AU144 -> -55.30716 | D144: 762.8050606 | E144: 22.88033775 | F144: -47.09583787 | G144: 22.98889712 | H144: -43.9479047 | I144: -0.6284702627 | J144: -117.817311 | K144: 25.4070422 | L144: -46.39111913 | M144: 25.50981284 | N144: -43.2300754 | O144: 2.389334523 | P144: -118.130787 | Q144: 27.36259692 | R144: -45.96266815 | S144: 27.461697 | T144: -42.79892769 | U144: 4.606501274 | V144: -118.2866072
A145: =IF(Bode!AS145=0,10,Bode!AS145) -> 687.2695 | B145: =Bode!AT145 -> 21.97756 | C145: =Bode!AU145 -> -58.80953 | D145: 803.1926209 | E145: 22.88524233 | F145: -45.81165901 | G145: 23.0125077 | H145: -42.41843522 | I145: -1.3006319 | J145: -115.6539723 | K145: 25.41649757 | L145: -45.05332348 | M145: 25.53709091 | N145: -41.64273596 | O145: 1.716629794 | P145: -115.943275 | Q145: 27.37471816 | R145: -44.5918928 | S145: 27.49106817 | T145: -41.17652219 | U145: 3.933540629 | V145: -116.0870368
A146: =IF(Bode!AS146=0,10,Bode!AS146) -> 722.3338 | B146: =Bode!AT146 -> 21.81725 | C146: =Bode!AU146 -> -62.37849 | D146: 845.7188257 | E146: 22.93738049 | F146: -44.63192063 | G146: 23.08768158 | H146: -40.96473984 | I146: -1.955915165 | J146: -113.4170751 | K146: 25.4742195 | L146: -43.81408123 | M146: 25.6168072 | N146: -40.12382548 | O146: 1.060859451 | P146: -113.6829097 | Q146: 27.43571713 | R146: -43.31593729 | S146: 27.57338077 | T146: -39.61800204 | U146: 3.277540754 | V146: -113.8149667
A147: =IF(Bode!AS147=0,10,Bode!AS147) -> 759.2142 | B147: =Bode!AT147 -> 21.662 | C147: =Bode!AU147 -> -65.44268 | D147: 890.4969228 | E147: 23.04178687 | F147: -43.59775837 | G147: 23.22081043 | H147: -39.6233875 | I147: -2.593451125 | J147: -111.1112507 | K147: 25.58555671 | L147: -42.71373198 | M147: 25.75564042 | N147: -38.70851564 | O147: 0.4228874889 | P147: -111.3542688 | Q147: 27.55113129 | R147: -42.1745928 | S147: 27.71548048 | T147: -38.15763922 | U147: 2.639363302 | V147: -111.4749478
A148: =IF(Bode!AS148=0,10,Bode!AS148) -> 797.9572 | B148: =Bode!AT148 -> 21.47272 | C148: =Bode!AU148 -> -69.10925 | D148: 937.6461568 | E148: 23.20399002 | F148: -42.76252049 | G148: 23.41932843 | H148: -38.44264534 | I148: -3.212412687 | J148: -108.7416807 | K148: 25.75647308 | L148: -41.80482435 | M148: 25.96143574 | N148: -37.44337492 | O148: -0.1964634412 | P148: -108.9624816 | Q148: 27.72718775 | R148: -41.21982658 | S148: 27.92545282 | T148: -36.84088828 | U148: 2.019828821 | V148: -109.0720825
A149: =IF(Bode!AS149=0,10,Bode!AS149) -> 838.656 | B149: =Bode!AT149 -> 21.18154 | C149: =Bode!AU149 -> -73.22502 | D149: 987.2920866 | E149: 23.42993019 | F149: -42.19629665 | G149: 23.69189859 | H149: -37.48740877 | I149: -3.812025728 | J149: -106.3140853 | K149: 25.99352043 | L149: -41.15679573 | M149: 26.24345819 | N149: -36.39128069 | O149: -0.796423197 | P149: -106.5132158 | Q149: 27.97081127 | R149: -40.52053767 | S149: 28.21291715 | T149: -35.72926607 | U149: 1.419705567 | V149: -106.6120121
A150: =IF(Bode!AS150=0,10,Bode!AS150) -> 881.4503 | B150: =Bode!AT150 -> 20.87595 | C150: =Bode!AU150 -> -77.35623 | D150: 1039.56692 | E150: 23.72569559 | F150: -41.99245402 | G150: 24.04856399 | H150: -36.84683699 | I150: -4.391580218 | J150: -103.8346978 | K150: 26.30365577 | L150: -40.86284837 | M150: 26.61265402 | N150: -35.63912699 | O150: -1.376285309 | P150: -104.0126532 | Q150: 28.28949441 | R150: -40.1696165 | S150: 28.58935587 | T150: -34.90806524 | U150: 0.8396983259 | V150: -104.1008924
A151: =IF(Bode!AS151=0,10,Bode!AS151) -> 926.4331 | B151: =Bode!AT151 -> 20.55015 | C151: =Bode!AU151 -> -81.52436 | D151: 1094.609865 | E151: 24.09687171 | F151: -42.27702075 | G151: 24.50073135 | H151: -36.64642538 | I151: -4.950441026 | J151: -101.3102291 | K151: 26.69370511 | L151: -41.05006875 | M151: 27.0818179 | N151: -35.31022739 | O151: -1.935417812 | P151: -101.4674533 | Q151: 28.69083909 | R151: -40.29448155 | S151: 29.06839706 | T151: -34.49889012 | U151: 0.2804375627 | V151: -101.5453571
A152: =IF(Bode!AS152=0,10,Bode!AS152) -> 973.6978 | B152: =Bode!AT152 -> 20.25939 | C152: =Bode!AU152 -> -85.57221 | D152: 1152.567502 | E152: 24.5470849 | F152: -43.22177754 | G152: 25.06063907 | H152: -37.06736805 | I152: -5.488058033 | J152: -98.74781863 | K152: 27.16905242 | L152: -41.89407407 | M152: 27.6653673 | N152: -35.58470456 | O152: -2.473273393 | P152: -98.88470479 | Q152: 29.18135135 | R152: -41.07264573 | S152: 29.66578769 | T152: -34.68055192 | U152: -0.2575307384 | V152: -98.95246922
A153: =IF(Bode!AS153=0,10,Bode!AS153) -> 1023.384 | B153: =Bode!AT153 -> 19.81459 | C153: =Bode!AU153 -> -89.5585 | D153: 1213.594173 | E153: 25.07491012 | F153: -45.06104334 | G153: 25.73941884 | H153: -38.37755366 | I153: -6.003975239 | J153: -96.15497515 | K153: 27.73067236 | L153: -43.63899021 | M153: 28.37789533 | N153: -36.733349 | O153: -2.98939852 | P153: -96.27186625 | Q153: 29.76358526 | R153: -42.75366765 | S153: 30.39828249 | T153: -35.72448164 | U153: -0.7737542167 | V153: -96.32966216
A154: =IF(Bode!AS154=0,10,Bode!AS154) -> 1075.584 | B154: =Bode!AT154 -> 19.36494 | C154: =Bode!AU154 -> -94.0288 | D154: 1277.852392 | E154: 25.66761392 | F154: -48.10818878 | G154: 26.54151277 | H154: -40.9790064 | I154: -6.497838518 | J154: -93.5395074 | K154: 28.36876196 | L154: -46.62012888 | M154: 29.22925536 | N154: -39.17265767 | O154: -3.483441225 | P154: -93.63669652 | Q154: 30.42976978 | R154: -45.68584707 | S154: 31.27923862 | T154: -38.0542099 | U154: -1.267881926 | V154: -93.6846697
A155: =IF(Bode!AS155=0,10,Bode!AS155) -> 1130.486 | B155: =Bode!AT155 -> 18.85968 | C155: =Bode!AU155 -> -97.87489 | D155: 1345.51328 | E155: 26.28945599 | F155: -52.75527662 | G155: 27.45011694 | H155: -45.46838289 | I155: -6.969401742 | J155: -90.90944616 | K155: 29.05002693 | L155: -51.27376332 | M155: 30.21031002 | N155: -43.54429707 | O155: -3.955157242 | P155: -90.98717686 | Q155: 31.14854787 | R155: -50.33315131 | S155: 32.30480973 | T155: -42.33681199 | U155: -1.739670488 | V155: -91.02544821
A156: =IF(Bode!AS156=0,10,Bode!AS156) -> 1188.135 | B156: =Bode!AT156 -> 18.30118 | C156: =Bode!AU156 -> -101.717 | D156: 1416.757019 | E156: 26.86340097 | F156: -59.40863583 | G156: 28.39316532 | H156: -52.65966965 | I156: -7.418531035 | J156: -88.27296002 | K156: 29.69598455 | L156: -58.08214921 | M156: 31.25598538 | N156: -50.77745607 | O156: -4.404414286 | P156: -88.33142661 | Q156: 31.8411088 | R156: -57.22837151 | S156: 33.41564514 | T156: -49.57319975 | U156: -2.188988372 | V156: -88.36009239
A157: =IF(Bode!AS157=0,10,Bode!AS157) -> 1248.764 | B157: =Bode!AT157 -> 17.69472 | C157: =Bode!AU157 -> -105.909 | D157: 1491.773331 | E157: 27.25457703 | F157: -68.27313203 | G157: 29.18251418 | H157: -63.35561813 | I157: -7.845206986 | J157: -85.63826715 | K157: 30.1594719 | L157: -67.34123068 | M157: 32.16947196 | N157: -61.89770056 | O157: -4.831194277 | P157: -85.67761495 | Q157: 32.35269839 | R157: -66.73303368 | S157: 34.41141974 | T157: -60.94243597 | U157: -2.615818134 | V157: -85.69674682
A158: =IF(Bode!AS158=0,10,Bode!AS158) -> 1312.513 | B158: =Bode!AT158 -> 16.97448 | C158: =Bode!AU158 -> -109.4491 | D158: 1570.761985 | E158: 27.28795712 | F158: -78.96005288 | G158: 29.48168012 | H158: -77.44938801 | I158: -8.24952474 | J158: -83.01354555 | K158: 30.23816976 | L158: -78.68064758 | M158: 32.56031806 | N158: -76.98222361 | O158: -5.235593442 | P158: -83.03387101 | Q158: 32.462232 | R158: -78.49668619 | S158: 34.86562028 | T158: -76.67059576 | U158: -3.020256524 | V158: -83.04351614
A159: =IF(Bode!AS159=0,10,Bode!AS159) -> 1379.475 | B159: =Bode!AT159 -> 16.41129 | C159: =Bode!AU159 -> -112.9277 | D159: 1653.93333 | E159: 26.8365884 | F159: -90.25483628 | G159: 28.98582803 | H159: -92.77940182 | I159: -8.631691944 | J159: -80.40684436 | K159: 29.77937598 | L159: -90.72367016 | M159: 32.04859006 | N159: -93.55455677 | O159: -5.61782028 | P159: -80.40819513 | Q159: 31.99834882 | R159: -91.03190627 | S159: 34.34275863 | T159: -94.07002255 | U159: -3.402512446 | V159: -80.40837626
A160: =IF(Bode!AS160=0,10,Bode!AS160) -> 1449.836 | B160: =Bode!AT160 -> 15.69188 | C160: =Bode!AU160 -> -116.2602 | D160: 1741.508851 | E160: 25.92171746 | F160: -100.6054117 | G160: 27.75005071 | H160: -106.1564365 | I160: -8.992024638 | J160: -77.82599895 | K160: 28.80902981 | L160: -101.6670045 | M160: 30.7045378 | N160: -107.7768339 | O160: -5.97819145 | P160: -77.80837384 | Q160: 30.9904371 | R160: -102.3574969 | S160: 32.92458179 | T160: -108.8319176 | U160: -3.762902866 | V160: -77.79908925
A161: =IF(Bode!AS161=0,10,Bode!AS161) -> 1523.83 | B161: =Bode!AT161 -> 14.96895 | C161: =Bode!AU161 -> -119.2242 | D161: 1833.721764 | E161: 24.69388238 | F161: -108.9998249 | G161: 26.12072576 | H161: -115.9883503 | I161: -9.330941238 | J161: -75.27855193 | K161: 27.50687929 | L161: -110.3864174 | M161: 28.95379773 | N161: -117.9075236 | O161: -6.317125768 | P161: -75.24190081 | Q161: 29.63920154 | R161: -111.2755553 | S161: 31.09430973 | T161: -119.1285281 | U161: -4.1018468 | V161: -75.22312423
A162: =IF(Bode!AS162=0,10,Bode!AS162) -> 1601.595 | B162: =Bode!AT162 -> 14.24613 | C162: =Bode!AU162 -> -122.8018 | D162: 1930.817631 | E162: 23.32253515 | F162: -115.2430928 | G162: 24.40009289 | H162: -122.5350334 | I162: -9.64895483 | J162: -72.77168232 | K162: 26.06620464 | L162: -116.7369721 | M162: 27.13866903 | N162: -124.4373625 | O162: -6.635136502 | P162: -72.7159059 | Q162: 28.15397046 | R162: -117.6824188 | S162: 29.21976063 | T162: -125.6263919 | U162: -4.419857616 | V162: -72.68758648
A163: =IF(Bode!AS163=0,10,Bode!AS163) -> 1683.319 | B163: =Bode!AT163 -> 13.52533 | C163: =Bode!AU163 -> -125.5186 | D163: 2033.055021 | E163: 21.92636542 | F163: -119.623642 | G163: 22.73888605 | H163: -126.6531402 | I163: -9.946664064 | J163: -70.3121446 | K163: 24.61438682 | L163: -121.0991716 | M163: 25.41188188 | N163: -128.4188035 | O163: -6.932822269 | P163: -70.23709414 | Q163: 26.66721998 | R163: -122.0233179 | S163: 27.45294972 | T163: -129.5090903 | U163: -4.717533929 | V163: -70.19915624
A164: =IF(Bode!AS164=0,10,Bode!AS164) -> 1769.187 | B164: =Bode!AT164 -> 12.79989 | C164: =Bode!AU164 -> -128.3579 | D164: 2140.706193 | E164: 20.56911488 | F164: -122.5552025 | G164: 21.18936556 | H164: -129.1036363 | I164: -10.22474297 | J164: -67.90621878 | K164: 23.21506327 | L164: -123.9541783 | M164: 23.81779825 | N164: -130.7047099 | O164: -7.210856843 | P164: -67.81169567 | Q164: 25.2419633 | R164: -124.8235497 | S164: 25.83221726 | T164: -131.6853074 | U164: -4.995549413 | V164: -67.76403866
A165: =IF(Bode!AS165=0,10,Bode!AS165) -> 1859.479 | B165: =Bode!AT165 -> 12.00987 | C165: =Bode!AU165 -> -130.7891 | D165: 2254.057823 | E165: 19.27852662 | F165: -124.4095206 | G165: 19.76005837 | H165: -130.424694 | I165: -10.48392999 | J165: -65.55967225 | K165: 21.89320743 | L165: -125.7109946 | M165: 22.35780984 | N165: -131.8674377 | O165: -7.469978214 | P165: -65.44542752 | Q165: 23.90109534 | R165: -126.5151132 | S165: 24.35413318 | T165: -132.7461289 | U165: -5.254641854 | V165: -65.38792552
A166: =IF(Bode!AS166=0,10,Bode!AS166) -> 1954.334 | B166: =Bode!AT166 -> 11.18624 | C166: =Bode!AU166 -> -134.0349 | D166: 2373.411767 | E166: 18.06309419 | F166: -125.4757704 | G166: 18.44344998 | H166: -130.9753537 | I166: -10.7250167 | J166: -63.2777338 | K166: 20.65447832 | L166: -126.6767526 | M166: 21.01956454 | N166: -132.2762798 | O166: -7.710977245 | P166: -63.14346753 | Q166: 22.64834293 | R166: -127.4156063 | S166: 23.00324796 | T166: -133.0654871 | U166: -5.49560181 | V166: -63.07596912
A167: =IF(Bode!AS167=0,10,Bode!AS167) -> 2054.079 | B167: =Bode!AT167 -> 10.45966 | C167: =Bode!AU167 -> -135.7349 | D167: 2499.085867 | E167: 16.92211613 | F167: -125.9675682 | G167: 17.22742064 | H167: -130.9944053 | I167: -10.94883634 | J167: -61.0650795 | K167: 19.49594773 | L167: -127.0728714 | M167: 19.78787505 | N167: -132.1714286 | O167: -7.934686255 | P167: -60.91044012 | Q167: 21.47932591 | R167: -127.7506758 | S167: 21.76247203 | T167: -132.8834458 | U167: -5.719261187 | V167: -60.83276797
A168: =IF(Bode!AS168=0,10,Bode!AS168) -> 2158.899 | B168: =Bode!AT168 -> 9.66091 | C168: =Bode!AU168 -> -138.8748 | D168: 2631.414794 | E168: 15.85093429 | F168: -126.0404718 | G168: 16.09953411 | H168: -130.6432872 | I168: -11.15625266 | J168: -58.92582994 | K168: 18.41134944 | L168: -127.0577987 | M168: 18.64837129 | N168: -131.7127913 | O168: -8.141967843 | P168: -58.75041343 | Q168: 20.38675769 | R168: -127.6801229 | S168: 20.61626098 | T168: -132.3584083 | U168: -5.92648206 | V168: -58.66236385
A169: =IF(Bode!AS169=0,10,Bode!AS169) -> 2269.028 | B169: =Bode!AT169 -> 8.890935 | C169: =Bode!AU169 -> -140.7569 | D169: 2770.750941 | E169: 14.84348673 | F169: -125.8079987 | G169: 15.04847057 | H169: -130.0336169 | I169: -11.34814929 | J169: -56.86355775 | K169: 17.393491 | L169: -126.7456849 | M169: 17.58849542 | N169: -131.009723 | O169: -8.333704202 | P169: -56.66690674 | Q169: 19.36274172 | R169: -127.3182006 | S169: 19.55131609 | T169: -131.5980219 | U169: -6.118145981 | V169: -56.56824929
A170: =IF(Bode!AS170=0,10,Bode!AS170) -> 2384.838 | B170: =Bode!AT170 -> 8.055526 | C170: =Bode!AU170 -> -142.8057 | D170: 2917.465363 | E170: 13.89349465 | F170: -125.3537495 | G170: 14.06436855 | H170: -129.2443576 | I170: -11.52541973 | J170: -54.8813044 | K170: 16.43530148 | L170: -126.2197886 | M170: 16.59757541 | N170: -130.138969 | O170: -8.510787161 | P170: -54.66290722 | Q170: 18.3997203 | R170: -126.7477688 | S170: 18.55648532 | T170: -130.6774883 | U170: -6.295144017 | V170: -54.5533841
A171: =IF(Bode!AS171=0,10,Bode!AS171) -> 2506.515 | B171: =Bode!AT171 -> 7.232945 | C171: =Bode!AU171 -> -144.4555 | D171: 3071.948761 | E171: 12.99498093 | F171: -124.7400169 | G171: 13.1387743 | H171: -128.3325696 | I171: -11.68895834 | J171: -52.98160478 | K171: 15.53024476 | L171: -125.5416892 | M171: 15.66661374 | N171: -129.1556536 | O171: -8.674109112 | P171: -52.74089434 | Q171: 17.49081727 | R171: -126.0298456 | S171: 17.62245173 | T171: -129.6506371 | U171: -6.458367666 | V171: -52.62021988
A172: =IF(Bode!AS172=0,10,Bode!AS172) -> 2634.386 | B172: =Bode!AT172 -> 6.425002 | C172: =Bode!AU172 -> -146.5468 | D172: 3234.612526 | E172: 12.14246907 | F172: -124.0137776 | G172: 12.26447009 | H172: -127.3402603 | I172: -11.8396523 | J172: -51.16651813 | K172: 14.6724451 | L172: -124.7575548 | M172: 14.78801926 | N172: -128.1001675 | O172: -8.824554952 | P172: -50.90287078 | Q172: 16.62991588 | R172: -125.2100216 | S172: 16.7414061 | T172: -128.5568049 | U172: -6.608700793 | V172: -50.77073081
A173: =IF(Bode!AS173=0,10,Bode!AS173) -> 2768.822 | B173: =Bode!AT173 -> 5.648535 | C173: =Bode!AU173 -> -148.478 | D173: 3405.889834 | E173: 11.33103275 | F173: -123.2108553 | G173: 11.4352841 | H173: -126.2988445 | I173: -11.97837462 | J173: -49.43766393 | K173: 13.85668705 | L173: -123.9024264 | M173: 13.95535787 | N173: -127.0025999 | O173: -8.962995105 | P173: -49.15039819 | Q173: 15.81162722 | R173: -124.3228036 | S173: 15.9067619 | T173: -127.4252304 | U173: -6.747012637 | V173: -49.00644937
A174: =IF(Bode!AS174=0,10,Bode!AS174) -> 2910.104 | B174: =Bode!AT174 -> 4.80957 | C174: =Bode!AU174 -> -150.3843 | D174: 3586.236798 | E174: 10.55627888 | F174: -122.3588371 | G174: 10.64591716 | H174: -125.2321169 | I174: -12.10597832 | J174: -47.79626122 | K174: 13.07836512 | L174: -123.0031814 | M174: 13.16314239 | N174: -125.8856649 | O174: -9.090279653 | P174: -47.48463648 | Q174: 15.03121899 | R174: -123.3945974 | S174: 15.11292311 | T174: -126.277943 | U174: -6.874151935 | V174: -47.32850558
A175: =IF(Bode!AS175=0,10,Bode!AS175) -> 3058.603 | B175: =Bode!AT175 -> 3.958771 | C175: =Bode!AU175 -> -152.4615 | D175: 3776.133684 | E175: 9.814303917 | F175: -121.4791399 | G175: 9.891795887 | H175: -124.1582798 | I175: -12.22329172 | J175: -46.24317018 | K175: 12.33341748 | L175: -122.0806138 | M175: 12.40666213 | N175: -124.7666841 | O175: -9.207233564 | P175: -45.90638527 | Q175: 14.28453528 | R175: -122.4457901 | S175: 14.35509978 | T175: -125.1317106 | U175: -6.990942135 | V175: -45.73766844
A176: =IF(Bode!AS176=0,10,Bode!AS176) -> 3214.646 | B176: =Bode!AT176 -> 3.153961 | C176: =Bode!AU176 -> -153.6085 | D176: 3976.08619 | E176: 9.10164219 | F176: -120.5884971 | G176: 9.168951954 | H176: -123.091358 | I176: -12.3311147 | J176: -44.77893466 | K176: 11.61825894 | L176: -121.1509181 | M176: 11.68184672 | N176: -123.6589614 | O176: -9.314652984 | P176: -44.41612642 | Q176: 13.56792001 | R176: -121.4922291 | S176: 13.62916281 | T176: -123.9993878 | U176: -7.09817767 | V176: -44.23438836
A177: =IF(Bode!AS177=0,10,Bode!AS177) -> 3378.699 | B177: =Bode!AT177 -> 2.266353 | C177: =Bode!AU177 -> -155.2751 | D177: 4186.626791 | E177: 8.415214788 | F177: -119.700043 | G177: 8.47392392 | H177: -122.0422068 | I177: -12.43021604 | J177: -43.40382476 | K177: 10.9297191 | L177: -120.2267666 | M177: 10.98515773 | N177: -122.5727597 | O177: -9.413302514 | P177: -43.0140665 | Q177: 12.87814874 | R177: -120.5462917 | S177: 12.93152953 | T177: -122.8908697 | U177: -7.196621227 | V177: -42.81883967
A178: =IF(Bode!AS178=0,10,Bode!AS178) -> 3551.086 | B178: =Bode!AT178 -> 1.491443 | C178: =Bode!AU178 -> -156.5955 | D178: 4408.316159 | E178: 7.75228251 | F178: -118.8241162 | G178: 7.803677681 | H178: -121.0192448 | I178: -12.52133169 | J178: -42.1178785 | K178: 10.26498792 | L178: -119.3181028 | M178: 10.3135021 | N178: -121.5160077 | O178: -9.50391341 | P178: -41.7001785 | Q178: 12.21236965 | R178: -119.6176709 | S178: 12.25907308 | T178: -121.8137824 | U178: -7.287001914 | V178: -41.49096222
A179: =IF(Bode!AS179=0,10,Bode!AS179) -> 3732.275 | B179: =Bode!AT179 -> 0.6629792 | C179: =Bode!AU179 -> -157.7938 | D179: 4641.744656 | E179: 7.110404037 | F179: -117.9688642 | G179: 7.155541816 | H179: -120.028997 | I179: -12.60516378 | J179: -40.92094204 | K179: 9.621568605 | L179: -118.4327364 | M179: 9.664162683 | N179: -120.4948227 | O179: -9.587182589 | P179: -40.47424195 | Q179: 11.5680533 | R179: -118.7139634 | S179: 11.60905013 | T179: -120.7739922 | U179: -7.370014261 | V179: -40.25050154
A180: =IF(Bode!AS180=0,10,Bode!AS180) -> 3922.731 | B180: =Bode!AT180 -> -0.1902767 | C180: =Bode!AU180 -> -159.1108 | D180: 4887.533903 | E180: 6.487399349 | F180: -117.1407038 | G180: 6.527154764 | H180: -119.0765043 | I180: -12.68238041 | J180: -39.81270774 | K180: 8.997237203 | L180: -117.5767946 | M180: 9.03474204 | N180: -119.5139039 | O180: -9.663772376 | P180: -39.33588105 | Q180: 10.94294992 | R180: -117.8411152 | S180: 10.9790427 | T180: -119.7759889 | U180: -7.446317931 | V180: -39.09704694
A181: =IF(Bode!AS181=0,10,Bode!AS181) -> 4122.872 | B181: =Bode!AT181 -> -1.024723 | C181: =Bode!AU181 -> -160.4987 | D181: 5146.338442 | E181: 5.881317975 | F181: -116.3446769 | G181: 5.916421341 | H181: -118.1656358 | I181: -12.75361612 | J181: -38.79274991 | K181: 8.390008134 | L181: -116.7550706 | M181: 8.423116498 | N181: -118.5768327 | O181: -9.734310862 | P181: -38.28460039 | Q181: 10.33505335 | R181: -117.0037641 | S181: 10.36691088 | T181: -118.8231778 | U181: -7.516538062 | V181: -38.03006722
A182: =IF(Bode!AS182=0,10,Bode!AS182) -> 4333.258 | B182: =Bode!AT182 -> -1.929585 | C182: =Bode!AU182 -> -162.1631 | D182: 5418.847471 | E182: 5.29041149 | F182: -115.5847281 | G182: 5.321476657 | H182: -117.2993328 | I182: -12.8194728 | J182: -37.86055779 | K182: 7.798104645 | L182: -115.9712949 | M182: 7.827398336 | N182: -117.686306 | O182: -9.799392811 | P182: -37.31981803 | Q182: 9.742570222 | R182: -116.2055071 | S182: 9.770753888 | T182: -117.9181067 | U182: -7.581266142 | V182: -37.04894373
A183: =IF(Bode!AS183=0,10,Bode!AS183) -> 4554.354 | B183: =Bode!AT183 -> -2.693437 | C183: =Bode!AU183 -> -163.1107 | D183: 5705.786684 | E183: 4.713109666 | F183: -114.8639245 | G183: 4.740655922 | H183: -116.4797989 | I183: -12.8805211 | J183: -37.01556573 | K183: 7.219933456 | L183: -115.2283489 | M183: 7.245904287 | N183: -116.8443193 | O183: -9.859581007 | P183: -36.44089573 | Q183: 9.163893774 | R183: -115.4491108 | S183: 9.18887794 | T183: -117.0626441 | U183: -7.641061326 | V183: -36.15300065
A184: =IF(Bode!AS184=0,10,Bode!AS184) -> 4786.719 | B184: =Bode!AT184 -> -3.544831 | C184: =Bode!AU184 -> -164.2603 | D184: 6007.920204 | E184: 4.147999734 | F184: -114.1846304 | G184: 4.172468958 | H184: -115.7086525 | I184: -12.93730224 | J184: -36.25718047 | K184: 6.654062893 | L184: -114.528436 | M184: 6.67712909 | N184: -116.0523119 | O184: -9.915407969 | P184: -35.64716638 | Q184: 8.597581277 | R184: -114.7366787 | S184: 8.619769178 | T184: -116.2581206 | U184: -7.696452121 | V184: -35.34153244
A185: =IF(Bode!AS185=0,10,Bode!AS185) -> 5031.005 | B185: =Bode!AT185 -> -4.379185 | C185: =Bode!AU185 -> -165.2811 | D185: 6326.052616 | E185: 3.593808283 | F185: -113.5486482 | G185: 3.615578496 | H185: -114.9870479 | I185: -12.99033011 | J185: -35.58480555 | K185: 6.099203923 | L185: -113.8732181 | M185: 6.11972307 | N185: -115.3112838 | O185: -9.967377967 | P185: -34.93795857 | Q185: 8.042334571 | R185: -114.0697858 | S185: 8.062070862 | T185: -115.5054423 | U185: -7.747938364 | V185: -34.61382848
A186: =IF(Bode!AS186=0,10,Bode!AS186) -> 5287.677 | B186: =Bode!AT186 -> -5.133738 | C186: =Bode!AU186 -> -166.6106 | D186: 6661.031109 | E186: 3.049385385 | F186: -112.9573324 | G186: 3.06878156 | H186: -114.3157738 | I186: -13.04009355 | J186: -34.9978629 | K186: 5.554193619 | L186: -113.2639263 | M186: 5.572472965 | N186: -114.6218896 | O186: -10.01596928 | P186: -34.31261839 | Q186: 7.496983146 | R186: -113.4495876 | S186: 7.514563879 | T186: -114.8051825 | U186: -7.795993438 | V186: -33.96919495
A187: =IF(Bode!AS187=0,10,Bode!AS187) -> 5557.481 | B187: =Bode!AT187 -> -6.036506 | C187: =Bode!AU187 -> -167.2936 | D187: 7013.747737 | E187: 2.513690617 | F187: -112.4116817 | G187: 2.530993362 | H187: -113.695333 | I187: -13.08705892 | J187: -34.4958117 | K187: 5.017980675 | L187: -112.7014511 | M187: 5.034285408 | N187: -113.9845151 | O187: -10.0616366 | P187: -33.77052861 | Q187: 6.960469345 | R187: -112.8769077 | S187: 6.97614998 | T187: -114.1576562 | U187: -7.841066661 | V187: -33.40697404
A188: =IF(Bode!AS188=0,10,Bode!AS188) -> 5841.069 | B188: =Bode!AT188 -> -6.823021 | C188: =Bode!AU188 -> -168.6199 | D188: 7385.141786 | E188: 1.985780683 | F188: -111.9124156 | G188: 2.001233283 | H188: -113.1260079 | I188: -13.13167273 | J188: -34.07816461 | K188: 4.489612628 | L188: -112.1864162 | M188: 4.504172572 | N188: -113.3993401 | O188: -10.10481368 | P188: -33.3111252 | Q188: 6.43183536 | R188: -112.352311 | S188: 6.44583724 | T188: -113.562981 | U188: -7.883585822 | V188: -32.92656071
A189: =IF(Bode!AS189=0,10,Bode!AS189) -> 6139.092 | B189: =Bode!AT189 -> -7.677181 | C189: =Bode!AU189 -> -169.5919 | D189: 7776.202283 | E189: 1.46479842 | F189: -111.4600361 | G189: 1.478612576 | H189: -112.6079141 | I189: -13.17436445 | J189: -33.74450151 | K189: 3.968224549 | L189: -111.7192388 | M189: 3.981239621 | N189: -112.8663896 | O189: -10.14591591 | P189: -32.93391159 | Q189: 5.910211739 | R189: -111.8761624 | S189: 5.922727366 | T189: -113.0211273 | U189: -7.923959811 | V189: -32.52741703
A190: =IF(Bode!AS190=0,10,Bode!AS190) -> 6452.342 | B190: =Bode!AT190 -> -8.510259 | C190: =Bode!AU190 -> -170.3807 | D190: 8187.970626 | E190: 0.9499629703 | F190: -111.0548795 | G190: 0.9623235186 | H190: -112.141044 | I190: -13.21554933 | J190: -33.49448088 | K190: 3.453028967 | L190: -111.3001791 | M190: 3.464673662 | N190: -112.3855759 | O190: -10.18534318 | P190: -32.6384705 | Q190: 5.39480716 | R190: -111.448676 | S190: 5.406004526 | T190: -112.531959 | U190: -7.962581328 | V190: -32.20908426
A191: =IF(Bode!AS191=0,10,Bode!AS191) -> 6781.612 | B191: =Bode!AT191 -> -9.36755 | C191: =Bode!AU191 -> -171.1903 | D191: 8621.54336 | E191: 0.4405609748 | F191: -110.6971579 | G191: 0.4516297895 | H191: -111.7253031 | I191: -13.25563134 | J191: -33.32784891 | K191: 2.943306868 | L191: -110.9293817 | M191: 2.953733959 | N191: -111.9567333 | O191: -10.2234826 | P191: -32.42447373 | Q191: 4.884899317 | R191: -111.0699549 | S191: 4.894925478 | T191: -112.0952673 | U191: -7.999829643 | V191: -31.97119284
A192: =IF(Bode!AS192=0,10,Bode!AS192) -> 7127.644 | B192: =Bode!AT192 -> -10.1744 | C192: =Bode!AU192 -> -171.904 | D192: 9078.075093 | E192: -0.06406136184 | F192: -110.3869946 | G192: -0.05414212424 | H192: -111.3605398 | I192: -13.29500611 | J192: -33.24444644 | K192: 2.438399595 | L192: -110.6069092 | M192: 2.447743215 | N192: -111.5796465 | O192: -10.26071144 | P192: -32.29168983 | Q192: 4.379826725 | R192: -110.7400242 | S192: 4.388810776 | T192: -111.7107985 | U192: -8.036073393 | V192: -31.81347045
A193: =IF(Bode!AS193=0,10,Bode!AS193) -> 7491.326 | B193: =Bode!AT193 -> -10.98642 | C193: =Bode!AU193 -> -172.9696 | D193: 9558.781575 | E193: -0.5645054466 | F193: -110.1244523 | G193: -0.5556106304 | H193: -111.0465697 | I193: -13.33406394 | J193: -33.24421386 | K193: 1.937701548 | L193: -110.3327693 | M193: 1.946079761 | N193: -111.2540738 | O193: -10.29739992 | P193: -32.23998991 | Q193: 3.878981343 | R193: -110.4588584 | S193: 3.8870369 | T193: -111.3782764 | U193: -8.071673402 | V193: -31.73574807
A194: =IF(Bode!AS194=0,10,Bode!AS194) -> 7873.587 | B194: =Bode!AT194 -> -11.77949 | C194: =Bode!AU194 -> -173.8944 | D194: 10064.94293 | E194: -1.061326814 | F194: -109.9095564 | G194: -1.053345978 | H194: -110.7831948 | I194: -13.37319277 | J194: -33.32719394 | K194: 1.440653559 | L194: -110.1069379 | M194: 1.448170528 | N194: -110.9797659 | O194: -10.33391419 | P194: -32.26935143 | Q194: 3.381801894 | R194: -110.2264031 | S194: 3.389029182 | T194: -111.0974208 | U194: -8.10698552 | V194: -31.7379643
A195: =IF(Bode!AS195=0,10,Bode!AS195) -> 8275.313 | B195: =Bode!AT195 -> -12.56149 | C195: =Bode!AU195 -> -174.8956 | D195: 10597.90708 | E195: -1.555041064 | F195: -109.7423139 | G195: -1.547876552 | H195: -110.57022 | I195: -13.41278121 | J195: -33.49353267 | K195: 0.9467368714 | L195: -109.929377 | M195: 0.9534846859 | N195: -110.756481 | O195: -10.37061917 | P195: -32.37986038 | Q195: 2.887767783 | R195: -110.0425928 | S195: 2.894255404 | T195: -110.8679619 | U195: -8.142363474 | V195: -31.82016795
A196: =IF(Bode!AS196=0,10,Bode!AS196) -> 8697.575 | B196: =Bode!AT196 -> -13.36656 | C196: =Bode!AU196 -> -175.226 | D196: 11159.0933 | E196: -2.046129301 | F196: -109.6227286 | G196: -2.039694594 | H196: -110.407465 | I196: -13.45322156 | J196: -33.74347819 | K196: 0.4554676277 | L196: -109.8000494 | M196: 0.4615278602 | N196: -110.5839968 | O196: -10.4078815 | P196: -32.57171141 | Q196: 2.396393555 | R196: -109.9073654 | S196: 2.402219984 | T196: -110.6896518 | U196: -8.178161727 | V196: -31.98251886
A197: =IF(Bode!AS197=0,10,Bode!AS197) -> 9141.35 | B197: =Bode!AT197 -> -14.22337 | C197: =Bode!AU197 -> -176.9278 | D197: 11749.99604 | E197: -2.535043127 | F197: -109.5508128 | G197: -2.529261446 | H197: -110.2947745 | I197: -13.4949128 | J197: -34.07737759 | K197: -0.03360818182 | L197: -109.71893 | M197: -0.02816315121 | N197: -110.4621193 | O197: -10.44607248 | P197: -32.84520641 | Q197: 1.9072238 | R197: -109.820673 | S197: 1.912458663 | T197: -110.5622736 | U197: -8.214738344 | V197: -32.22528705
A198: =IF(Bode!AS198=0,10,Bode!AS198) -> 9607.803 | B198: =Bode!AT198 -> -15.05136 | C198: =Bode!AU198 -> -177.6926 | D198: 12372.18889 | E198: -3.02220925 | F198: -109.5265962 | G198: -3.017012353 | H198: -110.2320248 | I198: -13.53826359 | J198: -34.49567181 | K198: -0.5209193761 | L198: -109.6860144 | M198: -0.5160252226 | N198: -110.3906897 | O198: -10.48557094 | P198: -33.20075101 | Q198: 1.419828474 | R198: -109.7824903 | S198: 1.424533642 | T198: -110.4856473 | U198: -8.252457861 | V198: -32.5488501
A199: =IF(Bode!AS199=0,10,Bode!AS199) -> 10098.05 | B199: =Bode!AT199 -> -15.79893 | C199: =Bode!AU199 -> -178.0445 | D199: 13027.32875 | E199: -3.508033747 | F199: -109.5501325 | G199: -3.503360891 | H199: -110.2191286 | I199: -13.58369523 | J199: -34.99888829 | K199: -1.006873888 | L199: -109.7013247 | M199: -1.002473364 | N199: -110.3695887 | O199: -10.52676619 | P199: -33.63884942 | Q199: 0.9337985654 | R199: -109.7928202 | S199: 0.938029101 | T199: -110.4596344 | U199: -8.291694151 | V199: -32.95368881
A200: =IF(Bode!AS200=0,10,Bode!AS200) -> 10613.31 | B200: =Bode!AT200 -> -16.53396 | C200: =Bode!AU200 -> -178.6719 | D200: 13717.16026 | E200: -3.99290602 | F200: -109.6215035 | G200: -3.988703073 | H200: -110.2560383 | I200: -13.63164461 | J200: -35.58763153 | K200: -1.491862756 | L200: -109.7649135 | M200: -1.487904849 | N200: -110.398739 | O200: -10.57006094 | P200: -34.16009709 | Q200: 0.4487420863 | R200: -109.8516978 | S200: 0.4525470511 | T200: -110.4841395 | U200: -8.33283329 | V200: -33.4403809
A201: =IF(Bode!AS201=0,10,Bode!AS201) -> 11154.87 | B201: =Bode!AT201 -> -17.25312 | C201: =Bode!AU201 -> -179.8496 | D201: 14443.52046 | E201: -4.477202486 | F201: -109.7408206 | G201: -4.47342115 | H201: -110.3427458 | I201: -13.68256705 | J201: -36.2625712 | K201: -1.97626384 | L201: -109.8768659 | M201: -1.972703039 | N201: -110.4781053 | O201: -10.6158741 | P201: -34.76517147 | Q201: -0.03571966251 | R201: -109.9591918 | S201: -0.03229649996 | T201: -110.5591113 | U201: -8.376276402 | V201: -34.00959291
A202: =IF(Bode!AS202=0,10,Bode!AS202) -> 11724.05 | B202: =Bode!AT202 -> -18.13203 | C202: =Bode!AU202 -> 179.4965 | D202: 15208.34365 | E202: -4.961290009 | F202: -109.9082256 | G202: -4.957887145 | H202: -110.4792823 | I202: -13.73693908 | J202: -37.02442797 | K202: -2.460445285 | L202: -110.0372985 | M202: -2.457240943 | N202: -110.6076939 | O202: -10.6646437 | P202: -35.45482042 | Q202: -0.5199555654 | R202: -110.1154039 | S202: -0.5168751178 | T202: -110.6845408 | U202: -8.422442486 | V202: -34.66206989
A203: =IF(Bode!AS203=0,10,Bode!AS203) -> 12322.24 | B203: =Bode!AT203 -> -18.89972 | C203: =Bode!AU203 -> 179.0471 | D203: 16013.66655 | E203: -5.445529111 | F203: -110.123888 | G203: -5.442466152 | H203: -110.6657153 | I203: -13.79526114 | J203: -37.87395661 | K203: -2.944768742 | L203: -110.2463581 | M203: -2.941884526 | N203: -110.7875486 | O203: -10.7168296 | P203: -36.22984842 | Q203: -1.004327934 | R203: -110.3204668 | S203: -1.001555261 | T203: -110.860458 | U203: -8.471771192 | V203: -35.39862296
A204: =IF(Bode!AS204=0,10,Bode!AS204) -> 12951.02 | B204: =Bode!AT204 -> -19.58067 | C204: =Bode!AU204 -> 178.7309 | D204: 16861.63377 | E204: -5.930276961 | F204: -110.3880018 | G204: -5.9275194 | H204: -110.9021435 | I204: -13.85806005 | J204: -38.81192652 | K204: -3.429592387 | L204: -110.5042174 | M204: -3.426995787 | N204: -111.0177469 | O204: -10.77291621 | P204: -37.09110015 | Q204: -1.489195526 | R204: -110.5745404 | S204: -1.486699368 | T204: -111.0869273 | U204: -8.524725533 | V204: -36.22011445
A205: =IF(Bode!AS205=0,10,Bode!AS205) -> 13611.84 | B205: =Bode!AT205 -> -20.34003 | C205: =Bode!AU205 -> 176.7491 | D205: 17754.50343 | E205: -6.41589016 | F205: -110.70078 | G205: -6.413407095 | H205: -111.1886916 | I205: -13.92589137 | J205: -39.83909935 | K205: -3.915273716 | L205: -110.8110694 | M205: -3.912935622 | N205: -111.2983932 | O205: -10.833415 | P205: -38.03944153 | Q205: -1.974916355 | R205: -110.8778055 | S205: -1.972668722 | T205: -111.3640413 | U205: -8.5817945 | V205: -37.12744062
A206: =IF(Bode!AS206=0,10,Bode!AS206) -> 14306.37 | B206: =Bode!AT206 -> -21.10363 | C206: =Bode!AU206 -> 176.4414 | D206: 18694.65327 | E206: -6.902727315 | F206: -111.062447 | G206: -6.900491058 | H206: -111.5255015 | I206: -13.9993414 | J206: -40.9562038 | K206: -4.402172132 | L206: -111.1671199 | M206: -4.400066462 | N206: -111.6296109 | O206: -10.89886691 | P206: -39.07573789 | Q206: -2.461850288 | R206: -111.2304568 | S206: -2.459826101 | T206: -111.6919119 | U206: -8.643495544 | V206: -38.12151155
A207: =IF(Bode!AS207=0,10,Bode!AS207) -> 15036.39 | B207: =Bode!AT207 -> -21.7216 | C207: =Bode!AU207 -> 175.5026 | D207: 19684.58691 | E207: -7.391151405 | F207: -111.4732294 | G207: -7.389137127 | H207: -111.9127232 | I207: -14.07902898 | J207: -42.16390735 | K207: -4.890651322 | L207: -111.5725784 | M207: -4.88875469 | N207: -112.0115325 | O207: -10.96984451 | P207: -40.20082929 | Q207: -2.950361423 | R207: -111.6326934 | S207: -2.948538196 | T207: -112.0706614 | U207: -8.710376876 | V207: -39.20322834
A208: =IF(Bode!AS208=0,10,Bode!AS208) -> 15803.61 | B208: =Bode!AT208 -> -22.45792 | C208: =Bode!AU208 -> 174.576 | D208: 20726.94055 | E208: -7.881531914 | F208: -111.9333458 | G208: -7.87971734 | H208: -112.3505032 | I208: -14.16560677 | J208: -43.46278512 | K208: -5.381081404 | L208: -112.0276473 | M208: -5.379372829 | N208: -112.4442882 | O208: -11.04695386 | P208: -41.41550275 | Q208: -3.440820244 | R208: -112.0847075 | S208: -3.439177806 | T208: -112.5004101 | U208: -8.783019521 | V208: -40.37345722
A209: =IF(Bode!AS209=0,10,Bode!AS209) -> 16610 | B209: =Bode!AT209 -> -23.15863 | C209: =Bode!AU209 -> 173.6075 | D209: 21824.49 | E209: -8.374246728 | F209: -112.4429934 | G209: -8.372611863 | H209: -112.8389715 | I209: -14.25976216 | J209: -44.85328578 | K209: -5.873840828 | L209: -112.5325086 | M209: -5.872301479 | N209: -112.9279928 | O209: -11.13083602 | P209: -42.72046145 | Q209: -3.933605531 | R209: -112.5866723 | S209: -3.932125776 | T209: -112.9812638 | U209: -8.862039079 | V209: -41.63300069
A210: =IF(Bode!AS210=0,10,Bode!AS210) -> 17457.5 | B210: =Bode!AT210 -> -23.91529 | C210: =Bode!AU210 -> 173.5189 | D210: 22980.15805 | E210: -8.869683758 | F210: -113.0023339 | G210: -8.868210646 | H210: -113.3782267 | I210: -14.3622175 | J210: -46.33569477 | K210: -6.369318013 | L210: -113.0873099 | M210: -6.367930977 | N210: -113.4627308 | O210: -11.22216813 | P210: -44.11629085 | Q210: -4.429105995 | R210: -113.1387266 | S210: -4.427772663 | T210: -113.5132983 | U210: -8.948087085 | V210: -42.98256554
A211: =IF(Bode!AS211=0,10,Bode!AS211) -> 18348.31 | B211: =Bode!AT211 -> -24.45495 | C211: =Bode!AU211 -> 171.8985 | D211: 24197.02224 | E211: -9.368242265 | F211: -113.6114774 | G211: -9.366914774 | H211: -113.9683196 | I211: -14.47372975 | J211: -47.910095 | K211: -6.86791267 | L211: -113.6921478 | M211: -6.866662756 | N211: -114.0485394 | O211: -11.32166389 | P211: -45.60342189 | Q211: -4.92772161 | R211: -113.740959 | S211: -4.926520094 | T211: -114.096543 | U211: -9.041851911 | V211: -44.42272777
A212: =IF(Bode!AS212=0,10,Bode!AS212) -> 19284.52 | B212: =Bode!AT212 -> -25.28177 | C212: =Bode!AU212 -> 171.9961 | D212: 25478.32311 | E212: -9.870333845 | F212: -114.2704642 | G212: -9.869137474 | H212: -114.6092351 | I212: -14.59508931 | J212: -49.57632564 | K212: -7.370036802 | L212: -114.3470502 | M212: -7.368910353 | N212: -114.685391 | O212: -11.43007349 | P212: -47.18209141 | Q212: -5.429864612 | R212: -114.3933897 | S212: -5.428781786 | T212: -114.7309626 | U212: -9.144059086 | V212: -45.95389459
A213: =IF(Bode!AS213=0,10,Bode!AS213) -> 20268.51 | B213: =Bode!AT213 -> -25.90661 | C213: =Bode!AU213 -> 171.1321 | D213: 26827.47277 | E213: -10.37638303 | F213: -114.9792456 | G213: -10.37530474 | H213: -115.300872 | I213: -14.72711798 | J213: -51.33393932 | K213: -7.876115301 | L213: -115.0519565 | M213: -7.875100041 | N213: -115.3731728 | O213: -11.5481827 | P213: -48.85230021 | Q213: -5.935960106 | R213: -115.0959512 | S213: -5.934984166 | T213: -115.4164372 | U213: -9.255470944 | V213: -47.57626381
A214: =IF(Bode!AS214=0,10,Bode!AS214) -> 21302.75 | B214: =Bode!AT214 -> -26.5306 | C214: =Bode!AU214 -> 170.8487 | D214: 28248.06402 | E214: -10.88682745 | F214: -115.7376631 | G214: -10.88585553 | H214: -116.0430228 | I214: -14.87066596 | J214: -53.18215873 | K214: -8.38658613 | L214: -115.8066972 | M214: -8.385671019 | N214: -116.1116659 | O214: -11.67681119 | P214: -50.61376925 | Q214: -6.446446243 | R214: -115.848467 | S214: -6.445566575 | T214: -116.1527414 | U214: -9.376885477 | V214: -49.28978079
A215: =IF(Bode!AS215=0,10,Bode!AS215) -> 22389.74 | B215: =Bode!AT215 -> -27.22399 | C215: =Bode!AU215 -> 169.8672 | D215: 29743.87991 | E215: -11.40211755 | F215: -116.5454267 | G215: -11.40124144 | H215: -116.835351 | I215: -15.02660779 | J215: -55.11983338 | K215: -8.901900016 | L215: -116.6109718 | M215: -8.901075121 | N215: -116.9005234 | O215: -11.81680975 | P215: -52.46589465 | Q215: -6.961773919 | R215: -116.6506304 | S215: -6.960980975 | T215: -116.939522 | U215: -9.509134293 | V215: -51.09409382
A216: =IF(Bode!AS216=0,10,Bode!AS216) -> 23532.15 | B216: =Bode!AT216 -> -27.78373 | C216: =Bode!AU216 -> 168.3406 | D216: 31318.90381 | E216: -11.92271571 | F216: -117.4020918 | G216: -11.92192592 | H216: -117.6773683 | I216: -15.19583718 | J216: -57.14539765 | K216: -9.422519611 | L216: -117.4643259 | M216: -9.421775995 | N216: -117.7392473 | O216: -11.96905662 | P216: -54.40770232 | Q216: -7.482405937 | R216: -117.501981 | S216: -7.481691126 | T216: -117.776275 | U216: -9.653079558 | V216: -52.98850843
A217: =IF(Bode!AS217=0,10,Bode!AS217) -> 24732.9 | B217: =Bode!AT217 -> -28.36816 | C217: =Bode!AU217 -> 168.0471 | D217: 32977.33004 | E217: -12.44909486 | F217: -118.3070369 | G217: -12.44838285 | H217: -118.5684118 | I217: -15.37926068 | J217: -59.2568315 | K217: -9.948918074 | L217: -118.3661286 | M217: -9.948247693 | N217: -118.6271653 | O217: -12.13445247 | P217: -56.43780348 | Q217: -8.008815594 | R217: -118.4018821 | S217: -8.008171183 | T217: -118.6623227 | U217: -9.809609828 | V217: -54.97194168
A218: =IF(Bode!AS218=0,10,Bode!AS218) -> 25994.89 | B218: =Bode!AT218 -> -28.9451 | C218: =Bode!AU218 -> 167.5382 | D218: 34723.57499 | E218: -12.98173643 | F218: -119.2594402 | G218: -12.98109451 | H218: -119.5076211 | I218: -15.57779016 | J218: -61.45162512 | K218: -10.48157704 | L218: -119.3155493 | M218: -10.48097265 | N218: -119.5634082 | O218: -12.31391435 | P218: -58.55435215 | Q218: -8.541484646 | R218: -119.3494982 | S218: -8.540903674 | T218: -119.5967905 | U218: -9.979634697 | V218: -57.04287763
A219: =IF(Bode!AS219=0,10,Bode!AS219) -> 27321.33 | B219: =Bode!AT219 -> -29.56878 | C219: =Bode!AU219 -> 166.7264 | D219: 36562.28895 | E219: -13.52112763 | F219: -120.2582585 | G219: -13.52054887 | H219: -120.4939159 | I219: -15.79233422 | J219: -63.72674916 | K219: -11.02098392 | L219: -120.3115366 | M219: -11.02043901 | N219: -120.5468875 | O219: -12.50836826 | P219: -60.75500618 | Q219: -9.08090062 | R219: -120.3437725 | S219: -9.080376819 | T219: -120.578585 | U219: -10.16407819 | V219: -59.19932529
A220: =IF(Bode!AS220=0,10,Bode!AS220) -> 28715.38 | B220: =Bode!AT220 -> -30.08048 | C220: =Bode!AU220 -> 166.6591 | D220: 38498.36842 | E220: -14.06775815 | F220: -121.3022063 | G220: -14.06723632 | H220: -121.5259762 | I220: -16.02378854 | J220: -66.07863208 | K220: -11.56762858 | L220: -121.3527971 | M220: -11.56713727 | N220: -121.5762753 | O220: -12.71874057 | P220: -63.03689343 | Q220: -9.62755347 | R220: -121.3834069 | S220: -9.627081195 | T220: -121.6063736 | U220: -10.36387092 | V220: -61.43878058
A221: =IF(Bode!AS221=0,10,Bode!AS221) -> 30180.63 | B221: =Bode!AT221 -> -30.838 | C221: =Bode!AU221 -> 166.7897 | D221: 40536.9692 | E221: -14.62211612 | F221: -122.3897386 | G221: -14.6216456 | H221: -122.6022241 | I221: -16.27302528 | J221: -68.50314607 | K221: -12.12199929 | L221: -122.4377784 | M221: -12.12155629 | N221: -122.6499864 | O221: -12.94594826 | P221: -65.39658476 | Q221: -10.18193157 | R221: -122.4668447 | S221: -10.18150573 | T221: -122.6785665 | U221: -10.57994095 | V221: -63.75819408
A222: =IF(Bode!AS222=0,10,Bode!AS222) -> 31720.57 | B222: =Bode!AT222 -> -31.93198 | C222: =Bode!AU222 -> 166.3817 | D222: 42683.52012 | E222: -15.18468347 | F222: -123.5190364 | G222: -15.18425921 | H222: -123.7208092 | I222: -16.54088186 | J222: -70.99560318 | K222: -12.68457812 | L222: -123.5646544 | M222: -12.68417868 | N222: -123.7661633 | O222: -13.19088812 | P222: -67.83007565 | Q222: -10.74451706 | R222: -123.5922554 | S222: -10.74413309 | T222: -123.7933024 | U222: -10.81320362 | V222: -66.15394623
A223: =IF(Bode!AS223=0,10,Bode!AS223) -> 33339.16 | B223: =Bode!AT223 -> -31.67117 | C223: =Bode!AU223 -> 163.094 | D223: 44943.73746 | E223: -15.75593075 | F223: -124.6879959 | G223: -15.75554819 | H223: -124.8795988 | I223: -16.82814922 | J223: -73.5507627 | K223: -13.25583576 | L223: -124.7313149 | M223: -13.25547557 | N223: -124.9226667 | O223: -13.45442509 | P223: -70.33277793 | Q223: -11.3157807 | R223: -124.7575247 | S223: -11.31543447 | T223: -124.9484377 | U223: -11.0645502 | V223: -68.62183176
A224: =IF(Bode!AS224=0,10,Bode!AS224) -> 35040.27 | B224: =Bode!AT224 -> -32.24113 | C224: =Bode!AU224 -> 163.4646 | D224: 47323.6402 | E224: -16.33631142 | F224: -125.8942244 | G224: -16.33596646 | H224: -126.0761721 | I224: -17.13556 | J224: -76.16285082 | K224: -13.83622577 | L224: -125.9353605 | M224: -13.83590097 | N224: -126.1170694 | O224: -13.73737998 | P224: -72.89952334 | Q224: -11.89617611 | R224: -125.9602497 | S224: -11.89586391 | T224: -126.1415416 | U224: -11.33483594 | V224: -71.15705506
A225: =IF(Bode!AS225=0,10,Bode!AS225) -> 36828.22 | B225: =Bode!AT225 -> -32.97882 | C225: =Bode!AU225 -> 163.7624 | D225: 49829.56606 | E225: -16.92625587 | F225: -127.1350401 | G225: -16.92594479 | H225: -127.3078209 | I225: -17.4637768 | J225: -78.8255931 | K225: -14.42617862 | L225: -127.1741039 | M225: -14.42588574 | N225: -127.3466576 | O225: -14.04051697 | P225: -75.52457991 | Q225: -12.48613385 | R225: -127.1977391 | S225: -12.48585231 | T225: -127.3698967 | U225: -11.62486741 | V225: -73.75423791
A226: =IF(Bode!AS226=0,10,Bode!AS226) -> 38707.4 | B226: =Bode!AT226 -> -33.29463 | C226: =Bode!AU226 -> 163.226 | D226: 52468.18833 | E226: -17.52616513 | F226: -128.4074801 | G226: -17.5258846 | H226: -128.5715574 | I226: -17.81338111 | J226: -81.53225983 | K226: -15.02609547 | L226: -128.4445762 | M226: -15.02583135 | N226: -128.6084376 | O226: -14.36453108 | P226: -78.20168211 | Q226: -13.0860551 | R226: -128.4670208 | S226: -13.08580121 | T226: -128.630506 | U226: -11.9353898 | V226: -76.40744068
A227: =IF(Bode!AS227=0,10,Bode!AS227) -> 40682.45 | B227: =Bode!AT227 -> -33.73706 | C227: =Bode!AU227 -> 163.3126 | D227: 55246.53371 | E227: -18.13640471 | F227: -129.708314 | G227: -18.13615174 | H227: -129.8641276 | I227: -18.18486309 | J227: -84.27572377 | K227: -15.6363419 | L227: -129.7435419 | M227: -15.63610372 | N227: -129.8991503 | O227: -14.71003613 | P227: -80.92407495 | Q227: -13.69630549 | R227: -129.7648561 | S227: -13.69607654 | T227: -129.9201071 | U227: -12.26707432 | V227: -79.1101976
A228: =IF(Bode!AS228=0,10,Bode!AS228) -> 42758.28 | B228: =Bode!AT228 -> -34.29365 | C228: =Bode!AU228 -> 165.9724 | D228: 58172.00095 | E228: -18.75729855 | F228: -131.0340661 | G228: -18.75707041 | H228: -131.1820333 | I228: -18.57861268 | J228: -87.0485293 | K228: -16.2572419 | L228: -131.06752 | M228: -16.25702711 | N228: -131.2152922 | O228: -15.07755366 | P228: -83.68457178 | Q228: -14.31720907 | R228: -131.087761 | S228: -14.3170026 | T228: -131.2351936 | U228: -12.62050624 | V228: -81.8555664
A229: =IF(Bode!AS229=0,10,Bode!AS229) -> 44940.04 | B229: =Bode!AT229 -> -34.84167 | C229: =Bode!AU229 -> 162.5726 | D229: 61252.38061 | E229: -19.38912337 | F229: -132.3810432 | G229: -19.38891763 | H229: -132.5215601 | I229: -18.9949124 | J229: -89.84297145 | K229: -16.88907228 | L229: -132.4128127 | M229: -16.88887857 | N229: -132.5531443 | O229: -15.46750302 | P229: -86.47562491 | Q229: -14.94904267 | R229: -132.4320346 | S229: -14.94885647 | T229: -132.5720436 | U229: -12.99617399 | V229: -84.63619161
A230: =IF(Bode!AS230=0,10,Bode!AS230) -> 47233.14 | B230: =Bode!AT230 -> -34.79929 | C230: =Bode!AU230 -> 162.1159 | D230: 64495.87577 | E230: -20.0321037 | F230: -133.74537 | G230: -20.03191816 | H230: -133.8788126 | I230: -19.43393192 | J230: -92.65118279 | K230: -17.53205763 | L230: -133.7755402 | M230: -17.53188294 | N230: -133.9088066 | O230: -15.88019326 | P230: -89.28940745 | Q230: -15.59203093 | R230: -133.7937943 | S230: -15.591863 | T230: -133.9267543 | U230: -13.39445974 | V230: -87.44438048
A231: =IF(Bode!AS231=0,10,Bode!AS231) -> 49643.22 | B231: =Bode!AT231 -> -35.34407 | C231: =Bode!AU231 -> 163.7983 | D231: 67911.1239 | E231: -20.68640777 | F231: -135.1230302 | G231: -20.68624044 | H231: -135.2497554 | I231: -19.89572497 | J231: -95.46522561 | K231: -18.18636622 | L231: -135.1516816 | M231: -18.18620867 | N231: -135.2782394 | O231: -16.315817 | P231: -92.11790421 | Q231: -16.24634213 | R231: -135.1690169 | S231: -16.2461907 | T231: -135.2952836 | U231: -13.81563178 | V231: -90.27218964
A232: =IF(Bode!AS232=0,10,Bode!AS232) -> 52176.28 | B232: =Bode!AT232 -> -35.94699 | C232: =Bode!AU232 -> 163.7243 | D232: 71507.21984 | E232: -21.3521443 | F232: -136.5099119 | G232: -21.35199339 | H232: -136.6302585 | I232: -20.38022833 | J232: -98.27718688 | K232: -18.85210683 | L232: -136.5371213 | M232: -18.85196475 | N232: -136.6573087 | O232: -16.7744466 | P232: -94.95300907 | Q232: -16.91208511 | R232: -136.553584 | S232: -16.91194853 | T232: -136.6734949 | U232: -14.25983917 | V232: -93.11152021
... 27 more rows

Sheet RidleyBox Measurements (hidden)
V1: speakon | X1: C:\Users\rridl\Desktop\RidleyBox-Interface.xlsm
V2: 1 | X2: FALSE
N4: 200
E57: Dataset 1 | G57: Dataset 2 | I57: Dataset 3 | K57: Dataset 4 | M57: Dataset 5 | O57: Dataset 6 | Q57: Dataset 7 | S57: Dataset 8 | U57: Dataset 9
A58: Live RidleyBox Data | W58: Dataset 10 | Y58: Dataset 11 | AA58: Dataset 12 | AC58: Dataset 13 | AE58: Dataset 14 | AG58: Dataset 15 | AI58: Dataset 16 | AK58: Dataset 17 | AM58: Dataset 18 | AV58: Dataset 1 | AW58: Dataset 2 | AX58: Dataset 3 | AY58: Dataset 4 | AZ58: Dataset 5 | BA58: Dataset 6 | BB58: Dataset 7 | BC58: Dataset 8 | BD58: Dataset 9
A59: Frequency | B59: Magnitude | C59: Phase | D59: Frequency | E59: Magnitude | F59: Phase | G59: Magnitude | H59: Phase | I59: Magnitude | J59: Phase | K59: Magnitude | L59: Phase | M59: Magnitude | N59: Phase | O59: Magnitude | P59: Phase | Q59: Magnitude | R59: Phase | S59: Magnitude | T59: Phase | U59: Magnitude | V59: Phase | W59: Magnitude | X59: Phase | Y59: Magnitude | Z59: Phase | AA59: Magnitude | AB59: Phase | AC59: Magnitude | AD59: Phase | AE59: Magnitude | AF59: Phase | AG59: Magnitude | AH59: Phase | AI59: Magnitude | AJ59: Phase | AK59: Magnitude | AL59: Phase | AM59: Magnitude | AN59: Phase
A60: 10.01172 | B60: 22.08842 | C60: -0.6390768
A61: 10.52395 | B61: 22.09799 | C61: -0.7193996
A62: 11.03617 | B62: 22.09776 | C62: -0.6601194
A63: 11.64153 | B63: 22.09824 | C63: -0.7534858
A64: 12.20033 | B64: 22.0981 | C64: -0.8084409
A65: 12.85225 | B65: 22.09048 | C65: -0.791647
A66: 13.50418 | B66: 22.0937 | C66: -0.8251558
A67: 14.1561 | B67: 22.10074 | C67: -0.856816
A68: 14.90116 | B68: 22.10018 | C68: -0.8875581
A69: 15.64622 | B69: 22.09534 | C69: -0.944502
A70: 16.43784 | B70: 22.08983 | C70: -1.017237
A71: 17.27603 | B71: 22.10207 | C71: -1.060394
A72: 18.16079 | B72: 22.10487 | C72: -1.08056
A73: 19.09211 | B73: 22.09236 | C73: -1.152472
A74: 20.07 | B74: 22.09961 | C74: -1.182565
A75: 21.09446 | B75: 22.09707 | C75: -1.272218
A76: 22.16548 | B76: 22.10435 | C76: -1.360092
A77: 23.32963 | B77: 22.0989 | C77: -1.406925
A78: 24.49378 | B78: 22.09995 | C78: -1.486039
A79: 25.75107 | B79: 22.10264 | C79: -1.589962
A80: 27.05492 | B80: 22.10493 | C80: -1.606093
A81: 28.4519 | B81: 22.10208 | C81: -1.676953
A82: 29.89545 | B82: 22.12174 | C82: -1.74862
A83: 31.43214 | B83: 22.11371 | C83: -1.874907
A84: 33.01539 | B84: 22.11593 | C84: -1.988691
A85: 34.69177 | B85: 22.11229 | C85: -2.044849
A86: 36.46128 | B86: 22.10895 | C86: -2.139784
A87: 38.32392 | B87: 22.12092 | C87: -2.252539
A88: 40.2797 | B88: 22.11822 | C88: -2.451753
A89: 42.37518 | B89: 22.11687 | C89: -2.526029
A90: 44.51722 | B90: 22.12011 | C90: -2.679224
A91: 46.79896 | B91: 22.13592 | C91: -2.81966
A92: 49.17383 | B92: 22.13086 | C92: -2.95504
A93: 51.6884 | B93: 22.13311 | C93: -3.096772
A94: 54.29611 | B94: 22.13581 | C94: -3.316137
A95: 57.09007 | B95: 22.14796 | C95: -3.466418
A96: 59.97717 | B96: 22.13746 | C96: -3.713041
A97: 63.05054 | B97: 22.1415 | C97: -3.833466
A98: 66.2636 | B98: 22.14965 | C98: -4.028698
A99: 69.66293 | B99: 22.16098 | C99: -4.198612
A100: 73.20195 | B100: 22.14179 | C100: -4.463173
A101: 76.92724 | B101: 22.1638 | C101: -4.712974
A102: 80.88537 | B102: 22.18055 | C102: -5.030706
A103: 84.98318 | B103: 22.18183 | C103: -5.31968
A104: 89.31383 | B104: 22.18451 | C104: -5.551433
A105: 93.87732 | B105: 22.18255 | C105: -5.934998
A106: 98.67363 | B106: 22.20221 | C106: -6.160852
A107: 103.7028 | B107: 22.22899 | C107: -6.621337
A108: 109.0113 | B108: 22.22908 | C108: -6.951529
A109: 114.5527 | B109: 22.24621 | C109: -7.406704
A110: 120.42 | B110: 22.25491 | C110: -7.786388
A111: 126.5667 | B111: 22.25644 | C111: -8.131802
A112: 133.0394 | B112: 22.27128 | C112: -8.735042
A113: 139.7915 | B113: 22.28025 | C113: -9.235131
A114: 146.9627 | B114: 22.30683 | C114: -9.769982
A115: 154.4598 | B115: 22.30811 | C115: -10.34512
A116: 162.3295 | B116: 22.33689 | C116: -10.92515
A117: 170.6183 | B117: 22.34714 | C117: -11.71075
A118: 179.3262 | B118: 22.37481 | C118: -12.28314
A119: 188.4531 | B119: 22.35387 | C119: -12.85353
A120: 198.0457 | B120: 22.39068 | C120: -13.75013
A121: 208.1972 | B121: 22.39188 | C121: -14.56032
A122: 218.8142 | B122: 22.40352 | C122: -15.34187
A123: 229.9435 | B123: 22.42973 | C123: -16.3135
A124: 241.6782 | B124: 22.4151 | C124: -17.35056
A125: 254.0182 | B125: 22.44172 | C125: -18.43304
A126: 266.9636 | B126: 22.46613 | C126: -19.56817
A127: 280.6075 | B127: 22.46536 | C127: -20.47476
A128: 294.9033 | B128: 22.47343 | C128: -21.73154
A129: 309.9907 | B129: 22.49743 | C129: -23.11476
A130: 325.7766 | B130: 22.50169 | C130: -24.39148
A131: 342.4007 | B131: 22.49752 | C131: -26.0696
A132: 359.863 | B132: 22.51666 | C132: -27.25473
A133: 378.2567 | B133: 22.4921 | C133: -29.07681
A134: 397.535 | B134: 22.50389 | C134: -30.78171
A135: 417.8379 | B135: 22.50847 | C135: -32.79651
A136: 439.1652 | B136: 22.51496 | C136: -34.58567
A137: 461.5635 | B137: 22.50347 | C137: -36.88247
A138: 485.1259 | B138: 22.44596 | C138: -38.49231
A139: 509.8525 | B139: 22.42724 | C139: -41.3203
A140: 535.883 | B140: 22.3839 | C140: -43.91544
A141: 563.2173 | B141: 22.37573 | C141: -46.72713
A142: 591.9486 | B142: 22.30389 | C142: -49.31263
A143: 622.17 | B143: 22.23964 | C143: -52.25778
A144: 653.9281 | B144: 22.12619 | C144: -55.30716
A145: 687.2695 | B145: 21.97756 | C145: -58.80953
A146: 722.3338 | B146: 21.81725 | C146: -62.37849
A147: 759.2142 | B147: 21.662 | C147: -65.44268
A148: 797.9572 | B148: 21.47272 | C148: -69.10925
A149: 838.656 | B149: 21.18154 | C149: -73.22502
A150: 881.4503 | B150: 20.87595 | C150: -77.35623
A151: 926.4331 | B151: 20.55015 | C151: -81.52436
A152: 973.6978 | B152: 20.25939 | C152: -85.57221
A153: 1023.384 | B153: 19.81459 | C153: -89.5585
A154: 1075.584 | B154: 19.36494 | C154: -94.0288
A155: 1130.486 | B155: 18.85968 | C155: -97.87489
A156: 1188.135 | B156: 18.30118 | C156: -101.717
A157: 1248.764 | B157: 17.69472 | C157: -105.909
A158: 1312.513 | B158: 16.97448 | C158: -109.4491
A159: 1379.475 | B159: 16.41129 | C159: -112.9277
A160: 1449.836 | B160: 15.69188 | C160: -116.2602
A161: 1523.83 | B161: 14.96895 | C161: -119.2242
A162: 1601.595 | B162: 14.24613 | C162: -122.8018
A163: 1683.319 | B163: 13.52533 | C163: -125.5186
A164: 1769.187 | B164: 12.79989 | C164: -128.3579
A165: 1859.479 | B165: 12.00987 | C165: -130.7891
A166: 1954.334 | B166: 11.18624 | C166: -134.0349
A167: 2054.079 | B167: 10.45966 | C167: -135.7349
A168: 2158.899 | B168: 9.66091 | C168: -138.8748
A169: 2269.028 | B169: 8.890935 | C169: -140.7569
A170: 2384.838 | B170: 8.055526 | C170: -142.8057
A171: 2506.515 | B171: 7.232945 | C171: -144.4555
A172: 2634.386 | B172: 6.425002 | C172: -146.5468
A173: 2768.822 | B173: 5.648535 | C173: -148.478
A174: 2910.104 | B174: 4.80957 | C174: -150.3843
A175: 3058.603 | B175: 3.958771 | C175: -152.4615
A176: 3214.646 | B176: 3.153961 | C176: -153.6085
A177: 3378.699 | B177: 2.266353 | C177: -155.2751
A178: 3551.086 | B178: 1.491443 | C178: -156.5955
A179: 3732.275 | B179: 0.6629792 | C179: -157.7938
A180: 3922.731 | B180: -0.1902767 | C180: -159.1108
A181: 4122.872 | B181: -1.024723 | C181: -160.4987
A182: 4333.258 | B182: -1.929585 | C182: -162.1631
A183: 4554.354 | B183: -2.693437 | C183: -163.1107
A184: 4786.719 | B184: -3.544831 | C184: -164.2603
A185: 5031.005 | B185: -4.379185 | C185: -165.2811
A186: 5287.677 | B186: -5.133738 | C186: -166.6106
A187: 5557.481 | B187: -6.036506 | C187: -167.2936
A188: 5841.069 | B188: -6.823021 | C188: -168.6199
A189: 6139.092 | B189: -7.677181 | C189: -169.5919
A190: 6452.342 | B190: -8.510259 | C190: -170.3807
A191: 6781.612 | B191: -9.36755 | C191: -171.1903
A192: 7127.644 | B192: -10.1744 | C192: -171.904
A193: 7491.326 | B193: -10.98642 | C193: -172.9696
A194: 7873.587 | B194: -11.77949 | C194: -173.8944
A195: 8275.313 | B195: -12.56149 | C195: -174.8956
A196: 8697.575 | B196: -13.36656 | C196: -175.226
A197: 9141.35 | B197: -14.22337 | C197: -176.9278
A198: 9607.803 | B198: -15.05136 | C198: -177.6926
A199: 10098.05 | B199: -15.79893 | C199: -178.0445
A200: 10613.31 | B200: -16.53396 | C200: -178.6719
A201: 11154.87 | B201: -17.25312 | C201: -179.8496
A202: 11724.05 | B202: -18.13203 | C202: 179.4965
A203: 12322.24 | B203: -18.89972 | C203: 179.0471
A204: 12951.02 | B204: -19.58067 | C204: 178.7309
A205: 13611.84 | B205: -20.34003 | C205: 176.7491
A206: 14306.37 | B206: -21.10363 | C206: 176.4414
A207: 15036.39 | B207: -21.7216 | C207: 175.5026
A208: 15803.61 | B208: -22.45792 | C208: 174.576
A209: 16610 | B209: -23.15863 | C209: 173.6075
A210: 17457.5 | B210: -23.91529 | C210: 173.5189
A211: 18348.31 | B211: -24.45495 | C211: 171.8985
